Workbook

Sheet 注意事項

Sheet 入力シートその１
B6: 42部門別の経済波及効果分析 入力シートその１
B8: 最初に「１ 分析テーマ」を入力し、その後「２ 県内産・県外産の区別」～「４ 消費転換率」はリストから選択してください。 すべて選択（入力）が終わりましたら、「次へ」ボタンを押してください。
B9: １ 分析テーマ
B10: 経済波及効果分析をするテーマを入力してください。（例：福岡県内で農業商品が○○億円売れた場合）
B12: 農業に50億円の需要があった場合の経済波及効果
B13: =IF(B12="","エラー！入力されていません","") -> 
B15: ２ 県内産・県外産の区別
B16: 需要増加額の県内産・県外産の区別を、次のリストから選択してください。需要増加した商品の自給率の計算方法をここで選択します。
F17: ＜参考＞県内産・県外産の区別
B18: 県外産商品もあり | C18: =IF(B18=""," エラー！選択されていません","") ->  | F18: 県内産商品のみ | G18: 需要（消費）増加した商品がすべて県産品で賄われる（自給率100％）場合に選択してください。（例：福岡県産のあまおうへの需要が増えた場合）
F20: 県外産商品もあり | G20: 需要（消費）増加した商品に県外産もある場合に選択してください。各商品ごとの自給率に応じて県生産増加額を計算します。（例：県内産・県外産問わずお米の需要が増えた場合）
F22: 区別は不明 | G22: 需要（消費）増加した商品が県内産か県外産か不明な場合に選択してください。各商品ごとの自給率に応じて県生産増加額を計算します。
B25: ３ 価格区分
B26: 購入者価格か生産者価格かの価格区分を、次のリストから選択してください。需要増加した商品に商業マージン・運輸マージンが入っているか否かを選択します。
F27: ＜参考＞購入者価格と生産者価格の区分
B28: 購入者価格 | C28: =IF(B28=""," エラー！選択されていません","") ->  | F28: 購入者価格 | G28: 消費者が通常、店で購入するときの価格で条件設定する（商品に商業マージン・運輸マージンが入っている）場合に選択してください。
F30: 生産者価格 | G30: 生産者が出荷するときの価格で条件設定する（商品に商業マージン・運輸マージンが入っていない）場合に選択してください。
B33: ４ 消費転換率
B34: 第２次波及効果は、雇用者所得（賃金・俸給）が新たな消費に回ることにより発生します。新たな消費に回る割合は、家計調査から計算された消費転換率（消費支出÷実収入）を利用しますので、次のリストから対象とする年を選択してください。
F35: ＜参考＞過去の消費転換率
B36: 令和５年 | C36: =IF(B36=""," エラー！選択されていません","") ->  | F36: ２人以上の勤労者世帯 | G36: 対象年 | I36: 福岡市 | J36: 全国
G37: 平成27年 | H37: 2015年 | I37: 0.657827783 | J37: 0.5999573876
B38: 消費転換率 （消費支出÷実収入） | C38: 福岡市 | D38: =IF($B$36="","-",VLOOKUP($B$36,$G$37:$J$48,3,0)) -> 0.473096285 | G38: 平成28年 | H38: 2016年 | I38: 0.6032401197 | J38: 0.5874893021
C39: 全国 | D39: =IF($B$36="","-",VLOOKUP($B$36,$G$37:$J$48,4,0)) -> 0.4834029945 | G39: 平成29年 | H39: 2017年 | I39: 0.5713246426 | J39: 0.5864467423
B40: ※消費転換率は家計調査を元に計算していますが、家計調査は抽出調査であるため、各年の抽出状況により変動幅が大きくなる可能性があります。ご利用の際はこの点に注意していただくとともに、推計内容に応じて「直近３か年平均」もご活用ください。 | G40: 平成30年 | H40: 2018年 | I40: 0.6205254135 | J40: 0.5643526788
G41: 令和元年 | H41: 2019年 | I41: 0.6049690623 | J41: 0.5525096861
G42: 令和２年 | H42: 2020年 | I42: 0.5492776836 | J42: 0.5017119608
G43: 令和３年 | H43: 2021年 | I43: 0.5067776507 | J43: 0.5112519742
G44: 令和４年 | H44: 2022年 | I44: 0.4940151795 | J44: 0.4709189935
G45: 令和５年 | H45: 2023年 | I45: 0.473096285 | J45: 0.4834029945
G46: 令和６年 | H46: 2024年 | I46: 0.5136960527 | J46: 0.4719651657
G48: 直近３か年平均 | I48: =AVERAGE(I43:I45) -> 0.4912963717 | J48: =AVERAGE(J43:J45) -> 0.4885246541

Sheet 入力シートその２
B6: 42部門別の経済波及効果分析 入力シートその２
B8: 該当する部門（商品）に需要増加額を入力してください。単位は百万円です。入力が終わりましたら、「分析結果へ」ボタンを押してください。
B9: ５ 42部門別需要増加額の入力
B10: 13部門 | D10: 42部門 | F10: 金額 （百万円） | G10: 備考
E11: 合計 | F11: =SUM(F12:F53) -> 5000
B12: 01 | C12: 農林漁業 | D12: 01 | E12: 農業 | F12: 5000 | G12: 穀類、いも・豆類、野菜、果実、その他の食用作物、非食用作物、畜産、農業サービス
D13: 02 | E13: 林業 | G13: 育林、素材、特用林産物
D14: 03 | E14: 漁業 | G14: 海面漁業、内水面漁業
B15: 02 | C15: 鉱業 | D15: 04 | E15: 鉱業 | G15: 石炭・原油・天然ガス、砂利・砕石、その他の鉱物
B16: 03 | C16: 製造業 | D16: 05 | E16: 飲食料品 | G16: 畜産食料品、水産食料品、精穀・製粉、めん・パン・菓子類、農産保存食料品、砂糖・油脂・調味料類、その他の食料品、酒類、その他の飲料、飼料・有機質肥料（別掲を除く。）・たばこ
D17: 06 | E17: 繊維製品 | G17: 紡績糸、織物、ニット生地、染色整理、その他の繊維工業製品、織物製・ニット製衣服、その他の衣服・身の回り品、その他の繊維既製品
D18: 07 | E18: パルプ・紙・木製品 | G18: 木材・その他の木製品、家具・装備品、パルプ・紙・板紙、加工紙、紙製容器、その他の紙加工品
D19: 08 | E19: 化学製品 | G19: ソーダ工業製品、その他の無機化学工業製品、石油化学系基礎製品、脂肪族中間物・環式中間物・合成染料・有機顔料、合成ゴム、その他の有機化学工業製品、合成樹脂、化学繊維、医薬品、油脂加工製品・界面活性剤、化粧品・歯磨、塗料・印刷インキ、農薬
D20: 09 | E20: 石油・石炭製品 | G20: 石油製品、石炭製品
D21: 10 | E21: プラスチック・ゴム製品 | G21: プラスチック製品、タイヤ・チューブ、その他のゴム製品
D22: 11 | E22: 窯業・土石製品 | G22: ガラス・ガラス製品、セメント・セメント製品、陶磁器、建設用土石製品、その他の窯業・土石製品
D23: 12 | E23: 鉄鋼 | G23: 銑鉄・粗鋼、熱間圧延鋼材・鋼管、冷延・めっき鋼材、鋳鍛造品（鉄）、その他の鉄鋼製品
D24: 13 | E24: 非鉄金属 | G24: 非鉄金属製錬・精製、電線・ケーブル、その他の非鉄金属製品
D25: 14 | E25: 金属製品 | G25: 建設用金属製品、建築用金属製品、ガス・石油機器・暖房・調理装置、その他の金属製品
D26: 15 | E26: はん用機械 | G26: ボイラ・原動機、ポンプ・圧縮機、運搬機械、冷凍機・温湿調整装置、その他のはん用機械
D27: 16 | E27: 生産用機械 | G27: 農業用機械、建設・鉱山機械、繊維機械、生活関連産業用機械、基礎素材産業用機械、金属加工機械、半導体製造装置、その他の生産用機械
D28: 17 | E28: 業務用機械 | G28: 事務用機械、サービス用・娯楽用機器、計測機器、医療用機械器具、光学機械・レンズ・武器
D29: 18 | E29: 電子部品 | G29: 電子デバイス、その他の電子部品
D30: 19 | E30: 電気機械 | G30: 産業用電気機器、民生用電気機器、電子応用装置、電気計測器、その他の電気機械
D31: 20 | E31: 情報通信機器 | G31: 通信機器、映像・音響機器、電子計算機・同附属装置
D32: 21 | E32: 輸送機械 | G32: 乗用車、トラック・バス・その他の自動車、二輪自動車、自動車部品・同附属品、船舶・同修理、鉄道車両・同修理、その他の輸送機械・同修理
D33: 22 | E33: その他の製造工業製品 | G33: 印刷・製版・製本、なめし革・革製品、毛皮、がん具・運動用品、その他の製造工業製品、再生資源回収・加工処理
B34: 04 | C34: 建設 | D34: 23 | E34: 建設 | G34: 住宅建築、非住宅建築、建設補修、公共事業、その他の土木建設
B35: 05 | C35: 電力・ガス・水道 | D35: 24 | E35: 電力・ガス・熱供給 | G35: 電力、都市ガス、熱供給業
D36: 25 | E36: 水道 | G36: 水道
B37: 12 | C37: サービス | D37: 26 | E37: 廃棄物処理 | G37: 廃棄物処理
B38: 06 | C38: 商業 | D38: 27 | E38: 商業 | G38: 卸売（マージン）、小売（マージン）
B39: 07 | C39: 金融・保険 | D39: 28 | E39: 金融・保険 | G39: 金融、保険
B40: 08 | C40: 不動産 | D40: 29 | E40: 不動産 | G40: 不動産仲介及び賃貸、住宅賃貸料、住宅賃貸料（帰属家賃）
B41: 09 | C41: 運輸・郵便 | D41: 30 | E41: 運輸・郵便 | G41: 鉄道旅客輸送・鉄道貨物輸送、道路旅客輸送、道路貨物貨物輸送、自家輸送（旅客自動車）、自家輸送（貨物自動車）、外洋輸送、沿海・内水面輸送、港湾輸送、航空輸送、貨物利用運送、倉庫、こん包、その他の運輸附帯サービス、郵便・信書便
B42: 10 | C42: 情報通信 | D42: 31 | E42: 情報通信 | G42: 通信、放送、情報サービス、インターネット附随サービス、映像・音声・文字情報制作
B43: 11 | C43: 公務 | D43: 32 | E43: 公務 | G43: 公務（中央）、公務（地方）
B44: 12 | C44: サービス | D44: 33 | E44: 教育・研究 | G44: 学校教育、社会教育・その他の教育、学術研究機関、企業内研究開発
D45: 34 | E45: 医療・福祉 | G45: 医療、保健衛生、社会保険・社会福祉、介護
D46: 35 | E46: 他に分類されない会員制団体 | G46: 他に分類されない会員制団体
D47: 36 | E47: 対事業所サービス | G47: 物品賃貸業、貸自動車業、広告、自動車整備、機械修理、その他の対事業所サービス
D48: 37 | E48: 宿泊業 | G48: 宿泊業
D49: 38 | E49: 飲食サービス | G49: 飲食店、持ち帰り・配達飲食サービス
D50: 39 | E50: 娯楽サービス | G50: 映画館、興行場・興行団、競輪・競馬等の競走場・競技団、スポーツ施設提供業・公園・遊園地、遊戯場、その他の娯楽
D51: 40 | E51: その他の対個人サービス | G51: 洗濯業、理容業、美容業、浴場業、その他の洗濯・理容・美容・浴場業、写真業、冠婚葬祭業、個人教授業、各種修理業（別掲を除く。）、その他の対個人サービス
B52: 03 | C52: 製造業 | D52: 41 | E52: 事務用品 | G52: 事務用品（仮設部門）
B53: 13 | C53: 分類不明 | D53: 42 | E53: 分類不明 | G53: 分類不明

Sheet 計算過程
A6: 経済波及効果計算過程
D7: 需要増加額（価格変換） | J7: 直接効果 | P7: 第１次間接波及効果 | T7: 第２次間接波及効果 | Y7: 第２次間接波及効果（続き） | AE7: 総合波及効果 | AH7: 就業者誘発数 | AM7: 雇用者誘発数
D8: 購入者価格 | E8: 商業 マージン率 | F8: 商業 マージン額 | G8: 貨物運賃率 | H8: 貨物運賃額 | I8: 生産者価格 | J8: 自給率 | K8: 生産増加額 | L8: 粗付加価値率 | M8: ②のうち 粗付加価値額 | N8: 賃金・俸給率 | O8: ③のうち 賃金・俸給額 | P8: 原材料投入額 | Q8: 生産誘発額 | R8: うち粗付加 価値額 | S8: うち賃金・ 俸給額 | T8: 賃金・俸給 額計 | U8: 消費転換率 | V8: 消費増加額 域内計 | W8: 民間消費支出比率 | X8: 消費増加額 | Y8: 分割比率１ | Z8: 分割比率２ | AA8: 消費増加による 域内需要増加額 | AB8: 生産誘発額 | AC8: うち粗付加 価値額 | AD8: うち賃金・ 俸給額 | AE8: 生産誘発額 | AF8: うち粗付加 価値額 | AG8: うち賃金・ 俸給額 | AH8: 就業係数 | AI8: 直接効果 | AJ8: 第１次間接波及効果 | AK8: 第２次間接波及効果 | AL8: 総合波及効果 | AM8: 雇用係数 | AN8: 直接効果 | AO8: 第１次間接波及効果 | AP8: 第２次間接波及効果 | AQ8: 総合波及効果
D9: ⓪ | E9: Ａ | F9: ⓪' | G9: Ｂ | H9: ⓪" | I9: ① | J9: Ｃ | K9: ② | L9: Ｄ | M9: ③ | N9: Ｅ | O9: ④ | P9: ⑤ | Q9: ⑥ | R9: ⑦ | S9: ⑧ | T9: ⑨ | U9: Ｆ | V9: ⑩ | W9: Ｇ | X9: ⑪ | Y9: ⑫ | Z9: ⑬ | AA9: ⑭ | AB9: ⑮ | AC9: ⑯ | AD9: ⑰ | AE9: ⑱ | AF9: ⑲ | AG9: ⑳ | AH9: Ｈ | AI9: ㉑ | AJ9: ㉒ | AK9: ㉓ | AL9: ㉔ | AM9: Ｉ | AN9: ㉑' | AO9: ㉒' | AP9: ㉓' | AQ9: ㉔'
D10: 購入者価格の場合は需要増加額、生産者価格の場合は空欄 | E10: （※１） | F10: 購入者価格の場合は⓪×Ａ、生産者価格の場合は空欄 | G10: （※１） | H10: 購入者価格の場合は⓪×Ｂ、生産者価格の場合は空欄 | I10: 購入者価格の場合は⓪－⓪'－⓪"（※２）、生産者価格の場合は需要増加額 | J10: 上段：県自給率 下段：県移入率 | K10: 県内産商品のみの場合は上段のみ①、それ以外の場合は①×Ｃ | M10: ②×Ｄ | O10: ②×Ｅ | P10: 自給率を加味した投入係数×②（※３） | Q10: 逆行列係数×⑤ | R10: ⑥×Ｄ | S10: ⑥×Ｅ | T10: ④＋⑧ | V10: ⑨×Ｆ | W10: 民間消費支出の部門別構成比（※４） | X10: ⑩×Ｇ | Y10: 上段：県自給率 下段：県移入率 | Z10: 上段：県外移入率 下段：県外自給率 | AA10: 県の消費増加額×⑫＋県外の消費増加額×⑬ | AB10: 逆行列係数×⑭ | AC10: ⑮×Ｄ | AD10: ⑯×Ｅ | AE10: ②＋⑥＋⑮ | AF10: ③＋⑦＋⑯ | AG10: ④＋⑧＋⑰ | AI10: ②×Ｈ | AJ10: ⑥×Ｈ | AK10: ⑮×Ｈ | AL10: ㉑＋㉒＋㉓ | AN10: ②×Ｉ | AO10: ⑥×Ｉ | AP10: ⑮×Ｉ | AQ10: ㉑'＋㉒'＋㉓'
A11: 福岡県 | B11: 01 | C11: 農業 | D11: =IF(入力シートその１!$B$28="購入者価格",入力シートその２!F12,"") -> 5000 | E11: =諸係数!D10 -> 0.2608278737 | F11: =IFERROR(D11*E11,"") -> 1304.139369 | G11: =諸係数!E10 -> 0.04082910475 | H11: =IFERROR(D11*G11,"") -> 204.1455238 | I11: =IF(入力シートその１!$B$28="購入者価格",D11-F11-H11,入力シートその２!F12) -> 3491.715108 | J11: =諸係数!Q10 -> 0.258691816 | K11: =IF(入力シートその１!$B$18="県内産商品のみ",I11,I11*J11) -> 903.2781223 | L11: =諸係数!S10 -> 0.515925363 | M11: =K11*L11 -> 466.0240931 | N11: =諸係数!T10 -> 0.1147171657 | O11: =K11*N11 -> 103.621506 | P11: =MMULT(自給率を加味した投入係数!D5:CI88,計算過程!K11:K94) -> 25.7590106 | Q11: =MMULT(逆行列係数!D5:CI88,計算過程!P11:P94) -> 28.63938225 | R11: =Q11*L11 -> 14.77578368 | S11: =Q11*N11 -> 3.28542876 | T11: =O11+S11 -> 106.9069348 | W11: =諸係数!W10 -> 0.01147388234 | X11: =$V$95*W11 -> 2.966339081 | Y11: =諸係数!Q10 -> 0.258691816 | Z11: =諸係数!P52 -> 0.01037659813 | AA11: =X11*Y11+X53*Z11 -> 0.8044146827 | AB11: =MMULT(逆行列係数!D5:CI88,計算過程!AA11:AA94) -> 1.494584972 | AC11: =AB11*L11 -> 0.7710942944 | AD11: =AB11*N11 -> 0.171454552 | AE11: =SUM(K11,Q11,AB11) -> 933.4120895 | AF11: =SUM(M11,R11,AC11) -> 481.5709711 | AG11: =SUM(O11,S11,AD11) -> 107.0783894 | AH11: =諸係数!X10 -> 0.2768345573 | AI11: =K11*AH11 -> 250.0585991 | AJ11: =Q11*AH11 -> 7.928370707 | AK11: =AB11*AH11 -> 0.4137527692 | AL11: =SUM(AI11:AK11) -> 258.4007226 | AM11: =諸係数!Y10 -> 0.06107099188 | AN11: =K11*AM11 -> 55.16409087 | AO11: =Q11*AM11 -> 1.749035481 | AP11: =AB11*AM11 -> 0.09127578671 | AQ11: =SUM(AN11:AP11) -> 57.00440214 | AR11: 01
B12: 02 | C12: 林業 | D12: =IF(入力シートその１!$B$28="購入者価格",入力シートその２!F13,"") -> 0 | E12: =諸係数!D11 -> 0.2179770187 | F12: =IFERROR(D12*E12,"") -> 0 | G12: =諸係数!E11 -> 0.03180480207 | H12: =IFERROR(D12*G12,"") -> 0 | I12: =IF(入力シートその１!$B$28="購入者価格",D12-F12-H12,入力シートその２!F13) -> 0 | J12: =諸係数!Q11 -> 0.3081102791 | K12: =IF(入力シートその１!$B$18="県内産商品のみ",I12,I12*J12) -> 0 | L12: =諸係数!S11 -> 0.5513439536 | M12: =K12*L12 -> 0 | N12: =諸係数!T11 -> 0.1355808038 | O12: =K12*N12 -> 0 | P12: 0.04956715072 | Q12: 0.1770372744 | R12: =Q12*L12 -> 0.09760843078 | S12: =Q12*N12 -> 0.02400285597 | T12: 0.02400285597 | W12: =諸係数!W11 -> 0.0006546731732 | X12: =$V$95*W12 -> 0.1692524432 | Y12: =諸係数!Q11 -> 0.3081102791 | Z12: =諸係数!P53 -> 0.01082606178 | AA12: =X12*Y12+X54*Z12 -> 0.05417061704 | AB12: 0.0732009974 | AC12: =AB12*L12 -> 0.04035892731 | AD12: =AB12*N12 -> 0.00992465007 | AE12: 0.2502382718 | AF12: 0.1379673581 | AG12: 0.03392750604 | AH12: =諸係数!X11 -> 0.161651927 | AI12: =K12*AH12 -> 0 | AJ12: =Q12*AH12 -> 0.02861841655 | AK12: =AB12*AH12 -> 0.01183308228 | AL12: =SUM(AI12:AK12) -> 0.04045149883 | AM12: =諸係数!Y11 -> 0.05400856288 | AN12: =K12*AM12 -> 0 | AO12: =Q12*AM12 -> 0.009561528765 | AP12: =AB12*AM12 -> 0.003953480671 | AQ12: =SUM(AN12:AP12) -> 0.01351500944 | AR12: 01
B13: 03 | C13: 漁業 | D13: =IF(入力シートその１!$B$28="購入者価格",入力シートその２!F14,"") -> 0 | E13: =諸係数!D12 -> 0.2493002936 | F13: 0 | G13: =諸係数!E12 -> 0.03330839356 | H13: 0 | I13: =IF(入力シートその１!$B$28="購入者価格",D13-F13-H13,入力シートその２!F14) -> 0 | J13: =諸係数!Q12 -> 0.1711264547 | K13: =IF(入力シートその１!$B$18="県内産商品のみ",I13,I13*J13) -> 0 | L13: =諸係数!S12 -> 0.5027670379 | M13: 0 | N13: =諸係数!T12 -> 0.1063498058 | O13: 0 | P13: 0.0001052429922 | Q13: 0.1845681337 | R13: 0.09279477387 | S13: 0.01962878517 | T13: 0.01962878517 | W13: =諸係数!W12 -> 0.001174634574 | X13: 0.3036778956 | Y13: =諸係数!Q12 -> 0.1711264547 | Z13: =諸係数!P54 -> 0.01112750889 | AA13: 0.05590851251 | AB13: 0.1245268717 | AC13: 0.06260800643 | AD13: 0.01324340862 | AE13: 0.3090950054 | AF13: 0.1554027803 | AG13: 0.03287219379 | AH13: =諸係数!X12 -> 0.1679463198 | AI13: 0 | AJ13: 0.0309975388 | AK13: 0.02091382982 | AL13: 0.05191136862 | AM13: =諸係数!Y12 -> 0.04223116197 | AN13: 0 | AO13: 0.007794526748 | AP13: 0.005258914489 | AQ13: 0.01305344124 | AR13: 01
B14: 04 | C14: 鉱業 | D14: =IF(入力シートその１!$B$28="購入者価格",入力シートその２!F15,"") -> 0 | E14: =諸係数!D13 -> 0.0225281807 | F14: 0 | G14: =諸係数!E13 -> 0.06640306708 | H14: 0 | I14: =IF(入力シートその１!$B$28="購入者価格",D14-F14-H14,入力シートその２!F15) -> 0 | J14: =諸係数!Q13 -> 0.02910977591 | K14: =IF(入力シートその１!$B$18="県内産商品のみ",I14,I14*J14) -> 0 | L14: =諸係数!S13 -> 0.4786886494 | M14: 0 | N14: =諸係数!T13 -> 0.1336486231 | O14: 0 | P14: 0.0002436483178 | Q14: 0.4078317226 | R14: 0.1952244165 | S14: 0.05450614818 | T14: 0.05450614818 | W14: =諸係数!W13 -> 0 | X14: 0 | Y14: =諸係数!Q13 -> 0.02910977591 | Z14: =諸係数!P55 -> 0.0006742829333 | AA14: 0 | AB14: 0.1020759479 | AC14: 0.04886259762 | AD14: 0.01364230988 | AE14: 0.5099076705 | AF14: 0.2440870141 | AG14: 0.06814845806 | AH14: =諸係数!X13 -> 0.03313602225 | AI14: 0 | AJ14: 0.01351392104 | AK14: 0.00338239088 | AL14: 0.01689631192 | AM14: =諸係数!Y13 -> 0.03294944555 | AN14: 0 | AO14: 0.01343782914 | AP14: 0.003363345886 | AQ14: 0.01680117502 | AR14: 02
B15: 05 | C15: 飲食料品 | D15: =IF(入力シートその１!$B$28="購入者価格",入力シートその２!F16,"") -> 0 | E15: =諸係数!D14 -> 0.322574961 | F15: 0 | G15: =諸係数!E14 -> 0.03217133818 | H15: 0 | I15: =IF(入力シートその１!$B$28="購入者価格",D15-F15-H15,入力シートその２!F16) -> 0 | J15: =諸係数!Q14 -> 0.2920246827 | K15: =IF(入力シートその１!$B$18="県内産商品のみ",I15,I15*J15) -> 0 | L15: =諸係数!S14 -> 0.4652808588 | M15: 0 | N15: =諸係数!T14 -> 0.1038838812 | O15: 0 | P15: 24.53108744 | Q15: 28.79744951 | R15: 13.39890204 | S15: 2.991590823 | T15: 2.991590823 | W15: =諸係数!W14 -> 0.08935663493 | X15: 23.10134186 | Y15: =諸係数!Q14 -> 0.2920246827 | Z15: =諸係数!P56 -> 0.02566512033 | AA15: 7.515548758 | AB15: 9.502593751 | AC15: 4.421374981 | AD15: 0.9871663202 | AE15: 38.30004326 | AF15: 17.82027702 | AG15: 3.978757143 | AH15: =諸係数!X14 -> 0.03679671602 | AI15: 0 | AJ15: 1.059651572 | AK15: 0.3496642437 | AL15: 1.409315815 | AM15: =諸係数!Y14 -> 0.03566668009 | AN15: 0 | AO15: 1.027109419 | AP15: 0.3389259714 | AQ15: 1.36603539 | AR15: 03
B16: 06 | C16: 繊維製品 | D16: =IF(入力シートその１!$B$28="購入者価格",入力シートその２!F17,"") -> 0 | E16: =諸係数!D15 -> 0.4394491476 | F16: 0 | G16: =諸係数!E15 -> 0.02454854616 | H16: 0 | I16: =IF(入力シートその１!$B$28="購入者価格",D16-F16-H16,入力シートその２!F17) -> 0 | J16: =諸係数!Q15 -> 0.05591285798 | K16: =IF(入力シートその１!$B$18="県内産商品のみ",I16,I16*J16) -> 0 | L16: =諸係数!S15 -> 0.410428468 | M16: 0 | N16: =諸係数!T15 -> 0.238493068 | O16: 0 | P16: 0.4474402134 | Q16: 0.5570925784 | R16: 0.2286466535 | S16: 0.1328627182 | T16: 0.1328627182 | W16: =諸係数!W15 -> 0.01418249063 | X16: 3.666594705 | Y16: =諸係数!Q15 -> 0.05591285798 | Z16: =諸係数!P57 -> 0.003742782157 | AA16: 0.2227502307 | AB16: 0.2655260565 | AC16: 0.1089794526 | AD16: 0.06332612384 | AE16: 0.8226186349 | AF16: 0.3376261061 | AG16: 0.196188842 | AH16: =諸係数!X15 -> 0.1304347463 | AI16: 0 | AJ16: 0.07266422911 | AK16: 0.0346338238 | AL16: 0.1072980529 | AM16: =諸係数!Y15 -> 0.09973315321 | AN16: 0 | AO16: 0.05556059948 | AP16: 0.02648175087 | AQ16: 0.08204235035 | AR16: 03
B17: 07 | C17: パルプ・紙・木製品 | D17: =IF(入力シートその１!$B$28="購入者価格",入力シートその２!F18,"") -> 0 | E17: =諸係数!D16 -> 0.233496868 | F17: 0 | G17: =諸係数!E16 -> 0.05800394015 | H17: 0 | I17: =IF(入力シートその１!$B$28="購入者価格",D17-F17-H17,入力シートその２!F18) -> 0 | J17: =諸係数!Q16 -> 0.1793097465 | K17: =IF(入力シートその１!$B$18="県内産商品のみ",I17,I17*J17) -> 0 | L17: =諸係数!S16 -> 0.4056128977 | M17: 0 | N17: =諸係数!T16 -> 0.1923683951 | O17: 0 | P17: 6.690317732 | Q17: 8.767190807 | R17: 3.556085668 | S17: 1.686530425 | T17: 1.686530425 | W17: =諸係数!W16 -> 0.001185300282 | X17: 0.3064352976 | Y17: =諸係数!Q16 -> 0.1793097465 | Z17: =諸係数!P58 -> 0.009725702992 | AA17: 0.05855389641 | AB17: 0.452640653 | AC17: 0.1835968869 | AD17: 0.08707375598 | AE17: 9.21983146 | AF17: 3.739682555 | AG17: 1.773604181 | AH17: =諸係数!X16 -> 0.06297098053 | AI17: 0 | AJ17: 0.5520786017 | AK17: 0.02850322575 | AL17: 0.5805818274 | AM17: =諸係数!Y16 -> 0.0575219264 | AN17: 0 | AO17: 0.5043057043 | AP17: 0.02603676233 | AQ17: 0.5303424667 | AR17: 03
B18: 08 | C18: 化学製品 | D18: =IF(入力シートその１!$B$28="購入者価格",入力シートその２!F19,"") -> 0 | E18: =諸係数!D17 -> 0.2002949714 | F18: 0 | G18: =諸係数!E17 -> 0.02693915726 | H18: 0 | I18: =IF(入力シートその１!$B$28="購入者価格",D18-F18-H18,入力シートその２!F19) -> 0 | J18: =諸係数!Q17 -> 0.1053678232 | K18: =IF(入力シートその１!$B$18="県内産商品のみ",I18,I18*J18) -> 0 | L18: =諸係数!S17 -> 0.3517901026 | M18: 0 | N18: =諸係数!T17 -> 0.08488997646 | O18: 0 | P18: 7.796160091 | Q18: 9.864138683 | R18: 3.470106359 | S18: 0.8373665005 | T18: 0.8373665005 | W18: =諸係数!W17 -> 0.01004118489 | X18: 2.595944275 | Y18: =諸係数!Q17 -> 0.1053678232 | Z18: =諸係数!P59 -> 0.0099117897 | AA18: 0.3004737952 | AB18: 0.7745018207 | AC18: 0.272462075 | AD18: 0.06574744132 | AE18: 10.6386405 | AF18: 3.742568434 | AG18: 0.9031139419 | AH18: =諸係数!X17 -> 0.01604613238 | AI18: 0 | AJ18: 0.1582812751 | AK18: 0.01242775874 | AL18: 0.1707090339 | AM18: =諸係数!Y17 -> 0.01603133821 | AN18: 0 | AO18: 0.1581353433 | AP18: 0.01241630063 | AQ18: 0.170551644 | AR18: 03
B19: 09 | C19: 石油・石炭製品 | D19: =IF(入力シートその１!$B$28="購入者価格",入力シートその２!F20,"") -> 0 | E19: =諸係数!D18 -> 0.1963639319 | F19: 0 | G19: =諸係数!E18 -> 0.02121949273 | H19: 0 | I19: =IF(入力シートその１!$B$28="購入者価格",D19-F19-H19,入力シートその２!F20) -> 0 | J19: =諸係数!Q18 -> 0.08817589333 | K19: =IF(入力シートその１!$B$18="県内産商品のみ",I19,I19*J19) -> 0 | L19: =諸係数!S18 -> 0.155691385 | M19: 0 | N19: =諸係数!T18 -> 0.03387084544 | O19: 0 | P19: 2.908612952 | Q19: 4.757608235 | R19: 0.7407186156 | S19: 0.1611442132 | T19: 0.1611442132 | W19: =諸係数!W18 -> 0.017750025 | X19: 4.588908208 | Y19: =諸係数!Q18 -> 0.08817589333 | Z19: =諸係数!P60 -> 0.00357411544 | AA19: 0.4241867535 | AB19: 0.734128829 | AC19: 0.1142975342 | AD19: 0.0248655641 | AE19: 5.491737064 | AF19: 0.8550161498 | AG19: 0.1860097773 | AH19: =諸係数!X18 -> 0.005808533412 | AI19: 0 | AJ19: 0.0276347264 | AK19: 0.004264211832 | AL19: 0.03189893823 | AM19: =諸係数!Y18 -> 0.005808533412 | AN19: 0 | AO19: 0.0276347264 | AP19: 0.004264211832 | AQ19: 0.03189893823 | AR19: 03
B20: 10 | C20: プラスチック・ゴム製品 | D20: =IF(入力シートその１!$B$28="購入者価格",入力シートその２!F21,"") -> 0 | E20: =諸係数!D19 -> 0.1820219867 | F20: 0 | G20: =諸係数!E19 -> 0.03040433651 | H20: 0 | I20: =IF(入力シートその１!$B$28="購入者価格",D20-F20-H20,入力シートその２!F21) -> 0 | J20: =諸係数!Q19 -> 0.2964036867 | K20: =IF(入力シートその１!$B$18="県内産商品のみ",I20,I20*J20) -> 0 | L20: =諸係数!S19 -> 0.3735093612 | M20: 0 | N20: =諸係数!T19 -> 0.1486818908 | O20: 0 | P20: 4.474914625 | Q20: 6.618390801 | R20: 2.47203092 | S20: 0.9840348582 | T20: 0.9840348582 | W20: =諸係数!W19 -> 0.003223127605 | X20: 0.8332741347 | Y20: =諸係数!Q19 -> 0.2964036867 | Z20: =諸係数!P61 -> 0.01904727009 | AA20: 0.2653428424 | AB20: 0.7695645997 | AC20: 0.287439582 | AD20: 0.1144203198 | AE20: 7.3879554 | AF20: 2.759470502 | AG20: 1.098455178 | AH20: =諸係数!X19 -> 0.03892614597 | AI20: 0 | AJ20: 0.2576284464 | AK20: 0.02995618394 | AL20: 0.2875846303 | AM20: =諸係数!Y19 -> 0.03789146068 | AN20: 0 | AO20: 0.2507804948 | AP20: 0.02915992677 | AQ20: 0.2799404216 | AR20: 03
B21: 11 | C21: 窯業・土石製品 | D21: =IF(入力シートその１!$B$28="購入者価格",入力シートその２!F22,"") -> 0 | E21: =諸係数!D20 -> 0.1744042063 | F21: 0 | G21: =諸係数!E20 -> 0.05255525303 | H21: 0 | I21: =IF(入力シートその１!$B$28="購入者価格",D21-F21-H21,入力シートその２!F22) -> 0 | J21: =諸係数!Q20 -> 0.4411768091 | K21: =IF(入力シートその１!$B$18="県内産商品のみ",I21,I21*J21) -> 0 | L21: =諸係数!S20 -> 0.4569169814 | M21: 0 | N21: =諸係数!T20 -> 0.1622567632 | O21: 0 | P21: 1.169610356 | Q21: 1.852667452 | R21: 0.8465152196 | S21: 0.3006078239 | T21: 0.3006078239 | W21: =諸係数!W20 -> 0.0005072345201 | X21: 0.131135176 | Y21: =諸係数!Q20 -> 0.4411768091 | Z21: =諸係数!P62 -> 0.02994149489 | AA21: 0.06220499233 | AB21: 0.2106251639 | AC21: 0.09623821409 | AD21: 0.03417535733 | AE21: 2.063292616 | AF21: 0.9427534337 | AG21: 0.3347831812 | AH21: =諸係数!X20 -> 0.03881529392 | AI21: 0 | AJ21: 0.07191183166 | AK21: 0.008175477642 | AL21: 0.0800873093 | AM21: =諸係数!Y20 -> 0.03784482791 | AN21: 0 | AO21: 0.07011388088 | AP21: 0.00797107308 | AQ21: 0.07808495396 | AR21: 03
B22: 12 | C22: 鉄鋼 | D22: =IF(入力シートその１!$B$28="購入者価格",入力シートその２!F23,"") -> 0 | E22: =諸係数!D21 -> 0.05915135091 | F22: 0 | G22: =諸係数!E21 -> 0.02707816711 | H22: 0 | I22: =IF(入力シートその１!$B$28="購入者価格",D22-F22-H22,入力シートその２!F23) -> 0 | J22: =諸係数!Q21 -> 0.6102627205 | K22: =IF(入力シートその１!$B$18="県内産商品のみ",I22,I22*J22) -> 0 | L22: =諸係数!S21 -> 0.2609798555 | M22: 0 | N22: =諸係数!T21 -> 0.04001364881 | O22: 0 | P22: 0.04806736401 | Q22: 1.946393727 | R22: 0.5079695537 | S22: 0.07788231506 | T22: 0.07788231506 | W22: =諸係数!W21 -> 0 | X22: 0 | Y22: =諸係数!Q21 -> 0.6102627205 | Z22: =諸係数!P63 -> 0.03241717779 | AA22: 0 | AB22: 0.4585796678 | AC22: 0.1196800554 | AD22: 0.01834944578 | AE22: 2.404973395 | AF22: 0.6276496091 | AG22: 0.09623176084 | AH22: =諸係数!X21 -> 0.006835039884 | AI22: 0 | AJ22: 0.01330367876 | AK22: 0.003134410319 | AL22: 0.01643808907 | AM22: =諸係数!Y21 -> 0.006712065014 | AN22: 0 | AO22: 0.01306432124 | AP22: 0.003078016545 | AQ22: 0.01614233779 | AR22: 03
B23: 13 | C23: 非鉄金属 | D23: =IF(入力シートその１!$B$28="購入者価格",入力シートその２!F24,"") -> 0 | E23: =諸係数!D22 -> 0.1016214132 | F23: 0 | G23: =諸係数!E22 -> 0.029411656 | H23: 0 | I23: =IF(入力シートその１!$B$28="購入者価格",D23-F23-H23,入力シートその２!F24) -> 0 | J23: =諸係数!Q22 -> 0.09163349659 | K23: =IF(入力シートその１!$B$18="県内産商品のみ",I23,I23*J23) -> 0 | L23: =諸係数!S22 -> 0.2553959476 | M23: 0 | N23: =諸係数!T22 -> 0.08923052437 | O23: 0 | P23: 0.001240171713 | Q23: 0.1235774766 | R23: 0.03156118674 | S23: 0.01102688304 | T23: 0.01102688304 | W23: =諸係数!W22 -> 0.0005838992981 | X23: 0.1509552962 | Y23: =諸係数!Q22 -> 0.09163349659 | Z23: =諸係数!P64 -> 0.007110842314 | AA23: 0.01512529919 | AB23: 0.0536301287 | AC23: 0.01369691754 | AD23: 0.004785444506 | AE23: 0.1772076053 | AF23: 0.04525810428 | AG23: 0.01581232755 | AH23: =諸係数!X22 -> 0.02042567902 | AI23: 0 | AJ23: 0.002524153872 | AK23: 0.001095431795 | AL23: 0.003619585667 | AM23: =諸係数!Y22 -> 0.02004061176 | AN23: 0 | AO23: 0.002476568232 | AP23: 0.001074780588 | AQ23: 0.00355134882 | AR23: 03
B24: 14 | C24: 金属製品 | D24: =IF(入力シートその１!$B$28="購入者価格",入力シートその２!F25,"") -> 0 | E24: =諸係数!D23 -> 0.1328157078 | F24: 0 | G24: =諸係数!E23 -> 0.04383129877 | H24: 0 | I24: =IF(入力シートその１!$B$28="購入者価格",D24-F24-H24,入力シートその２!F25) -> 0 | J24: =諸係数!Q23 -> 0.3851230593 | K24: =IF(入力シートその１!$B$18="県内産商品のみ",I24,I24*J24) -> 0 | L24: =諸係数!S23 -> 0.4394235536 | M24: 0 | N24: =諸係数!T23 -> 0.2321757604 | O24: 0 | P24: 1.476798344 | Q24: 2.552289603 | R24: 1.121536167 | S24: 0.5925797792 | T24: 0.5925797792 | W24: =諸係数!W23 -> 0.0009507436863 | X24: 0.245795457 | Y24: =諸係数!Q23 -> 0.3851230593 | Z24: =諸係数!P65 -> 0.01589094996 | AA24: 0.09944179887 | AB24: 0.3577272564 | AC24: 0.1571937822 | AD24: 0.08305559776 | AE24: 2.910016859 | AF24: 1.278729949 | AG24: 0.675635377 | AH24: =諸係数!X23 -> 0.06344417803 | AI24: 0 | AJ24: 0.161927916 | AK24: 0.02269571174 | AL24: 0.1846236277 | AM24: =諸係数!Y23 -> 0.06191377154 | AN24: 0 | AO24: 0.1580218754 | AP24: 0.02214824363 | AQ24: 0.180170119 | AR24: 03
B25: 15 | C25: はん用機械 | D25: =IF(入力シートその１!$B$28="購入者価格",入力シートその２!F26,"") -> 0 | E25: =諸係数!D24 -> 0.1028494212 | F25: 0 | G25: =諸係数!E24 -> 0.01319488397 | H25: 0 | I25: =IF(入力シートその１!$B$28="購入者価格",D25-F25-H25,入力シートその２!F26) -> 0 | J25: =諸係数!Q24 -> 0.0664020774 | K25: =IF(入力シートその１!$B$18="県内産商品のみ",I25,I25*J25) -> 0 | L25: =諸係数!S24 -> 0.4417931107 | M25: 0 | N25: =諸係数!T24 -> 0.2207624201 | O25: 0 | P25: 0.001186967244 | Q25: 0.117173005 | R25: 0.05176622635 | S25: 0.02586739614 | T25: 0.02586739614 | W25: =諸係数!W24 -> 4.516490713e-05 | X25: 0.0116764688 | Y25: =諸係数!Q24 -> 0.0664020774 | Z25: =諸係数!P66 -> 0.01210903234 | AA25: 0.0009486196287 | AB25: 0.02357946674 | AC25: 0.01041724596 | AD25: 0.005205460142 | AE25: 0.1407524717 | AF25: 0.06218347231 | AG25: 0.03107285629 | AH25: =諸係数!X24 -> 0.05156669197 | AI25: 0 | AJ25: 0.006042224253 | AK25: 0.001215915098 | AL25: 0.007258139351 | AM25: =諸係数!Y24 -> 0.05084769611 | AN25: 0 | AO25: 0.005957977348 | AP25: 0.001198961559 | AQ25: 0.007156938908 | AR25: 03
B26: 16 | C26: 生産用機械 | D26: =IF(入力シートその１!$B$28="購入者価格",入力シートその２!F27,"") -> 0 | E26: =諸係数!D25 -> 0.1224521901 | F26: 0 | G26: =諸係数!E25 -> 0.01163514444 | H26: 0 | I26: =IF(入力シートその１!$B$28="購入者価格",D26-F26-H26,入力シートその２!F27) -> 0 | J26: =諸係数!Q25 -> 0.1639564551 | K26: =IF(入力シートその１!$B$18="県内産商品のみ",I26,I26*J26) -> 0 | L26: =諸係数!S25 -> 0.4571378665 | M26: 0 | N26: =諸係数!T25 -> 0.190875248 | O26: 0 | P26: 0.001846698358 | Q26: 0.3178216384 | R26: 0.1452883057 | S26: 0.06066428403 | T26: 0.06066428403 | W26: =諸係数!W25 -> 2.109514639e-05 | X26: 0.005453721357 | Y26: =諸係数!Q25 -> 0.1639564551 | Z26: =諸係数!P67 -> 0.01861676233 | AA26: 0.001051754312 | AB26: 0.04851544188 | AC26: 0.02217824559 | AD26: 0.009260396998 | AE26: 0.3663370803 | AF26: 0.1674665513 | AG26: 0.06992468103 | AH26: =諸係数!X25 -> 0.04134758578 | AI26: 0 | AJ26: 0.01314115745 | AK26: 0.002005996395 | AL26: 0.01514715385 | AM26: =諸係数!Y25 -> 0.04070599038 | AN26: 0 | AO26: 0.01293724455 | AP26: 0.001974869111 | AQ26: 0.01491211367 | AR26: 03
B27: 17 | C27: 業務用機械 | D27: =IF(入力シートその１!$B$28="購入者価格",入力シートその２!F28,"") -> 0 | E27: =諸係数!D26 -> 0.175715926 | F27: 0 | G27: =諸係数!E26 -> 0.01386049688 | H27: 0 | I27: =IF(入力シートその１!$B$28="購入者価格",D27-F27-H27,入力シートその２!F28) -> 0 | J27: =諸係数!Q26 -> 0.03199225824 | K27: =IF(入力シートその１!$B$18="県内産商品のみ",I27,I27*J27) -> 0 | L27: =諸係数!S26 -> 0.4224492712 | M27: 0 | N27: =諸係数!T26 -> 0.2156441006 | O27: 0 | P27: 0.04932658838 | Q27: 0.07873619456 | R27: 0.03326204801 | S27: 0.01697899586 | T27: 0.01697899586 | W27: =諸係数!W26 -> 0.0003263425771 | X27: 0.08436924063 | Y27: =諸係数!Q26 -> 0.03199225824 | Z27: =諸係数!P68 -> 0.002424159867 | AA27: 0.002963545343 | AB27: 0.01557686129 | AC27: 0.006580433698 | AD27: 0.003359058243 | AE27: 0.09431305585 | AF27: 0.03984248171 | AG27: 0.0203380541 | AH27: =諸係数!X26 -> 0.05034441388 | AI27: 0 | AJ27: 0.003963927566 | AK27: 0.0007842079515 | AL27: 0.004748135518 | AM27: =諸係数!Y26 -> 0.04964733738 | AN27: 0 | AO27: 0.003909042415 | AP27: 0.0007733496876 | AQ27: 0.004682392103 | AR27: 03
B28: 18 | C28: 電子部品 | D28: =IF(入力シートその１!$B$28="購入者価格",入力シートその２!F29,"") -> 0 | E28: =諸係数!D27 -> 0.05893676401 | F28: 0 | G28: =諸係数!E27 -> 0.009511640979 | H28: 0 | I28: =IF(入力シートその１!$B$28="購入者価格",D28-F28-H28,入力シートその２!F29) -> 0 | J28: =諸係数!Q27 -> 0.1155533094 | K28: =IF(入力シートその１!$B$18="県内産商品のみ",I28,I28*J28) -> 0 | L28: =諸係数!S27 -> 0.3399227108 | M28: 0 | N28: =諸係数!T27 -> 0.1414854445 | O28: 0 | P28: 0.002364622016 | Q28: 0.3016610887 | R28: 0.102541455 | S28: 0.04268065324 | T28: 0.04268065324 | W28: =諸係数!W27 -> 0.0005483008061 | X28: 0.1417520296 | Y28: =諸係数!Q27 -> 0.1155533094 | Z28: =諸係数!P69 -> 0.01329345195 | AA28: 0.01861994954 | AB28: 0.1117370751 | AC28: 0.03798196947 | AD28: 0.01580916974 | AE28: 0.4133981639 | AF28: 0.1405234245 | AG28: 0.05848982298 | AH28: =諸係数!X27 -> 0.0301138725 | AI28: 0 | AJ28: 0.009084183565 | AK28: 0.003364836034 | AL28: 0.0124490196 | AM28: =諸係数!Y27 -> 0.02995998728 | AN28: 0 | AO28: 0.009037762381 | AP28: 0.003347641349 | AQ28: 0.01238540373 | AR28: 03
B29: 19 | C29: 電気機械 | D29: =IF(入力シートその１!$B$28="購入者価格",入力シートその２!F30,"") -> 0 | E29: =諸係数!D28 -> 0.1734467222 | F29: 0 | G29: =諸係数!E28 -> 0.0091142446 | H29: 0 | I29: =IF(入力シートその１!$B$28="購入者価格",D29-F29-H29,入力シートその２!F30) -> 0 | J29: =諸係数!Q28 -> 0.1729601228 | K29: =IF(入力シートその１!$B$18="県内産商品のみ",I29,I29*J29) -> 0 | L29: =諸係数!S28 -> 0.3998646969 | M29: 0 | N29: =諸係数!T28 -> 0.2030439581 | O29: 0 | P29: 0.04252232148 | Q29: 0.2810867893 | R29: 0.1123966838 | S29: 0.05707297428 | T29: 0.05707297428 | W29: =諸係数!W28 -> 0.01076132034 | X29: 2.782120659 | Y29: =諸係数!Q28 -> 0.1729601228 | Z29: =諸係数!P70 -> 0.009515577045 | AA29: 0.5133240457 | AB29: 0.5782220354 | AC29: 0.2312105789 | AD29: 0.1174044908 | AE29: 0.8593088248 | AF29: 0.3436072628 | AG29: 0.174477465 | AH29: =諸係数!X28 -> 0.04772049823 | AI29: 0 | AJ29: 0.01341360163 | AK29: 0.02759304362 | AL29: 0.04100664526 | AM29: =諸係数!Y28 -> 0.04749753941 | AN29: 0 | AO29: 0.01335093085 | AP29: 0.02746412392 | AQ29: 0.04081505477 | AR29: 03
B30: 20 | C30: 情報通信機器 | D30: =IF(入力シートその１!$B$28="購入者価格",入力シートその２!F31,"") -> 0 | E30: =諸係数!D29 -> 0.1779343209 | F30: 0 | G30: =諸係数!E29 -> 0.007909160004 | H30: 0 | I30: =IF(入力シートその１!$B$28="購入者価格",D30-F30-H30,入力シートその２!F31) -> 0 | J30: =諸係数!Q29 -> 0.009099227942 | K30: =IF(入力シートその１!$B$18="県内産商品のみ",I30,I30*J30) -> 0 | L30: =諸係数!S29 -> 0.3977624149 | M30: 0 | N30: =諸係数!T29 -> 0.1497996649 | O30: 0 | P30: 0.00245459879 | Q30: 0.005583822981 | R30: 0.002221034913 | S30: 0.0008364548117 | T30: 0.0008364548117 | W30: =諸係数!W29 -> 0.01344938808 | X30: 3.47706594 | Y30: =諸係数!Q29 -> 0.009099227942 | Z30: =諸係数!P71 -> 0.000558588209 | AA30: 0.03370298904 | AB30: 0.03464746751 | AC30: 0.01378146034 | AD30: 0.005190179024 | AE30: 0.04023129049 | AF30: 0.01600249526 | AG30: 0.006026633835 | AH30: =諸係数!X29 -> 0.04461610466 | AI30: 0 | AJ30: 0.0002491284306 | AK30: 0.001545835037 | AL30: 0.001794963467 | AM30: =諸係数!Y29 -> 0.04461610466 | AN30: 0 | AO30: 0.0002491284306 | AP30: 0.001545835037 | AQ30: 0.001794963467 | AR30: 03
B31: 21 | C31: 輸送機械 | D31: =IF(入力シートその１!$B$28="購入者価格",入力シートその２!F32,"") -> 0 | E31: =諸係数!D30 -> 0.08664370577 | F31: 0 | G31: =諸係数!E30 -> 0.01574412185 | H31: 0 | I31: =IF(入力シートその１!$B$28="購入者価格",D31-F31-H31,入力シートその２!F32) -> 0 | J31: =諸係数!Q30 -> 0.1908232779 | K31: =IF(入力シートその１!$B$18="県内産商品のみ",I31,I31*J31) -> 0 | L31: =諸係数!S30 -> 0.1663866019 | M31: 0 | N31: =諸係数!T30 -> 0.05435084327 | O31: 0 | P31: 0.6616468087 | Q31: 2.658523392 | R31: 0.4423426732 | S31: 0.1444929882 | T31: 0.1444929882 | W31: =諸係数!W30 -> 0.01967880093 | X31: 5.087554023 | Y31: =諸係数!Q30 -> 0.1908232779 | Z31: =諸係数!P72 -> 0.0236833049 | AA31: 1.121354732 | AB31: 1.714645759 | AC31: 0.2852940813 | AD31: 0.09319244291 | AE31: 4.373169151 | AF31: 0.7276367545 | AG31: 0.2376854311 | AH31: =諸係数!X30 -> 0.009606951608 | AI31: 0 | AJ31: 0.02554030557 | AK31: 0.01647251883 | AL31: 0.0420128244 | AM31: =諸係数!Y30 -> 0.009561823184 | AN31: 0 | AO31: 0.0254203306 | AP31: 0.01639513957 | AQ31: 0.04181547017 | AR31: 03
B32: 22 | C32: その他の製造工業製品 | D32: =IF(入力シートその１!$B$28="購入者価格",入力シートその２!F33,"") -> 0 | E32: =諸係数!D31 -> 0.3163065919 | F32: 0 | G32: =諸係数!E31 -> 0.0356696381 | H32: 0 | I32: =IF(入力シートその１!$B$28="購入者価格",D32-F32-H32,入力シートその２!F33) -> 0 | J32: =諸係数!Q31 -> 0.2271396953 | K32: =IF(入力シートその１!$B$18="県内産商品のみ",I32,I32*J32) -> 0 | L32: =諸係数!S31 -> 0.4706014736 | M32: 0 | N32: =諸係数!T31 -> 0.2066248684 | O32: 0 | P32: 1.387864513 | Q32: 2.793954938 | R32: 1.314839311 | S32: 0.5773005713 | T32: 0.5773005713 | W32: =諸係数!W31 -> 0.01057824662 | X32: 2.734790669 | Y32: =諸係数!Q31 -> 0.2271396953 | Z32: =諸係数!P73 -> 0.01528583258 | AA32: 0.6717478987 | AB32: 1.191078198 | AC32: 0.5605231553 | AD32: 0.246106376 | AE32: 3.985033136 | AF32: 1.875362466 | AG32: 0.8234069473 | AH32: =諸係数!X31 -> 0.06809805466 | AI32: 0 | AJ32: 0.1902628961 | AK32: 0.08111010825 | AL32: 0.2713730043 | AM32: =諸係数!Y31 -> 0.05991889773 | AN32: 0 | AO32: 0.1674107002 | AP32: 0.07136809275 | AQ32: 0.2387787929 | AR32: 03
B33: 23 | C33: 建設 | D33: =IF(入力シートその１!$B$28="購入者価格",入力シートその２!F34,"") -> 0 | E33: =諸係数!D32 -> 0 | F33: 0 | G33: =諸係数!E32 -> 0 | H33: 0 | I33: =IF(入力シートその１!$B$28="購入者価格",D33-F33-H33,入力シートその２!F34) -> 0 | J33: =諸係数!Q32 -> 1 | K33: =IF(入力シートその１!$B$18="県内産商品のみ",I33,I33*J33) -> 0 | L33: =諸係数!S32 -> 0.4999765528 | M33: 0 | N33: =諸係数!T32 -> 0.3239504584 | O33: 0 | P33: 6.043313948 | Q33: 8.441014563 | R33: 4.220309363 | S33: 2.734470537 | T33: 2.734470537 | W33: =諸係数!W32 -> 0 | X33: 0 | Y33: =諸係数!Q32 -> 1 | Z33: =諸係数!P74 -> 0 | AA33: 0 | AB33: 1.16740835 | AC33: 0.5836768024 | AD33: 0.3781824701 | AE33: 9.608422913 | AF33: 4.803986165 | AG33: 3.112653008 | AH33: =諸係数!X32 -> 0.09744540251 | AI33: 0 | AJ33: 0.8225380617 | AK33: 0.1137585765 | AL33: 0.9362966383 | AM33: =諸係数!Y32 -> 0.07635897182 | AN33: 0 | AO33: 0.6445471932 | AP33: 0.08914210129 | AQ33: 0.7336892945 | AR33: 04
B34: 24 | C34: 電力・ガス・熱供給 | D34: =IF(入力シートその１!$B$28="購入者価格",入力シートその２!F35,"") -> 0 | E34: =諸係数!D33 -> 0 | F34: 0 | G34: =諸係数!E33 -> 0 | H34: 0 | I34: =IF(入力シートその１!$B$28="購入者価格",D34-F34-H34,入力シートその２!F35) -> 0 | J34: =諸係数!Q33 -> 0.7963931188 | K34: =IF(入力シートその１!$B$18="県内産商品のみ",I34,I34*J34) -> 0 | L34: =諸係数!S33 -> 0.3898317172 | M34: 0 | N34: =諸係数!T33 -> 0.0905071643 | O34: 0 | P34: 21.79515116 | Q34: 28.79328535 | R34: 11.22453587 | S34: 2.605998608 | T34: 2.605998608 | W34: =諸係数!W33 -> 0.02599422945 | X34: 6.720279712 | Y34: =諸係数!Q33 -> 0.7963931188 | Z34: =諸係数!P75 -> 7.592756827e-05 | AA34: 5.352545985 | AB34: 8.574860561 | AC34: 3.342752618 | AD34: 0.7760863136 | AE34: 37.36814591 | AF34: 14.56728849 | AG34: 3.382084921 | AH34: =諸係数!X33 -> 0.01391075441 | AI34: 0 | AJ34: 0.400536321 | AK34: 0.1192827793 | AL34: 0.5198191003 | AM34: =諸係数!Y33 -> 0.01391075441 | AN34: 0 | AO34: 0.400536321 | AP34: 0.1192827793 | AQ34: 0.5198191003 | AR34: 05
B35: 25 | C35: 水道 | D35: =IF(入力シートその１!$B$28="購入者価格",入力シートその２!F36,"") -> 0 | E35: =諸係数!D34 -> 0 | F35: 0 | G35: =諸係数!E34 -> 0 | H35: 0 | I35: =IF(入力シートその１!$B$28="購入者価格",D35-F35-H35,入力シートその２!F36) -> 0 | J35: =諸係数!Q34 -> 0.9419874993 | K35: =IF(入力シートその１!$B$18="県内産商品のみ",I35,I35*J35) -> 0 | L35: =諸係数!S34 -> 0.5279982278 | M35: 0 | N35: =諸係数!T34 -> 0.1645865458 | O35: 0 | P35: 2.468209208 | Q35: 3.728582213 | R35: 1.968684801 | S35: 0.6136744673 | T35: 0.6136744673 | W35: =諸係数!W34 -> 0.007098025935 | X35: 1.835050344 | Y35: =諸係数!Q34 -> 0.9419874993 | Z35: =諸係数!P76 -> 0.001711378905 | AA35: 1.732087673 | AB35: 2.575583812 | AC35: 1.359903688 | AD35: 0.4239064431 | AE35: 6.304166025 | AF35: 3.328588489 | AG35: 1.03758091 | AH35: =諸係数!X34 -> 0.02784762105 | AI35: 0 | AJ35: 0.1038321445 | AK35: 0.07172388197 | AL35: 0.1755560265 | AM35: =諸係数!Y34 -> 0.02784762105 | AN35: 0 | AO35: 0.1038321445 | AP35: 0.07172388197 | AQ35: 0.1755560265 | AR35: 05
B36: 26 | C36: 廃棄物処理 | D36: =IF(入力シートその１!$B$28="購入者価格",入力シートその２!F37,"") -> 0 | E36: =諸係数!D35 -> 0 | F36: 0 | G36: =諸係数!E35 -> 0 | H36: 0 | I36: =IF(入力シートその１!$B$28="購入者価格",D36-F36-H36,入力シートその２!F37) -> 0 | J36: =諸係数!Q35 -> 0.9954316568 | K36: =IF(入力シートその１!$B$18="県内産商品のみ",I36,I36*J36) -> 0 | L36: =諸係数!S35 -> 0.6526190549 | M36: 0 | N36: =諸係数!T35 -> 0.4052540898 | O36: 0 | P36: 2.011653958 | Q36: 3.594757974 | R36: 2.346007551 | S36: 1.456790371 | T36: 1.456790371 | W36: =諸係数!W35 -> 0.001724967885 | X36: 0.4459553881 | Y36: =諸係数!Q35 -> 0.9954316568 | Z36: =諸係数!P77 -> 0.002563414472 | AA36: 0.4447052869 | AB36: 1.390090592 | AC36: 0.9071996081 | AD36: 0.5633398975 | AE36: 4.984848566 | AF36: 3.253207159 | AG36: 2.020130268 | AH36: =諸係数!X35 -> 0.08410955173 | AI36: 0 | AJ36: 0.3023534818 | AK36: 0.1169198965 | AL36: 0.4192733783 | AM36: =諸係数!Y35 -> 0.08161124822 | AN36: 0 | AO36: 0.2933726853 | AP36: 0.1134470283 | AQ36: 0.4068197136 | AR36: 12
B37: 27 | C37: 商業 | D37: =IF(入力シートその１!$B$28="購入者価格",入力シートその２!F38,"") -> 0 | E37: =諸係数!D36 -> 0 | F37: 0 | G37: =諸係数!E36 -> 0 | H37: 0 | I37: =IF(入力シートその１!$B$28="購入者価格",D37-F37-H37+F95,入力シートその２!F38) -> 1304.139369 | J37: =諸係数!Q36 -> 0.6098305057 | K37: =IF(入力シートその１!$B$18="県内産商品のみ",I37,I37*J37) -> 795.3039706 | L37: =諸係数!S36 -> 0.7188580314 | M37: 571.7106467 | N37: =諸係数!T36 -> 0.3481758135 | O37: 276.905607 | P37: 49.99811815 | Q37: 61.51398156 | R37: 44.21981969 | S37: 21.41768057 | T37: 298.3232875 | W37: =諸係数!W36 -> 0.1572117421 | X37: 40.64390071 | Y37: =諸係数!Q36 -> 0.6098305057 | Z37: =諸係数!P78 -> 0.02491586569 | AA37: 26.07948254 | AB37: 30.24891178 | AC37: 21.74467318 | AD37: 10.53193947 | AE37: 887.0668639 | AF37: 637.6751396 | AG37: 308.855227 | AH37: =諸係数!X36 -> 0.1143143763 | AI37: 90.91467734 | AJ37: 7.031932434 | AK37: 3.457885483 | AL37: 101.4044953 | AM37: =諸係数!Y36 -> 0.1052369189 | AN37: 83.69533943 | AO37: 6.473541887 | AP37: 3.183302275 | AQ37: 93.3521836 | AR37: 06
B38: 28 | C38: 金融・保険 | D38: =IF(入力シートその１!$B$28="購入者価格",入力シートその２!F39,"") -> 0 | E38: =諸係数!D37 -> 0 | F38: 0 | G38: =諸係数!E37 -> 0 | H38: 0 | I38: =IF(入力シートその１!$B$28="購入者価格",D38-F38-H38,入力シートその２!F39) -> 0 | J38: =諸係数!Q37 -> 0.8455709667 | K38: =IF(入力シートその１!$B$18="県内産商品のみ",I38,I38*J38) -> 0 | L38: =諸係数!S37 -> 0.708164782 | M38: 0 | N38: =諸係数!T37 -> 0.295054389 | O38: 0 | P38: 18.60403501 | Q38: 27.73991648 | R38: 19.64443191 | S38: 8.184784109 | T38: 8.184784109 | W38: =諸係数!W37 -> 0.05021531492 | X38: 12.98214909 | Y38: =諸係数!Q37 -> 0.8455709667 | Z38: =諸係数!P79 -> 0.0002385756898 | AA38: 10.9819214 | AB38: 16.72705945 | AC38: 11.84551441 | AD38: 4.935392305 | AE38: 44.46697593 | AF38: 31.48994631 | AG38: 13.12017641 | AH38: =諸係数!X37 -> 0.05147870575 | AI38: 0 | AJ38: 1.428014998 | AK38: 0.8610873712 | AL38: 2.289102369 | AM38: =諸係数!Y37 -> 0.04954984579 | AN38: 0 | AO38: 1.374508584 | AP38: 0.8288232161 | AQ38: 2.2033318 | AR38: 07
B39: 29 | C39: 不動産 | D39: =IF(入力シートその１!$B$28="購入者価格",入力シートその２!F40,"") -> 0 | E39: =諸係数!D38 -> 0 | F39: 0 | G39: =諸係数!E38 -> 0 | H39: 0 | I39: =IF(入力シートその１!$B$28="購入者価格",D39-F39-H39,入力シートその２!F40) -> 0 | J39: =諸係数!Q38 -> 0.9902496337 | K39: =IF(入力シートその１!$B$18="県内産商品のみ",I39,I39*J39) -> 0 | L39: =諸係数!S38 -> 0.8328093829 | M39: 0 | N39: =諸係数!T38 -> 0.07873055304 | O39: 0 | P39: 27.83164359 | Q39: 36.76902779 | R39: 30.62159135 | S39: 2.894845893 | T39: 2.894845893 | W39: =諸係数!W38 -> 0.2021990868 | X39: 52.27446435 | Y39: =諸係数!Q38 -> 0.9902496337 | Z39: =諸係数!P80 -> 0.001176588995 | AA39: 51.84855686 | AB39: 56.60823028 | AC39: 47.14386533 | AD39: 4.456797276 | AE39: 93.37725807 | AF39: 77.76545667 | AG39: 7.351643169 | AH39: =諸係数!X38 -> 0.01593763094 | AI39: 0 | AJ39: 0.586011195 | AK39: 0.9022010823 | AL39: 1.488212277 | AM39: =諸係数!Y38 -> 0.01364978006 | AN39: 0 | AO39: 0.5018891423 | AP39: 0.7726898928 | AQ39: 1.274579035 | AR39: 08
B40: 30 | C40: 運輸・郵便 | D40: =IF(入力シートその１!$B$28="購入者価格",入力シートその２!F41,"") -> 0 | E40: =諸係数!D39 -> 0 | F40: 0 | G40: =諸係数!E39 -> 0 | H40: 0 | I40: =IF(入力シートその１!$B$28="購入者価格",D40-F40-H40+H95,入力シートその２!F41) -> 204.1455238 | J40: =諸係数!Q39 -> 0.8387544342 | K40: =IF(入力シートその１!$B$18="県内産商品のみ",I40,I40*J40) -> 171.2279633 | L40: =諸係数!S39 -> 0.5019251087 | M40: 85.94361409 | N40: =諸係数!T39 -> 0.2278425658 | O40: 39.01301849 | P40: 96.64218437 | Q40: 122.5897722 | R40: 61.53088472 | S40: 27.93116823 | T40: 66.94418672 | W40: =諸係数!W39 -> 0.04215576097 | X40: 10.89851521 | Y40: =諸係数!Q39 -> 0.8387544342 | Z40: =諸係数!P81 -> 0.01178139251 | AA40: 9.333342629 | AB40: 16.38602674 | AC40: 8.224558255 | AD40: 3.733434376 | AE40: 310.2037622 | AF40: 155.6990571 | AG40: 70.67762109 | AH40: =諸係数!X39 -> 0.0611561759 | AI40: 10.47164744 | AJ40: 7.49712167 | AK40: 1.002106734 | AL40: 18.97087585 | AM40: =諸係数!Y39 -> 0.05834526601 | AN40: 9.990341067 | AO40: 7.152532867 | AP40: 0.9560470893 | AQ40: 18.09892102 | AR40: 09
B41: 31 | C41: 情報通信 | D41: =IF(入力シートその１!$B$28="購入者価格",入力シートその２!F42,"") -> 0 | E41: =諸係数!D40 -> 0.04176891016 | F41: 0 | G41: =諸係数!E40 -> 0.004108355181 | H41: 0 | I41: =IF(入力シートその１!$B$28="購入者価格",D41-F41-H41,入力シートその２!F42) -> 0 | J41: =諸係数!Q40 -> 0.8191332102 | K41: =IF(入力シートその１!$B$18="県内産商品のみ",I41,I41*J41) -> 0 | L41: =諸係数!S40 -> 0.5033780282 | M41: 0 | N41: =諸係数!T40 -> 0.1364461279 | O41: 0 | P41: 27.11862548 | Q41: 48.97510914 | R41: 24.65299387 | S41: 6.682464004 | T41: 6.682464004 | W41: =諸係数!W40 -> 0.05024603975 | X41: 12.99009237 | Y41: =諸係数!Q40 -> 0.8191332102 | Z41: =諸係数!P82 -> 0.004534878814 | AA41: 10.70510043 | AB41: 18.01359852 | AC41: 9.067649704 | AD41: 2.457885767 | AE41: 66.98870766 | AF41: 33.72064357 | AG41: 9.140349772 | AH41: =諸係数!X40 -> 0.02698134145 | AI41: 0 | AJ41: 1.321414142 | AK41: 0.4860310524 | AL41: 1.807445195 | AM41: =諸係数!Y40 -> 0.02519510541 | AN41: 0 | AO41: 1.233933037 | AP41: 0.4538545136 | AQ41: 1.687787551 | AR41: 10
B42: 32 | C42: 公務 | D42: =IF(入力シートその１!$B$28="購入者価格",入力シートその２!F43,"") -> 0 | E42: =諸係数!D41 -> 0 | F42: 0 | G42: =諸係数!E41 -> 0 | H42: 0 | I42: =IF(入力シートその１!$B$28="購入者価格",D42-F42-H42,入力シートその２!F43) -> 0 | J42: =諸係数!Q41 -> 1 | K42: =IF(入力シートその１!$B$18="県内産商品のみ",I42,I42*J42) -> 0 | L42: =諸係数!S41 -> 0.6887167438 | M42: 0 | N42: =諸係数!T41 -> 0.2837712808 | O42: 0 | P42: 0 | Q42: 3.063258838 | R42: 2.109717652 | S42: 0.8692648838 | T42: 0.8692648838 | W42: =諸係数!W41 -> 0.003348597214 | X42: 0.865711752 | Y42: =諸係数!Q41 -> 1 | Z42: =諸係数!P83 -> 0 | AA42: 0.865711752 | AB42: 1.123529954 | AC42: 0.7737938918 | AD42: 0.3188255342 | AE42: 4.186788792 | AF42: 2.883511544 | AG42: 1.188090418 | AH42: =諸係数!X41 -> 0.05417229854 | AI42: 0 | AJ42: 0.1659437723 | AK42: 0.06086420011 | AL42: 0.2268079724 | AM42: =諸係数!Y41 -> 0.05417229854 | AN42: 0 | AO42: 0.1659437723 | AP42: 0.06086420011 | AQ42: 0.2268079724 | AR42: 11
B43: 33 | C43: 教育・研究 | D43: =IF(入力シートその１!$B$28="購入者価格",入力シートその２!F44,"") -> 0 | E43: =諸係数!D42 -> 0 | F43: 0 | G43: =諸係数!E42 -> 1.379871704e-05 | H43: 0 | I43: =IF(入力シートその１!$B$28="購入者価格",D43-F43-H43,入力シートその２!F44) -> 0 | J43: =諸係数!Q42 -> 0.9454683311 | K43: =IF(入力シートその１!$B$18="県内産商品のみ",I43,I43*J43) -> 0 | L43: =諸係数!S42 -> 0.750778673 | M43: 0 | N43: =諸係数!T42 -> 0.4217913621 | O43: 0 | P43: 0.3651444202 | Q43: 0.7897346981 | R43: 0.5929159686 | S43: 0.333103274 | T43: =O43+S43 -> 0.333103274 | W43: =諸係数!W42 -> 0.03158075686 | X43: 8.164562832 | Y43: =諸係数!Q42 -> 0.9454683311 | Z43: =諸係数!P84 -> 0.001076385046 | AA43: 7.729977212 | AB43: 7.857606412 | AC43: 5.899323315 | AD43: 3.314270512 | AE43: =SUM(K43,Q43,AB43) -> 8.64734111 | AF43: =SUM(M43,R43,AC43) -> 6.492239284 | AG43: =SUM(O43,S43,AD43) -> 3.647373786 | AH43: =諸係数!X42 -> 0.07259145441 | AI43: 0 | AJ43: 0.05732799034 | AK43: 0.5703950777 | AL43: 0.627723068 | AM43: =諸係数!Y42 -> 0.07247553331 | AN43: 0 | AO43: 0.05723644341 | AP43: 0.5694842152 | AQ43: 0.6267206586 | AR43: 12
B44: 34 | C44: 医療・福祉 | D44: =IF(入力シートその１!$B$28="購入者価格",入力シートその２!F45,"") -> 0 | E44: =諸係数!D43 -> 0 | F44: 0 | G44: =諸係数!E43 -> 0 | H44: 0 | I44: =IF(入力シートその１!$B$28="購入者価格",D44-F44-H44,入力シートその２!F45) -> 0 | J44: =諸係数!Q43 -> 0.9888347496 | K44: =IF(入力シートその１!$B$18="県内産商品のみ",I44,I44*J44) -> 0 | L44: =諸係数!S43 -> 0.6243706727 | M44: 0 | N44: =諸係数!T43 -> 0.433393654 | O44: 0 | P44: 0.9585200623 | Q44: 1.234387232 | R44: 0.7707151863 | S44: 0.5349755929 | T44: 0.5349755929 | W44: =諸係数!W43 -> 0.06095417589 | X44: 15.75846333 | Y44: =諸係数!Q43 -> 0.9888347496 | Z44: =諸係数!P85 -> 0.001871719604 | AA44: 15.61397031 | AB44: 15.91768287 | AC44: 9.938534364 | AD44: 6.898622744 | AE44: 17.15207011 | AF44: 10.70924955 | AG44: 7.433598337 | AH44: =諸係数!X43 -> 0.1113746049 | AI44: 0 | AJ44: 0.1374793902 | AK44: 1.772825641 | AL44: 1.910305031 | AM44: =諸係数!Y43 -> 0.1071970879 | AN44: 0 | AO44: 0.1323227166 | AP44: 1.706329251 | AQ44: 1.838651967 | AR44: 12
B45: 35 | C45: 他に分類されない会員制団体 | D45: =IF(入力シートその１!$B$28="購入者価格",入力シートその２!F46,"") -> 0 | E45: =諸係数!D44 -> 0 | F45: 0 | G45: =諸係数!E44 -> 0 | H45: 0 | I45: =IF(入力シートその１!$B$28="購入者価格",D45-F45-H45,入力シートその２!F46) -> 0 | J45: =諸係数!Q44 -> 0.9741356809 | K45: =IF(入力シートその１!$B$18="県内産商品のみ",I45,I45*J45) -> 0 | L45: =諸係数!S44 -> 0.6342021738 | M45: 0 | N45: =諸係数!T44 -> 0.4920035214 | O45: 0 | P45: 0.7853922403 | Q45: 1.632566636 | R45: 1.03537731 | S45: 0.803228534 | T45: 0.803228534 | W45: =諸係数!W44 -> 0.01117353724 | X45: 2.88869096 | Y45: =諸係数!Q44 -> 0.9741356809 | Z45: =諸係数!P86 -> 0.001377501134 | AA45: 2.818876662 | AB45: 3.177603107 | AC45: 2.015242798 | AD45: 1.563391918 | AE45: 4.810169744 | AF45: 3.050620108 | AG45: 2.366620452 | AH45: =諸係数!X44 -> 0.1290731976 | AI45: 0 | AJ45: 0.2107205961 | AK45: 0.4101433939 | AL45: 0.6208639899 | AM45: =諸係数!Y44 -> 0.1189695712 | AN45: 0 | AO45: 0.1942257527 | AP45: 0.3780380791 | AQ45: 0.5722638318 | AR45: 12
B46: 36 | C46: 対事業所サービス | D46: =IF(入力シートその１!$B$28="購入者価格",入力シートその２!F47,"") -> 0 | E46: =諸係数!D45 -> 0 | F46: 0 | G46: =諸係数!E45 -> 0 | H46: 0 | I46: =IF(入力シートその１!$B$28="購入者価格",D46-F46-H46,入力シートその２!F47) -> 0 | J46: =諸係数!Q45 -> 0.8402697449 | K46: =IF(入力シートその１!$B$18="県内産商品のみ",I46,I46*J46) -> 0 | L46: =諸係数!S45 -> 0.6141911556 | M46: 0 | N46: =諸係数!T45 -> 0.2841975136 | O46: 0 | P46: 84.10358781 | Q46: 131.2980611 | R46: 80.64210788 | S46: 37.31458251 | T46: 37.31458251 | W46: =諸係数!W45 -> 0.01352401739 | X46: 3.496359831 | Y46: =諸係数!Q45 -> 0.8402697449 | Z46: =諸係数!P87 -> 0.005405534782 | AA46: 2.961585014 | AB46: 17.78968806 | AC46: 10.92626907 | AD46: 5.055785115 | AE46: 149.0877492 | AF46: 91.56837695 | AG46: 42.37036763 | AH46: =諸係数!X45 -> 0.1089337642 | AI46: 0 | AJ46: 14.30279203 | AK46: 1.937897684 | AL46: 16.24068972 | AM46: =諸係数!Y45 -> 0.09674194339 | AN46: 0 | AO46: 12.7020296 | AP46: 1.721008995 | AQ46: 14.42303859 | AR46: 12
B47: 37 | C47: 宿泊業 | D47: =IF(入力シートその１!$B$28="購入者価格",入力シートその２!F48,"") -> 0 | E47: =諸係数!D46 -> 0 | F47: 0 | G47: =諸係数!E46 -> 0 | H47: 0 | I47: =IF(入力シートその１!$B$28="購入者価格",D47-F47-H47,入力シートその２!F48) -> 0 | J47: =諸係数!Q46 -> 0.0644694192 | K47: =IF(入力シートその１!$B$18="県内産商品のみ",I47,I47*J47) -> 0 | L47: =諸係数!S46 -> 0.5238173444 | M47: 0 | N47: =諸係数!T46 -> 0.2670028619 | O47: 0 | P47: 0 | Q47: 0 | R47: 0 | S47: 0 | T47: 0 | W47: =諸係数!W46 -> 0.01140259045 | X47: 2.947908012 | Y47: =諸係数!Q46 -> 0.0644694192 | Z47: =諸係数!P88 -> 0.02124512062 | AA47: 0.2594497238 | AB47: 0.2594497238 | AC47: 0.1359042653 | AD47: 0.06927381879 | AE47: 0.2594497238 | AF47: 0.1359042653 | AG47: 0.06927381879 | AH47: =諸係数!X46 -> 0.1158315454 | AI47: 0 | AJ47: 0 | AK47: 0.03005246246 | AL47: 0.03005246246 | AM47: =諸係数!Y46 -> 0.112206112 | AN47: 0 | AO47: 0 | AP47: 0.02911184477 | AQ47: 0.02911184477 | AR47: 12
B48: 38 | C48: 飲食サービス | D48: =IF(入力シートその１!$B$28="購入者価格",入力シートその２!F49,"") -> 0 | E48: =諸係数!D47 -> 0 | F48: 0 | G48: =諸係数!E47 -> 0 | H48: 0 | I48: =IF(入力シートその１!$B$28="購入者価格",D48-F48-H48,入力シートその２!F49) -> 0 | J48: =諸係数!Q47 -> 0.9344185238 | K48: =IF(入力シートその１!$B$18="県内産商品のみ",I48,I48*J48) -> 0 | L48: =諸係数!S47 -> 0.4046910026 | M48: 0 | N48: =諸係数!T47 -> 0.2493942037 | O48: 0 | P48: 0 | Q48: 0.004150669642 | R48: 0.001679738659 | S48: 0.00103515295 | T48: 0.00103515295 | W48: =諸係数!W47 -> 0.0560167817 | X48: 14.48200041 | Y48: =諸係数!Q47 -> 0.9344185238 | Z48: =諸係数!P89 -> 0.01095725132 | AA48: 13.76360643 | AB48: 13.90976928 | AC48: 5.629158474 | AD48: 3.469015832 | AE48: 13.91391995 | AF48: 5.630838213 | AG48: 3.470050985 | AH48: =諸係数!X47 -> 0.178478577 | AI48: 0 | AJ48: 0.0007408056112 | AK48: 2.482595826 | AL48: 2.483336632 | AM48: =諸係数!Y47 -> 0.1576825468 | AN48: 0 | AO48: 0.0006544881599 | AP48: 2.193327844 | AQ48: 2.193982332 | AR48: 12
B49: 39 | C49: 娯楽サービス | D49: =IF(入力シートその１!$B$28="購入者価格",入力シートその２!F50,"") -> 0 | E49: =諸係数!D48 -> 0 | F49: 0 | G49: =諸係数!E48 -> 0 | H49: 0 | I49: =IF(入力シートその１!$B$28="購入者価格",D49-F49-H49,入力シートその２!F50) -> 0 | J49: =諸係数!Q48 -> 0.8539619055 | K49: =IF(入力シートその１!$B$18="県内産商品のみ",I49,I49*J49) -> 0 | L49: =諸係数!S48 -> 0.6855155909 | M49: 0 | N49: =諸係数!T48 -> 0.124993108 | O49: 0 | P49: 0.009161061476 | Q49: 0.3890325919 | R49: 0.2666879071 | S49: 0.04862639277 | T49: 0.04862639277 | W49: =諸係数!W48 -> 0.03199114391 | X49: 8.270660062 | Y49: =諸係数!Q48 -> 0.8539619055 | Z49: =諸係数!P90 -> 0.01023045123 | AA49: 7.1535243 | AB49: 7.378553169 | AC49: 5.058113236 | AD49: 0.9222682931 | AE49: 7.767585761 | AF49: 5.324801143 | AG49: 0.9708946858 | AH49: =諸係数!X48 -> 0.07106535948 | AI49: 0 | AJ49: 0.02764674099 | AK49: 0.5243595334 | AL49: 0.5520062744 | AM49: =諸係数!Y48 -> 0.06596185364 | AN49: 0 | AO49: 0.02566131089 | AP49: 0.4867030442 | AQ49: 0.5123643551 | AR49: 12
B50: 40 | C50: その他の対個人サービス | D50: =IF(入力シートその１!$B$28="購入者価格",入力シートその２!F51,"") -> 0 | E50: =諸係数!D49 -> 7.884071969e-05 | F50: 0 | G50: =諸係数!E49 -> 2.79526188e-05 | H50: 0 | I50: =IF(入力シートその１!$B$28="購入者価格",D50-F50-H50,入力シートその２!F51) -> 0 | J50: =諸係数!Q49 -> 0.9784123174 | K50: =IF(入力シートその１!$B$18="県内産商品のみ",I50,I50*J50) -> 0 | L50: =諸係数!S49 -> 0.6863768757 | M50: 0 | N50: =諸係数!T49 -> 0.2137700658 | O50: 0 | P50: 0.8615836928 | Q50: 1.306680701 | R50: 0.8968754174 | S50: 0.2793292195 | T50: 0.2793292195 | W50: =諸係数!W49 -> 0.03663661366 | X50: 9.471651851 | Y50: =諸係数!Q49 -> 0.9784123174 | Z50: =諸係数!P91 -> 0.004036413525 | AA50: 9.314384392 | AB50: 9.854066154 | AC50: 6.76360314 | AD50: 2.10650437 | AE50: 11.16074686 | AF50: 7.660478558 | AG50: 2.38583359 | AH50: =諸係数!X49 -> 0.1989240898 | AI50: 0 | AJ50: 0.2599302691 | AK50: 1.96021114 | AL50: 2.220141409 | AM50: =諸係数!Y49 -> 0.133383122 | AN50: 0 | AO50: 0.1742891514 | AP50: 1.314366108 | AQ50: 1.48865526 | AR50: 12
B51: 41 | C51: 事務用品 | D51: =IF(入力シートその１!$B$28="購入者価格",入力シートその２!F52,"") -> 0 | E51: =諸係数!D50 -> 0 | F51: 0 | G51: =諸係数!E50 -> 0 | H51: 0 | I51: =IF(入力シートその１!$B$28="購入者価格",D51-F51-H51,入力シートその２!F52) -> 0 | J51: =諸係数!Q50 -> 1 | K51: =IF(入力シートその１!$B$18="県内産商品のみ",I51,I51*J51) -> 0 | L51: =諸係数!S50 -> 0 | M51: 0 | N51: =諸係数!T50 -> 0 | O51: 0 | P51: 2.510126154 | Q51: 3.410558209 | R51: 0 | S51: 0 | T51: 0 | W51: =諸係数!W50 -> 0 | X51: 0 | Y51: =諸係数!Q50 -> 1 | Z51: =諸係数!P92 -> 0 | AA51: 0 | AB51: 0.3946765019 | AC51: 0 | AD51: 0 | AE51: 3.805234711 | AF51: 0 | AG51: 0 | AH51: =諸係数!X50 -> 0 | AI51: 0 | AJ51: 0 | AK51: 0 | AL51: 0 | AM51: =諸係数!Y50 -> 0 | AN51: 0 | AO51: 0 | AP51: 0 | AQ51: 0 | AR51: 03
B52: 42 | C52: 分類不明 | D52: =IF(入力シートその１!$B$28="購入者価格",入力シートその２!F53,"") -> 0 | E52: =諸係数!D51 -> 0.02350512568 | F52: 0 | G52: =諸係数!E51 -> 0.03009789297 | H52: 0 | I52: =IF(入力シートその１!$B$28="購入者価格",D52-F52-H52,入力シートその２!F53) -> 0 | J52: =諸係数!Q51 -> 0.9905902096 | K52: =IF(入力シートその１!$B$18="県内産商品のみ",I52,I52*J52) -> 0 | L52: =諸係数!S51 -> 0.4213760765 | M52: 0 | N52: =諸係数!T51 -> 0.01043386685 | O52: 0 | P52: 9.7401382 | Q52: 12.64027267 | R52: 5.326308504 | S52: 0.131886922 | T52: 0.131886922 | W52: =諸係数!W51 -> 3.412749631e-05 | X52: 0.008822970556 | Y52: =諸係数!Q51 -> 0.9905902096 | Z52: =諸係数!P93 -> 0.001255028799 | AA52: 0.008753518669 | AB52: 1.063864515 | AC52: 0.4482870554 | AD52: 0.0111002207 | AE52: 13.70413718 | AF52: 5.774595559 | AG52: 0.1429871427 | AH52: =諸係数!X51 -> 0.002267012425 | AI52: 0 | AJ52: 0.02865565519 | AK52: 0.002411794074 | AL52: 0.03106744927 | AM52: =諸係数!Y51 -> 0.002255446035 | AN52: 0 | AO52: 0.02850945287 | AP52: 0.002399489002 | AQ52: 0.03090894187 | AR52: 13
A53: 県外 | B53: 01 | C53: 農業 | J53: =諸係数!P10 -> 0.4813878107 | K53: =IF(入力シートその１!$B$18="県内産商品のみ",0,I11*J53) -> 1680.869091 | L53: =諸係数!S52 -> 0.4493607101 | M53: 755.3165285 | N53: =諸係数!T52 -> 0.08423660159 | O53: 141.5907 | P53: 224.7980745 | Q53: 300.0885201 | R53: 134.8479905 | S53: 25.27843711 | T53: 166.8691371 | W53: =諸係数!W52 -> 0.01083459865 | X53: =$V$96*W53 -> 3.570248977 | Y53: =諸係数!P10 -> 0.4813878107 | Z53: =諸係数!Q52 -> 0.8048800181 | AA53: =X11*Y53+X53*Z53 -> 4.301581537 | AB53: 15.22749097 | AC53: 6.842636157 | AD53: 1.28271209 | AE53: 1996.185102 | AF53: 897.0071551 | AG53: 168.1518492 | AH53: =諸係数!X52 -> 0.3341021202 | AI53: 561.5819272 | AJ53: 100.2602108 | AK53: 5.08753702 | AL53: 666.9296751 | AM53: =諸係数!Y52 -> 0.0397436908 | AN53: 66.80394143 | AO53: 11.92662536 | AP53: 0.6051966928 | AQ53: 79.33576348 | AR53: 01
B54: 02 | C54: 林業 | J54: =諸係数!P11 -> 0.4480501214 | K54: =IF(入力シートその１!$B$18="県内産商品のみ",0,I12*J54) -> 0 | L54: =諸係数!S53 -> 0.6673467789 | M54: 0 | N54: =諸係数!T53 -> 0.2300424592 | O54: 0 | P54: 0.3048039305 | Q54: 3.731525331 | R54: 2.49022141 | S54: 0.8584092636 | T54: 0.8584092636 | W54: =諸係数!W53 -> 0.0005668495785 | X54: =$V$96*W54 -> 0.1867899488 | Y54: =諸係数!P11 -> 0.4480501214 | Z54: =諸係数!Q53 -> 0.8316774658 | AA54: =X12*Y54+X54*Z54 -> 0.231182569 | AB54: 0.5704568112 | AC54: 0.3806925154 | AD54: 0.1312292877 | AE54: 4.301982142 | AF54: 2.870913925 | AG54: 0.9896385513 | AH54: =諸係数!X53 -> 0.2354836971 | AI54: 0 | AJ54: 0.8787133806 | AK54: 0.1343332789 | AL54: 1.013046659 | AM54: =諸係数!Y53 -> 0.0639866556 | AN54: 0 | AO54: 0.2387678262 | AP54: 0.03650162351 | AQ54: 0.2752694497 | AR54: 01
B55: 03 | C55: 漁業 | J55: =諸係数!P12 -> 0.5756891068 | K55: =IF(入力シートその１!$B$18="県内産商品のみ",0,I13*J55) -> 0 | L55: =諸係数!S54 -> 0.5515530392 | M55: 0 | N55: =諸係数!T54 -> 0.1587489287 | O55: 0 | P55: 0.0004204143809 | Q55: 7.588963485 | R55: 4.185715875 | S55: 1.204739823 | T55: 1.204739823 | W55: =諸係数!W54 -> 0.001074840051 | X55: 0.3541844711 | Y55: =諸係数!P12 -> 0.5756891068 | Z55: =諸係数!Q54 -> 0.853111348 | AA55: 0.4769828481 | AB55: 2.237764001 | AC55: 1.234245536 | AD55: 0.3552426379 | AE55: 9.826727486 | AF55: 5.41996141 | AG55: 1.559982461 | AH55: =諸係数!X54 -> 0.1399439142 | AI55: 0 | AJ55: 1.062029255 | AK55: 0.3131614533 | AL55: 1.375190708 | AM55: =諸係数!Y54 -> 0.06161412464 | AN55: 0 | AO55: 0.4675873421 | AP55: 0.1378778701 | AQ55: 0.6054652122 | AR55: 01
B56: 04 | C56: 鉱業 | J56: =諸係数!P13 -> 0.03128949918 | K56: =IF(入力シートその１!$B$18="県内産商品のみ",0,I14*J56) -> 0 | L56: =諸係数!S55 -> 0.521497093 | M56: 0 | N56: =諸係数!T55 -> 0.1720443108 | O56: 0 | P56: 0.0008742493269 | Q56: 3.315476983 | R56: 1.729011609 | S56: 0.5704089526 | T56: 0.5704089526 | W56: =諸係数!W55 -> 0 | X56: 0 | Y56: =諸係数!P13 -> 0.03128949918 | Z56: =諸係数!Q55 -> 0.03692314538 | AA56: 0 | AB56: 0.7250476374 | AC56: 0.3781102352 | AD56: 0.1247403211 | AE56: 4.04052462 | AF56: 2.107121844 | AG56: 0.6951492737 | AH56: =諸係数!X55 -> 0.04519943988 | AI56: 0 | AJ56: 0.1498577026 | AK56: 0.0327717471 | AL56: 0.1826294496 | AM56: =諸係数!Y55 -> 0.04426412787 | AN56: 0 | AO56: 0.1467566971 | AP56: 0.03209360133 | AQ56: 0.1788502985 | AR56: 02
B57: 05 | C57: 飲食料品 | J57: =諸係数!P14 -> 0.5737575216 | K57: =IF(入力シートその１!$B$18="県内産商品のみ",0,I15*J57) -> 0 | L57: =諸係数!S56 -> 0.3676060727 | M57: 0 | N57: =諸係数!T56 -> 0.1108287553 | O57: 0 | P57: 207.1322975 | Q57: 285.2361639 | R57: 104.854546 | S57: 31.612369 | T57: 31.612369 | W57: =諸係数!W56 -> 0.09097366981 | X57: 29.97791261 | Y57: =諸係数!P14 -> 0.5737575216 | Z57: =諸係数!Q56 -> 0.8013124566 | AA57: 37.27624344 | AB57: 54.98099758 | AC57: 20.21134859 | AD57: 6.093475526 | AE57: 340.2171614 | AF57: 125.0658946 | AG57: 37.70584453 | AH57: =諸係数!X56 -> 0.04099946555 | AI57: 0 | AJ57: 11.69453027 | AK57: 2.254191516 | AL57: 13.94872179 | AM57: =諸係数!Y56 -> 0.03867179724 | AN57: 0 | AO57: 11.03059509 | AP57: 2.126213991 | AQ57: 13.15680909 | AR57: 03
B58: 06 | C58: 繊維製品 | J58: =諸係数!P15 -> 0.5208195309 | K58: =IF(入力シートその１!$B$18="県内産商品のみ",0,I16*J58) -> 0 | L58: =諸係数!S57 -> 0.4026559122 | M58: 0 | N58: =諸係数!T57 -> 0.2140588057 | O58: 0 | P58: 6.976349455 | Q58: 10.46910846 | R58: 4.215448416 | S58: 2.241004853 | T58: 2.241004853 | W58: =諸係数!W57 -> 0.01438414995 | X58: 4.739907613 | Y58: =諸係数!P15 -> 0.5208195309 | Z58: =諸係数!Q57 -> 0.3522281782 | AA58: 3.579163157 | AB58: 4.773987393 | AC58: 1.922274249 | AD58: 1.02191404 | AE58: 15.24309585 | AF58: 6.137722665 | AG58: 3.262918893 | AH58: =諸係数!X57 -> 0.1301063262 | AI58: 0 | AJ58: 1.36209724 | AK58: 0.6211259612 | AL58: 1.983223202 | AM58: =諸係数!Y57 -> 0.08831586991 | AN58: 0 | AO58: 0.9245884206 | AP58: 0.4216188496 | AQ58: 1.34620727 | AR58: 03
B59: 07 | C59: パルプ・紙・木製品 | J59: =諸係数!P16 -> 0.6190199659 | K59: =IF(入力シートその１!$B$18="県内産商品のみ",0,I17*J59) -> 0 | L59: =諸係数!S58 -> 0.3557561176 | M59: 0 | N59: =諸係数!T58 -> 0.1382005759 | O59: 0 | P59: 58.11206404 | Q59: 109.3335828 | R59: 38.89609094 | S59: 15.10996411 | T59: 15.10996411 | W59: =諸係数!W58 -> 0.001125503354 | X59: 0.3708791926 | Y59: =諸係数!P16 -> 0.6190199659 | Z59: =諸係数!Q58 -> 0.8065366171 | AA59: 0.4888172168 | AB59: 7.557807363 | AC59: 2.688736205 | AD59: 1.04449333 | AE59: 116.8913902 | AF59: 41.58482715 | AG59: 16.15445744 | AH59: =諸係数!X58 -> 0.04849263356 | AI59: 0 | AJ59: 5.301873367 | AK59: 0.366497983 | AL59: 5.66837135 | AM59: =諸係数!Y58 -> 0.03880148425 | AN59: 0 | AO59: 4.242305292 | AP59: 0.2932541434 | AQ59: 4.535559435 | AR59: 03
B60: 08 | C60: 化学製品 | J60: =諸係数!P17 -> 0.6576889208 | K60: =IF(入力シートその１!$B$18="県内産商品のみ",0,I18*J60) -> 0 | L60: =諸係数!S59 -> 0.3343782344 | M60: 0 | N60: =諸係数!T59 -> 0.07288321707 | O60: 0 | P60: 118.4693684 | Q60: 205.1788826 | R60: 68.60735251 | S60: 14.95409704 | T60: 14.95409704 | W60: =諸係数!W59 -> 0.008249681339 | X60: 2.718459382 | Y60: =諸係数!P17 -> 0.6576889208 | Z60: =諸係数!Q59 -> 0.7262890307 | AA60: 3.681711019 | AB60: 15.09056397 | AC60: 5.045956138 | AD60: 1.09984885 | AE60: 220.2694466 | AF60: 73.65330865 | AG60: 16.05394589 | AH60: =諸係数!X59 -> 0.01387579266 | AI60: 0 | AJ60: 2.847019634 | AK60: 0.2093935368 | AL60: 3.05641317 | AM60: =諸係数!Y59 -> 0.0138093109 | AN60: 0 | AO60: 2.83337898 | AP60: 0.2083902895 | AQ60: 3.041769269 | AR60: 03
B61: 09 | C61: 石油・石炭製品 | J61: =諸係数!P18 -> 0.7709572494 | K61: =IF(入力シートその１!$B$18="県内産商品のみ",0,I19*J61) -> 0 | L61: =諸係数!S60 -> 0.3020923166 | M61: 0 | N61: =諸係数!T60 -> 0.00894909004 | O61: 0 | P61: 32.57172297 | Q61: 89.02050585 | R61: 26.89241084 | S61: 0.7966525222 | T61: 0.7966525222 | W61: =諸係数!W60 -> 0.01660422124 | X61: 5.471472069 | Y61: =諸係数!P18 -> 0.7709572494 | Z61: =諸係数!Q60 -> 0.8163035523 | AA61: 8.004234136 | AB61: 17.01882286 | AC61: 5.141255622 | AD61: 0.1523029781 | AE61: 106.0393287 | AF61: 32.03366646 | AG61: 0.9489555003 | AH61: =諸係数!X60 -> 0.001362079828 | AI61: 0 | AJ61: 0.1212530353 | AK61: 0.02318099532 | AL61: 0.1444340306 | AM61: =諸係数!Y60 -> 0.001361780667 | AN61: 0 | AO61: 0.1212264039 | AP61: 0.02317590395 | AQ61: 0.1444023078 | AR61: 03
B62: 10 | C62: プラスチック・ゴム製品 | J62: =諸係数!P19 -> 0.5201525783 | K62: =IF(入力シートその１!$B$18="県内産商品のみ",0,I20*J62) -> 0 | L62: =諸係数!S61 -> 0.3829729242 | M62: 0 | N62: =諸係数!T61 -> 0.1920846879 | O62: 0 | P62: 20.63432007 | Q62: 50.97003546 | R62: 19.52014352 | S62: 9.790563355 | T62: 9.790563355 | W62: =諸係数!W61 -> 0.002924763734 | X62: 0.9637767918 | Y62: =諸係数!P19 -> 0.5201525783 | Z62: =諸係数!Q61 -> 0.8374675787 | AA62: 1.240561506 | AB62: 7.558827886 | AC62: 2.894826419 | AD62: 1.451935096 | AE62: 58.52886334 | AF62: 22.41496994 | AG62: 11.24249845 | AH62: =諸係数!X61 -> 0.0526515995 | AI62: 0 | AJ62: 2.683653894 | AK62: 0.3979843786 | AL62: 3.081638272 | AM62: =諸係数!Y61 -> 0.04972034498 | AN62: 0 | AO62: 2.534247747 | AP62: 0.3758275301 | AQ62: 2.910075277 | AR62: 03
B63: 11 | C63: 窯業・土石製品 | J63: =諸係数!P20 -> 0.4318622309 | K63: =IF(入力シートその１!$B$18="県内産商品のみ",0,I21*J63) -> 0 | L63: =諸係数!S62 -> 0.486799828 | M63: 0 | N63: =諸係数!T62 -> 0.1890580125 | O63: 0 | P63: 4.726552947 | Q63: 10.33271775 | R63: 5.029965224 | S63: 1.953483082 | T63: 1.953483082 | W63: =諸係数!W62 -> 0.0004410108499 | X63: 0.145323199 | Y63: =諸係数!P20 -> 0.4318622309 | Z63: =諸係数!Q62 -> 0.8493088759 | AA63: 0.1800566124 | AB63: 1.244634752 | AC63: 0.6058879834 | AD63: 0.2353081727 | AE63: 11.5773525 | AF63: 5.635853208 | AG63: 2.188791255 | AH63: =諸係数!X62 -> 0.05384251046 | AI63: 0 | AJ63: 0.5563394636 | AK63: 0.06701425967 | AL63: 0.6233537233 | AM63: =諸係数!Y62 -> 0.04744591575 | AN63: 0 | AO63: 0.490245256 | AP63: 0.05905283561 | AQ63: 0.5492980916 | AR63: 03
B64: 12 | C64: 鉄鋼 | J64: =諸係数!P21 -> 0.3550425126 | K64: =IF(入力シートその１!$B$18="県内産商品のみ",0,I22*J64) -> 0 | L64: =諸係数!S63 -> 0.2641810169 | M64: 0 | N64: =諸係数!T63 -> 0.05058598314 | O64: 0 | P64: 0.0844153855 | Q64: 16.09504689 | R64: 4.252005856 | S64: 0.8141837708 | T64: 0.8141837708 | W64: =諸係数!W63 -> 0 | X64: 0 | Y64: =諸係数!P21 -> 0.3550425126 | Z64: =諸係数!Q63 -> 0.925020609 | AA64: 0 | AB64: 4.582917189 | AC64: 1.210719724 | AD64: 0.2318313717 | AE64: 20.67796408 | AF64: 5.462725579 | AG64: 1.046015142 | AH64: =諸係数!X63 -> 0.009926393705 | AI64: 0 | AJ64: 0.1597657721 | AK64: 0.04549184034 | AL64: 0.2052576125 | AM64: =諸係数!Y63 -> 0.009486254119 | AN64: 0 | AO64: 0.1526817049 | AP64: 0.04347471707 | AQ64: 0.1961564219 | AR64: 03
B65: 13 | C65: 非鉄金属 | J65: =諸係数!P22 -> 0.5577147254 | K65: =IF(入力シートその１!$B$18="県内産商品のみ",0,I23*J65) -> 0 | L65: =諸係数!S64 -> 0.2456006517 | M65: 0 | N65: =諸係数!T64 -> 0.08164705075 | O65: 0 | P65: 0.01086862604 | Q65: 4.881370615 | R65: 1.198867804 | S65: 0.3985495144 | T65: 0.3985495144 | W65: =諸係数!W64 -> 0.0005517008444 | X65: 0.1817980932 | Y65: =諸係数!P22 -> 0.5577147254 | Z65: =諸係数!Q64 -> 0.6296431481 | AA65: 0.1986579153 | AB65: 1.919078873 | AC65: 0.4713270218 | AD65: 0.1566871301 | AE65: 6.800449488 | AF65: 1.670194826 | AG65: 0.5552366445 | AH65: =諸係数!X64 -> 0.01702817921 | AI65: 0 | AJ65: 0.08312085362 | AK65: 0.03267841896 | AL65: 0.1157992726 | AM65: =諸係数!Y64 -> 0.01599558598 | AN65: 0 | AO65: 0.07808038339 | AP65: 0.03069679112 | AQ65: 0.1087771745 | AR65: 03
B66: 14 | C66: 金属製品 | J66: =諸係数!P23 -> 0.4901343867 | K66: =IF(入力シートその１!$B$18="県内産商品のみ",0,I24*J66) -> 0 | L66: =諸係数!S65 -> 0.4489683934 | M66: 0 | N66: =諸係数!T65 -> 0.2433925749 | O66: 0 | P66: 5.094464875 | Q66: 17.33372702 | R66: 7.782295574 | S66: 4.218900452 | T66: 4.218900452 | W66: =諸係数!W65 -> 0.0009128925561 | X66: 0.3008190538 | Y66: =諸係数!P23 -> 0.4901343867 | Z66: =諸係数!Q65 -> 0.8820207989 | AA66: 0.3858014676 | AB66: 3.03111827 | AC66: 1.3608763 | AD66: 0.7377516805 | AE66: 20.36484529 | AF66: 9.143171874 | AG66: 4.956652133 | AH66: =諸係数!X65 -> 0.07735472936 | AI66: 0 | AJ66: 1.340845763 | AK66: 0.2344713334 | AL66: 1.575317096 | AM66: =諸係数!Y65 -> 0.06746104521 | AN66: 0 | AO66: 1.169351342 | AP66: 0.2044824067 | AQ66: 1.373833749 | AR66: 03
B67: 15 | C67: はん用機械 | J67: =諸係数!P24 -> 0.766008879 | K67: =IF(入力シートその１!$B$18="県内産商品のみ",0,I25*J67) -> 0 | L67: =諸係数!S66 -> 0.4417805374 | M67: 0 | N67: =諸係数!T66 -> 0.1905859065 | O67: 0 | P67: 0.01677428662 | Q67: 3.2748233 | R67: 1.446753197 | S67: 0.6241351671 | T67: 0.6241351671 | W67: =諸係数!W66 -> 4.342580933e-05 | X67: 0.01430980107 | Y67: =諸係数!P24 -> 0.766008879 | Z67: =諸係数!Q66 -> 0.8092007944 | AA67: 0.02052378116 | AB67: 0.8100907904 | AC67: 0.3578823447 | AD67: 0.1543918876 | AE67: 4.08491409 | AF67: 1.804635542 | AG67: 0.7785270547 | AH67: =諸係数!X66 -> 0.04008941268 | AI67: 0 | AJ67: 0.1312857427 | AK67: 0.032476064 | AL67: 0.1637618067 | AM67: =諸係数!Y66 -> 0.03827252656 | AN67: 0 | AO67: 0.1253357617 | AP67: 0.03100422129 | AQ67: 0.156339983 | AR67: 03
B68: 16 | C68: 生産用機械 | J68: =諸係数!P25 -> 0.6682068678 | K68: =IF(入力シートその１!$B$18="県内産商品のみ",0,I26*J68) -> 0 | L68: =諸係数!S67 -> 0.4622792288 | M68: 0 | N68: =諸係数!T67 -> 0.2001851979 | O68: 0 | P68: 0.009836117147 | Q68: 3.535322277 | R68: 1.634306056 | S68: 0.7077191896 | T68: 0.7077191896 | W68: =諸係数!W67 -> 2.568711774e-05 | X68: 0.008464494973 | Y68: =諸係数!P25 -> 0.6682068678 | Z68: =諸係数!Q67 -> 0.8165338928 | AA68: 0.0105557611 | AB68: 0.6619278012 | AC68: 0.3059954735 | AD68: 0.1325081479 | AE68: 4.197250079 | AF68: 1.940301529 | AG68: 0.8402273375 | AH68: =諸係数!X67 -> 0.04742438885 | AI68: 0 | AJ68: 0.1676604984 | AK68: 0.03139152143 | AL68: 0.1990520198 | AM68: =諸係数!Y67 -> 0.04406212105 | AN68: 0 | AO68: 0.1557737981 | AP68: 0.0291659429 | AQ68: 0.184939741 | AR68: 03
B69: 17 | C69: 業務用機械 | J69: =諸係数!P26 -> 0.8097559828 | K69: =IF(入力シートその１!$B$18="県内産商品のみ",0,I27*J69) -> 0 | L69: =諸係数!S68 -> 0.4149446227 | M69: 0 | N69: =諸係数!T68 -> 0.1691668998 | O69: 0 | P69: 1.997632558 | Q69: 3.820786438 | R69: 1.585414787 | S69: 0.6463505967 | T69: 0.6463505967 | W69: =諸係数!W68 -> 0.0003309682094 | X69: 0.1090616228 | Y69: =諸係数!P26 -> 0.8097559828 | Z69: =諸係数!Q68 -> 0.6907316668 | AA69: 0.1436508139 | AB69: 0.8469277988 | AC69: 0.3514281359 | AD69: 0.1432721501 | AE69: 4.667714237 | AF69: 1.936842923 | AG69: 0.7896227468 | AH69: =諸係数!X68 -> 0.03747231251 | AI69: 0 | AJ69: 0.1431737034 | AK69: 0.03173634315 | AL69: 0.1749100466 | AM69: =諸係数!Y68 -> 0.03605376923 | AN69: 0 | AO69: 0.1377537525 | AP69: 0.03053493941 | AQ69: 0.1682886919 | AR69: 03
B70: 18 | C70: 電子部品 | J70: =諸係数!P27 -> 0.2933972002 | K70: =IF(入力シートその１!$B$18="県内産商品のみ",0,I28*J70) -> 0 | L70: =諸係数!S69 -> 0.3776698152 | M70: 0 | N70: =諸係数!T69 -> 0.1714880486 | O70: 0 | P70: 0.01296901656 | Q70: 3.762676398 | R70: 1.4210493 | S70: 0.6452540332 | T70: 0.6452540332 | W70: =諸係数!W69 -> 0.0005113650577 | X70: 0.1685065255 | Y70: =諸係数!P27 -> 0.2933972002 | Z70: =諸係数!Q69 -> 0.6092343477 | AA70: 0.1442496118 | AB70: 2.332163842 | AC70: 0.8807878875 | AD70: 0.3999382265 | AE70: 6.094840241 | AF70: 2.301837188 | AG70: 1.04519226 | AH70: =諸係数!X69 -> 0.03530653601 | AI70: 0 | AJ70: 0.1328470698 | AK70: 0.08234062669 | AL70: 0.2151876965 | AM70: =諸係数!Y69 -> 0.034665135 | AN70: 0 | AO70: 0.1304336853 | AP70: 0.08084477444 | AQ70: 0.2112784597 | AR70: 03
B71: 19 | C71: 電気機械 | J71: =諸係数!P28 -> 0.5800056244 | K71: =IF(入力シートその１!$B$18="県内産商品のみ",0,I29*J71) -> 0 | L71: =諸係数!S70 -> 0.3620086426 | M71: 0 | N71: =諸係数!T70 -> 0.1568088696 | O71: 0 | P71: 0.2593980018 | Q71: 3.018526323 | R71: 1.092732617 | S71: 0.4733317006 | T71: 0.4733317006 | W71: =諸係数!W70 -> 0.01024623799 | X71: 3.376370631 | Y71: =諸係数!P28 -> 0.5800056244 | Z71: =諸係数!Q70 -> 0.6646053645 | AA71: 3.857599664 | AB71: 5.160347323 | AC71: 1.86809033 | AD71: 0.8091882306 | AE71: 8.178873647 | AF71: 2.960822947 | AG71: 1.282519931 | AH71: =諸係数!X70 -> 0.03406643982 | AI71: 0 | AJ71: 0.1028304453 | AK71: 0.1757946615 | AL71: 0.2786251069 | AM71: =諸係数!Y70 -> 0.03304605343 | AN71: 0 | AO71: 0.09975038216 | AP71: 0.1705291134 | AQ71: 0.2702794955 | AR71: 03
B72: 20 | C72: 情報通信機器 | J72: =諸係数!P29 -> 0.5296648483 | K72: =IF(入力シートその１!$B$18="県内産商品のみ",0,I30*J72) -> 0 | L72: =諸係数!S71 -> 0.3530505354 | M72: 0 | N72: =諸係数!T71 -> 0.1597970888 | O72: 0 | P72: 0.1986870538 | Q72: 0.6004095998 | R72: 0.2119749306 | S72: 0.09594370614 | T72: 0.09594370614 | W72: =諸係数!W71 -> 0.01121529838 | X72: 3.695698278 | Y72: =諸係数!P29 -> 0.5296648483 | Z72: =諸係数!Q71 -> 0.3662768032 | AA72: 3.195328154 | AB72: 3.360913791 | AC72: 1.186572413 | AD72: 0.5370642396 | AE72: 3.961323391 | AF72: 1.398547344 | AG72: 0.6330079457 | AH72: =諸係数!X71 -> 0.02922283559 | AI72: 0 | AJ72: 0.01754567102 | AK72: 0.09821543115 | AL72: 0.1157611022 | AM72: =諸係数!Y71 -> 0.02889588554 | AN72: 0 | AO72: 0.01734936707 | AP72: 0.09711658023 | AQ72: 0.1144659473 | AR72: 03
B73: 21 | C73: 輸送機械 | J73: =諸係数!P30 -> 0.7196664657 | K73: =IF(入力シートその１!$B$18="県内産商品のみ",0,I31*J73) -> 0 | L73: =諸係数!S72 -> 0.2470470992 | M73: 0 | N73: =諸係数!T72 -> 0.1101494482 | O73: 0 | P73: 2.756183743 | Q73: 26.29620641 | R73: 6.496401515 | S73: 2.896512627 | T73: 2.896512627 | W73: =諸係数!W72 -> 0.01928847779 | X73: 6.355996223 | Y73: =諸係数!P30 -> 0.7196664657 | Z73: =諸係数!Q72 -> 0.8644696644 | AA73: 9.155907944 | AB73: 19.38851188 | AC73: 4.789875619 | AD73: 2.135633886 | AE73: 45.6847183 | AF73: 11.28627713 | AG73: 5.032146514 | AH73: =諸係数!X72 -> 0.02016310679 | AI73: 0 | AJ73: 0.530213218 | AK73: 0.3909326356 | AL73: 0.9211458536 | AM73: =諸係数!Y72 -> 0.01980242155 | AN73: 0 | AO73: 0.5207285647 | AP73: 0.3839394856 | AQ73: 0.9046680503 | AR73: 03
B74: 22 | C74: その他の製造工業製品 | J74: =諸係数!P31 -> 0.6219225506 | K74: =IF(入力シートその１!$B$18="県内産商品のみ",0,I32*J74) -> 0 | L74: =諸係数!S73 -> 0.464800882 | M74: 0 | N74: =諸係数!T73 -> 0.2160032127 | O74: 0 | P74: 7.423595168 | Q74: 21.89707032 | R74: 10.1777776 | S74: 4.729837538 | T74: 4.729837538 | W74: =諸係数!W73 -> 0.01003931918 | X74: 3.308186134 | Y74: =諸係数!P31 -> 0.6219225506 | Z74: =諸係数!Q73 -> 0.7077311693 | AA74: 4.042134429 | AB74: 8.792808074 | AC74: 4.086904949 | AD74: 1.899274793 | AE74: 30.6898784 | AF74: 14.26468255 | AG74: 6.629112331 | AH74: =諸係数!X73 -> 0.07959635923 | AI74: 0 | AJ74: 1.742927076 | AK74: 0.6998755102 | AL74: 2.442802586 | AM74: =諸係数!Y73 -> 0.06337266773 | AN74: 0 | AO74: 1.387675762 | AP74: 0.5572237045 | AQ74: 1.944899466 | AR74: 03
B75: 23 | C75: 建設 | J75: =諸係数!P32 -> 0 | K75: =IF(入力シートその１!$B$18="県内産商品のみ",0,I33*J75) -> 0 | L75: =諸係数!S74 -> 0.467489517 | M75: 0 | N75: =諸係数!T74 -> 0.2985305224 | O75: 0 | P75: 6.063157165 | Q75: 13.06878322 | R75: 6.109519155 | S75: 3.901430681 | T75: =O75+S75 -> 3.901430681 | W75: =諸係数!W74 -> 0 | X75: 0 | Y75: =諸係数!P32 -> 0 | Z75: =諸係数!Q74 -> 1 | AA75: 0 | AB75: 2.389948475 | AC75: 1.117275858 | AD75: 0.7134725666 | AE75: =SUM(K75,Q75,AB75) -> 15.45873169 | AF75: =SUM(M75,R75,AC75) -> 7.226795014 | AG75: =SUM(O75,S75,AD75) -> 4.614903248 | AH75: =諸係数!X74 -> 0.0816719421 | AI75: 0 | AJ75: 1.067352906 | AK75: 0.1951917335 | AL75: 1.26254464 | AM75: =諸係数!Y74 -> 0.07056138724 | AN75: 0 | AO75: 0.9221514736 | AP75: 0.1686380798 | AQ75: 1.090789553 | AR75: 04
B76: 24 | C76: 電力・ガス・熱供給 | J76: =諸係数!P33 -> 0.2035751363 | K76: =IF(入力シートその１!$B$18="県内産商品のみ",0,I34*J76) -> 0 | L76: =諸係数!S75 -> 0.3569373952 | M76: =K76*L76 -> 0 | N76: =諸係数!T75 -> 0.06130099127 | O76: =K76*N76 -> 0 | P76: 33.69792342 | Q76: 76.41891274 | R76: =Q76*L76 -> 27.27676766 | S76: =Q76*N76 -> 4.684555102 | T76: 4.684555102 | W76: =諸係数!W75 -> 0.02244078156 | X76: 7.39475268 | Y76: =諸係数!P33 -> 0.2035751363 | Z76: =諸係数!Q75 -> 0.999851248 | AA76: 8.761734554 | AB76: 20.46902664 | AC76: =AB76*L76 -> 7.306161052 | AD76: =AB76*N76 -> 1.254771623 | AE76: 96.88793938 | AF76: 34.58292871 | AG76: 5.939326726 | AH76: =諸係数!X75 -> 0.009217202055 | AI76: =K76*AH76 -> 0 | AJ76: =Q76*AH76 -> 0.7043685595 | AK76: =AB76*AH76 -> 0.1886671544 | AL76: =SUM(AI76:AK76) -> 0.8930357139 | AM76: =諸係数!Y75 -> 0.009217202055 | AN76: =K76*AM76 -> 0 | AO76: =Q76*AM76 -> 0.7043685595 | AP76: =AB76*AM76 -> 0.1886671544 | AQ76: =SUM(AN76:AP76) -> 0.8930357139 | AR76: 05
B77: 25 | C77: 水道 | J77: =諸係数!P34 -> 0.05774264589 | K77: =IF(入力シートその１!$B$18="県内産商品のみ",0,I35*J77) -> 0 | L77: =諸係数!S76 -> 0.4978663152 | M77: 0 | N77: =諸係数!T76 -> 0.1130098723 | O77: 0 | P77: 2.454165306 | Q77: 6.699300678 | R77: 3.335356143 | S77: 0.7570871142 | T77: 0.7570871142 | W77: =諸係数!W76 -> 0.00619427073 | X77: 2.041154402 | Y77: =諸係数!P34 -> 0.05774264589 | Z77: =諸係数!Q76 -> 0.997946883 | AA77: 2.142924336 | AB77: 3.911667695 | AC77: 1.947487581 | AD77: 0.4420570667 | AE77: 10.61096837 | AF77: 5.282843724 | AG77: 1.199144181 | AH77: =諸係数!X76 -> 0.0214233651 | AI77: 0 | AJ77: 0.1435215643 | AK77: 0.08380108517 | AL77: 0.2273226495 | AM77: =諸係数!Y76 -> 0.0214233651 | AN77: 0 | AO77: 0.1435215643 | AP77: 0.08380108517 | AQ77: 0.2273226495 | AR77: 05
B78: 26 | C78: 廃棄物処理 | J78: =諸係数!P35 -> 0.004510641097 | K78: =IF(入力シートその１!$B$18="県内産商品のみ",0,I36*J78) -> 0 | L78: =諸係数!S77 -> 0.6620870882 | M78: 0 | N78: =諸係数!T77 -> 0.4220176818 | O78: 0 | P78: 1.559988861 | Q78: 5.725065999 | R78: 3.790492277 | S78: 2.416079081 | T78: 2.416079081 | W78: =諸係数!W77 -> 0.0009318958416 | X78: 0.3070810726 | Y78: =諸係数!P35 -> 0.004510641097 | Z78: =諸係数!Q77 -> 0.9973738877 | AA78: 0.3082861879 | AB78: 2.249786554 | AC78: 1.489554628 | AD78: 0.9494497058 | AE78: 7.974852552 | AF78: 5.280046905 | AG78: 3.365528787 | AH78: =諸係数!X77 -> 0.101708217 | AI78: 0 | AJ78: 0.5822862547 | AK78: 0.2288217789 | AL78: 0.8111080336 | AM78: =諸係数!Y77 -> 0.09844929345 | AN78: 0 | AO78: 0.5636287025 | AP78: 0.2214898966 | AQ78: 0.7851185991 | AR78: 12
B79: 27 | C79: 商業 | J79: =諸係数!P36 -> 0.3881668526 | K79: =IF(入力シートその１!$B$18="県内産商品のみ",0,I37*J79) -> 506.2236741 | L79: =諸係数!S78 -> 0.6979652664 | M79: 353.3265415 | N79: =諸係数!T78 -> 0.3338623802 | O79: 169.0090407 | P79: 149.0460732 | Q79: 238.6117081 | R79: 166.5426844 | S79: 79.6634728 | T79: 248.6725135 | W79: =諸係数!W78 -> 0.1575562624 | X79: 51.91840535 | Y79: =諸係数!P36 -> 0.3881668526 | Z79: =諸係数!Q78 -> 0.9729749179 | AA79: 66.2919212 | AB79: 86.84703694 | AC79: 60.61621527 | AD79: 28.99495846 | AE79: 831.6824191 | AF79: 580.4854412 | AG79: 277.667472 | AH79: =諸係数!X78 -> 0.114549577 | AI79: 57.98770772 | AJ79: 27.33287022 | AK79: 9.948291343 | AL79: 95.26886929 | AM79: =諸係数!Y78 -> 0.1045122797 | AN79: 52.90659023 | AO79: 24.93785358 | AP79: 9.076581818 | AQ79: 86.92102563 | AR79: 06
B80: 28 | C80: 金融・保険 | J80: =諸係数!P37 -> 0.114183189 | K80: =IF(入力シートその１!$B$18="県内産商品のみ",0,I38*J80) -> 0 | L80: =諸係数!S79 -> 0.674460609 | M80: 0 | N80: =諸係数!T79 -> 0.239147611 | O80: 0 | P80: 20.28490689 | Q80: 46.7472976 | R80: 31.52921081 | S80: 11.17950454 | T80: 11.17950454 | W80: =諸係数!W79 -> 0.05842369526 | X80: 19.25194877 | Y80: =諸係数!P37 -> 0.114183189 | Z80: =諸係数!Q79 -> 0.9599075877 | AA80: 19.96243489 | AB80: 33.26008417 | AC80: 22.43261663 | AD80: 7.954069672 | AE80: 80.00738177 | AF80: 53.96182744 | AG80: 19.13357422 | AH80: =諸係数!X79 -> 0.05117430905 | AI80: 0 | AJ80: 2.392260655 | AK80: 1.702061826 | AL80: 4.094322481 | AM80: =諸係数!Y79 -> 0.04936955846 | AN80: 0 | AO80: 2.307893442 | AP80: 1.64203567 | AQ80: 3.949929111 | AR80: 07
B81: 29 | C81: 不動産 | J81: =諸係数!P38 -> 0.009728807308 | K81: =IF(入力シートその１!$B$18="県内産商品のみ",0,I39*J81) -> 0 | L81: =諸係数!S80 -> 0.8412629731 | M81: 0 | N81: =諸係数!T80 -> 0.05121128356 | O81: 0 | P81: 18.15621983 | Q81: 38.48077808 | R81: 32.37245378 | S81: 1.970650038 | T81: 1.970650038 | W81: =諸係数!W80 -> 0.2161074458 | X81: 71.21236439 | Y81: =諸係数!P38 -> 0.009728807308 | Z81: =諸係数!Q80 -> 0.9988012404 | AA81: 71.63556608 | AB81: 80.5237688 | AC81: 67.74166514 | AD81: 4.123725557 | AE81: 119.0045469 | AF81: 100.1141189 | AG81: 6.094375595 | AH81: =諸係数!X80 -> 0.01176749114 | AI81: 0 | AJ81: 0.452822215 | AK81: 0.9475627356 | AL81: 1.400384951 | AM81: =諸係数!Y80 -> 0.008950370337 | AN81: 0 | AO81: 0.3444172147 | AP81: 0.7207175517 | AQ81: 1.065134766 | AR81: 08
B82: 30 | C82: 運輸・郵便 | J82: =諸係数!P39 -> 0.1027868597 | K82: =IF(入力シートその１!$B$18="県内産商品のみ",0,I40*J82) -> 20.98347731 | L82: =諸係数!S81 -> 0.5157773791 | M82: 10.82280293 | N82: =諸係数!T81 -> 0.238069054 | O82: 4.995516594 | P82: 129.0215628 | Q82: 222.7310283 | R82: 114.879626 | S82: 53.02536521 | T82: 58.0208818 | W82: =諸係数!W81 -> 0.04949840877 | X82: 16.31086198 | Y82: =諸係数!P39 -> 0.1027868597 | Z82: =諸係数!Q81 -> 0.9174624767 | AA82: 16.08482799 | AB82: 37.35658218 | AC82: 19.26768005 | AD82: 8.893446181 | AE82: 281.0710878 | AF82: 144.970109 | AG82: 66.91432798 | AH82: =諸係数!X81 -> 0.06504463301 | AI82: 1.364862581 | AJ82: 14.48745799 | AK82: 2.429845178 | AL82: 18.28216575 | AM82: =諸係数!Y81 -> 0.06121790921 | AN82: 1.284564609 | AO82: 13.63512787 | AP82: 2.286891856 | AQ82: 17.20658433 | AR82: 09
B83: 31 | C83: 情報通信 | J83: =諸係数!P40 -> 0.1385498793 | K83: =IF(入力シートその１!$B$18="県内産商品のみ",0,I41*J83) -> 0 | L83: =諸係数!S82 -> 0.5167800882 | M83: 0 | N83: =諸係数!T82 -> 0.1808690363 | O83: 0 | P83: 28.75712596 | Q83: 85.25365212 | R83: 44.05738986 | S83: 15.4197459 | T83: 15.4197459 | W83: =諸係数!W82 -> 0.04315221769 | X83: 14.21964634 | Y83: =諸係数!P40 -> 0.1385498793 | Z83: =諸係数!Q82 -> 0.9503198101 | AA83: 15.31298734 | AB83: 34.14303364 | AC83: 17.64443993 | AD83: 6.17541759 | AE83: 119.3966858 | AF83: 61.7018298 | AG83: 21.59516349 | AH83: =諸係数!X82 -> 0.03518530615 | AI83: 0 | AJ83: 2.99967585 | AK83: 1.201333091 | AL83: 4.201008942 | AM83: =諸係数!Y82 -> 0.03321380455 | AN83: 0 | AO83: 2.831598139 | AP83: 1.134020046 | AQ83: 3.965618185 | AR83: 10
B84: 32 | C84: 公務 | J84: =諸係数!P41 -> 0 | K84: =IF(入力シートその１!$B$18="県内産商品のみ",0,I42*J84) -> 0 | L84: =諸係数!S83 -> 0.7089807074 | M84: 0 | N84: =諸係数!T83 -> 0.2681645976 | O84: 0 | P84: 0 | Q84: 4.492499805 | R84: 3.185095689 | S84: 1.204729402 | T84: 1.204729402 | W84: =諸係数!W83 -> 0.003836584157 | X84: 1.264242553 | Y84: =諸係数!P41 -> 0 | Z84: =諸係数!Q83 -> 1 | AA84: 1.264242553 | AB84: 1.885880199 | AC84: 1.337052678 | AD84: 0.5057263049 | AE84: 6.378380004 | AF84: 4.522148367 | AG84: 1.710455707 | AH84: =諸係数!X83 -> 0.05093872823 | AI84: 0 | AJ84: 0.2288422266 | AK84: 0.09606433895 | AL84: 0.3249065656 | AM84: =諸係数!Y83 -> 0.05093872823 | AN84: 0 | AO84: 0.2288422266 | AP84: 0.09606433895 | AQ84: 0.3249065656 | AR84: 11
B85: 33 | C85: 教育・研究 | J85: =諸係数!P42 -> 0.01434536376 | K85: =IF(入力シートその１!$B$18="県内産商品のみ",0,I43*J85) -> 0 | L85: =諸係数!S84 -> 0.7309475212 | M85: 0 | N85: =諸係数!T84 -> 0.406917001 | O85: 0 | P85: 0.1906643533 | Q85: 1.203130184 | R85: 0.8794250258 | S85: 0.4895741264 | T85: 0.4895741264 | W85: =諸係数!W84 -> 0.03000228388 | X85: 9.886441275 | Y85: =諸係数!P42 -> 0.01434536376 | Z85: =諸係数!Q84 -> 0.9532254035 | AA85: 9.541130597 | AB85: 9.84190768 | AC85: 7.193918022 | AD85: 4.004839557 | AE85: 11.04503786 | AF85: 8.073343048 | AG85: 4.494413683 | AH85: =諸係数!X84 -> 0.07994377987 | AI85: 0 | AJ85: 0.0961827746 | AK85: 0.786799301 | AL85: 0.8829820757 | AM85: =諸係数!Y84 -> 0.07973034132 | AN85: 0 | AO85: 0.09592598024 | AP85: 0.7846986585 | AQ85: 0.8806246388 | AR85: 12
B86: 34 | C86: 医療・福祉 | J86: =諸係数!P43 -> 0.01112692911 | K86: =IF(入力シートその１!$B$18="県内産商品のみ",0,I44*J86) -> 0 | L86: =諸係数!S85 -> 0.620103984 | M86: 0 | N86: =諸係数!T85 -> 0.4319405322 | O86: 0 | P86: 0.824230091 | Q86: 1.364377732 | R86: 0.8460560674 | S86: 0.5893300438 | T86: 0.5893300438 | W86: =諸係数!W85 -> 0.05099783193 | X86: 16.80495634 | Y86: =諸係数!P43 -> 0.01112692911 | Z86: =諸係数!Q85 -> 0.9980748238 | AA86: 16.94794714 | AB86: 17.31535124 | AC86: 10.73731829 | AD86: 7.47920203 | AE86: 18.67972897 | AF86: 11.58337436 | AG86: 8.068532073 | AH86: =諸係数!X85 -> 0.1139556573 | AI86: 0 | AJ86: 0.1554785613 | AK86: 1.973182233 | AL86: 2.128660794 | AM86: =諸係数!Y85 -> 0.1095137943 | AN86: 0 | AO86: 0.1494181823 | AP86: 1.896269814 | AQ86: 2.045687996 | AR86: 12
B87: 35 | C87: 他に分類されない会員制団体 | J87: =諸係数!P44 -> 1.28705098e-07 | K87: =IF(入力シートその１!$B$18="県内産商品のみ",0,I45*J87) -> 0 | L87: =諸係数!S86 -> 0.5991346761 | M87: 0 | N87: =諸係数!T86 -> 0.4470500815 | O87: 0 | P87: 0.49560261 | Q87: 2.816157496 | R87: 1.687257609 | S87: 1.258963438 | T87: 1.258963438 | W87: =諸係数!W86 -> 0.01079429356 | X87: 3.556967522 | Y87: =諸係数!P44 -> 1.28705098e-07 | Z87: =諸係数!Q86 -> 0.9701739613 | AA87: 3.450877643 | AB87: 4.198948012 | AC87: 2.515735357 | AD87: 1.877140051 | AE87: 7.015105508 | AF87: 4.202992966 | AG87: 3.136103489 | AH87: =諸係数!X86 -> 0.1299038259 | AI87: 0 | AJ87: 0.365829633 | AK87: 0.5454594116 | AL87: 0.9112890446 | AM87: =諸係数!Y86 -> 0.1210901905 | AN87: 0 | AO87: 0.3410090476 | AP87: 0.5084514148 | AQ87: 0.8494604624 | AR87: 12
B88: 36 | C88: 対事業所サービス | J88: =諸係数!P45 -> 0.1130173017 | K88: =IF(入力シートその１!$B$18="県内産商品のみ",0,I46*J88) -> 0 | L88: =諸係数!S87 -> 0.6257955666 | M88: 0 | N88: =諸係数!T87 -> 0.3016455702 | O88: 0 | P88: 86.35865335 | Q88: 225.7784904 | R88: 141.2911783 | S88: 68.10508147 | T88: 68.10508147 | W88: =諸係数!W87 -> 0.01330507266 | X88: 4.384326875 | Y88: =諸係数!P45 -> 0.1130173017 | Z88: =諸係数!Q87 -> 0.944330096 | AA88: 4.535400972 | AB88: 45.21068708 | AC88: 28.29264754 | AD88: 13.63760348 | AE88: 270.9891774 | AF88: 169.5838258 | AG88: 81.74268495 | AH88: =諸係数!X87 -> 0.09874252748 | AI88: 0 | AJ88: 22.29393879 | AK88: 4.464217511 | AL88: 26.7581563 | AM88: =諸係数!Y87 -> 0.08560755006 | AN88: 0 | AO88: 19.32834342 | AP88: 3.870376158 | AQ88: 23.19871957 | AR88: 12
B89: 37 | C89: 宿泊業 | J89: =諸係数!P46 -> 0.8304852537 | K89: =IF(入力シートその１!$B$18="県内産商品のみ",0,I47*J89) -> 0 | L89: =諸係数!S88 -> 0.4839354311 | M89: 0 | N89: =諸係数!T88 -> 0.210605088 | O89: 0 | P89: 0 | Q89: 0 | R89: 0 | S89: 0 | T89: 0 | W89: =諸係数!W88 -> 0.009913188918 | X89: 3.266623317 | Y89: =諸係数!P46 -> 0.8304852537 | Z89: =諸係数!Q88 -> 0.8556229913 | AA89: 5.243192148 | AB89: 5.243192148 | AC89: 2.537366452 | AD89: 1.104242944 | AE89: 5.243192148 | AF89: 2.537366452 | AG89: 1.104242944 | AH89: =諸係数!X88 -> 0.09710039577 | AI89: 0 | AJ89: 0 | AK89: 0.5091160326 | AL89: 0.5091160326 | AM89: =諸係数!Y88 -> 0.09164725784 | AN89: 0 | AO89: 0 | AP89: 0.4805241827 | AQ89: 0.4805241827 | AR89: 12
B90: 38 | C90: 飲食サービス | J90: =諸係数!P47 -> 0.04896920559 | K90: =IF(入力シートその１!$B$18="県内産商品のみ",0,I48*J90) -> 0 | L90: =諸係数!S89 -> 0.4026238034 | M90: 0 | N90: =諸係数!T89 -> 0.256166151 | O90: 0 | P90: 0 | Q90: 0.004837273559 | R90: 0.001947601479 | S90: 0.001239145749 | T90: 0.001239145749 | W90: =諸係数!W89 -> 0.0640759896 | X90: 21.11450951 | Y90: =諸係数!P47 -> 0.04896920559 | Z90: =諸係数!Q89 -> 0.972782538 | AA90: 21.24899821 | AB90: 21.53017245 | AC90: 8.66855992 | AD90: 5.515301407 | AE90: 21.53500972 | AF90: 8.670507522 | AG90: 5.516540553 | AH90: =諸係数!X89 -> 0.1828285014 | AI90: 0 | AJ90: 0.0008843914759 | AK90: 3.936329165 | AL90: 3.937213556 | AM90: =諸係数!Y89 -> 0.161493809 | AN90: 0 | AO90: 0.0007811897324 | AP90: 3.476989558 | AQ90: 3.477770748 | AR90: 12
B91: 39 | C91: 娯楽サービス | J91: =諸係数!P48 -> 0.1281553999 | K91: =IF(入力シートその１!$B$18="県内産商品のみ",0,I49*J91) -> 0 | L91: =諸係数!S90 -> 0.7047367726 | M91: 0 | N91: =諸係数!T90 -> 0.205943693 | O91: 0 | P91: 0.009191388498 | Q91: 0.8805858786 | R91: 0.6205812501 | S91: 0.1813511078 | T91: 0.1813511078 | W91: =諸係数!W90 -> 0.02690333423 | X91: 8.865266228 | Y91: =諸係数!P48 -> 0.1281553999 | Z91: =諸係数!Q90 -> 0.9678675947 | AA91: 9.640333648 | AB91: 10.19998371 | AC91: 7.188303602 | AD91: 2.100622314 | AE91: 11.08056959 | AF91: 7.808884852 | AG91: 2.281973422 | AH91: =諸係数!X90 -> 0.08462324022 | AI91: 0 | AJ91: 0.07451803034 | AK91: 0.863155672 | AL91: 0.9376737023 | AM91: =諸係数!Y90 -> 0.07782550911 | AN91: 0 | AO91: 0.06853204432 | AP91: 0.7938189254 | AQ91: 0.8623509697 | AR91: 12
B92: 40 | C92: その他の対個人サービス | J92: =諸係数!P49 -> 0.01905485922 | K92: =IF(入力シートその１!$B$18="県内産商品のみ",0,I50*J92) -> 0 | L92: =諸係数!S91 -> 0.7038804652 | M92: 0 | N92: =諸係数!T91 -> 0.2510528354 | O92: 0 | P92: 0.6367479844 | Q92: 1.656572816 | R92: 1.166029244 | S92: 0.4158873025 | T92: 0.4158873025 | W92: =諸係数!W91 -> 0.03548896795 | X92: 11.69442963 | Y92: =諸係数!P49 -> 0.01905485922 | Z92: =諸係数!Q91 -> 0.9944930657 | AA92: 11.81051017 | AB92: 12.66923738 | AC92: 8.917628703 | AD92: 3.180647968 | AE92: 14.3258102 | AF92: 10.08365795 | AG92: 3.59653527 | AH92: =諸係数!X91 -> 0.1824332134 | AI92: 0 | AJ92: 0.302213902 | AK92: 2.311289687 | AL92: 2.613503589 | AM92: =諸係数!Y91 -> 0.1238581928 | AN92: 0 | AO92: 0.2051801152 | AP92: 1.569188847 | AQ92: 1.774368962 | AR92: 12
B93: 41 | C93: 事務用品 | J93: =諸係数!P50 -> 0 | K93: =IF(入力シートその１!$B$18="県内産商品のみ",0,I51*J93) -> 0 | L93: =諸係数!S92 -> 0 | M93: 0 | N93: =諸係数!T92 -> 0 | O93: 0 | P93: 2.105618777 | Q93: 4.430169834 | R93: 0 | S93: 0 | T93: 0 | W93: =諸係数!W92 -> 0 | X93: 0 | Y93: =諸係数!P50 -> 0 | Z93: =諸係数!Q92 -> 1 | AA93: 0 | AB93: 0.8400110076 | AC93: 0 | AD93: 0 | AE93: 5.270180842 | AF93: 0 | AG93: 0 | AH93: =諸係数!X92 -> 0 | AI93: 0 | AJ93: 0 | AK93: 0 | AL93: 0 | AM93: =諸係数!Y92 -> 0 | AN93: 0 | AO93: 0 | AP93: 0 | AQ93: 0 | AR93: 03
B94: 42 | C94: 分類不明 | J94: =諸係数!P51 -> 0 | K94: =IF(入力シートその１!$B$18="県内産商品のみ",0,I52*J94) -> 0 | L94: =諸係数!S93 -> 0.4113879926 | M94: 0 | N94: =諸係数!T93 -> 0.01061394979 | O94: 0 | P94: 9.055559217 | Q94: 18.20576293 | R94: 7.489632265 | S94: 0.1932350537 | T94: 0.1932350537 | W94: =諸係数!W93 -> 3.281359509e-05 | X94: 0.01081283286 | Y94: =諸係数!P51 -> 0 | Z94: =諸係数!Q93 -> 0.9880088151 | AA94: 0.01068317418 | AB94: 2.519173759 | AC94: 1.036357836 | AD94: 0.02673838379 | AE94: 20.72493669 | AF94: 8.525990101 | AG94: 0.2199734375 | AH94: =諸係数!X93 -> 0.002306157343 | AI94: 0 | AJ94: 0.04198535386 | AK94: 0.005809611062 | AL94: 0.04779496492 | AM94: =諸係数!Y93 -> 0.002295980516 | AN94: 0 | AO94: 0.04180007697 | AP94: 0.005783973868 | AQ94: 0.04758405084 | AR94: 13
C95: 福岡県計 | D95: =SUM(D11:D52) -> 5000 | F95: 1304.139369 | H95: 204.1455238 | I95: 5000 | K95: =SUM(K11:K52) -> 1869.810056 | M95: =SUM(M11:M52) -> 1123.678354 | O95: 419.5401315 | P95: =SUM(P11:P52) -> 429.3489775 | Q95: =SUM(Q11:Q52) -> 599.7143097 | R95: =SUM(R11:R52) -> 335.8117861 | S95: 126.9229965 | T95: =SUM(T11:T52) -> 546.463128 | U95: =諸係数!U94 -> 0.473096285 | V95: =T95*入力シートその１!D38 -> 258.5296758 | X95: =SUM(X11:X52) -> 258.5296758 | AA95: =SUM(AA11:AA52) -> 189.2094178 | AB95: 249.5101689 | AC95: 159.6738737 | AD95: 54.17278054 | AE95: =SUM(AE11:AE52) -> 2719.034535 | AF95: =SUM(AF11:AF52) -> 1619.164014 | AG95: 600.6359085 | AI95: 351.4449239 | AJ95: 45.32579614 | AK95: 17.96127862 | AL95: 414.7319987 | AN95: 148.8497714 | AO95: 35.94487196 | AP95: 15.74942243 | AQ95: 200.5440658
C96: 県外計 | K96: =SUM(K53:K94) -> 2208.076243 | M96: =SUM(M53:M94) -> 1119.465873 | O96: 315.5952573 | P96: =SUM(P53:P94) -> 1180.309065 | Q96: =SUM(Q53:Q94) -> 2174.350559 | R96: =SUM(R53:R94) -> 1035.629179 | S96: 366.078129 | T96: =SUM(T53:T94) -> 681.6733862 | U96: =諸係数!U95 -> 0.4834029945 | V96: =T96*入力シートその１!D39 -> 329.5229562 | X96: =SUM(X53:X94) -> 329.5229562 | AA96: =SUM(AA53:AA94) -> 364.8089424 | AB96: 610.4786866 | AC96: 342.2044144 | AD96: 119.2641769 | AE96: =SUM(AE53:AE94) -> 4992.905489 | AF96: =SUM(AF53:AF94) -> 2497.299467 | AG96: 800.9375632 | AI96: 620.9344975 | AJ96: 205.1922838 | AK96: 43.77959541 | AL96: 869.9063767 | AN96: 120.9950963 | AO96: 105.7816317 | AP96: 34.98322503 | AQ96: 261.759953
C97: 合計 | D97: =SUM(D95:D96) -> 5000 | F97: 1304.139369 | H97: 204.1455238 | I97: 5000 | K97: =SUM(K95:K96) -> 4077.886299 | M97: =SUM(M95:M96) -> 2243.144227 | O97: 735.1353888 | P97: =SUM(P95:P96) -> 1609.658042 | Q97: =SUM(Q95:Q96) -> 2774.064869 | R97: =SUM(R95:R96) -> 1371.440965 | S97: 493.0011255 | T97: =SUM(T95:T96) -> 1228.136514 | V97: =SUM(V95:V96) -> 588.0526319 | X97: =SUM(X95:X96) -> 588.0526319 | AA97: =SUM(AA95:AA96) -> 554.0183602 | AB97: 859.9888555 | AC97: =SUM(AC95:AC96) -> 501.8782881 | AD97: 173.4369575 | AE97: 7711.940023 | AF97: =SUM(AF95:AF96) -> 4116.46348 | AG97: 1401.573472 | AI97: 972.3794214 | AJ97: 250.5180799 | AK97: 61.74087403 | AL97: 1284.638375 | AN97: 269.8448676 | AO97: 141.7265037 | AP97: 50.73264746 | AQ97: 462.3040188
D98: ※１ 商業マージン率及び貨物運賃率は、「平成27年産業連関表（全国表）」中の需要合計のマージン額より求めた。
D99: ※２ 商業部門及び運輸部門は、他部門からの商業マージン、貨物運賃が加算された額。
D100: ※３ 自給率を加味した投入係数 Ａ－ＭＡ※ （Ａ：投入係数 Ａ※：投入係数（自地域） Ｍ：輸入係数）
D101: ※４ 民間消費支出におけるマイナス値は屑・副産物発生額であるため、民間消費支出比率算出の際はゼロに置き換えた。

Sheet 諸係数
A6: 諸係数
D7: 係数Ａ | E7: 係数Ｂ | F7: 基礎データ（百万円・人） | P7: 係数Ｃ | S7: 係数Ｄ | T7: 係数Ｅ | U7: 係数Ｆ | W7: 係数Ｇ | X7: 係数Ｈ | Y7: 係数Ｉ
D8: 商業マージン率 | E8: 貨物運賃率 | F8: 域内需要合計 | G8: 輸入 | H8: 移入 | I8: 域内生産額 | J8: 粗付加価値額 | K8: 賃金・俸給 | L8: 民間消費支出 | M8: 従業者総数 | N8: 有給役員・雇用者数 | O8: 輸入率 | P8: 移入率 | Q8: 自給率 | R8: 輸入/(自給+輸入) | S8: 粗付加価値率 | T8: 賃金・俸給率 | U8: 消費転換率 | V8: 民間消費支出' | W8: 民間消費支出比率 | X8: 就業係数 | Y8: 雇用係数
F9: a | G9: b | H9: c | I9: d | J9: e | K9: f | L9: g | M9: h | N9: i | O9: j=b/a | P9: k=c/a | Q9: l=1-j-k | R9: m=j/(j+l) | S9: n=e/d | T9: o=f/d | U9: p | V9: q | W9: qの構成比 | X9: r=h/d | Y9: s=i/d
A10: 福岡県 | B10: 01 | C10: 農業 | D10: 0.2608278737 | E10: 0.04082910475 | F10: =取引基本表!CU7+取引基本表!CU50 -> 455990.15 | G10: =-取引基本表!DF7 -> 118521.13 | H10: =取引基本表!CU50 -> 219508.1 | I10: =取引基本表!DG7 -> 249119.91 | J10: =TRANSPOSE(取引基本表!E102:AT102) -> 128527.28 | K10: =TRANSPOSE(取引基本表!E95:AT95) -> 28578.33 | L10: =取引基本表!CO7+取引基本表!CO50 -> 116065.17 | M10: 68965 | N10: 15214 | O10: =G10/F10 -> 0.2599203733 | P10: =H10/F10 -> 0.4813878107 | Q10: =1-O10-P10 -> 0.258691816 | R10: =O10/(O10+Q10) -> 0.5011844662 | S10: =J10/I10 -> 0.515925363 | T10: =K10/I10 -> 0.1147171657 | V10: =IF(L10<0,0,L10) -> 116065.17 | W10: =V10/$V$94 -> 0.01147388234 | X10: =M10/$I10 -> 0.2768345573 | Y10: =N10/$I10 -> 0.06107099188
B11: 02 | C11: 林業 | D11: 0.2179770187 | E11: 0.03180480207 | F11: =取引基本表!CU8+取引基本表!CU51 -> 19445.57 | G11: =-取引基本表!DF8 -> 4741.6 | H11: =取引基本表!CU51 -> 8712.59 | I11: =取引基本表!DG8 -> 16053.01 | J11: 8850.73 | K11: 2176.48 | L11: =取引基本表!CO8+取引基本表!CO51 -> 6622.41 | M11: 2595 | N11: 867 | O11: =G11/F11 -> 0.2438395995 | P11: =H11/F11 -> 0.4480501214 | Q11: =1-O11-P11 -> 0.3081102791 | R11: =O11/(O11+Q11) -> 0.4417785182 | S11: =J11/I11 -> 0.5513439536 | T11: =K11/I11 -> 0.1355808038 | V11: 6622.41 | W11: =V11/$V$94 -> 0.0006546731732 | X11: 0.161651927 | Y11: 0.05400856288
B12: 03 | C12: 漁業 | D12: 0.2493002936 | E12: 0.03330839356 | F12: =取引基本表!CU9+取引基本表!CU52 -> 51666.88 | G12: =-取引基本表!DF9 -> 13081.25 | H12: =取引基本表!CU52 -> 29744.06 | I12: =取引基本表!DG9 -> 30664.56 | J12: 15417.13 | K12: 3261.17 | L12: =取引基本表!CO9+取引基本表!CO52 -> 11882.13 | M12: 5150 | N12: 1295 | O12: 0.2531844385 | P12: 0.5756891068 | Q12: 0.1711264547 | R12: 0.5966955893 | S12: 0.5027670379 | T12: 0.1063498058 | V12: 11882.13 | W12: 0.001174634574 | X12: 0.1679463198 | Y12: 0.04223116197
B13: 04 | C13: 鉱業 | D13: 0.0225281807 | E13: 0.06640306708 | F13: =取引基本表!CU10+取引基本表!CU53 -> 424439.2 | G13: =-取引基本表!DF10 -> 398803.38 | H13: =取引基本表!CU53 -> 13280.49 | I13: =取引基本表!DG10 -> 26798.63 | J13: 12828.2 | K13: 3581.6 | L13: =取引基本表!CO10+取引基本表!CO53 -> -210.47 | M13: 888 | N13: 883 | O13: 0.9396007249 | P13: 0.03128949918 | Q13: 0.02910977591 | R13: 0.9699499738 | S13: 0.4786886494 | T13: 0.1336486231 | V13: 0 | W13: 0 | X13: 0.03313602225 | Y13: 0.03294944555
B14: 05 | C14: 飲食料品 | D14: 0.322574961 | E14: 0.03217133818 | F14: =取引基本表!CU11+取引基本表!CU54 -> 1510662.27 | G14: =-取引基本表!DF11 -> 202757.76 | H14: =取引基本表!CU54 -> 866753.84 | I14: =取引基本表!DG11 -> 1587560.15 | J14: 738661.35 | K14: 164921.91 | L14: =取引基本表!CO11+取引基本表!CO54 -> 903895.71 | M14: 58417 | N14: 56623 | O14: 0.1342177957 | P14: 0.5737575216 | Q14: 0.2920246827 | R14: 0.3148860157 | S14: 0.4652808588 | T14: 0.1038838812 | V14: 903895.71 | W14: 0.08935663493 | X14: 0.03679671602 | Y14: 0.03566668009
B15: 06 | C15: 繊維製品 | D15: 0.4394491476 | E15: 0.02454854616 | F15: =取引基本表!CU12+取引基本表!CU55 -> 260038.04 | G15: =-取引基本表!DF12 -> 110065.68 | H15: =取引基本表!CU55 -> 135432.89 | I15: =取引基本表!DG12 -> 47847.68 | J15: 19638.05 | K15: 11411.34 | L15: =取引基本表!CO12+取引基本表!CO55 -> 143464.36 | M15: 6241 | N15: 4772 | O15: 0.4232676112 | P15: 0.5208195309 | Q15: 0.05591285798 | R15: 0.8833156575 | S15: 0.410428468 | T15: 0.238493068 | V15: 143464.36 | W15: 0.01418249063 | X15: 0.1304347463 | Y15: 0.09973315321
B16: 07 | C16: パルプ・紙・木製品 | D16: 0.233496868 | E16: 0.05800394015 | F16: =取引基本表!CU13+取引基本表!CU56 -> 400453.19 | G16: =-取引基本表!DF13 -> 80759.51 | H16: =取引基本表!CU56 -> 247888.52 | I16: =取引基本表!DG13 -> 215083.2 | J16: 87240.52 | K16: 41375.21 | L16: =取引基本表!CO13+取引基本表!CO56 -> 11990.02 | M16: 13544 | N16: 12372 | O16: 0.2016702876 | P16: 0.6190199659 | Q16: 0.1793097465 | R16: 0.5293460799 | S16: 0.4056128977 | T16: 0.1923683951 | V16: 11990.02 | W16: 0.001185300282 | X16: 0.06297098053 | Y16: 0.0575219264
B17: 08 | C17: 化学製品 | D17: 0.2002949714 | E17: 0.02693915726 | F17: =取引基本表!CU14+取引基本表!CU57 -> 940592.08 | G17: =-取引基本表!DF14 -> 222866.95 | H17: =取引基本表!CU57 -> 618616.99 | I17: =取引基本表!DG14 -> 540753.36 | J17: 190231.68 | K17: 45904.54 | L17: =取引基本表!CO14+取引基本表!CO57 -> 101572.58 | M17: 8677 | N17: 8669 | O17: 0.236943256 | P17: 0.6576889208 | Q17: 0.1053678232 | R17: 0.6921869328 | S17: 0.3517901026 | T17: 0.08488997646 | V17: 101572.58 | W17: 0.01004118489 | X17: 0.01604613238 | Y17: 0.01603133821
B18: 09 | C18: 石油・石炭製品 | D18: 0.1963639319 | E18: 0.02121949273 | F18: =取引基本表!CU15+取引基本表!CU58 -> 615811.85 | G18: =-取引基本表!DF15 -> 86747.48 | H18: =取引基本表!CU58 -> 474764.61 | I18: =取引基本表!DG15 -> 121200.99 | J18: 18869.95 | K18: 4105.18 | L18: =取引基本表!CO15+取引基本表!CO58 -> 179552.1 | M18: 704 | N18: 704 | O18: 0.1408668573 | P18: 0.7709572494 | Q18: 0.08817589333 | R18: 0.6150242997 | S18: 0.155691385 | T18: 0.03387084544 | V18: 179552.1 | W18: 0.017750025 | X18: 0.005808533412 | Y18: 0.005808533412
B19: 10 | C19: プラスチック・ゴム製品 | D19: 0.1820219867 | E19: 0.03040433651 | F19: =取引基本表!CU16+取引基本表!CU59 -> 441176.8 | G19: =-取引基本表!DF16 -> 80931.12 | H19: =取引基本表!CU59 -> 229479.25 | I19: =取引基本表!DG16 -> 482272.25 | J19: 180133.2 | K19: 71705.15 | L19: =取引基本表!CO16+取引基本表!CO59 -> 32603.86 | M19: 18773 | N19: 18274 | O19: 0.183443735 | P19: 0.5201525783 | Q19: 0.2964036867 | R19: 0.3822959689 | S19: 0.3735093612 | T19: 0.1486818908 | V19: 32603.86 | W19: 0.003223127605 | X19: 0.03892614597 | Y19: 0.03789146068
B20: 11 | C20: 窯業・土石製品 | D20: 0.1744042063 | E20: 0.05255525303 | F20: =取引基本表!CU17+取引基本表!CU60 -> 206814.52 | G20: =-取引基本表!DF17 -> 26257.37 | H20: =取引基本表!CU60 -> 89315.38 | I20: =取引基本表!DG17 -> 298825.51 | J20: 136538.45 | K20: 48486.46 | L20: =取引基本表!CO17+取引基本表!CO60 -> 5130.98 | M20: 11599 | N20: 11309 | O20: 0.12696096 | P20: 0.4318622309 | Q20: 0.4411768091 | R20: 0.2234686143 | S20: 0.4569169814 | T20: 0.1622567632 | V20: 5130.98 | W20: 0.0005072345201 | X20: 0.03881529392 | Y20: 0.03784482791
B21: 12 | C21: 鉄鋼 | D21: 0.05915135091 | E21: 0.02707816711 | F21: =取引基本表!CU18+取引基本表!CU61 -> 1336528.65 | G21: =-取引基本表!DF18 -> 46370.55 | H21: =取引基本表!CU61 -> 474524.49 | I21: =取引基本表!DG18 -> 1862169.09 | J21: 485988.62 | K21: 74512.18 | L21: =取引基本表!CO18+取引基本表!CO61 -> -1188.88 | M21: 12728 | N21: 12499 | O21: 0.03469476692 | P21: 0.3550425126 | Q21: 0.6102627205 | R21: 0.05379388192 | S21: 0.2609798555 | T21: 0.04001364881 | V21: 0 | W21: 0 | X21: 0.006835039884 | Y21: 0.006712065014
B22: 13 | C22: 非鉄金属 | D22: 0.1016214132 | E22: 0.029411656 | F22: =取引基本表!CU19+取引基本表!CU62 -> 223698.11 | G22: =-取引基本表!DF19 -> 78440.14 | H22: =取引基本表!CU62 -> 124759.73 | I22: =取引基本表!DG19 -> 116862.7 | J22: 29846.26 | K22: 10427.72 | L22: =取引基本表!CO19+取引基本表!CO62 -> 5906.49 | M22: 2387 | N22: 2342 | O22: 0.350651778 | P22: 0.5577147254 | Q22: 0.09163349659 | R22: 0.7928181157 | S22: 0.2553959476 | T22: 0.08923052437 | V22: 5906.49 | W22: 0.0005838992981 | X22: 0.02042567902 | Y22: 0.02004061176
B23: 14 | C23: 金属製品 | D23: 0.1328157078 | E23: 0.04383129877 | F23: =取引基本表!CU20+取引基本表!CU63 -> 341037.59 | G23: =-取引基本表!DF20 -> 42541.9 | H23: =取引基本表!CU63 -> 167154.25 | I23: =取引基本表!DG20 -> 339779.01 | J23: 149306.9 | K23: 78888.45 | L23: =取引基本表!CO20+取引基本表!CO63 -> 9617.34 | M23: 21557 | N23: 21037 | O23: 0.124742554 | P23: 0.4901343867 | Q23: 0.3851230593 | R23: 0.2446577113 | S23: 0.4394235536 | T23: 0.2321757604 | V23: 9617.34 | W23: 0.0009507436863 | X23: 0.06344417803 | Y23: 0.06191377154
B24: 15 | C24: はん用機械 | D24: 0.1028494212 | E24: 0.01319488397 | F24: =取引基本表!CU21+取引基本表!CU64 -> 225204.4 | G24: =-取引基本表!DF21 -> 37741.79 | H24: =取引基本表!CU64 -> 172508.57 | I24: =取引基本表!DG21 -> 129347.06 | J24: 57144.64 | K24: 28554.97 | L24: =取引基本表!CO21+取引基本表!CO64 -> 456.87 | M24: 6670 | N24: 6577 | O24: 0.1675890436 | P24: 0.766008879 | Q24: 0.0664020774 | R24: 0.7162196705 | S24: 0.4417931107 | T24: 0.2207624201 | V24: 456.87 | W24: 4.516490713e-05 | X24: 0.05156669197 | Y24: 0.05084769611
B25: 16 | C25: 生産用機械 | D25: 0.1224521901 | E25: 0.01163514444 | F25: =取引基本表!CU22+取引基本表!CU65 -> 322631.03 | G25: =-取引基本表!DF22 -> 54149.32 | H25: =取引基本表!CU65 -> 215584.27 | I25: =取引基本表!DG22 -> 339778 | J25: 155325.39 | K25: 64855.21 | L25: =取引基本表!CO22+取引基本表!CO65 -> 213.39 | M25: 14049 | N25: 13831 | O25: 0.1678366771 | P25: 0.6682068678 | Q25: 0.1639564551 | R25: 0.5058473512 | S25: 0.4571378665 | T25: 0.190875248 | V25: 213.39 | W25: 2.109514639e-05 | X25: 0.04134758578 | Y25: 0.04070599038
B26: 17 | C26: 業務用機械 | D26: 0.175715926 | E26: 0.01386049688 | F26: =取引基本表!CU23+取引基本表!CU66 -> 230314.47 | G26: =-取引基本表!DF23 -> 36447.67 | H26: =取引基本表!CU66 -> 186498.52 | I26: =取引基本表!DG23 -> 25822.13 | J26: 10908.54 | K26: 5568.39 | L26: =取引基本表!CO23+取引基本表!CO66 -> 3301.15 | M26: 1300 | N26: 1282 | O26: 0.158251759 | P26: 0.8097559828 | Q26: 0.03199225824 | R26: 0.8318356671 | S26: 0.4224492712 | T26: 0.2156441006 | V26: 3301.15 | W26: 0.0003263425771 | X26: 0.05034441388 | Y26: 0.04964733738
B27: 18 | C27: 電子部品 | D27: 0.05893676401 | E27: 0.009511640979 | F27: =取引基本表!CU24+取引基本表!CU67 -> 195335.47 | G27: =-取引基本表!DF24 -> 115452.93 | H27: =取引基本表!CU67 -> 57310.88 | I27: =取引基本表!DG24 -> 272930.69 | J27: 92775.34 | K27: 38615.72 | L27: =取引基本表!CO24+取引基本表!CO67 -> 5546.39 | M27: 8219 | N27: 8177 | O27: 0.5910494904 | P27: 0.2933972002 | Q27: 0.1155533094 | R27: 0.8364663862 | S27: 0.3399227108 | T27: 0.1414854445 | V27: 5546.39 | W27: 0.0005483008061 | X27: 0.0301138725 | Y27: 0.02995998728
B28: 19 | C28: 電気機械 | D28: 0.1734467222 | E28: 0.0091142446 | F28: =取引基本表!CU25+取引基本表!CU68 -> 490291.28 | G28: =-取引基本表!DF25 -> 121118.74 | H28: =取引基本表!CU68 -> 284371.7 | I28: =取引基本表!DG25 -> 273593.12 | J28: 109400.23 | K28: 55551.43 | L28: =取引基本表!CO25+取引基本表!CO68 -> 108857.18 | M28: 13056 | N28: 12995 | O28: 0.2470342528 | P28: 0.5800056244 | Q28: 0.1729601228 | R28: 0.588184669 | S28: 0.3998646969 | T28: 0.2030439581 | V28: 108857.18 | W28: 0.01076132034 | X28: 0.04772049823 | Y28: 0.04749753941
B29: 20 | C29: 情報通信機器 | D29: 0.1779343209 | E29: 0.007909160004 | F29: =取引基本表!CU26+取引基本表!CU69 -> 401104.36 | G29: =-取引基本表!DF26 -> 185003.74 | H29: =取引基本表!CU69 -> 212450.88 | I29: =取引基本表!DG26 -> 9144.68 | J29: 3637.41 | K29: 1369.87 | L29: =取引基本表!CO26+取引基本表!CO69 -> 136048.59 | M29: 408 | N29: 408 | O29: 0.4612359237 | P29: 0.5296648483 | Q29: 0.009099227942 | R29: 0.9806537362 | S29: 0.3977624149 | T29: 0.1497996649 | V29: 136048.59 | W29: 0.01344938808 | X29: 0.04461610466 | Y29: 0.04461610466
B30: 21 | C30: 輸送機械 | D30: 0.08664370577 | E30: 0.01574412185 | F30: =取引基本表!CU27+取引基本表!CU70 -> 2352713.07 | G30: =-取引基本表!DF27 -> 210591.95 | H30: =取引基本表!CU70 -> 1693168.7 | I30: =取引基本表!DG27 -> 3146575.65 | J30: 523548.03 | K30: 171019.04 | L30: =取引基本表!CO27+取引基本表!CO70 -> 199062.82 | M30: 30229 | N30: 30087 | O30: 0.08951025634 | P30: 0.7196664657 | Q30: 0.1908232779 | R30: 0.3192991398 | S30: 0.1663866019 | T30: 0.05435084327 | V30: 199062.82 | W30: 0.01967880093 | X30: 0.009606951608 | Y30: 0.009561823184
B31: 22 | C31: その他の製造工業製品 | D31: 0.3163065919 | E31: 0.0356696381 | F31: =取引基本表!CU28+取引基本表!CU71 -> 410591.64 | G31: =-取引基本表!DF28 -> 61973.78 | H31: =取引基本表!CU71 -> 255356.2 | I31: =取引基本表!DG28 -> 281447.1 | J31: 132449.42 | K31: 58153.97 | L31: =取引基本表!CO28+取引基本表!CO71 -> 107005.28 | M31: 19166 | N31: 16864 | O31: 0.1509377541 | P31: 0.6219225506 | Q31: 0.2271396953 | R31: 0.3992244297 | S31: 0.4706014736 | T31: 0.2066248684 | V31: 107005.28 | W31: 0.01057824662 | X31: 0.06809805466 | Y31: 0.05991889773
B32: 23 | C32: 建設 | D32: 0 | E32: 0 | F32: =取引基本表!CU29+取引基本表!CU72 -> 1988292.88 | G32: =-取引基本表!DF29 -> 0 | H32: =取引基本表!CU72 -> 0 | I32: =取引基本表!DG29 -> 1988292.88 | J32: 994099.82 | K32: 644108.39 | L32: =取引基本表!CO29+取引基本表!CO72 -> 0 | M32: 193750 | N32: 151824 | O32: 0 | P32: 0 | Q32: 1 | R32: 0 | S32: 0.4999765528 | T32: 0.3239504584 | V32: 0 | W32: 0 | X32: 0.09744540251 | Y32: 0.07635897182
B33: 24 | C33: 電力・ガス・熱供給 | D33: 0 | E33: 0 | F33: =取引基本表!CU30+取引基本表!CU73 -> 891795.94 | G33: =-取引基本表!DF30 -> 28.31 | H33: =取引基本表!CU73 -> 181547.48 | I33: =取引基本表!DG30 -> 714411.29 | J33: 278500.18 | K33: 64659.34 | L33: =取引基本表!CO30+取引基本表!CO73 -> 262947.15 | M33: 9938 | N33: 9938 | O33: 3.174493035e-05 | P33: 0.2035751363 | Q33: 0.7963931188 | R33: 3.985929093e-05 | S33: 0.3898317172 | T33: 0.0905071643 | V33: 262947.15 | W33: 0.02599422945 | X33: 0.01391075441 | Y33: 0.01391075441
B34: 25 | C34: 水道 | D34: 0 | E34: 0 | F34: =取引基本表!CU31+取引基本表!CU74 -> 177984.57 | G34: =-取引基本表!DF31 -> 48.03 | H34: =取引基本表!CU74 -> 10277.3 | I34: =取引基本表!DG31 -> 175921.67 | J34: 92886.33 | K34: 28954.34 | L34: =取引基本表!CO31+取引基本表!CO74 -> 71800.77 | M34: 4899 | N34: 4899 | O34: 0.0002698548531 | P34: 0.05774264589 | Q34: 0.9419874993 | R34: 0.0002863918779 | S34: 0.5279982278 | T34: 0.1645865458 | V34: 71800.77 | W34: 0.007098025935 | X34: 0.02784762105 | Y34: 0.02784762105
B35: 26 | C35: 廃棄物処理 | D35: 0 | E35: 0 | F35: =取引基本表!CU32+取引基本表!CU75 -> 166025.18 | G35: =-取引基本表!DF32 -> 9.58 | H35: =取引基本表!CU75 -> 748.88 | I35: =取引基本表!DG32 -> 177720.6 | J35: 115983.85 | K35: 72022 | L35: =取引基本表!CO32+取引基本表!CO75 -> 17449.08 | M35: 14948 | N35: 14504 | O35: 5.770209073e-05 | P35: 0.004510641097 | Q35: 0.9954316568 | R35: 5.796354347e-05 | S35: 0.6526190549 | T35: 0.4052540898 | V35: 17449.08 | W35: 0.001724967885 | X35: 0.08410955173 | Y35: 0.08161124822
B36: 27 | C36: 商業 | E36: 0 | F36: =取引基本表!CU33+取引基本表!CU76 -> 2963216.03 | G36: =-取引基本表!DF33 -> 5934.26 | H36: =取引基本表!CU76 -> 1150222.24 | I36: =取引基本表!DG33 -> 4159975.46 | J36: 2990431.77 | K36: 1448402.84 | L36: =取引基本表!CO33+取引基本表!CO76 -> 1590290.63 | M36: 475545 | N36: 437783 | O36: 0.002002641704 | P36: 0.3881668526 | Q36: 0.6098305057 | R36: 0.00327318275 | S36: 0.7188580314 | T36: 0.3481758135 | V36: 1590290.63 | W36: 0.1572117421 | X36: 0.1143143763 | Y36: 0.1052369189
B37: 28 | C37: 金融・保険 | D37: 0 | E37: 0 | F37: =取引基本表!CU34+取引基本表!CU77 -> 1088879.38 | G37: =-取引基本表!DF34 -> 43822.87 | H37: =取引基本表!CU77 -> 124331.72 | I37: =取引基本表!DG34 -> 997480.4 | J37: 706380.49 | K37: 294310.97 | L37: =取引基本表!CO34+取引基本表!CO77 -> 507957.89 | M37: 51349 | N37: 49425 | O37: 0.04024584431 | P37: 0.114183189 | Q37: 0.8455709667 | R37: 0.04543359734 | S37: 0.708164782 | T37: 0.295054389 | V37: 507957.89 | W37: 0.05021531492 | X37: 0.05147870575 | Y37: 0.04954984579
B38: 29 | C38: 不動産 | D38: 0 | E38: 0 | F38: =取引基本表!CU35+取引基本表!CU78 -> 2595671.72 | G38: =-取引基本表!DF35 -> 55.96 | H38: =取引基本表!CU78 -> 25252.79 | I38: =取引基本表!DG35 -> 2664072.23 | J38: 2218664.35 | K38: 209743.88 | L38: =取引基本表!CO35+取引基本表!CO78 -> 2045364.48 | M38: 42459 | N38: 36364 | O38: 2.155896663e-05 | P38: 0.009728807308 | Q38: 0.9902496337 | R38: 2.177077026e-05 | S38: 0.8328093829 | T38: 0.07873055304 | V38: 2045364.48 | W38: 0.2021990868 | X38: 0.01593763094 | Y38: 0.01364978006
B39: 30 | C39: 運輸・郵便 | D39: 0 | F39: =取引基本表!CU36+取引基本表!CU79 -> 1746463.22 | G39: =-取引基本表!DF36 -> 102095.98 | H39: =取引基本表!CU79 -> 179513.47 | I39: =取引基本表!DG36 -> 2276842.82 | J39: 1142804.58 | K39: 518761.71 | L39: =取引基本表!CO36+取引基本表!CO79 -> 426430.69 | M39: 139243 | N39: 132843 | O39: 0.05845870605 | P39: 0.1027868597 | Q39: 0.8387544342 | R39: 0.0651558737 | S39: 0.5019251087 | T39: 0.2278425658 | V39: 426430.69 | W39: 0.04215576097 | X39: 0.0611561759 | Y39: 0.05834526601
B40: 31 | C40: 情報通信 | D40: 0.04176891016 | E40: 0.004108355181 | F40: =取引基本表!CU37+取引基本表!CU80 -> 1700475.75 | G40: =-取引基本表!DF37 -> 71958.88 | H40: =取引基本表!CU80 -> 235600.71 | I40: =取引基本表!DG37 -> 1645359.26 | J40: 828237.7 | K40: 224502.9 | L40: =取引基本表!CO37+取引基本表!CO80 -> 508268.69 | M40: 44394 | N40: 41455 | O40: 0.04231691043 | P40: 0.1385498793 | Q40: 0.8191332102 | R40: 0.04912287945 | S40: 0.5033780282 | T40: 0.1364461279 | V40: 508268.69 | W40: 0.05024603975 | X40: 0.02698134145 | Y40: 0.02519510541
B41: 32 | C41: 公務 | D41: 0 | E41: 0 | F41: =取引基本表!CU38+取引基本表!CU81 -> 1339725.32 | G41: =-取引基本表!DF38 -> 0 | H41: =取引基本表!CU81 -> 0 | I41: =取引基本表!DG38 -> 1339725.32 | J41: 922691.26 | K41: 380175.57 | L41: =取引基本表!CO38+取引基本表!CO81 -> 33873.06 | M41: 72576 | N41: 72576 | O41: 0 | P41: 0 | Q41: 1 | R41: 0 | S41: 0.6887167438 | T41: 0.2837712808 | V41: 33873.06 | W41: 0.003348597214 | X41: 0.05417229854 | Y41: 0.05417229854
B42: 33 | C42: 教育・研究 | D42: 0 | E42: 1.379871704e-05 | F42: =取引基本表!CU39+取引基本表!CU82 -> 1580890.55 | G42: =-取引基本表!DF39 -> 63530.15 | H42: =取引基本表!CU82 -> 22678.45 | I42: =取引基本表!DG39 -> 1570033.29 | J42: 1178747.51 | K42: 662226.48 | L42: =取引基本表!CO39+取引基本表!CO82 -> 319458.21 | M42: 113971 | N42: 113789 | O42: 0.04018630512 | P42: 0.01434536376 | Q42: 0.9454683311 | R42: 0.04077118256 | S42: 0.750778673 | T42: 0.4217913621 | V42: =IF(L42<0,0,L42) -> 319458.21 | W42: 0.03158075686 | X42: =M42/$I42 -> 0.07259145441 | Y42: =N42/$I42 -> 0.07247553331
B43: 34 | C43: 医療・福祉 | D43: 0 | E43: 0 | F43: =取引基本表!CU40+取引基本表!CU83 -> 2916396.76 | G43: =-取引基本表!DF40 -> 111.76 | H43: =取引基本表!CU83 -> 32450.54 | I43: =取引基本表!DG40 -> 3004895.06 | J43: 1876168.35 | K43: 1302302.45 | L43: =取引基本表!CO40+取引基本表!CO83 -> 616587.88 | M43: 334669 | N43: 322116 | O43: 3.832126051e-05 | P43: 0.01112692911 | Q43: 0.9888347496 | R43: 3.875245635e-05 | S43: 0.6243706727 | T43: 0.433393654 | V43: 616587.88 | W43: 0.06095417589 | X43: 0.1113746049 | Y43: 0.1071970879
B44: 35 | C44: 他に分類されない会員制団体 | D44: 0 | E44: 0 | F44: =取引基本表!CU41+取引基本表!CU84 -> 155394 | G44: =-取引基本表!DF41 -> 4019.14 | H44: =取引基本表!CU84 -> 0.02 | I44: =取引基本表!DG41 -> 158754.88 | J44: 100682.69 | K44: 78107.96 | L44: =取引基本表!CO41+取引基本表!CO84 -> 113027 | M44: 20491 | N44: 18887 | O44: 0.02586419038 | P44: 1.28705098e-07 | Q44: 0.9741356809 | R44: 0.02586419371 | S44: 0.6342021738 | T44: 0.4920035214 | V44: 113027 | W44: 0.01117353724 | X44: 0.1290731976 | Y44: 0.1189695712
B45: 36 | C45: 対事業所サービス | D45: 0 | E45: 0 | F45: =取引基本表!CU42+取引基本表!CU85 -> 2536241.05 | G45: =-取引基本表!DF42 -> 118475.31 | H45: =取引基本表!CU85 -> 286639.12 | I45: =取引基本表!DG42 -> 2648168.84 | J45: 1626481.88 | K45: 752603 | L45: =取引基本表!CO42+取引基本表!CO85 -> 136803.51 | M45: 288475 | N45: 256189 | O45: 0.04671295341 | P45: 0.1130173017 | Q45: 0.8402697449 | R45: 0.05266501083 | S45: 0.6141911556 | T45: 0.2841975136 | V45: 136803.51 | W45: 0.01352401739 | X45: 0.1089337642 | Y45: 0.09674194339
B46: 37 | C46: 宿泊業 | D46: 0 | E46: 0 | F46: =取引基本表!CU43+取引基本表!CU86 -> 178141.67 | G46: =-取引基本表!DF43 -> 18712.95 | H46: =取引基本表!CU86 -> 147944.03 | I46: =取引基本表!DG43 -> 142603.64 | J46: 74698.26 | K46: 38075.58 | L46: =取引基本表!CO43+取引基本表!CO86 -> 115344.01 | M46: 16518 | N46: 16001 | O46: 0.1050453271 | P46: 0.8304852537 | Q46: 0.0644694192 | R46: 0.6196825315 | S46: 0.5238173444 | T46: 0.2670028619 | V46: 115344.01 | W46: 0.01140259045 | X46: 0.1158315454 | Y46: 0.112206112
B47: 38 | C47: 飲食サービス | D47: 0 | E47: 0 | F47: =取引基本表!CU44+取引基本表!CU87 -> 842790.27 | G47: =-取引基本表!DF44 -> 14000.66 | H47: =取引基本表!CU87 -> 41270.77 | I47: =取引基本表!DG44 -> 1099969.55 | J47: 445147.78 | K47: 274326.03 | L47: =取引基本表!CO44+取引基本表!CO87 -> 566643.19 | M47: 196321 | N47: 173446 | O47: 0.01661227057 | P47: 0.04896920559 | Q47: 0.9344185238 | R47: 0.01746764739 | S47: 0.4046910026 | T47: 0.2493942037 | V47: 566643.19 | W47: 0.0560167817 | X47: 0.178478577 | Y47: 0.1576825468
B48: 39 | C48: 娯楽サービス | D48: 0 | E48: 0 | F48: =取引基本表!CU45+取引基本表!CU88 -> 370675.68 | G48: =-取引基本表!DF45 -> 6628.68 | H48: =取引基本表!CU88 -> 47504.09 | I48: =取引基本表!DG45 -> 416968.27 | J48: 285838.25 | K48: 52118.16 | L48: =取引基本表!CO45+取引基本表!CO88 -> 323609.52 | M48: 29632 | N48: 27504 | O48: 0.01788269465 | P48: 0.1281553999 | Q48: 0.8539619055 | R48: 0.02051133269 | S48: 0.6855155909 | T48: 0.124993108 | V48: 323609.52 | W48: 0.03199114391 | X48: 0.07106535948 | Y48: 0.06596185364
B49: 40 | C49: その他の対個人サービス | D49: 7.884071969e-05 | E49: 2.79526188e-05 | F49: =取引基本表!CU46+取引基本表!CU89 -> 437085.36 | G49: =-取引基本表!DF46 -> 1107.06 | H49: =取引基本表!CU89 -> 8328.6 | I49: =取引基本表!DG46 -> 478448.84 | J49: 328396.22 | K49: 102278.04 | L49: =取引基本表!CO46+取引基本表!CO89 -> 370601.22 | M49: 95175 | N49: 63817 | O49: 0.002532823337 | P49: 0.01905485922 | Q49: 0.9784123174 | R49: 0.00258202343 | S49: 0.6863768757 | T49: 0.2137700658 | V49: 370601.22 | W49: 0.03663661366 | X49: 0.1989240898 | Y49: 0.133383122
B50: 41 | C50: 事務用品 | D50: 0 | E50: 0 | F50: =取引基本表!CU47+取引基本表!CU90 -> 52012.17 | G50: =-取引基本表!DF47 -> 0 | H50: =取引基本表!CU90 -> 0 | I50: =取引基本表!DG47 -> 52012.17 | J50: 0 | K50: 0 | L50: =取引基本表!CO47+取引基本表!CO90 -> 0 | M50: 0 | N50: 0 | O50: 0 | P50: 0 | Q50: 1 | R50: 0 | S50: 0 | T50: 0 | V50: 0 | W50: 0 | X50: 0 | Y50: 0
B51: 42 | C51: 分類不明 | D51: 0.02350512568 | E51: 0.03009789297 | F51: =取引基本表!CU48+取引基本表!CU91 -> 168557.42 | G51: =-取引基本表!DF48 -> 1586.09 | H51: =取引基本表!CU91 -> 0 | I51: =取引基本表!DG48 -> 172914.8 | J51: 72862.16 | K51: 1804.17 | L51: =取引基本表!CO48+取引基本表!CO91 -> 345.22 | M51: 392 | N51: 390 | O51: 0.009409790444 | P51: 0 | Q51: 0.9905902096 | R51: 0.009409790444 | S51: 0.4213760765 | T51: 0.01043386685 | V51: 345.22 | W51: 3.412749631e-05 | X51: 0.002267012425 | Y51: 0.002255446035
A52: 県外 | B52: 01 | C52: 農業 | F52: =取引基本表!DC7+取引基本表!DC50 -> 12403490.85 | G52: =-取引基本表!DF50 -> 2291462.87 | H52: =取引基本表!DC7 -> 128706.04 | I52: =取引基本表!DG50 -> 10240770.09 | J52: =TRANSPOSE(取引基本表!AV102:CK102) -> 4601799.72 | K52: =TRANSPOSE(取引基本表!AV95:CK95) -> 862647.67 | L52: =取引基本表!CW7+取引基本表!CW50 -> 3202073.83 | M52: 3421463 | N52: 407006 | O52: 0.1847433838 | P52: 0.01037659813 | Q52: 0.8048800181 | R52: 0.1866804922 | S52: 0.4493607101 | T52: 0.08423660159 | V52: 3202073.83 | W52: =V52/$V$95 -> 0.01083459865 | X52: 0.3341021202 | Y52: 0.0397436908
B53: 02 | C53: 林業 | F53: =取引基本表!DC8+取引基本表!DC51 -> 920664.43 | G53: =-取引基本表!DF51 -> 145001.4 | H53: =取引基本表!DC8 -> 9967.17 | I53: =取引基本表!DG51 -> 784100.99 | J53: 523267.27 | K53: 180376.52 | L53: =取引基本表!CW8+取引基本表!CW51 -> 167527.59 | M53: 184643 | N53: 50172 | O53: 0.1574964724 | P53: 0.01082606178 | Q53: 0.8316774658 | R53: 0.1592202001 | S53: 0.6673467789 | T53: 0.2300424592 | V53: 167527.59 | W53: =V53/$V$95 -> 0.0005668495785 | X53: 0.2354836971 | Y53: 0.0639866556
B54: 03 | C54: 漁業 | F54: =取引基本表!DC9+取引基本表!DC52 -> 1731657.12 | G54: =-取引基本表!DF52 -> 235091.75 | H54: =取引基本表!DC9 -> 19269.03 | I54: =取引基本表!DG52 -> 1566913.44 | J54: 864235.87 | K54: 248745.83 | L54: =取引基本表!CW9+取引基本表!CW52 -> 317659.87 | M54: 219280 | N54: 96544 | O54: 0.1357611431 | P54: 0.01112750889 | Q54: 0.853111348 | R54: 0.1372888257 | S54: 0.5515530392 | T54: 0.1587489287 | V54: 317659.87 | W54: 0.001074840051 | X54: 0.1399439142 | Y54: 0.06161412464
B55: 04 | C55: 鉱業 | F55: =取引基本表!DC10+取引基本表!DC53 -> 20671737.8 | G55: =-取引基本表!DF53 -> 19894533.62 | H55: =取引基本表!DC10 -> 13938.6 | I55: =取引基本表!DG53 -> 821116.37 | J55: 428209.8 | K55: 141268.4 | L55: =取引基本表!CW10+取引基本表!CW53 -> -5909.53 | M55: 37114 | N55: 36346 | O55: 0.9624025717 | P55: 0.0006742829333 | Q55: 0.03692314538 | R55: 0.9630519412 | S55: 0.521497093 | T55: 0.1720443108 | V55: 0 | W55: 0 | X55: 0.04519943988 | Y55: 0.04426412787
B56: 05 | C56: 飲食料品 | F56: =取引基本表!DC11+取引基本表!DC54 -> 43945351.73 | G56: =-取引基本表!DF54 -> 7603531.24 | H56: =取引基本表!DC11 -> 1127862.74 | I56: =取引基本表!DG54 -> 36753088.85 | J56: 13510658.65 | K56: 4073299.09 | L56: =取引基本表!CW11+取引基本表!CW54 -> 26886497.29 | M56: 1506857 | N56: 1421308 | O56: 0.1730224231 | P56: 0.02566512033 | Q56: 0.8013124566 | R56: 0.1775800361 | S56: 0.3676060727 | T56: 0.1108287553 | V56: 26886497.29 | W56: 0.09097366981 | X56: 0.04099946555 | Y56: 0.03867179724
B57: 06 | C57: 繊維製品 | F57: =取引基本表!DC12+取引基本表!DC55 -> 7832651.96 | G57: =-取引基本表!DF55 -> 5044455.32 | H57: =取引基本表!DC12 -> 29315.91 | I57: =取引基本表!DG55 -> 3538152.32 | J57: 1424657.95 | K57: 757372.66 | L57: =取引基本表!CW12+取引基本表!CW55 -> 4251113.64 | M57: 460336 | N57: 312475 | O57: 0.6440290397 | P57: 0.003742782157 | Q57: 0.3522281782 | R57: 0.6464485558 | S57: 0.4026559122 | T57: 0.2140588057 | V57: 4251113.64 | W57: 0.01438414995 | X57: 0.1301063262 | Y57: 0.08831586991
B58: 07 | C58: パルプ・紙・木製品 | F58: =取引基本表!DC13+取引基本表!DC56 -> 13528430.81 | G58: =-取引基本表!DF56 -> 2485682.49 | H58: =取引基本表!DC13 -> 131573.5 | I58: =取引基本表!DG56 -> 11738545.8 | J58: 4176059.48 | K58: 1622273.79 | L58: =取引基本表!CW13+取引基本表!CW56 -> 332632.98 | M58: 569233 | N58: 455473 | O58: 0.1837376799 | P58: 0.009725702992 | Q58: 0.8065366171 | R58: 0.1855422083 | S58: 0.3557561176 | T58: 0.1382005759 | V58: 332632.98 | W58: 0.001125503354 | X58: 0.04849263356 | Y58: 0.03880148425
B59: 08 | C59: 化学製品 | F59: =取引基本表!DC14+取引基本表!DC57 -> 28442927.92 | G59: =-取引基本表!DF57 -> 7503221.05 | H59: =取引基本表!DC14 -> 281920.32 | I59: =取引基本表!DG57 -> 27466178.64 | J59: 9184092.32 | K59: 2001823.46 | L59: =取引基本表!CW14+取引基本表!CW57 -> 2438123.42 | M59: 381115 | N59: 379289 | O59: 0.2637991796 | P59: 0.0099117897 | Q59: 0.7262890307 | R59: 0.2664400776 | S59: 0.3343782344 | T59: 0.07288321707 | V59: 2438123.42 | W59: 0.008249681339 | X59: 0.01387579266 | Y59: 0.0138093109
B60: 09 | C60: 石油・石炭製品 | F60: =取引基本表!DC15+取引基本表!DC58 -> 18126317.15 | G60: =-取引基本表!DF58 -> 3264954.52 | H60: =取引基本表!DC15 -> 64785.55 | I60: =取引基本表!DG58 -> 16713411.01 | J60: 5048993.05 | K60: 149569.82 | L60: =取引基本表!CW15+取引基本表!CW58 -> 4907236.9 | M60: 22765 | N60: 22760 | O60: 0.1801223322 | P60: 0.00357411544 | Q60: 0.8163035523 | R60: 0.1807684194 | S60: 0.3020923166 | T60: 0.00894909004 | V60: 4907236.9 | W60: 0.01660422124 | X60: 0.001362079828 | Y60: 0.001361780667
B61: 10 | C61: プラスチック・ゴム製品 | F61: =取引基本表!DC16+取引基本表!DC59 -> 13047133.2 | G61: =-取引基本表!DF59 -> 1872069.88 | H61: =取引基本表!DC16 -> 248512.27 | I61: =取引基本表!DG59 -> 13515714.75 | J61: 5176152.8 | K61: 2596161.85 | L61: =取引基本表!CW16+取引基本表!CW59 -> 864389.14 | M61: 711624 | N61: 672006 | O61: 0.1434851512 | P61: 0.01904727009 | Q61: 0.8374675787 | R61: 0.1462712186 | S61: 0.3829729242 | T61: 0.1920846879 | V61: 864389.14 | W61: 0.002924763734 | X61: 0.0526515995 | Y61: 0.04972034498
B62: 11 | C62: 窯業・土石製品 | F62: =取引基本表!DC17+取引基本表!DC60 -> 5912379.48 | G62: =-取引基本表!DF60 -> 713917.63 | H62: =取引基本表!DC17 -> 177025.48 | I62: =取引基本表!DG60 -> 6011792.49 | J62: 2926539.55 | K62: 1136577.54 | L62: =取引基本表!CW17+取引基本表!CW60 -> 130337.02 | M62: 323690 | N62: 285235 | O62: 0.1207496292 | P62: 0.02994149489 | Q62: 0.8493088759 | R62: 0.1244766461 | S62: 0.486799828 | T62: 0.1890580125 | V62: 130337.02 | W62: 0.0004410108499 | X62: 0.05384251046 | Y62: 0.04744591575
B63: 12 | C63: 鉄鋼 | F63: =取引基本表!DC18+取引基本表!DC61 -> 23466788.35 | G63: =-取引基本表!DF61 -> 998798.45 | H63: =取引基本表!DC18 -> 760727.05 | I63: =取引基本表!DG61 -> 25480552.91 | J63: 6731478.38 | K63: 1288958.82 | L63: =取引基本表!CW18+取引基本表!CW61 -> -33401.12 | M63: 252930 | N63: 241715 | O63: 0.04256221325 | P63: 0.03241717779 | Q63: 0.925020609 | R63: 0.0439881861 | S63: 0.2641810169 | T63: 0.05058598314 | V63: 0 | W63: 0 | X63: 0.009926393705 | Y63: 0.009486254119
B64: 13 | C64: 非鉄金属 | F64: =取引基本表!DC19+取引基本表!DC62 -> 9842601.89 | G64: =-取引基本表!DF62 -> 3575285.86 | H64: =取引基本表!DC19 -> 69989.19 | I64: =取引基本表!DG62 -> 8689772.3 | J64: 2134213.74 | K64: 709494.28 | L64: =取引基本表!CW19+取引基本表!CW62 -> 163050.51 | M64: 147971 | N64: 138998 | O64: 0.3632460095 | P64: 0.007110842314 | Q64: 0.6296431481 | R64: 0.3658474934 | S64: 0.2456006517 | T64: 0.08164705075 | V64: 163050.51 | W64: 0.0005517008444 | X64: 0.01702817921 | Y64: 0.01599558598
B65: 14 | C65: 金属製品 | F65: =取引基本表!DC20+取引基本表!DC63 -> 11777203.41 | G65: =-取引基本表!DF63 -> 1202314.1 | H65: =取引基本表!DC20 -> 187150.95 | I65: =取引基本表!DG63 -> 11397169.99 | J65: 5116969.1 | K65: 2773986.55 | L65: =取引基本表!CW20+取引基本表!CW63 -> 269797.66 | M65: 881625 | N65: 768865 | O65: 0.1020882512 | P65: 0.01589094996 | Q65: 0.8820207989 | R65: 0.1037367263 | S65: 0.4489683934 | T65: 0.2433925749 | V65: 269797.66 | W65: 0.0009128925561 | X65: 0.07735472936 | Y65: 0.06746104521
B66: 15 | C66: はん用機械 | F66: =取引基本表!DC21+取引基本表!DC64 -> 8399735.6 | G66: =-取引基本表!DF64 -> 1500950.21 | H66: =取引基本表!DC21 -> 101712.67 | I66: =取引基本表!DG64 -> 10329210.94 | J66: 4563244.36 | K66: 1968602.03 | L66: =取引基本表!CW21+取引基本表!CW64 -> 12834.13 | M66: 414092 | N66: 395325 | O66: 0.1786901733 | P66: 0.01210903234 | Q66: 0.8092007944 | R66: 0.1808804606 | S66: 0.4417805374 | T66: 0.1905859065 | V66: 12834.13 | W66: 4.342580933e-05 | X66: 0.04008941268 | Y66: 0.03827252656
B67: 16 | C67: 生産用機械 | F67: =取引基本表!DC22+取引基本表!DC65 -> 11962556.97 | G67: =-取引基本表!DF65 -> 1972019.68 | H67: =取引基本表!DC22 -> 222704.08 | I67: =取引基本表!DG65 -> 16365145 | J67: 7565266.61 | K67: 3276059.79 | L67: =取引基本表!CW22+取引基本表!CW65 -> 7591.61 | M67: 776107 | N67: 721083 | O67: 0.1648493449 | P67: 0.01861676233 | Q67: 0.8165338928 | R67: 0.1679765239 | S67: 0.4622792288 | T67: 0.2001851979 | V67: 7591.61 | W67: 2.568711774e-05 | X67: 0.04742438885 | Y67: 0.04406212105
B68: 17 | C68: 業務用機械 | F68: =取引基本表!DC23+取引基本表!DC66 -> 6754719.53 | G68: =-取引基本表!DF66 -> 2072646.33 | H68: =取引基本表!DC23 -> 16374.52 | I68: =取引基本表!DG66 -> 6877477.87 | J68: 2853772.46 | K68: 1163441.61 | L68: =取引基本表!CW23+取引基本表!CW66 -> 97814.85 | M68: 257715 | N68: 247959 | O68: 0.3068441733 | P68: 0.002424159867 | Q68: 0.6907316668 | R68: 0.3075898202 | S68: 0.4149446227 | T68: 0.1691668998 | V68: 97814.85 | W68: 0.0003309682094 | X68: 0.03747231251 | Y68: 0.03605376923
B69: 18 | C69: 電子部品 | F69: =取引基本表!DC24+取引基本表!DC67 -> 10752312.53 | G69: =-取引基本表!DF67 -> 4058699.07 | H69: =取引基本表!DC24 -> 142935.35 | I69: =取引基本表!DG67 -> 13263153.31 | J69: 5009092.66 | K69: 2274472.28 | L69: =取引基本表!CW24+取引基本表!CW67 -> 151129.61 | M69: 468276 | N69: 459769 | O69: 0.3774722004 | P69: 0.01329345195 | Q69: 0.6092343477 | R69: 0.382557713 | S69: 0.3776698152 | T69: 0.1714880486 | V69: 151129.61 | W69: 0.0005113650577 | X69: 0.03530653601 | Y69: 0.034665135
B70: 19 | C70: 電気機械 | F70: =取引基本表!DC25+取引基本表!DC68 -> 14121558.72 | G70: =-取引基本表!DF68 -> 4601920.26 | H70: =取引基本表!DC25 -> 134374.78 | I70: =取引基本表!DG68 -> 15789116.88 | J70: 5715796.77 | K70: 2475873.57 | L70: =取引基本表!CW25+取引基本表!CW68 -> 3028188.82 | M70: 537879 | N70: 521768 | O70: 0.3258790585 | P70: 0.009515577045 | Q70: 0.6646053645 | R70: 0.3290097764 | S70: 0.3620086426 | T70: 0.1568088696 | V70: 3028188.82 | W70: 0.01024623799 | X70: 0.03406643982 | Y70: 0.03304605343
B71: 20 | C71: 情報通信機器 | F71: =取引基本表!DC26+取引基本表!DC69 -> 9835420.64 | G71: =-取引基本表!DF69 -> 6227440.26 | H71: =取引基本表!DC26 -> 5493.95 | I71: =取引基本表!DG69 -> 5447315.32 | J71: 1923177.59 | K71: 870465.13 | L71: =取引基本表!CW26+取引基本表!CW69 -> 3314586.41 | M71: 159186 | N71: 157405 | O71: 0.6331646086 | P71: 0.000558588209 | Q71: 0.3662768032 | R71: 0.6335184846 | S71: 0.3530505354 | T71: 0.1597970888 | V71: 3314586.41 | W71: 0.01121529838 | X71: 0.02922283559 | Y71: 0.02889588554
B72: 21 | C72: 輸送機械 | F72: =取引基本表!DC27+取引基本表!DC70 -> 39141584.93 | G72: =-取引基本表!DF70 -> 4377870.05 | H72: =取引基本表!DC27 -> 927002.09 | I72: =取引基本表!DG70 -> 52231137.35 | J72: 12903550.97 | K72: 5753230.96 | L72: =取引基本表!CW27+取引基本表!CW70 -> 5700546.18 | M72: 1053142 | N72: 1034303 | O72: 0.1118470307 | P72: 0.0236833049 | Q72: 0.8644696644 | R72: 0.1145601947 | S72: 0.2470470992 | T72: 0.1101494482 | V72: 5700546.18 | W72: 0.01928847779 | X72: 0.02016310679 | Y72: 0.01980242155
B73: 22 | C73: その他の製造工業製品 | F73: =取引基本表!DC28+取引基本表!DC71 -> 12191348.36 | G73: =-取引基本表!DF71 -> 3376796.22 | H73: =取引基本表!DC28 -> 186354.91 | I73: =取引基本表!DG71 -> 9647865.9 | J73: 4484336.58 | K73: 2083970.03 | L73: =取引基本表!CW28+取引基本表!CW71 -> 2967035.72 | M73: 767935 | N73: 611411 | O73: 0.2769829981 | P73: 0.01528583258 | Q73: 0.7077311693 | R73: 0.2812826374 | S73: 0.464800882 | T73: 0.2160032127 | V73: 2967035.72 | W73: 0.01003931918 | X73: 0.07959635923 | Y73: 0.06337266773
B74: 23 | C74: 建設 | F74: =取引基本表!DC29+取引基本表!DC72 -> 58848276.12 | G74: =-取引基本表!DF72 -> 0 | H74: =取引基本表!DC29 -> 0 | I74: =取引基本表!DG72 -> 58848276.12 | J74: 27510952.18 | K74: 17568006.61 | L74: =取引基本表!CW29+取引基本表!CW72 -> 0 | M74: 4806253 | N74: 4152416 | O74: 0 | P74: 0 | Q74: 1 | R74: 0 | S74: 0.467489517 | T74: 0.2985305224 | V74: 0 | W74: 0 | X74: 0.0816719421 | Y74: 0.07056138724
B75: 24 | C75: 電力・ガス・熱供給 | F75: =取引基本表!DC30+取引基本表!DC73 -> 23682834.06 | G75: =-取引基本表!DF73 -> 1724.69 | H75: =取引基本表!DC30 -> 1798.18 | I75: =取引基本表!DG73 -> 23919297.71 | J75: 8537691.82 | K75: 1466276.66 | L75: =取引基本表!CW30+取引基本表!CW73 -> 6632182.85 | M75: 220469 | N75: 220469 | O75: =G75/F75 -> 7.282447682e-05 | P75: =H75/F75 -> 7.592756827e-05 | Q75: =1-O75-P75 -> 0.999851248 | R75: =O75/(O75+Q75) -> 7.283000662e-05 | S75: =J75/I75 -> 0.3569373952 | T75: =K75/I75 -> 0.06130099127 | V75: =IF(L75<0,0,L75) -> 6632182.85 | W75: 0.02244078156 | X75: =M75/$I75 -> 0.009217202055 | Y75: =N75/$I75 -> 0.009217202055
B76: 25 | C76: 水道 | F76: =取引基本表!DC31+取引基本表!DC74 -> 4348271.43 | G76: =-取引基本表!DF74 -> 1485.97 | H76: =取引基本表!DC31 -> 7441.54 | I76: =取引基本表!DG74 -> 4369668.33 | J76: 2175510.67 | K76: 493815.66 | L76: =取引基本表!CW31+取引基本表!CW74 -> 1830664.23 | M76: 93613 | N76: 93613 | O76: 0.0003417380961 | P76: 0.001711378905 | Q76: 0.997946883 | R76: 0.0003423239421 | S76: 0.4978663152 | T76: 0.1130098723 | V76: 1830664.23 | W76: 0.00619427073 | X76: 0.0214233651 | Y76: 0.0214233651
B77: 26 | C77: 廃棄物処理 | F77: =取引基本表!DC32+取引基本表!DC75 -> 4727752.82 | G77: =-取引基本表!DF75 -> 296.42 | H77: =取引基本表!DC32 -> 12119.19 | I77: =取引基本表!DG75 -> 4724259.4 | J77: 3127871.15 | K77: 1993721 | L77: =取引基本表!CW32+取引基本表!CW75 -> 275413.92 | M77: 480496 | N77: 465100 | O77: 6.269786329e-05 | P77: 0.002563414472 | Q77: 0.9973738877 | R77: 6.285899696e-05 | S77: 0.6620870882 | T77: 0.4220176818 | V77: 275413.92 | W77: 0.0009318958416 | X77: 0.101708217 | Y77: 0.09844929345
B78: 27 | C78: 商業 | F78: =取引基本表!DC33+取引基本表!DC76 -> 87030300.97 | G78: =-取引基本表!DF76 -> 183565.74 | H78: =取引基本表!DC33 -> 2168435.29 | I78: =取引基本表!DG76 -> 91318905.54 | J78: 63737424.23 | K78: 30487947.16 | L78: =取引基本表!CW33+取引基本表!CW76 -> 46564418.37 | M78: 10460542 | N78: 9543947 | O78: 0.002109216422 | P78: 0.02491586569 | Q78: 0.9729749179 | R78: 0.002163112236 | S78: 0.6979652664 | T78: 0.3338623802 | V78: 46564418.37 | W78: 0.1575562624 | X78: 0.114549577 | Y78: 0.1045122797
B79: 28 | C79: 金融・保険 | F79: =取引基本表!DC34+取引基本表!DC77 -> 34013817.62 | G79: =-取引基本表!DF77 -> 1355581.13 | H79: =取引基本表!DC34 -> 8114.87 | I79: =取引基本表!DG77 -> 34450743.6 | J79: 23235669.51 | K79: 8238813.03 | L79: =取引基本表!CW34+取引基本表!CW77 -> 17266628.11 | M79: 1762993 | N79: 1700818 | O79: 0.03985383661 | P79: 0.0002385756898 | Q79: 0.9599075877 | R79: 0.03986334704 | S79: 0.674460609 | T79: 0.239147611 | V79: 17266628.11 | W79: 0.05842369526 | X79: 0.05117430905 | Y79: 0.04936955846
B80: 29 | C80: 不動産 | F80: =取引基本表!DC35+取引基本表!DC78 -> 78078199.28 | G80: =-取引基本表!DF78 -> 1731.04 | H80: =取引基本表!DC35 -> 91865.95 | I80: =取引基本表!DG78 -> 78054870.77 | J80: 65664672.65 | K80: 3997290.12 | L80: =取引基本表!CW35+取引基本表!CW78 -> 63868724.52 | M80: 918510 | N80: 698620 | O80: 2.217059328e-05 | P80: 0.001176588995 | Q80: 0.9988012404 | R80: 2.219670968e-05 | S80: 0.8412629731 | T80: 0.05121128356 | V80: 63868724.52 | W80: 0.2161074458 | X80: 0.01176749114 | Y80: 0.008950370337
B81: 30 | C81: 運輸・郵便 | F81: =取引基本表!DC36+取引基本表!DC79 -> 49568425.78 | G81: =-取引基本表!DF79 -> 3507270.02 | H81: =取引基本表!DC36 -> 583985.08 | I81: =取引基本表!DG79 -> 52732575.18 | J81: 27198269.42 | K81: 12553994.29 | L81: =取引基本表!CW36+取引基本表!CW79 -> 14628835.31 | M81: 3429971 | N81: 3228178 | O81: 0.07075613084 | P81: 0.01178139251 | Q81: 0.9174624767 | R81: 0.07159967471 | S81: 0.5157773791 | T81: 0.238069054 | V81: 14628835.31 | W81: 0.04949840877 | X81: 0.06504463301 | Y81: 0.06121790921
B82: 31 | C82: 情報通信 | F82: =取引基本表!DC37+取引基本表!DC80 -> 49832553.25 | G82: =-取引基本表!DF80 -> 2249706.12 | H82: =取引基本表!DC37 -> 225984.59 | I82: =取引基本表!DG80 -> 48329151.74 | J82: 24975543.3 | K82: 8741247.1 | L82: =取引基本表!CW37+取引基本表!CW80 -> 12753272.31 | M82: 1700476 | N82: 1605195 | O82: 0.04514531111 | P82: 0.004534878814 | Q82: 0.9503198101 | R82: 0.04535097228 | S82: 0.5167800882 | T82: 0.1808690363 | V82: 12753272.31 | W82: 0.04315221769 | X82: 0.03518530615 | Y82: 0.03321380455
B83: 32 | C83: 公務 | F83: =取引基本表!DC38+取引基本表!DC81 -> 38399309.68 | G83: =-取引基本表!DF81 -> 0 | H83: =取引基本表!DC38 -> 0 | I83: =取引基本表!DG81 -> 38399309.68 | J83: 27224369.74 | K83: 10297335.43 | L83: =取引基本表!CW38+取引基本表!CW81 -> 1133869.94 | M83: 1956012 | N83: 1956012 | O83: 0 | P83: 0 | Q83: 1 | R83: 0 | S83: 0.7089807074 | T83: 0.2681645976 | V83: 1133869.94 | W83: 0.003836584157 | X83: 0.05093872823 | Y83: 0.05093872823
B84: 33 | C84: 教育・研究 | F84: =取引基本表!DC39+取引基本表!DC82 -> 43419945.45 | G84: =-取引基本表!DF82 -> 1984213.85 | H84: =取引基本表!DC39 -> 46736.58 | I84: =取引基本表!DG82 -> 42110480.71 | J84: 30780551.49 | K84: 17135470.52 | L84: =取引基本表!CW39+取引基本表!CW82 -> 8866920.79 | M84: 3366471 | N84: 3357483 | O84: 0.04569821149 | P84: 0.001076385046 | Q84: 0.9532254035 | R84: 0.04574745336 | S84: 0.7309475212 | T84: 0.406917001 | V84: 8866920.79 | W84: 0.03000228388 | X84: 0.07994377987 | Y84: 0.07973034132
B85: 34 | C85: 医療・福祉 | F85: =取引基本表!DC40+取引基本表!DC83 -> 64673736.24 | G85: =-取引基本表!DF83 -> 3457.24 | H85: =取引基本表!DC40 -> 121051.1 | I85: =取引基本表!DG83 -> 64581909.94 | J85: 40047499.65 | K85: 27895544.55 | L85: =取引基本表!CW40+取引基本表!CW83 -> 15071977.12 | M85: 7359474 | N85: 7072610 | O85: 5.345663017e-05 | P85: 0.001871719604 | Q85: 0.9980748238 | R85: 5.355687362e-05 | S85: 0.620103984 | T85: 0.4319405322 | V85: 15071977.12 | W85: 0.05099783193 | X85: 0.1139556573 | Y85: 0.1095137943
B86: 35 | C86: 他に分類されない会員制団体 | F86: =取引基本表!DC41+取引基本表!DC84 -> 4370167 | G86: =-取引基本表!DF84 -> 124324.86 | H86: =取引基本表!DC41 -> 6019.91 | I86: =取引基本表!DG84 -> 4273038.12 | J86: 2560125.31 | K86: 1910262.04 | L86: =取引基本表!CW41+取引基本表!CW84 -> 3190162 | M86: 555084 | N86: 517423 | O86: 0.02844853755 | P86: 0.001377501134 | Q86: 0.9701739613 | R86: 0.0284877795 | S86: 0.5991346761 | T86: 0.4470500815 | V86: 3190162 | W86: 0.01079429356 | X86: 0.1299038259 | Y86: 0.1210901905
B87: 36 | C87: 対事業所サービス | F87: =取引基本表!DC42+取引基本表!DC85 -> 72910885.95 | G87: =-取引基本表!DF85 -> 3664819.69 | H87: =取引基本表!DC42 -> 394122.33 | I87: =取引基本表!DG85 -> 72140436.16 | J87: 45145165.12 | K87: 21760843 | L87: =取引基本表!CW42+取引基本表!CW85 -> 3932201.49 | M87: 7123329 | N87: 6175766 | O87: 0.0502643692 | P87: 0.005405534782 | Q87: 0.944330096 | R87: 0.05053755169 | S87: 0.6257955666 | T87: 0.3016455702 | V87: 3932201.49 | W87: 0.01330507266 | X87: 0.09874252748 | Y87: 0.08560755006
B88: 37 | C88: 宿泊業 | F88: =取引基本表!DC43+取引基本表!DC86 -> 4701065.33 | G88: =-取引基本表!DF86 -> 578851.05 | H88: =取引基本表!DC43 -> 99874.7 | I88: =取引基本表!DG86 -> 4933306.36 | J88: 2387401.74 | K88: 1038979.42 | L88: =取引基本表!CW43+取引基本表!CW86 -> 2929758.99 | M88: 479026 | N88: 452124 | O88: 0.1231318881 | P88: 0.02124512062 | Q88: 0.8556229913 | R88: 0.1258046224 | S88: 0.4839354311 | T88: 0.210605088 | V88: 2929758.99 | W88: 0.009913188918 | X88: 0.09710039577 | Y88: 0.09164725784
B89: 38 | C89: 飲食サービス | F89: =取引基本表!DC44+取引基本表!DC87 -> 26634669.73 | G89: =-取引基本表!DF87 -> 433085.34 | H89: =取引基本表!DC44 -> 291842.77 | I89: =取引基本表!DG87 -> 26454283.45 | J89: 10651124.22 | K89: 6776691.97 | L89: =取引基本表!CW44+取引基本表!CW87 -> 18937115.81 | M89: 4836597 | N89: 4272203 | O89: 0.01626021063 | P89: 0.01095725132 | Q89: 0.972782538 | R89: 0.0164403517 | S89: 0.4026238034 | T89: 0.256166151 | V89: 18937115.81 | W89: 0.0640759896 | X89: 0.1828285014 | Y89: 0.161493809
B90: 39 | C90: 娯楽サービス | F90: =取引基本表!DC45+取引基本表!DC88 -> 9362010.32 | G90: =-取引基本表!DF88 -> 205046.32 | H90: =取引基本表!DC45 -> 95777.59 | I90: =取引基本表!DG88 -> 9222194.73 | J90: 6499219.75 | K90: 1899252.84 | L90: =取引基本表!CW45+取引基本表!CW88 -> 7951052.48 | M90: 780412 | N90: 717722 | O90: 0.02190195407 | P90: 0.01023045123 | Q90: 0.9678675947 | R90: 0.02212833694 | S90: 0.7047367726 | T90: 0.205943693 | V90: 7951052.48 | W90: 0.02690333423 | X90: 0.08462324022 | Y90: 0.07782550911
B91: 40 | C91: その他の対個人サービス | F91: =取引基本表!DC46+取引基本表!DC89 -> 12071872.64 | G91: =-取引基本表!DF89 -> 17751.94 | H91: =取引基本表!DC46 -> 48727.07 | I91: =取引基本表!DG89 -> 12058314.16 | J91: 8487611.78 | K91: 3027273.96 | L91: =取引基本表!CW46+取引基本表!CW89 -> 10488463.78 | M91: 2199837 | N91: 1493521 | O91: 0.001470520816 | P91: 0.004036413525 | Q91: 0.9944930657 | R91: 0.001476480501 | S91: 0.7038804652 | T91: 0.2510528354 | V91: 10488463.78 | W91: 0.03548896795 | X91: 0.1824332134 | Y91: 0.1238581928
B92: 41 | C92: 事務用品 | F92: =取引基本表!DC47+取引基本表!DC90 -> 1411390.83 | G92: =-取引基本表!DF90 -> 0 | H92: =取引基本表!DC47 -> 0 | I92: =取引基本表!DG90 -> 1411390.83 | J92: 0 | K92: 0 | L92: =取引基本表!CW47+取引基本表!CW90 -> 0 | M92: 0 | N92: 0 | O92: 0 | P92: 0 | Q92: 1 | R92: 0 | S92: 0 | T92: 0 | V92: 0 | W92: 0 | X92: 0 | Y92: 0
B93: 42 | C93: 分類不明 | F93: =取引基本表!DC48+取引基本表!DC91 -> 4569783.58 | G93: =-取引基本表!DF91 -> 49061.91 | H93: =取引基本表!DC48 -> 5735.21 | I93: =取引基本表!DG91 -> 4520073.2 | J93: 1859503.84 | K93: 47975.83 | L93: =取引基本表!CW48+取引基本表!CW91 -> 9697.78 | M93: 10424 | N93: 10378 | O93: 0.01073615613 | P93: 0.001255028799 | Q93: 0.9880088151 | R93: 0.01074964725 | S93: 0.4113879926 | T93: 0.01061394979 | V93: 9697.78 | W93: 3.281359509e-05 | X93: 0.002306157343 | Y93: 0.002295980516
C94: 福岡県 | F94: =SUM(F10:F51) -> 35753255.54 | G94: =SUM(G10:G51) -> 2787491.41 | H94: 9271495.12 | I94: 36298199.75 | J94: 19566970.75 | K94: 8162508.13 | L94: 10114197.67 | M94: 2470067 | N94: 2200831 | U94: =入力シートその１!D38 -> 0.473096285 | V94: =SUM(V10:V51) -> 10115597.02 | W94: 1
C95: 県外 | F95: =SUM(F52:F93) -> 997463841.5 | G95: =SUM(G52:G93) -> 99380635.59 | H95: 9197328.1 | I95: 981520188.3 | J95: 528671743.2 | K95: 215739412.9 | L95: 295502216.3 | M95: 66094967 | N95: 57170813 | U95: =入力シートその１!D39 -> 0.4834029945 | V95: =SUM(V52:V93) -> 295541527 | W95: 1
C96: 合計 | F96: =SUM(F94:F95) -> 1033217097 | G96: =SUM(G94:G95) -> 102168127 | H96: 18468823.22 | I96: 1017818388 | J96: 548238714 | K96: 223901921 | L96: 305616414 | M96: 68565034 | N96: 59371644 | V96: =SUM(V94:V95) -> 305657124 | W96: 2
O97: （注）民間消費支出におけるマイナス値は屑・副産物発生額であるため、民間消費の構成比算出の際はゼロに置き換えた

Sheet 取引基本表
A1: 平成27年（2015年）福岡県地域間産業連関表（42部門表）
A2: 取引基本表 | DG2: （単位：百万円）
E3: 内生部門 | CN3: 最終需要部門
E4: 福岡県 | AV4: 県外 | CN4: 福岡県 | CV4: 県外
E5: 01 | F5: 02 | G5: 03 | H5: 04 | I5: 05 | J5: 06 | K5: 07 | L5: 08 | M5: 09 | N5: 10 | O5: 11 | P5: 12 | Q5: 13 | R5: 14 | S5: 15 | T5: 16 | U5: 17 | V5: 18 | W5: 19 | X5: 20 | Y5: 21 | Z5: 22 | AA5: 23 | AB5: 24 | AC5: 25 | AD5: 26 | AE5: 27 | AF5: 28 | AG5: 29 | AH5: 30 | AI5: 31 | AJ5: 32 | AK5: 33 | AL5: 34 | AM5: 35 | AN5: 36 | AO5: 37 | AP5: 38 | AQ5: 39 | AR5: 40 | AS5: 41 | AT5: 42 | AU5: a | AV5: 01 | AW5: 02 | AX5: 03 | AY5: 04 | AZ5: 05 | BA5: 06 | BB5: 07 | BC5: 08 | BD5: 09 | BE5: 10 | BF5: 11 | BG5: 12 | BH5: 13 | BI5: 14 | BJ5: 15 | BK5: 16 | BL5: 17 | BM5: 18 | BN5: 19 | BO5: 20 | BP5: 21 | BQ5: 22 | BR5: 23 | BS5: 24 | BT5: 25 | BU5: 26 | BV5: 27 | BW5: 28 | BX5: 29 | BY5: 30 | BZ5: 31 | CA5: 32 | CB5: 33 | CC5: 34 | CD5: 35 | CE5: 36 | CF5: 37 | CG5: 38 | CH5: 39 | CI5: 40 | CJ5: 41 | CK5: 42 | CL5: b | CM5: c | CN5: 71 | CO5: 72 | CP5: 73 | CQ5: 74 | CR5: 75 | CS5: 76 | CT5: d | CU5: e | CV5: 71 | CW5: 72 | CX5: 73 | CY5: 74 | CZ5: 75 | DA5: 76 | DB5: f | DC5: g | DD5: h | DE5: 80 | DF5: 84 | DG5: i
E6: 農業 | F6: 林業 | G6: 漁業 | H6: 鉱業 | I6: 飲食料品 | J6: 繊維製品 | K6: パルプ・紙・木製品 | L6: 化学製品 | M6: 石油・石炭製品 | N6: プラスチック・ゴム製品 | O6: 窯業・土石製品 | P6: 鉄鋼 | Q6: 非鉄金属 | R6: 金属製品 | S6: はん用機械 | T6: 生産用機械 | U6: 業務用機械 | V6: 電子部品 | W6: 電気機械 | X6: 情報通信機器 | Y6: 輸送機械 | Z6: その他の製造工業製品 | AA6: 建設 | AB6: 電力・ガス・熱供給 | AC6: 水道 | AD6: 廃棄物処理 | AE6: 商業 | AF6: 金融・保険 | AG6: 不動産 | AH6: 運輸・郵便 | AI6: 情報通信 | AJ6: 公務 | AK6: 教育・研究 | AL6: 医療・福祉 | AM6: 他に分類されない会員制団体 | AN6: 対事業所サービス | AO6: 宿泊業 | AP6: 飲食サービス | AQ6: 娯楽サービス | AR6: その他の対個人サービス | AS6: 事務用品 | AT6: 分類不明 | AU6: 域内内生部門計 | AV6: 農業 | AW6: 林業 | AX6: 漁業 | AY6: 鉱業 | AZ6: 飲食料品 | BA6: 繊維製品 | BB6: パルプ・紙・木製品 | BC6: 化学製品 | BD6: 石油・石炭製品 | BE6: プラスチック・ゴム製品 | BF6: 窯業・土石製品 | BG6: 鉄鋼 | BH6: 非鉄金属 | BI6: 金属製品 | BJ6: はん用機械 | BK6: 生産用機械 | BL6: 業務用機械 | BM6: 電子部品 | BN6: 電気機械 | BO6: 情報通信機器 | BP6: 輸送機械 | BQ6: その他の製造工業製品 | BR6: 建設 | BS6: 電力・ガス・熱供給 | BT6: 水道 | BU6: 廃棄物処理 | BV6: 商業 | BW6: 金融・保険 | BX6: 不動産 | BY6: 運輸・郵便 | BZ6: 情報通信 | CA6: 公務 | CB6: 教育・研究 | CC6: 医療・福祉 | CD6: 他に分類されない会員制団体 | CE6: 対事業所サービス | CF6: 宿泊業 | CG6: 飲食サービス | CH6: 娯楽サービス | CI6: その他の対個人サービス | CJ6: 事務用品 | CK6: 分類不明 | CL6: 域内内生部門計 | CM6: 内生部門総計 (a+b) | CN6: 家計外消費支出（列） | CO6: 民間消費支出 | CP6: 一般政府消費支出 | CQ6: 域内総固定資本形成（公的） | CR6: 域内総固定資本形成（民間） | CS6: 在庫純増 | CT6: 域内最終需要計 | CU6: 域内需要合計 (a+d) | CV6: 家計外消費支出（列） | CW6: 民間消費支出 | CX6: 一般政府消費支出 | CY6: 域内総固定資本形成（公的） | CZ6: 域内総固定資本形成（民間） | DA6: 在庫純増 | DB6: 域内最終需要計 | DC6: 域内需要合計 (b+f) | DD6: 最終需要総計 (d+f) | DE6: 輸出 | DF6: （控除）輸入 | DG6: 域内生産額
A7: 内生部門 | B7: 福岡県 | C7: 01 | D7: 農業 | E7: 12939.65 | F7: 45.73 | G7: 0 | H7: 0 | I7: 123851.02 | J7: 140.54 | K7: 3.82 | L7: 327.83 | M7: 0 | N7: 11776.12 | O7: 16.49 | P7: 0 | Q7: 0.36 | R7: 0 | S7: 0 | T7: 0 | U7: 0 | V7: 0 | W7: 0 | X7: 0 | Y7: 0 | Z7: 361.58 | AA7: 954.1 | AB7: 0 | AC7: 0 | AD7: 0 | AE7: 216.22 | AF7: 0 | AG7: 2.58 | AH7: 40.88 | AI7: 0 | AJ7: 29.13 | AK7: 1836.83 | AL7: 3679.48 | AM7: 145.44 | AN7: 17.72 | AO7: 875.31 | AP7: 16937.05 | AQ7: 949.44 | AR7: 1026.7 | AS7: 0 | AT7: 0 | AU7: 176174.02 | AV7: 14213.94 | AW7: 18.18 | AX7: 0 | AY7: 0 | AZ7: 63808.99 | BA7: 301.4 | BB7: 34.39 | BC7: 352.99 | BD7: 0 | BE7: 1381.12 | BF7: 9.21 | BG7: 0 | BH7: 1.19 | BI7: 0 | BJ7: 0 | BK7: 0 | BL7: 0 | BM7: 0 | BN7: 0 | BO7: 0 | BP7: 0 | BQ7: 194.46 | BR7: 613.48 | BS7: 0 | BT7: 0 | BU7: 0 | BV7: 113.17 | BW7: 0 | BX7: 1.82 | BY7: 20.49 | BZ7: 0 | CA7: 13.13 | CB7: 879.53 | CC7: 1522.13 | CD7: 92.51 | CE7: 8.62 | CF7: 659.63 | CG7: 8008.91 | CH7: 400.4 | CI7: 435.64 | CJ7: 0 | CK7: 0 | CL7: 93085.33 | CM7: 269259.35 | CN7: 895.81 | CO7: 60290.68 | CP7: 0 | CQ7: 0 | CR7: 972.37 | CS7: -1850.83 | CT7: 60308.03 | CU7: 236482.05 | CV7: 503.8 | CW7: 33164.84 | CX7: 0 | CY7: 0 | CZ7: 1983.96 | DA7: -31.89 | DB7: 35620.71 | DC7: 128706.04 | DD7: 95928.74 | DE7: 2452.95 | DF7: -118521.13 | DG7: 249119.91
C8: 02 | D8: 林業 | E8: 22.62 | F8: 796.84 | G8: 3.55 | H8: 0.71 | I8: 211.33 | J8: 0.07 | K8: 2646.36 | L8: 30.68 | M8: 0 | N8: 0 | O8: 0.01 | P8: 0.04 | Q8: 0 | R8: 0 | S8: 0 | T8: 0 | U8: 0 | V8: 0 | W8: 0 | X8: 0 | Y8: 0.03 | Z8: 23.13 | AA8: 29.84 | AB8: 0 | AC8: 0 | AD8: 0 | AE8: 0 | AF8: 0 | AG8: 0 | AH8: 0 | AI8: 0 | AJ8: 3.16 | AK8: 43.99 | AL8: 83.72 | AM8: 0 | AN8: 0 | AO8: 64.3 | AP8: 965.87 | AQ8: 0 | AR8: 20.18 | AS8: 0 | AT8: 0 | AU8: 4946.43 | AV8: 23.05 | AW8: 1464.18 | AX8: 3.57 | AY8: 0.9 | AZ8: 196.19 | BA8: 0.45 | BB8: 5178.98 | BC8: 84.18 | BD8: 0 | BE8: 0 | BF8: 0.02 | BG8: 0.03 | BH8: 0 | BI8: 0 | BJ8: 0 | BK8: 0 | BL8: 0 | BM8: 0 | BN8: 0 | BO8: 0 | BP8: 0.2 | BQ8: 40.89 | BR8: 34.32 | BS8: 0 | BT8: 0 | BU8: 0 | BV8: 0 | BW8: 0 | BX8: 0 | BY8: 0 | BZ8: 0 | CA8: 2.2 | CB8: 27.76 | CC8: 57.65 | CD8: 0 | CE8: 0 | CF8: 75.02 | CG8: 726.23 | CH8: 0 | CI8: 12.75 | CJ8: 0 | CK8: 0 | CL8: 7928.57 | CM8: 12875 | CN8: 50.49 | CO8: 3142.14 | CP8: 0 | CQ8: 0 | CR8: 0 | CS8: 2593.92 | CT8: 5786.55 | CU8: 10732.98 | CV8: 43.97 | CW8: 2454.08 | CX8: 0 | CY8: 0 | CZ8: 0 | DA8: -459.45 | DB8: 2038.6 | DC8: 9967.17 | DD8: 7825.15 | DE8: 94.46 | DF8: -4741.6 | DG8: 16053.01
C9: 03 | D9: 漁業 | E9: 0 | F9: 0 | G9: 608.5 | H9: 0 | I9: 11907.98 | J9: 0 | K9: 0 | L9: 7.55 | M9: 0 | N9: 0 | O9: 0 | P9: 0 | Q9: 0 | R9: 0 | S9: 0 | T9: 0 | U9: 0 | V9: 0 | W9: 0 | X9: 0 | Y9: 0 | Z9: 23.58 | AA9: 0 | AB9: 0 | AC9: 0 | AD9: 0 | AE9: 0 | AF9: 0 | AG9: 0 | AH9: 3.44 | AI9: 0 | AJ9: 4.43 | AK9: 42.56 | AL9: 694.05 | AM9: 0 | AN9: 0 | AO9: 214.89 | AP9: 3055.47 | AQ9: 3.87 | AR9: 63.68 | AS9: 0 | AT9: 0 | AU9: 16630 | AV9: 0 | AW9: 0 | AX9: 700.26 | AY9: 0 | AZ9: 11690.55 | BA9: 0.03 | BB9: 0 | BC9: 11.24 | BD9: 0 | BE9: 0 | BF9: 0 | BG9: 0 | BH9: 0 | BI9: 0 | BJ9: 0 | BK9: 0 | BL9: 0 | BM9: 0 | BN9: 0 | BO9: 0 | BP9: 0 | BQ9: 534.51 | BR9: 0 | BS9: 0 | BT9: 0 | BU9: 0 | BV9: 0 | BW9: 0 | BX9: 0 | BY9: 2.28 | BZ9: 0 | CA9: 2.64 | CB9: 22.94 | CC9: 387.18 | CD9: 0 | CE9: 0 | CF9: 214.06 | CG9: 1958.01 | CH9: 3.04 | CI9: 34.36 | CJ9: 0 | CK9: 0 | CL9: 15561.1 | CM9: 32191.1 | CN9: 210.55 | CO9: 5036.17 | CP9: 0 | CQ9: 0 | CR9: 0 | CS9: 46.1 | CT9: 5292.82 | CU9: 21922.82 | CV9: 156.53 | CW9: 3548.54 | CX9: 0 | CY9: 0 | CZ9: 0 | DA9: 2.86 | DB9: 3707.93 | DC9: 19269.03 | DD9: 9000.75 | DE9: 2553.96 | DF9: -13081.25 | DG9: 30664.56
C10: 04 | D10: 鉱業 | E10: 1.3 | F10: 6.22 | G10: 0 | H10: 99.33 | I10: 372.87 | J10: 7.79 | K10: 242.53 | L10: 6337.33 | M10: 74458.54 | N10: 135.75 | O10: 30601.84 | P10: 73039 | Q10: 7562.59 | R10: 78.12 | S10: 5.46 | T10: 15.79 | U10: 4.74 | V10: 44.01 | W10: 25.86 | X10: 0.16 | Y10: 220 | Z10: 85.67 | AA10: 11327.05 | AB10: 208290.26 | AC10: 0 | AD10: 0.38 | AE10: 9.98 | AF10: 0.99 | AG10: 2.88 | AH10: 14.94 | AI10: 0.46 | AJ10: 18.07 | AK10: 36.09 | AL10: 28.14 | AM10: 10 | AN10: 25.48 | AO10: 4.79 | AP10: -28.89 | AQ10: 13.85 | AR10: 48.82 | AS10: 0 | AT10: 36.31 | AU10: 413184.5 | AV10: 0.06 | AW10: 0.21 | AX10: 0 | AY10: 0.94 | AZ10: 7.15 | BA10: 0.89 | BB10: 35.64 | BC10: 95.69 | BD10: 6565.22 | BE10: 1.01 | BF10: 257.81 | BG10: 896.94 | BH10: 843.31 | BI10: 1.96 | BJ10: 0.42 | BK10: 0.62 | BL10: 0.25 | BM10: 1.49 | BN10: 0.48 | BO10: 0.11 | BP10: 3.84 | BQ10: 2.96 | BR10: 247.48 | BS10: 4969.42 | BT10: 0 | BU10: 0.01 | BV10: 0.17 | BW10: 0.03 | BX10: 0.05 | BY10: 0.29 | BZ10: 0.01 | CA10: 0.28 | CB10: 1.14 | CC10: 0.39 | CD10: 0.18 | CE10: 0.42 | CF10: 0.29 | CG10: 0.01 | CH10: 0.28 | CI10: 0.81 | CJ10: 0 | CK10: 0.67 | CL10: 13938.93 | CM10: 427123.43 | CN10: -183.66 | CO10: -210.54 | CP10: 0 | CQ10: 0 | CR10: -217.37 | CS10: -1414.22 | CT10: -2025.79 | CU10: 411158.71 | CV10: 0 | CW10: 0.04 | CX10: 0 | CY10: 0 | CZ10: 0 | DA10: -0.37 | DB10: -0.33 | DC10: 13938.6 | DD10: -2026.12 | DE10: 504.7 | DF10: -398803.38 | DG10: 26798.63
C11: 05 | D11: 飲食料品 | E11: 7673.57 | F11: 469.01 | G11: 1639.57 | H11: 0 | I11: 98044.66 | J11: 117.31 | K11: 92.79 | L11: 1405.57 | M11: 0.01 | N11: 2.22 | O11: 55.75 | P11: 0.37 | Q11: 0 | R11: 0 | S11: 0 | T11: 0 | U11: 0 | V11: 0 | W11: 0 | X11: 0 | Y11: 0 | Z11: 233.46 | AA11: 14.02 | AB11: 0 | AC11: 0 | AD11: 0 | AE11: 231.78 | AF11: 0 | AG11: 0 | AH11: 147.1 | AI11: 0.15 | AJ11: 212.55 | AK11: 4114.87 | AL11: 11238.14 | AM11: 80.78 | AN11: 6.42 | AO11: 4027.86 | AP11: 114445.47 | AQ11: 197.03 | AR11: 1075.33 | AS11: 0 | AT11: 221.03 | AU11: 245746.82 | AV11: 33076.51 | AW11: 555 | AX11: 3868.32 | AY11: 0 | AZ11: 173145.17 | BA11: 202.63 | BB11: 503.68 | BC11: 5022.03 | BD11: 1.8 | BE11: 5.67 | BF11: 73.81 | BG11: 0.52 | BH11: 0 | BI11: 0 | BJ11: 0 | BK11: 0 | BL11: 0 | BM11: 0 | BN11: 0 | BO11: 0 | BP11: 0 | BQ11: 782.48 | BR11: 37.98 | BS11: 0 | BT11: 0 | BU11: 0 | BV11: 330.67 | BW11: 0 | BX11: 0 | BY11: 222.75 | BZ11: 0.38 | CA11: 316.64 | CB11: 6030.89 | CC11: 14141.8 | CD11: 155.22 | CE11: 9.83 | CF11: 9170.24 | CG11: 167038.11 | CH11: 288.5 | CI11: 1326.01 | CJ11: 0 | CK11: 354.39 | CL11: 416661.03 | CM11: 662407.85 | CN11: 12729.54 | CO11: 385095.74 | CP11: 0 | CQ11: 0 | CR11: 0 | CS11: 336.33 | CT11: 398161.61 | CU11: 643908.43 | CV11: 21628.68 | CW11: 690004.52 | CX11: 0 | CY11: 0 | CZ11: 0 | DA11: -431.49 | DB11: 711201.71 | DC11: 1127862.74 | DD11: 1109363.32 | DE11: 18546.74 | DF11: -202757.76 | DG11: 1587560.15
C12: 06 | D12: 繊維製品 | E12: 530.03 | F12: 36.41 | G12: 278.71 | H12: 44.27 | I12: 627.51 | J12: 5623.13 | K12: 646.16 | L12: 259.89 | M12: 10.55 | N12: 2724.43 | O12: 302.82 | P12: 302.82 | Q12: 36.12 | R12: 199.26 | S12: 75.65 | T12: 164.19 | U12: 17.06 | V12: 533.9 | W12: 341.01 | X12: 10.27 | Y12: 3725.72 | Z12: 325.69 | AA12: 2812.95 | AB12: 46.88 | AC12: 75.36 | AD12: 166.53 | AE12: 7719.27 | AF12: 638.28 | AG12: 41.04 | AH12: 2024.01 | AI12: 684.8 | AJ12: 2048.17 | AK12: 305.44 | AL12: 4324.67 | AM12: 1876.56 | AN12: 2474.67 | AO12: 625.19 | AP12: 357.47 | AQ12: 1275.29 | AR12: 1381.95 | AS12: 486.84 | AT12: 41.47 | AU12: 46222.44 | AV12: 153.12 | AW12: 5.93 | AX12: 118.3 | AY12: 12.03 | AZ12: 137.23 | BA12: 3119.75 | BB12: 286.71 | BC12: 99.53 | BD12: 1.58 | BE12: 263.85 | BF12: 72.11 | BG12: 31.65 | BH12: 28.77 | BI12: 52.72 | BJ12: 41.57 | BK12: 81.43 | BL12: 28.84 | BM12: 179.01 | BN12: 146.17 | BO12: 34.23 | BP12: 320.07 | BQ12: 160.9 | BR12: 692.51 | BS12: 13.62 | BT12: 15.47 | BU12: 33.71 | BV12: 1438.3 | BW12: 194.65 | BX12: 7.95 | BY12: 321.08 | BZ12: 192.21 | CA12: 474.37 | CB12: 79.91 | CC12: 707.45 | CD12: 403.76 | CE12: 534.29 | CF12: 184.17 | CG12: 66.78 | CH12: 206.42 | CI12: 247.56 | CJ12: 102.96 | CK12: 8.6 | CL12: 11301.27 | CM12: 57523.71 | CN12: 1818.05 | CO12: 68851.44 | CP12: 0 | CQ12: 20.32 | CR12: 6259.18 | CS12: 1433.72 | CT12: 78382.71 | CU12: 124605.15 | CV12: 399.68 | CW12: 15901.39 | CX12: 0 | CY12: 2.96 | CZ12: 1143.28 | DA12: 567.33 | DB12: 18014.64 | DC12: 29315.91 | DD12: 96397.35 | DE12: 3992.3 | DF12: -110065.68 | DG12: 47847.68
C13: 07 | D13: パルプ・紙・木製品 | E13: 2987.95 | F13: 148.94 | G13: 50.86 | H13: 18.62 | I13: 8939.67 | J13: 102.66 | K13: 22234.63 | L13: 1958.79 | M13: 5.83 | N13: 994.12 | O13: 2454.13 | P13: 238.42 | Q13: 91.77 | R13: 458.97 | S13: 66.28 | T13: 117.61 | U13: 98.04 | V13: 523.86 | W13: 856.04 | X13: 13.94 | Y13: 860.33 | Z13: 10616.36 | AA13: 36433.43 | AB13: 735.15 | AC13: 198.03 | AD13: 249.42 | AE13: 11366.07 | AF13: 1572.98 | AG13: 497.92 | AH13: 3474.13 | AI13: 7844.62 | AJ13: 679.31 | AK13: 3739.86 | AL13: 6234.99 | AM13: 1043.64 | AN13: 4097.91 | AO13: 257.12 | AP13: 2844.3 | AQ13: 1266.4 | AR13: 831.8 | AS13: 8995.54 | AT13: 82.5 | AU13: 146282.94 | AV13: 2458.77 | AW13: 78.73 | AX13: 48.64 | AY13: 19.61 | AZ13: 5895.6 | BA13: 203.06 | BB13: 32366.58 | BC13: 3582.79 | BD13: 2.36 | BE13: 847.53 | BF13: 1108.03 | BG13: 80.2 | BH13: 191.5 | BI13: 379.86 | BJ13: 157.46 | BK13: 178.04 | BL13: 331.72 | BM13: 758.07 | BN13: 1072.36 | BO13: 301.37 | BP13: 706.94 | BQ13: 8000.27 | BR13: 26304.97 | BS13: 576.05 | BT13: 118.18 | BU13: 152.58 | BV13: 7418.56 | BW13: 1432.47 | BX13: 317.5 | BY13: 2275.39 | BZ13: 6796.09 | CA13: 455.8 | CB13: 2655.42 | CC13: 3347.23 | CD13: 739.35 | CE13: 2336.7 | CF13: 230.05 | CG13: 1608.37 | CH13: 539.81 | CI13: 502.76 | CJ13: 5778.62 | CK13: 51.99 | CL13: 122407.38 | CM13: 268690.32 | CN13: -28.39 | CO13: 1939.6 | CP13: 38.54 | CQ13: 257.47 | CR13: 5974.18 | CS13: -1899.67 | CT13: 6281.73 | CU13: 152564.67 | CV13: 1112.74 | CW13: 4423.7 | CX13: 18.76 | CY13: 128.38 | CZ13: 4081.1 | DA13: -598.56 | DB13: 9166.12 | DC13: 131573.5 | DD13: 15447.85 | DE13: 11704.54 | DF13: -80759.51 | DG13: 215083.2
C14: 08 | D14: 化学製品 | E14: 6027.38 | F14: 4.1 | G14: 158.31 | H14: 193.84 | I14: 5013.66 | J14: 1700.15 | K14: 2004.29 | L14: 71851.12 | M14: -191.08 | N14: 36459.21 | O14: 2064.2 | P14: 2027.99 | Q14: 263.49 | R14: 1098.46 | S14: 222.98 | T14: 515.68 | U14: 134.36 | V14: 1238.19 | W14: 972.95 | X14: 18.06 | Y14: 8087.52 | Z14: 3122.03 | AA14: 3495.72 | AB14: 180.17 | AC14: 507.73 | AD14: 903.38 | AE14: 11.72 | AF14: 6.92 | AG14: 28.97 | AH14: 331.52 | AI14: 683.78 | AJ14: 452.64 | AK14: 2631.58 | AL14: 133859.2 | AM14: 122.69 | AN14: 3809.77 | AO14: 144.85 | AP14: 980.51 | AQ14: 400.32 | AR14: 2895.5 | AS14: 170.72 | AT14: 436.44 | AU14: 295041.02 | AV14: 6461.44 | AW14: 5.72 | AX14: 161.58 | AY14: 117.68 | AZ14: 3747.42 | BA14: 3824.26 | BB14: 4065.86 | BC14: 93158.07 | BD14: 341.71 | BE14: 25748.55 | BF14: 1982.85 | BG14: 1070.77 | BH14: 727.37 | BI14: 979.94 | BJ14: 439.2 | BK14: 640.18 | BL14: 1117.99 | BM14: 2266.71 | BN14: 2079.51 | BO14: 543.41 | BP14: 5069.96 | BQ14: 3186.37 | BR14: 3146.18 | BS14: 177.59 | BT14: 378.93 | BU14: 658.55 | BV14: 8.04 | BW14: 7.77 | BX14: 26.91 | BY14: 227.64 | BZ14: 613.76 | CA14: 342.81 | CB14: 3329.75 | CC14: 82947.86 | CD14: 99.93 | CE14: 2942.21 | CF14: 153.64 | CG14: 663.36 | CH14: 356.13 | CI14: 2037.74 | CJ14: 130 | CK14: 326.01 | CL14: 256311.36 | CM14: 551352.38 | CN14: 2084.28 | CO14: 35703.44 | CP14: 0 | CQ14: 0 | CR14: 0 | CS14: -10853.65 | CT14: 26934.07 | CU14: 321975.09 | CV14: 1649.83 | CW14: 24050.36 | CX14: 0 | CY14: 0 | CZ14: 0 | DA14: -91.23 | DB14: 25608.96 | DC14: 281920.32 | DD14: 52543.03 | DE14: 159724.9 | DF14: -222866.95 | DG14: 540753.36
C15: 09 | D15: 石油・石炭製品 | E15: 647.87 | F15: 58.98 | G15: 359.14 | H15: 163.57 | I15: 1190.63 | J15: 48.05 | K15: 117.67 | L15: 1439.25 | M15: 2899.62 | N15: 455.8 | O15: 1542.51 | P15: -9806.58 | Q15: 68.3 | R15: 277.66 | S15: 27.59 | T15: 130.93 | U15: 11.91 | V15: 123.72 | W15: 78.62 | X15: 1.64 | Y15: 892.55 | Z15: 171.64 | AA15: 5368.21 | AB15: 9328.22 | AC15: 524.18 | AD15: 541.02 | AE15: 1522.08 | AF15: 104.25 | AG15: 335.68 | AH15: 63679.91 | AI15: 330.66 | AJ15: 4348.75 | AK15: 1084.8 | AL15: 1757.62 | AM15: 131.95 | AN15: 1538.64 | AO15: 84.13 | AP15: 1223.06 | AQ15: 979.39 | AR15: 686.69 | AS15: 0 | AT15: 858.85 | AU15: 95329.16 | AV15: 235.88 | AW15: 26.35 | AX15: 270.76 | AY15: 62.96 | AZ15: 517.27 | BA15: 72.23 | BB15: 156.47 | BC15: 8253.72 | BD15: 3535.26 | BE15: 86.78 | BF15: 442.12 | BG15: 3483.42 | BH15: 80.86 | BI15: 115.6 | BJ15: 45.71 | BK15: 60.33 | BL15: 21.4 | BM15: 61.44 | BN15: 56.95 | BO15: 8.3 | BP15: 358.16 | BQ15: 62.82 | BR15: 2483.74 | BS15: 4093.63 | BT15: 172.41 | BU15: 186.78 | BV15: 497.53 | BW15: 52.35 | BX15: 106.74 | BY15: 17901.9 | BZ15: 130.21 | CA15: 1411.24 | CB15: 507.94 | CC15: 498.79 | CD15: 51.49 | CE15: 509.94 | CF15: 41.9 | CG15: 391.08 | CH15: 241.58 | CI15: 219 | CJ15: 0 | CK15: 301.24 | CL15: 47814.28 | CM15: 143143.44 | CN15: 142.03 | CO15: 46817.46 | CP15: 0 | CQ15: 0 | CR15: 0 | CS15: -1241.41 | CT15: 45718.08 | CU15: 141047.24 | CV15: 52.79 | CW15: 16887.6 | CX15: 0 | CY15: 0 | CZ15: 0 | DA15: 30.88 | DB15: 16971.27 | DC15: 64785.55 | DD15: 62689.35 | DE15: 2115.68 | DF15: -86747.48 | DG15: 121200.99
C16: 10 | D16: プラスチック・ゴム製品 | E16: 1364.56 | F16: 250.2 | G16: 225 | H16: 55.83 | I16: 12306.46 | J16: 237.69 | K16: 1862.63 | L16: 3938.64 | M16: 5.88 | N16: 34564.58 | O16: 939.65 | P16: 564.95 | Q16: 147.62 | R16: 751.55 | S16: 992.33 | T16: 3228.73 | U16: 693.18 | V16: 2854.9 | W16: 3809.42 | X16: 128.62 | Y16: 56673.73 | Z16: 6750.43 | AA16: 11823.73 | AB16: 0 | AC16: 2976.82 | AD16: 1177.18 | AE16: 8393.53 | AF16: 1209.6 | AG16: 766.85 | AH16: 2889.56 | AI16: 2068.32 | AJ16: 1312.17 | AK16: 1678.92 | AL16: 3148.78 | AM16: 559.76 | AN16: 13543.31 | AO16: 187.92 | AP16: 661.36 | AQ16: 1458.85 | AR16: 626.52 | AS16: 1164.45 | AT16: 316.05 | AU16: 188310.26 | AV16: 1473.93 | AW16: 206.04 | AX16: 468.81 | AY16: 72.87 | AZ16: 12920.28 | BA16: 688.95 | BB16: 4681.41 | BC16: 9462.25 | BD16: 42.53 | BE16: 55189.69 | BF16: 843.46 | BG16: 335.25 | BH16: 887.08 | BI16: 1035.53 | BJ16: 2522.4 | BK16: 6298.71 | BL16: 5094.55 | BM16: 4894.55 | BN16: 11692.51 | BO16: 4181.62 | BP16: 36689.8 | BQ16: 10296.43 | BR16: 15039.71 | BS16: 0 | BT16: 3130.99 | BU16: 1208.24 | BV16: 9055.05 | BW16: 1823.53 | BX16: 854.95 | BY16: 2811.24 | BZ16: 3682.62 | CA16: 1372.82 | CB16: 3052.68 | CC16: 2535.37 | CD16: 630.17 | CE16: 12169.76 | CF16: 288.61 | CG16: 662.46 | CH16: 1223.79 | CI16: 565.98 | CJ16: 1259.64 | CK16: 335.36 | CL16: 231681.62 | CM16: 419991.88 | CN16: 411.25 | CO16: 15427.31 | CP16: 85.57 | CQ16: 0 | CR16: -18.76 | CS16: 7481.92 | CT16: 23387.29 | CU16: 211697.55 | CV16: 462.42 | CW16: 16411.63 | CX16: 70.12 | CY16: 0 | CZ16: 0 | DA16: -113.52 | DB16: 16830.65 | DC16: 248512.27 | DD16: 40217.94 | DE16: 102993.55 | DF16: -80931.12 | DG16: 482272.25
C17: 11 | D17: 窯業・土石製品 | E17: 345.73 | F17: 15.95 | G17: 0.78 | H17: 2.28 | I17: 2659 | J17: 13.04 | K17: 720.42 | L17: 2210.48 | M17: 99.09 | N17: 566.66 | O17: 11864.45 | P17: 3878.99 | Q17: 630.49 | R17: 674.12 | S17: 669.85 | T17: 630.15 | U17: 195.56 | V17: 4980.52 | W17: 1319.27 | X17: 13.27 | Y17: 18123.09 | Z17: 513.83 | AA17: 56777.47 | AB17: 16.68 | AC17: 428.27 | AD17: 50.13 | AE17: 429.14 | AF17: 4.81 | AG17: 90.44 | AH17: 43.48 | AI17: 8.19 | AJ17: 130.15 | AK17: 1721.83 | AL17: 1387.2 | AM17: 40.65 | AN17: 1190.26 | AO17: 132.96 | AP17: 1003.94 | AQ17: 313.85 | AR17: 155.2 | AS17: 147.34 | AT17: 454.06 | AU17: 114653.07 | AV17: 772.86 | AW17: 18.33 | AX17: 2.25 | AY17: 12.62 | AZ17: 3057.07 | BA17: 66.75 | BB17: 1078.05 | BC17: 5324.06 | BD17: 149.19 | BE17: 1224.53 | BF17: 14700.47 | BG17: 3777.39 | BH17: 2305.82 | BI17: 1199.03 | BJ17: 1938.15 | BK17: 2130.47 | BL17: 3754.84 | BM17: 13665.78 | BN17: 4201.22 | BO17: 444.78 | BP17: 8334.48 | BQ17: 1317.74 | BR17: 94089.94 | BS17: 30.79 | BT17: 580.7 | BU17: 68.08 | BV17: 550.37 | BW17: 10.07 | BX17: 165.03 | BY17: 45.28 | BZ17: 16.62 | CA17: 203.57 | CB17: 2273.98 | CC17: 1576.83 | CD17: 58.52 | CE17: 1332.69 | CF17: 284.81 | CG17: 1430.89 | CH17: 318.01 | CI17: 199.97 | CJ17: 209.43 | CK17: 633.04 | CL17: 173554.5 | CM17: 288207.57 | CN17: 223.52 | CO17: 2831.91 | CP17: 0 | CQ17: 0 | CR17: 0 | CS17: -209.36 | CT17: 2846.07 | CU17: 117499.14 | CV17: 348.81 | CW17: 4018.58 | CX17: 0 | CY17: 0 | CZ17: 0 | DA17: -896.41 | DB17: 3470.98 | DC17: 177025.48 | DD17: 6317.05 | DE17: 30558.26 | DF17: -26257.37 | DG17: 298825.51
C18: 12 | D18: 鉄鋼 | E18: 8 | F18: 0.05 | G18: 6.8 | H18: 23.43 | I18: 0 | J18: 3.9 | K18: 1099.08 | L18: 56.1 | M18: -0.59 | N18: 474.3 | O18: 1631.33 | P18: 662107.31 | Q18: 41.15 | R18: 52109.49 | S18: 7915.45 | T18: 18631.79 | U18: 323.98 | V18: 734.95 | W18: 9965.25 | X18: 59.92 | Y18: 91904.73 | Z18: 286.31 | AA18: 28447.65 | AB18: 0 | AC18: 2.74 | AD18: 0 | AE18: 0 | AF18: 0 | AG18: 0 | AH18: 261.68 | AI18: 0 | AJ18: 37.61 | AK18: 0 | AL18: 4.91 | AM18: 0.4 | AN18: 233.46 | AO18: 1.81 | AP18: 17.48 | AQ18: 0.57 | AR18: 17.31 | AS18: 0.79 | AT18: 543.32 | AU18: 876952.46 | AV18: 11.17 | AW18: 0.25 | AX18: 11.23 | AY18: 71.01 | AZ18: 0 | BA18: 17.34 | BB18: 3608.12 | BC18: 27.05 | BD18: 0 | BE18: 870.41 | BF18: 1506.87 | BG18: 423729.32 | BH18: 328.3 | BI18: 82052.29 | BJ18: 37608 | BK18: 48092.94 | BL18: 4929.69 | BM18: 2389.08 | BN18: 22313.99 | BO18: 1564.8 | BP18: 89040.51 | BQ18: 1022.34 | BR18: 43889.11 | BS18: 0 | BT18: 3.55 | BU18: 0 | BV18: 0 | BW18: 0 | BX18: 0 | BY18: 418.62 | BZ18: 0 | CA18: 41.67 | CB18: 0 | CC18: 5.54 | CD18: 0.62 | CE18: 247.56 | CF18: 3.34 | CG18: 20.58 | CH18: 0.92 | CI18: 18.37 | CJ18: 1.04 | CK18: 705.93 | CL18: 764551.56 | CM18: 1641504.02 | CN18: 0 | CO18: -1189.37 | CP18: 0 | CQ18: -906.59 | CR18: -5439.91 | CS18: -7412.43 | CT18: -14948.3 | CU18: 862004.16 | CV18: 0 | CW18: 1.13 | CX18: 0 | CY18: 0 | CZ18: 0 | DA18: -3825.64 | DB18: -3824.51 | DC18: 760727.05 | DD18: -18772.81 | DE18: 285808.43 | DF18: -46370.55 | DG18: 1862169.09
C19: 13 | D19: 非鉄金属 | E19: 0 | F19: 0 | G19: 0 | H19: 6.99 | I19: 883.24 | J19: 0.08 | K19: 270.28 | L19: 3209.53 | M19: 0.1 | N19: 608.32 | O19: 1183.6 | P19: 8916.84 | Q19: 26847 | R19: 10597.77 | S19: 2316.62 | T19: 3125.82 | U19: 760.1 | V19: 2636.24 | W19: 8409.91 | X19: 98.41 | Y19: 20409.64 | Z19: 1045.14 | AA19: 7691.19 | AB19: 74.48 | AC19: 18.47 | AD19: 0.35 | AE19: 24.65 | AF19: 0 | AG19: 0 | AH19: 13.89 | AI19: 57.51 | AJ19: 157.42 | AK19: 39.31 | AL19: 1872.04 | AM19: 15.29 | AN19: 520.5 | AO19: 39.84 | AP19: 171.29 | AQ19: 0 | AR19: 105.75 | AS19: 23.08 | AT19: 304.64 | AU19: 102455.33 | AV19: 0 | AW19: 0 | AX19: 0 | AY19: 3.85 | AZ19: 363.08 | BA19: 0.2 | BB19: 201.3 | BC19: 887 | BD19: 1.32 | BE19: 216.32 | BF19: 397.62 | BG19: 1467.68 | BH19: 23737.96 | BI19: 5279.09 | BJ19: 2675.94 | BK19: 2156.39 | BL19: 1730.25 | BM19: 5056.25 | BN19: 6958.6 | BO19: 1506.88 | BP19: 8691.73 | BQ19: 846.59 | BR19: 3599.76 | BS19: 43.76 | BT19: 7.61 | BU19: 0.12 | BV19: 8.21 | BW19: 0 | BX19: 0 | BY19: 4.72 | BZ19: 22.83 | CA19: 52.55 | CB19: 26.58 | CC19: 540.21 | CD19: 6.36 | CE19: 167.51 | CF19: 21.67 | CG19: 59.81 | CH19: 0 | CI19: 39.03 | CJ19: 9.02 | CK19: 116.72 | CL19: 66904.52 | CM19: 169359.85 | CN19: 21.15 | CO19: 2660.52 | CP19: 0 | CQ19: 0 | CR19: -6633.01 | CS19: 434.39 | CT19: -3516.95 | CU19: 98938.38 | CV19: 8.59 | CW19: 1148.84 | CX19: 0 | CY19: 0 | CZ19: 2283.11 | DA19: -355.87 | DB19: 3084.67 | DC19: 69989.19 | DD19: -432.28 | DE19: 26375.27 | DF19: -78440.14 | DG19: 116862.7
C20: 14 | D20: 金属製品 | E20: 178.23 | F20: 3.95 | G20: 29.26 | H20: 196.48 | I20: 8793.87 | J20: 58.31 | K20: 1805.76 | L20: 2584.67 | M20: 82.88 | N20: 2171.46 | O20: 1234.84 | P20: 508.55 | Q20: 102.4 | R20: 11014.03 | S20: 1570.81 | T20: 5398.32 | U20: 386.99 | V20: 2554.96 | W20: 3707.2 | X20: 109.28 | Y20: 9640.25 | Z20: 1200.89 | AA20: 88486.04 | AB20: 160.14 | AC20: 65.07 | AD20: 14.02 | AE20: 5878.36 | AF20: 52.15 | AG20: 385.65 | AH20: 1422.66 | AI20: 353.7 | AJ20: 3545.3 | AK20: 137.97 | AL20: 488.54 | AM20: 184.03 | AN20: 1616.41 | AO20: 62.24 | AP20: 1458.77 | AQ20: 38.12 | AR20: 1037.69 | AS20: 9.76 | AT20: 500.8 | AU20: 159230.81 | AV20: 214.13 | AW20: 8.15 | AX20: 37.61 | AY20: 269.34 | AZ20: 7120.19 | BA20: 135.39 | BB20: 2266.74 | BC20: 3820.21 | BD20: 125.57 | BE20: 1459.14 | BF20: 1003.98 | BG20: 354.58 | BH20: 234.04 | BI20: 12791.06 | BJ20: 5870.57 | BK20: 8438.68 | BL20: 4256.98 | BM20: 4335.26 | BN20: 6851.6 | BO20: 2324.96 | BP20: 8444.08 | BQ20: 1744.19 | BR20: 90082.45 | BS20: 183.52 | BT20: 55.69 | BU20: 11.42 | BV20: 4222.25 | BW20: 63.02 | BX20: 391.51 | BY20: 1074.26 | BZ20: 285.9 | CA20: 2686.36 | CB20: 120.14 | CC20: 347.04 | CD20: 165.75 | CE20: 1160.17 | CF20: 73.93 | CG20: 1107 | CH20: 22.69 | CI20: 833.69 | CJ20: 8.32 | CK20: 418.88 | CL20: 175420.44 | CM20: 334651.25 | CN20: 523.55 | CO20: 4873.09 | CP20: 15 | CQ20: 274.97 | CR20: 6993.2 | CS20: 1972.72 | CT20: 14652.53 | CU20: 173883.34 | CV20: 464.05 | CW20: 4295.79 | CX20: 9.69 | CY20: 285.08 | CZ20: 6881.64 | DA20: -205.74 | DB20: 11730.51 | DC20: 187150.95 | DD20: 26383.04 | DE20: 21286.62 | DF20: -42541.9 | DG20: 339779.01
C21: 15 | D21: はん用機械 | E21: 0 | F21: 0.05 | G21: 0 | H21: 10.94 | I21: 0 | J21: 0 | K21: 192.77 | L21: 4.48 | M21: 0 | N21: 28.01 | O21: 105.88 | P21: 30.7 | Q21: 0.08 | R21: 71.2 | S21: 4953.22 | T21: 3298.54 | U21: 58.97 | V21: 131.81 | W21: 726.26 | X21: 6.58 | Y21: 2038.47 | Z21: 5.41 | AA21: 2973.77 | AB21: 0 | AC21: 411.63 | AD21: 0 | AE21: 3.73 | AF21: 0.01 | AG21: 0 | AH21: 43.86 | AI21: 1.68 | AJ21: 124.39 | AK21: 0 | AL21: 0.08 | AM21: 0 | AN21: 4897.15 | AO21: 0 | AP21: 0 | AQ21: 0 | AR21: 4.1 | AS21: 0 | AT21: 0 | AU21: 20123.77 | AV21: 0 | AW21: 0.29 | AX21: 0 | AY21: 22.25 | AZ21: 0 | BA21: 0 | BB21: 152.46 | BC21: 6.96 | BD21: 0 | BE21: 63.29 | BF21: 156.08 | BG21: 38.24 | BH21: 1.63 | BI21: 144.67 | BJ21: 19705.35 | BK21: 7859.05 | BL21: 1254.21 | BM21: 357.17 | BN21: 2551.87 | BO21: 144.9 | BP21: 5147.25 | BQ21: 61.95 | BR21: 4620 | BS21: 0 | BT21: 549.9 | BU21: 0 | BV21: 4.76 | BW21: 0.01 | BX21: 0 | BY21: 55.74 | BZ21: 3.4 | CA21: 154.96 | CB21: 0 | CC21: 0.12 | CD21: 0 | CE21: 5779.95 | CF21: 0 | CG21: 0 | CH21: 0 | CI21: 4.49 | CJ21: 0 | CK21: 0 | CL21: 48840.95 | CM21: 68964.72 | CN21: 0 | CO21: 104.31 | CP21: 0 | CQ21: 986.75 | CR21: 29720.35 | CS21: 1760.65 | CT21: 32572.06 | CU21: 52695.83 | CV21: 0 | CW21: 156.71 | CX21: 0 | CY21: 1865.09 | CZ21: 50648.02 | DA21: 201.9 | DB21: 52871.72 | DC21: 101712.67 | DD21: 85443.78 | DE21: 12680.35 | DF21: -37741.79 | DG21: 129347.06
C22: 16 | D22: 生産用機械 | E22: 0 | F22: 0.36 | G22: 0 | H22: 14.85 | I22: 0 | J22: 0 | K22: 8.88 | L22: 0 | M22: 0.52 | N22: 262.24 | O22: 180.24 | P22: 51.05 | Q22: 6.05 | R22: 45.45 | S22: 291.55 | T22: 15372.95 | U22: 8.87 | V22: 272.05 | W22: 330.3 | X22: 2.06 | Y22: 496.89 | Z22: 2.79 | AA22: 35.3 | AB22: 1.17 | AC22: 13.92 | AD22: 0 | AE22: 4.22 | AF22: 0 | AG22: 0 | AH22: 37.64 | AI22: 1.87 | AJ22: 8.26 | AK22: 0 | AL22: 0 | AM22: 0 | AN22: 10141.11 | AO22: 0 | AP22: 0 | AQ22: 0.47 | AR22: 5.17 | AS22: 0 | AT22: 0 | AU22: 27596.23 | AV22: 0 | AW22: 2.28 | AX22: 0 | AY22: 32.32 | AZ22: 0 | BA22: 0 | BB22: 21.37 | BC22: 0 | BD22: 4.43 | BE22: 650.29 | BF22: 148.75 | BG22: 68.77 | BH22: 20.81 | BI22: 105.9 | BJ22: 935.37 | BK22: 45169.13 | BL22: 244.98 | BM22: 749.53 | BN22: 689.37 | BO22: 92.82 | BP22: 904.55 | BQ22: 22.67 | BR22: 78.49 | BS22: 2.44 | BT22: 20.38 | BU22: 0 | BV22: 5.74 | BW22: 0 | BX22: 0 | BY22: 43.77 | BZ22: 2.62 | CA22: 11.66 | CB22: 0 | CC22: 0 | CD22: 0 | CE22: 13091.1 | CF22: 0 | CG22: 0 | CH22: 0.95 | CI22: 7.36 | CJ22: 0 | CK22: 0 | CL22: 63127.85 | CM22: 90724.08 | CN22: 0 | CO22: 68.46 | CP22: 0 | CQ22: 1121.12 | CR22: 72868.26 | CS22: 5392.69 | CT22: 79450.53 | CU22: 107046.76 | CV22: 0 | CW22: 142.92 | CX22: 0 | CY22: 1809.03 | CZ22: 157149.21 | DA22: 475.07 | DB22: 159576.23 | DC22: 222704.08 | DD22: 239026.76 | DE22: 64176.48 | DF22: -54149.32 | DG22: 339778
C23: 17 | D23: 業務用機械 | E23: 30.56 | F23: 0.07 | G23: 0.09 | H23: 0 | I23: 0.2 | J23: 0 | K23: 0 | L23: 0.01 | M23: 0 | N23: 0 | O23: 0 | P23: 0 | Q23: 0 | R23: 1.12 | S23: 85.6 | T23: 322.28 | U23: 334.71 | V23: 0 | W23: 89.36 | X23: 0.79 | Y23: 134.56 | Z23: 8.37 | AA23: 73.74 | AB23: 0 | AC23: 3.19 | AD23: 0.97 | AE23: 856.16 | AF23: 1.92 | AG23: 0 | AH23: 20.32 | AI23: 47.57 | AJ23: 1009.3 | AK23: 0 | AL23: 6396.29 | AM23: 0 | AN23: 2173.12 | AO23: 0.93 | AP23: 0 | AQ23: 376.41 | AR23: 25.36 | AS23: 244.9 | AT23: 0 | AU23: 12237.9 | AV23: 9.53 | AW23: 0.08 | AX23: 0.04 | AY23: 0 | AZ23: 0.02 | BA23: 0 | BB23: 0 | BC23: 0.05 | BD23: 0 | BE23: 0 | BF23: 0 | BG23: 0 | BH23: 0 | BI23: 0.51 | BJ23: 66.03 | BK23: 223 | BL23: 1429.19 | BM23: 3.92 | BN23: 35.21 | BO23: 16.69 | BP23: 50.01 | BQ23: 4.1 | BR23: 28.2 | BS23: 0 | BT23: 1.04 | BU23: 0.32 | BV23: 242.64 | BW23: 0.98 | BX23: 0 | BY23: 3.36 | BZ23: 23.33 | CA23: 297.77 | CB23: 0 | CC23: 1633.85 | CD23: 0 | CE23: 624.08 | CF23: 0.45 | CG23: 0 | CH23: 75.46 | CI23: 9.24 | CJ23: 85.02 | CK23: 0 | CL23: 4864.12 | CM23: 17102.02 | CN23: 15.26 | CO23: 629 | CP23: 1.79 | CQ23: 1328.59 | CR23: 29690.3 | CS23: -86.89 | CT23: 31578.05 | CU23: 43815.95 | CV23: 5.51 | CW23: 238.44 | CX23: 0.47 | CY23: 1067.42 | CZ23: 10110.3 | DA23: 88.26 | DB23: 11510.4 | DC23: 16374.52 | DD23: 43088.45 | DE23: 2079.33 | DF23: -36447.67 | DG23: 25822.13
C24: 18 | D24: 電子部品 | E24: 0 | F24: 0 | G24: 0.14 | H24: 1.15 | I24: 2.55 | J24: 0.02 | K24: 2.29 | L24: 1.83 | M24: 0 | N24: 0.11 | O24: 0.06 | P24: 1.5 | Q24: 5.15 | R24: 320.38 | S24: 1394.27 | T24: 4965.03 | U24: 2218.57 | V24: 60575.52 | W24: 28857.48 | X24: 1920.35 | Y24: 10567.43 | Z24: 421.71 | AA24: 431.83 | AB24: 2.53 | AC24: 2.58 | AD24: 0 | AE24: 65 | AF24: 28.03 | AG24: 0 | AH24: 13.34 | AI24: 1344.16 | AJ24: 2631.59 | AK24: 988.9 | AL24: 7.77 | AM24: 0 | AN24: 22906.26 | AO24: 0.07 | AP24: 0 | AQ24: 0.02 | AR24: 18.89 | AS24: 1341.78 | AT24: 0 | AU24: 141038.29 | AV24: 0 | AW24: 0 | AX24: 0.16 | AY24: 0.26 | AZ24: 0.88 | BA24: 0.04 | BB24: 1.6 | BC24: 1.93 | BD24: 0.13 | BE24: 0.09 | BF24: 0.03 | BG24: 0.37 | BH24: 15.92 | BI24: 410.55 | BJ24: 1021.74 | BK24: 2028.34 | BL24: 12442.13 | BM24: 49161.68 | BN24: 30697.2 | BO24: 22778.9 | BP24: 7732.71 | BQ24: 928.31 | BR24: 245.29 | BS24: 1.72 | BT24: 1.22 | BU24: 0 | BV24: 30.1 | BW24: 20.66 | BX24: 0 | BY24: 3.82 | BZ24: 901.78 | CA24: 1129.14 | CB24: 850.1 | CC24: 3.68 | CD24: 0 | CE24: 9414.68 | CF24: 0.05 | CG24: 0 | CH24: 0.03 | CI24: 8.61 | CJ24: 679.51 | CK24: 0 | CL24: 140513.36 | CM24: 281551.65 | CN24: 13.26 | CO24: 3976.23 | CP24: 0 | CQ24: 0 | CR24: 0 | CS24: -7003.19 | CT24: -3013.7 | CU24: 138024.59 | CV24: 6.98 | CW24: 2022.01 | CX24: 0 | CY24: 0 | CZ24: 0 | DA24: 393 | DB24: 2421.99 | DC24: 142935.35 | DD24: -591.71 | DE24: 107423.68 | DF24: -115452.93 | DG24: 272930.69
C25: 19 | D25: 電気機械 | E25: 3.67 | F25: 0 | G25: 16.32 | H25: 9.49 | I25: 0.72 | J25: 0 | K25: 32.01 | L25: 0.27 | M25: 0 | N25: 2.95 | O25: 6.09 | P25: 0 | Q25: 0.56 | R25: 130.72 | S25: 1056.74 | T25: 4113.77 | U25: 165.73 | V25: 4908.95 | W25: 8966.21 | X25: 93.28 | Y25: 48142.53 | Z25: 53.68 | AA25: 6454.1 | AB25: 0.86 | AC25: 13.59 | AD25: 0 | AE25: 360.29 | AF25: 0.92 | AG25: 16.4 | AH25: 223.27 | AI25: 135.32 | AJ25: 1223.42 | AK25: 396.07 | AL25: 95.98 | AM25: 0 | AN25: 7761.29 | AO25: 5.33 | AP25: 19.4 | AQ25: 119.21 | AR25: 15.72 | AS25: 0 | AT25: 82.71 | AU25: 84627.57 | AV25: 4.09 | AW25: 0 | AX25: 22.78 | AY25: 2.57 | AZ25: 0.13 | BA25: 0 | BB25: 15.62 | BC25: 0.77 | BD25: 0 | BE25: 2.82 | BF25: 2.39 | BG25: 0 | BH25: 1.83 | BI25: 87.55 | BJ25: 2299.57 | BK25: 3527.42 | BL25: 1259.73 | BM25: 2507.36 | BN25: 17410.82 | BO25: 972.53 | BP25: 15573.42 | BQ25: 121.86 | BR25: 4475.66 | BS25: 0.71 | BT25: 7.65 | BU25: 0 | BV25: 189.41 | BW25: 0.83 | BX25: 9.06 | BY25: 101.41 | BZ25: 110.82 | CA25: 669.31 | CB25: 183.96 | CC25: 44.4 | CD25: 0 | CE25: 3860.01 | CF25: 4.56 | CG25: 10.71 | CH25: 64.15 | CI25: 8.65 | CJ25: 0 | CK25: 49.88 | CL25: 53604.44 | CM25: 138232.01 | CN25: 953.32 | CO25: 45751.44 | CP25: 0 | CQ25: 3022.57 | CR25: 71420.1 | CS25: 144.58 | CT25: 121292.01 | CU25: 205919.58 | CV25: 609.29 | CW25: 28837.94 | CX25: 0 | CY25: 2791 | CZ25: 48197.69 | DA25: 334.42 | DB25: 80770.34 | DC25: 134374.78 | DD25: 202062.35 | DE25: 54417.5 | DF25: -121118.74 | DG25: 273593.12
C26: 20 | D26: 情報通信機器 | E26: 0.87 | F26: 0.33 | G26: 0.56 | H26: 0.17 | I26: 13.57 | J26: 0.16 | K26: 0.85 | L26: 7.45 | M26: 0.29 | N26: 8.32 | O26: 2.09 | P26: 0.68 | Q26: 0.1 | R26: 9.32 | S26: 129.16 | T26: 21.16 | U26: 0.4 | V26: 9.49 | W26: 6.38 | X26: 128.63 | Y26: 20469.82 | Z26: 3.86 | AA26: 1595.89 | AB26: 4.68 | AC26: 0.8 | AD26: 1.73 | AE26: 576.23 | AF26: 61.35 | AG26: 98.66 | AH26: 115.67 | AI26: 148.4 | AJ26: 1328.36 | AK26: 61.82 | AL26: 35.34 | AM26: 5.34 | AN26: 1856.19 | AO26: 0.78 | AP26: 90.14 | AQ26: 69.11 | AR26: 5.04 | AS26: 0 | AT26: 0 | AU26: 26869.19 | AV26: 0.03 | AW26: 0.04 | AX26: 0.04 | AY26: 0.01 | AZ26: 0.38 | BA26: 0.01 | BB26: 0.04 | BC26: 0.5 | BD26: 0.03 | BE26: 0.06 | BF26: 0.04 | BG26: 0.01 | BH26: 0.02 | BI26: 0.33 | BJ26: 4.24 | BK26: 2.22 | BL26: 0.13 | BM26: 0.44 | BN26: 0.4 | BO26: 78.82 | BP26: 168.53 | BQ26: 0.21 | BR26: 55.36 | BS26: 0.2 | BT26: 0.03 | BU26: 0.05 | BV26: 15.85 | BW26: 2.84 | BX26: 2.89 | BY26: 3.11 | BZ26: 6.56 | CA26: 35.69 | CB26: 2.88 | CC26: 0.95 | CD26: 0.18 | CE26: 54.98 | CF26: 0.03 | CG26: 2.51 | CH26: 1.52 | CI26: 0.18 | CJ26: 0 | CK26: 0 | CL26: 442.34 | CM26: 27311.53 | CN26: 600.94 | CO26: 64006.09 | CP26: 0 | CQ26: 7987.92 | CR26: 88972.58 | CS26: 216.76 | CT26: 161784.29 | CU26: 188653.48 | CV26: 20.07 | CW26: 1846.35 | CX26: 0 | CY26: 549.16 | CZ26: 2615.69 | DA26: 20.34 | DB26: 5051.61 | DC26: 5493.95 | DD26: 166835.9 | DE26: 0.99 | DF26: -185003.74 | DG26: 9144.68
C27: 21 | D27: 輸送機械 | E27: 0 | F27: 0 | G27: 369.52 | H27: 0.23 | I27: 0 | J27: 0 | K27: 0 | L27: 0 | M27: 0 | N27: 0 | O27: 0 | P27: 0 | Q27: 0 | R27: 0 | S27: 0 | T27: 64.31 | U27: 0 | V27: 0 | W27: 0 | X27: 0 | Y27: 489729.34 | Z27: 0 | AA27: 0 | AB27: 0 | AC27: 0 | AD27: 0 | AE27: 0 | AF27: 0 | AG27: 0 | AH27: 12783.01 | AI27: 0 | AJ27: 2498.45 | AK27: 27.38 | AL27: 0 | AM27: 0 | AN27: 22318.99 | AO27: 0 | AP27: 0 | AQ27: 1.36 | AR27: 17.74 | AS27: 0 | AT27: 0 | AU27: 527810.33 | AV27: 0 | AW27: 0 | AX27: 1678.92 | AY27: 0.72 | AZ27: 0 | BA27: 0 | BB27: 0 | BC27: 0 | BD27: 0 | BE27: 0 | BF27: 0 | BG27: 0 | BH27: 0 | BI27: 0 | BJ27: 0 | BK27: 195.94 | BL27: 0 | BM27: 0 | BN27: 0 | BO27: 0 | BP27: 547312.42 | BQ27: 0 | BR27: 0 | BS27: 0 | BT27: 0 | BU27: 0 | BV27: 0 | BW27: 0 | BX27: 0 | BY27: 18257.89 | BZ27: 0 | CA27: 4913.64 | CB27: 67.29 | CC27: 0 | CD27: 0 | CE27: 40435.44 | CF27: 0 | CG27: 0 | CH27: 3.51 | CI27: 30.94 | CJ27: 0 | CK27: 0 | CL27: 612896.71 | CM27: 1140707.04 | CN27: 0 | CO27: 55427.15 | CP27: 0 | CQ27: 4620.32 | CR27: 64251.1 | CS27: 7435.47 | CT27: 131734.04 | CU27: 659544.37 | CV27: 0 | CW27: 135126.86 | CX27: 0 | CY27: 19942.47 | CZ27: 157281.26 | DA27: 1754.79 | DB27: 314105.38 | DC27: 927002.09 | DD27: 445839.42 | DE27: 1770621.14 | DF27: -210591.95 | DG27: 3146575.65
C28: 22 | D28: その他の製造工業製品 | E28: 89.41 | F28: 91.21 | G28: 70.01 | H28: 44.68 | I28: 4740.6 | J28: 305.92 | K28: 816.68 | L28: 735.72 | M28: 771.99 | N28: 342.59 | O28: 1265.54 | P28: 4971.71 | Q28: 1303.67 | R28: 262.57 | S28: 65.7 | T28: 295.04 | U28: 55 | V28: 572.1 | W28: 316.22 | X28: 21.41 | Y28: 2250.18 | Z28: 4440.24 | AA28: 2327.65 | AB28: 2422.47 | AC28: 231.63 | AD28: 271.89 | AE28: 8793.13 | AF28: 5459.44 | AG28: 82.51 | AH28: 2188.88 | AI28: 14112.22 | AJ28: 4778.42 | AK28: 8721.25 | AL28: 4570.83 | AM28: 2493.45 | AN28: 10030.83 | AO28: 156.98 | AP28: 1137.86 | AQ28: 2332.89 | AR28: 2028.45 | AS28: 2912.39 | AT28: 107.76 | AU28: 98989.12 | AV28: 218.86 | AW28: 73.95 | AX28: 165.39 | AY28: 53.29 | AZ28: 4758.11 | BA28: 878.08 | BB28: 2591.83 | BC28: 1525.89 | BD28: 299.58 | BE28: 429.74 | BF28: 887.67 | BG28: 3116.12 | BH28: 4312.56 | BI28: 510.92 | BJ28: 213.79 | BK28: 770.19 | BL28: 730.29 | BM28: 1099.53 | BN28: 976.61 | BO28: 632.69 | BP28: 1331.14 | BQ28: 7694.22 | BR28: 3128.25 | BS28: 3306.07 | BT28: 243.46 | BU28: 279.99 | BV28: 8584.8 | BW28: 8413.57 | BX28: 84.55 | BY28: 1874.22 | BZ28: 17388.75 | CA28: 5183.49 | CB28: 11300.77 | CC28: 4125.44 | CD28: 3103.9 | CE28: 10957.6 | CF28: 237.75 | CG28: 1077.81 | CH28: 1774.82 | CI28: 2002.72 | CJ28: 3166.67 | CK28: 114.92 | CL28: 119620 | CM28: 218609.12 | CN28: 2870.12 | CO28: 40802.78 | CP28: 0.18 | CQ28: 1020.82 | CR28: 13253.99 | CS28: -1701.57 | CT28: 56246.32 | CU28: 155235.44 | CV28: 3243.85 | CW28: 45333.34 | CX28: 0.15 | CY28: 1660.99 | CZ28: 15795.65 | DA28: 700.93 | DB28: 66734.91 | DC28: 186354.91 | DD28: 122981.23 | DE28: 1830.53 | DF28: -61973.78 | DG28: 281447.1
C29: 23 | D29: 建設 | E29: 792.85 | F29: 35.95 | G29: 34.46 | H29: 70.91 | I29: 657.98 | J29: 89.5 | K29: 558.37 | L29: 1534.02 | M29: 188.89 | N29: 1095.39 | O29: 1912.3 | P29: 6187.57 | Q29: 303.76 | R29: 1374.8 | S29: 212.66 | T29: 533.57 | U29: 41.13 | V29: 792.62 | W29: 467.05 | X29: 16.35 | Y29: 1353.95 | Z29: 366.57 | AA29: 1135 | AB29: 9780.02 | AC29: 4722.8 | AD29: 511.94 | AE29: 11054.7 | AF29: 2199.58 | AG29: 22191.16 | AH29: 14029.82 | AI29: 6408.63 | AJ29: 10354.12 | AK29: 8753.97 | AL29: 6768.11 | AM29: 260.83 | AN29: 3174.49 | AO29: 229.02 | AP29: 1368.94 | AQ29: 1805.13 | AR29: 1331.15 | AS29: 0 | AT29: 0 | AU29: 124700.06 | AV29: 0 | AW29: 0 | AX29: 0 | AY29: 0 | AZ29: 0 | BA29: 0 | BB29: 0 | BC29: 0 | BD29: 0 | BE29: 0 | BF29: 0 | BG29: 0 | BH29: 0 | BI29: 0 | BJ29: 0 | BK29: 0 | BL29: 0 | BM29: 0 | BN29: 0 | BO29: 0 | BP29: 0 | BQ29: 0 | BR29: 0 | BS29: 0 | BT29: 0 | BU29: 0 | BV29: 0 | BW29: 0 | BX29: 0 | BY29: 0 | BZ29: 0 | CA29: 0 | CB29: 0 | CC29: 0 | CD29: 0 | CE29: 0 | CF29: 0 | CG29: 0 | CH29: 0 | CI29: 0 | CJ29: 0 | CK29: 0 | CL29: 0 | CM29: 124700.06 | CN29: 0 | CO29: 0 | CP29: 0 | CQ29: 698698.12 | CR29: 1164894.7 | CS29: 0 | CT29: 1863592.82 | CU29: 1988292.88 | CV29: 0 | CW29: 0 | CX29: 0 | CY29: 0 | CZ29: 0 | DA29: 0 | DB29: 0 | DC29: 0 | DD29: 1863592.82 | DE29: 0 | DF29: 0 | DG29: 1988292.88
C30: 24 | D30: 電力・ガス・熱供給 | E30: 2170.19 | F30: 221.65 | G30: 161.73 | H30: 829.84 | I30: 13669.88 | J30: 1057.73 | K30: 3413.26 | L30: 17242.42 | M30: 1014.29 | N30: 13479.28 | O30: 18837.09 | P30: 57428.84 | Q30: 3357.54 | R30: 6156.96 | S30: 1141.17 | T30: 2726.15 | U30: 219.87 | V30: 6081.91 | W30: 2139.82 | X30: 51.19 | Y30: 23178.28 | Z30: 4706.63 | AA30: 4860.85 | AB30: 45193.18 | AC30: 5636.08 | AD30: 10690.27 | AE30: 64525.62 | AF30: 3601.4 | AG30: 10133.17 | AH30: 21129.64 | AI30: 8545.74 | AJ30: 13343.56 | AK30: 30396.32 | AL30: 29196.89 | AM30: 517.89 | AN30: 11476.71 | AO30: 5900.37 | AP30: 31641.73 | AQ30: 12016.9 | AR30: 11940.79 | AS30: 0 | AT30: 613.81 | AU30: 500646.64 | AV30: 7.58 | AW30: 0.43 | AX30: 0.82 | AY30: 2.36 | AZ30: 37.37 | BA30: 8.26 | BB30: 38.34 | BC30: 59.91 | BD30: 9.69 | BE30: 33.22 | BF30: 24.32 | BG30: 83.78 | BH30: 23.48 | BI30: 20.15 | BJ30: 10.64 | BK30: 13.37 | BL30: 5.09 | BM30: 28.45 | BN30: 10.98 | BO30: 2.3 | BP30: 49.22 | BQ30: 13.01 | BR30: 14.53 | BS30: 156.88 | BT30: 14.04 | BU30: 26.43 | BV30: 157.27 | BW30: 13.12 | BX30: 23.67 | BY30: 50.85 | BZ30: 20.91 | CA30: 34.94 | CB30: 61.19 | CC30: 61.6 | CD30: 1.5 | CE30: 29.42 | CF30: 21.26 | CG30: 72.66 | CH30: 22.77 | CI30: 26.75 | CJ30: 0 | CK30: 1.56 | CL30: 1294.12 | CM30: 501940.76 | CN30: 184.17 | CO30: 209417.65 | CP30: 0 | CQ30: 0 | CR30: 0 | CS30: 0 | CT30: 209601.82 | CU30: 710248.46 | CV30: 0.49 | CW30: 503.57 | CX30: 0 | CY30: 0 | CZ30: 0 | DA30: 0 | DB30: 504.06 | DC30: 1798.18 | DD30: 210105.88 | DE30: 2392.96 | DF30: -28.31 | DG30: 714411.29
C31: 25 | D31: 水道 | E31: 126.07 | F31: 5.84 | G31: 6.65 | H31: 59.45 | I31: 2413.46 | J31: 45.49 | K31: 152.19 | L31: 1397.01 | M31: 216.56 | N31: 304.31 | O31: 306.59 | P31: 1569.01 | Q31: 88.86 | R31: 198.51 | S31: 74.36 | T31: 144.72 | U31: 13.99 | V31: 249.27 | W31: 143.64 | X31: 3.61 | Y31: 1147.85 | Z31: 219.6 | AA31: 1263.74 | AB31: 471.56 | AC31: 13021.14 | AD31: 1549.67 | AE31: 7638 | AF31: 1055.4 | AG31: 1181.83 | AH31: 7281.76 | AI31: 3715.38 | AJ31: 5124.32 | AK31: 14172.12 | AL31: 13686.28 | AM31: 298.17 | AN31: 1816.36 | AO31: 1423.21 | AP31: 9571.25 | AQ31: 2194.58 | AR31: 4261.16 | AS31: 0 | AT31: 221.57 | AU31: 98834.54 | AV31: 11.33 | AW31: 0.27 | AX31: 0.48 | AY31: 3.61 | AZ31: 115.97 | BA31: 9.83 | BB31: 40.01 | BC31: 113.29 | BD31: 13.42 | BE31: 21.79 | BF31: 12.78 | BG31: 41.87 | BH31: 11.61 | BI31: 13.04 | BJ31: 10.9 | BK31: 15.88 | BL31: 7.54 | BM31: 39.27 | BN31: 15.69 | BO31: 2.36 | BP31: 33.62 | BQ31: 13.26 | BR31: 74.51 | BS31: 31.43 | BT31: 674.43 | BU31: 73.01 | BV31: 353.7 | BW31: 73.5 | BX31: 53.05 | BY31: 325.52 | BZ31: 145.04 | CA31: 262.17 | CB31: 636.21 | CC31: 525.77 | CD31: 16.53 | CE31: 90.04 | CF31: 97.7 | CG31: 417.51 | CH31: 72.25 | CI31: 188.78 | CJ31: 0 | CK31: 10.72 | CL31: 4669.69 | CM31: 103504.23 | CN31: 86.66 | CO31: 67654.8 | CP31: 1131.27 | CQ31: 0 | CR31: 0 | CS31: 0 | CT31: 68872.73 | CU31: 167707.27 | CV31: 4.44 | CW31: 3132.96 | CX31: -365.55 | CY31: 0 | CZ31: 0 | DA31: 0 | DB31: 2771.85 | DC31: 7441.54 | DD31: 71644.58 | DE31: 820.89 | DF31: -48.03 | DG31: 175921.67
C32: 26 | D32: 廃棄物処理 | E32: 80.93 | F32: 5.12 | G32: 0.29 | H32: 54.12 | I32: 967.87 | J32: 8.57 | K32: 74.91 | L32: 1118.32 | M32: 19.65 | N32: 80.57 | O32: 645.87 | P32: 208.2 | Q32: 8.87 | R32: 29.65 | S32: 33.16 | T32: 10.11 | U32: 4.4 | V32: 168.84 | W32: 78.86 | X32: 2.29 | Y32: 538.66 | Z32: 109.37 | AA32: 3456.55 | AB32: 5912.23 | AC32: 301.11 | AD32: 0 | AE32: 5027.52 | AF32: 2821.06 | AG32: 38.52 | AH32: 10015.15 | AI32: 7684.35 | AJ32: 34258.88 | AK32: 9392.33 | AL32: 10657.67 | AM32: 5.05 | AN32: 886.42 | AO32: 6112.6 | AP32: 17388.5 | AQ32: 4832.14 | AR32: 6911.52 | AS32: 0 | AT32: 2428.15 | AU32: 132378.38 | AV32: 12.15 | AW32: 0.33 | AX32: 0.17 | AY32: 4.85 | AZ32: 74.95 | BA32: 2.09 | BB32: 22.91 | BC32: 160.47 | BD32: 0.47 | BE32: 2.43 | BF32: 36.87 | BG32: 8.94 | BH32: 3.83 | BI32: 2.44 | BJ32: 7.31 | BK32: 1.02 | BL32: 8.77 | BM32: 25.42 | BN32: 9.43 | BO32: 2.54 | BP32: 49.86 | BQ32: 8.3 | BR32: 287.03 | BS32: 627.24 | BT32: 22.2 | BU32: 0 | BV32: 311.15 | BW32: 277.92 | BX32: 2.53 | BY32: 671.91 | BZ32: 434.85 | CA32: 2690.42 | CB32: 505.71 | CC32: 602.1 | CD32: 0.39 | CE32: 53.96 | CF32: 594.91 | CG32: 1072.69 | CH32: 268.51 | CI32: 408.85 | CJ32: 0 | CK32: 166.43 | CL32: 9444.35 | CM32: 141822.73 | CN32: 0 | CO32: 17370.37 | CP32: 15527.55 | CQ32: 0 | CR32: 0 | CS32: 0 | CT32: 32897.92 | CU32: 165276.3 | CV32: 0 | CW32: 706 | CX32: 1968.84 | CY32: 0 | CZ32: 0 | DA32: 0 | DB32: 2674.84 | DC32: 12119.19 | DD32: 35572.76 | DE32: 334.69 | DF32: -9.58 | DG32: 177720.6
C33: 27 | D33: 商業 | E33: 10859.57 | F33: 533.48 | G33: 1307.02 | H33: 329.25 | I33: 55474.72 | J33: 2104.95 | K33: 10600.67 | L33: 13194.81 | M33: 1679.22 | N33: 17337.04 | O33: 5746.03 | P33: 24007.9 | Q33: 2811.06 | R33: 9374.42 | S33: 3165.83 | T33: 7980.37 | U33: 767.27 | V33: 6874.04 | W33: 7973.14 | X33: 205.67 | Y33: 52191.53 | Z33: 10695.8 | AA33: 63008.46 | AB33: 7586.18 | AC33: 1844.34 | AD33: 1641.39 | AE33: 25782.81 | AF33: 2921.44 | AG33: 2185.72 | AH33: 37180.52 | AI33: 10931.73 | AJ33: 8588.03 | AK33: 14660.52 | AL33: 90920.1 | AM33: 3394.59 | AN33: 33732.4 | AO33: 4179.7 | AP33: 82601.54 | AQ33: 5540.96 | AR33: 9467.25 | AS33: 7217.82 | AT33: 1045.78 | AU33: 659645.07 | AV33: 17672.57 | AW33: 474.82 | AX33: 2348.61 | AY33: 421.85 | AZ33: 66142.46 | BA33: 6475.65 | BB33: 22761.64 | BC33: 26235.36 | BD33: 4362.68 | BE33: 18997.89 | BF33: 5447.02 | BG33: 14369.4 | BH33: 8251 | BI33: 12574.27 | BJ33: 11137.73 | BK33: 16274.21 | BL33: 8141.33 | BM33: 13639.12 | BN33: 19815.77 | BO33: 5756.53 | BP33: 51147.28 | BQ33: 16890.55 | BR33: 81547.31 | BS33: 10599.33 | BT33: 1942.9 | BU33: 1730.81 | BV33: 24655.09 | BW33: 4571.91 | BX33: 2413.89 | BY33: 35625.18 | BZ33: 14601.22 | CA33: 9406.67 | CB33: 19963.03 | CC33: 80796.13 | CD33: 4077.35 | CE33: 33095.74 | CF33: 6433.22 | CG33: 81221.99 | CH33: 4696.18 | CI33: 9248.18 | CJ33: 7976.12 | CK33: 1133.57 | CL33: 785073.56 | CM33: 1444718.63 | CN33: 34848.8 | CO33: 972992.52 | CP33: 287.34 | CQ33: 6450.11 | CR33: 134987.48 | CS33: 3782.47 | CT33: 1153348.72 | CU33: 1812993.79 | CV33: 40029.58 | CW33: 1160192.79 | CX33: 244.41 | CY33: 12107.61 | CZ33: 166416.18 | DA33: 4371.16 | DB33: 1383361.73 | DC33: 2168435.29 | DD33: 2536710.45 | DE33: 184480.64 | DF33: -5934.26 | DG33: 4159975.46
C34: 28 | D34: 金融・保険 | E34: 1263.64 | F34: 121.48 | G34: 266.32 | H34: 899.79 | I34: 8663.32 | J34: 735.82 | K34: 2251.65 | L34: 3242.8 | M34: 582.61 | N34: 2097.15 | O34: 2773.35 | P34: 6526.78 | Q34: 778.41 | R34: 3524.73 | S34: 741.12 | T34: 2032.94 | U34: 330.01 | V34: 1216.24 | W34: 1458.2 | X34: 88.88 | Y34: 10657.36 | Z34: 3218.06 | AA34: 20766.73 | AB34: 9715.02 | AC34: 3564.75 | AD34: 4613.36 | AE34: 59627.14 | AF34: 35683.52 | AG34: 170605.04 | AH34: 46587.44 | AI34: 9082.11 | AJ34: 27076.27 | AK34: 13436.24 | AL34: 20981.94 | AM34: 3113.64 | AN34: 22804.49 | AO34: 2299.91 | AP34: 5537.13 | AQ34: 3548.04 | AR34: 1638.26 | AS34: 0 | AT34: 429.77 | AU34: 514581.46 | AV34: 13.6 | AW34: 1.57 | AX34: 3.73 | AY34: 7.94 | AZ34: 50.13 | BA34: 15.34 | BB34: 26.56 | BC34: 42.55 | BD34: 13.4 | BE34: 12.78 | BF34: 15.47 | BG34: 25.91 | BH34: 16.72 | BI34: 30.92 | BJ34: 16.5 | BK34: 27.21 | BL34: 17.77 | BM34: 19.79 | BN34: 22.79 | BO34: 8.14 | BP34: 54.62 | BQ34: 33.68 | BR34: 176.23 | BS34: 93.75 | BT34: 24.68 | BU34: 30.35 | BV34: 373.76 | BW34: 380.71 | BX34: 1418.48 | BY34: 286.68 | BZ34: 64.19 | CA34: 192.3 | CB34: 73.17 | CC34: 134.58 | CD34: 26.42 | CE34: 150.06 | CF34: 23.41 | CG34: 35.79 | CH34: 19.38 | CI34: 11.26 | CJ34: 0 | CK34: 3.08 | CL34: 3995.4 | CM34: 518576.86 | CN34: 8.56 | CO34: 449957.64 | CP34: 0 | CQ34: 0 | CR34: 0 | CS34: 0 | CT34: 449966.2 | CU34: 964547.66 | CV34: 0.07 | CW34: 4119.4 | CX34: 0 | CY34: 0 | CZ34: 0 | DA34: 0 | DB34: 4119.47 | DC34: 8114.87 | DD34: 454085.67 | DE34: 68640.74 | DF34: -43822.87 | DG34: 997480.4
C35: 29 | D35: 不動産 | E35: 887.38 | F35: 31.32 | G35: 25.94 | H35: 119.82 | I35: 3232.55 | J35: 182.84 | K35: 643.46 | L35: 1201.64 | M35: 90.97 | N35: 1285.31 | O35: 840.17 | P35: 2031 | Q35: 115.74 | R35: 1410.01 | S35: 411.95 | T35: 1052.97 | U35: 42.26 | V35: 384.08 | W35: 665.85 | X35: 19.22 | Y35: 2757.87 | Z35: 916.56 | AA35: 8686.97 | AB35: 3627.27 | AC35: 209.36 | AD35: 339.44 | AE35: 109470.15 | AF35: 13480.69 | AG35: 91474.04 | AH35: 48736.05 | AI35: 32073.92 | AJ35: 2504.53 | AK35: 7706.23 | AL35: 47577.18 | AM35: 2651.03 | AN35: 22941.68 | AO35: 1375.52 | AP35: 11156.85 | AQ35: 3184.33 | AR35: 12281.18 | AS35: 0 | AT35: 5300.79 | AU35: 443126.12 | AV35: 24.3 | AW35: 0.89 | AX35: 1.28 | AY35: 8.11 | AZ35: 99.53 | BA35: 15.52 | BB35: 32.5 | BC35: 77.82 | BD35: 7.09 | BE35: 50.38 | BF35: 22.92 | BG35: 36.64 | BH35: 10.04 | BI35: 54.64 | BJ35: 32.4 | BK35: 48.63 | BL35: 15.47 | BM35: 25.22 | BN35: 47.78 | BO35: 15.77 | BP35: 47.15 | BQ35: 33.94 | BR35: 314.69 | BS35: 159.2 | BT35: 7.15 | BU35: 10.18 | BV35: 2995.41 | BW35: 620.92 | BX35: 2725.47 | BY35: 1189.99 | BZ35: 1322.14 | CA35: 71.78 | CB35: 392.23 | CC35: 1224.37 | CD35: 92.56 | CE35: 653.08 | CF35: 61.77 | CG35: 311.09 | CH35: 82.33 | CI35: 346.2 | CJ35: 0 | CK35: 167.64 | CL35: 13456.22 | CM35: 456582.34 | CN35: 0 | CO35: 2025465.52 | CP35: 884.01 | CQ35: 0 | CR35: 100943.28 | CS35: 0 | CT35: 2127292.81 | CU35: 2570418.93 | CV35: 0 | CW35: 75147.24 | CX35: 24.84 | CY35: 0 | CZ35: 3237.65 | DA35: 0 | DB35: 78409.73 | DC35: 91865.95 | DD35: 2205702.54 | DE35: 1843.31 | DF35: -55.96 | DG35: 2664072.23
C36: 30 | D36: 運輸・郵便 | E36: 12602.28 | F36: 901.9 | G36: 1307.55 | H36: 6386.08 | I36: 42667.5 | J36: 1071.56 | K36: 7779.83 | L36: 12627.95 | M36: 4292.66 | N36: 7808.61 | O36: 16299.89 | P36: 31861.65 | Q36: 2551.77 | R36: 9154.73 | S36: 2469.88 | T36: 5788.51 | U36: 566.64 | V36: 4378.41 | W36: 4788.56 | X36: 154.03 | Y36: 51926.66 | Z36: 29872.24 | AA36: 76271.17 | AB36: 24050.89 | AC36: 3096.95 | AD36: 10272.04 | AE36: 201327.72 | AF36: 29578.38 | AG36: 7746.47 | AH36: 233784.86 | AI36: 40287.17 | AJ36: 46586.24 | AK36: 39180.64 | AL36: 41653.61 | AM36: 5091.22 | AN36: 41139.31 | AO36: 13113.63 | AP36: 25929.37 | AQ36: 14963.74 | AR36: 17275.35 | AS36: 2368.69 | AT36: 14501.04 | AU36: 1145477.38 | AV36: 7046.57 | AW36: 536.05 | AX36: 788.83 | AY36: 1991.4 | AZ36: 14262.09 | BA36: 1086.08 | BB36: 5477.98 | BC36: 8162.78 | BD36: 3855.27 | BE36: 3063.95 | BF36: 4208.86 | BG36: 6170.52 | BH36: 3164.3 | BI36: 3855.6 | BJ36: 2554.63 | BK36: 3627.98 | BL36: 1925.31 | BM36: 3003.12 | BN36: 3891.07 | BO36: 1369.41 | BP36: 9626.04 | BQ36: 10299.3 | BR36: 30449.53 | BS36: 10897.1 | BT36: 1016.91 | BU36: 3438.55 | BV36: 57830.09 | BW36: 14494.81 | BX36: 2409.85 | BY36: 75199.08 | BZ36: 15548.7 | CA36: 15593.28 | CB36: 13047.42 | CC36: 11710.16 | CD36: 1929.4 | CE36: 13421.3 | CF36: 6267.43 | CG36: 8150.53 | CH36: 3899.15 | CI36: 5090.37 | CJ36: 844.02 | CK36: 5038.08 | CL36: 396242.9 | CM36: 1541720.28 | CN36: 12772.55 | CO36: 382599.22 | CP36: 1028.1 | CQ36: 948.52 | CR36: 22549.42 | CS36: 1574.56 | CT36: 421472.37 | CU36: 1566949.75 | CV36: 4734.8 | CW36: 172348.05 | CX36: 604.91 | CY36: 688.82 | CZ36: 8792.36 | DA36: 573.24 | DB36: 187742.18 | DC36: 583985.08 | DD36: 609214.55 | DE36: 228003.97 | DF36: -102095.98 | DG36: 2276842.82
C37: 31 | D37: 情報通信 | E37: 863.29 | F37: 16.51 | G37: 136 | H37: 176.74 | I37: 5616.85 | J37: 231.33 | K37: 1206.4 | L37: 5433.52 | M37: 98.31 | N37: 2937.45 | O37: 1519 | P37: 3844.17 | Q37: 357.81 | R37: 1896.36 | S37: 787.2 | T37: 2781.1 | U37: 196.89 | V37: 2022.4 | W37: 2999.32 | X37: 182.45 | Y37: 7285.2 | Z37: 1641.29 | AA37: 13542.94 | AB37: 6239.62 | AC37: 5729.88 | AD37: 1507.15 | AE37: 123111.01 | AF37: 44600.17 | AG37: 9474 | AH37: 23026.03 | AI37: 282784.3 | AJ37: 37380.6 | AK37: 28218.44 | AL37: 31556 | AM37: 8747.61 | AN37: 159506.55 | AO37: 2865.78 | AP37: 15346.72 | AQ37: 13020.45 | AR37: 7206.63 | AS37: 0 | AT37: 11056.09 | AU37: 867149.56 | AV37: 173.39 | AW37: 5.41 | AX37: 36.69 | AY37: 30.03 | AZ37: 769.92 | BA37: 89.95 | BB37: 332.88 | BC37: 1549.83 | BD37: 54.3 | BE37: 384.28 | BF37: 174.55 | BG37: 303.54 | BH37: 140.07 | BI37: 321.44 | BJ37: 319.41 | BK37: 783.38 | BL37: 243.42 | BM37: 556 | BN37: 901.62 | BO37: 475.71 | BP37: 679.7 | BQ37: 301.37 | BR37: 2359.82 | BS37: 1211.98 | BT37: 781.64 | BU37: 207.6 | BV37: 15513.58 | BW37: 9045.75 | BX37: 1204.61 | BY37: 2446.96 | BZ37: 36847.43 | CA37: 5278.02 | CB37: 5598.66 | CC37: 3696.51 | CD37: 1353.77 | CE37: 25047.95 | CF37: 570.19 | CG37: 1975.01 | CH37: 1357.57 | CI37: 929.81 | CJ37: 0 | CK37: 1549.18 | CL37: 125602.93 | CM37: 992752.49 | CN37: 5327.81 | CO37: 437848.13 | CP37: 1312.2 | CQ37: 17301.21 | CR37: 136782.59 | CS37: -846.46 | CT37: 597725.48 | CU37: 1464875.04 | CV37: 791.11 | CW37: 57834.54 | CX37: 157.46 | CY37: 4694.14 | CZ37: 37022.41 | DA37: -118 | DB37: 100381.66 | DC37: 225984.59 | DD37: 698107.14 | DE37: 26458.51 | DF37: -71958.88 | DG37: 1645359.26
C38: 32 | D38: 公務 | E38: 0 | F38: 0 | G38: 0 | H38: 0 | I38: 0 | J38: 0 | K38: 0 | L38: 0 | M38: 0 | N38: 0 | O38: 0 | P38: 0 | Q38: 0 | R38: 0 | S38: 0 | T38: 0 | U38: 0 | V38: 0 | W38: 0 | X38: 0 | Y38: 0 | Z38: 0 | AA38: 0 | AB38: 0 | AC38: 0 | AD38: 0 | AE38: 0 | AF38: 0 | AG38: 0 | AH38: 0 | AI38: 0 | AJ38: 0 | AK38: 0 | AL38: 0 | AM38: 0 | AN38: 0 | AO38: 0 | AP38: 0 | AQ38: 0 | AR38: 0 | AS38: 0 | AT38: 41904.38 | AU38: 41904.38 | AV38: 0 | AW38: 0 | AX38: 0 | AY38: 0 | AZ38: 0 | BA38: 0 | BB38: 0 | BC38: 0 | BD38: 0 | BE38: 0 | BF38: 0 | BG38: 0 | BH38: 0 | BI38: 0 | BJ38: 0 | BK38: 0 | BL38: 0 | BM38: 0 | BN38: 0 | BO38: 0 | BP38: 0 | BQ38: 0 | BR38: 0 | BS38: 0 | BT38: 0 | BU38: 0 | BV38: 0 | BW38: 0 | BX38: 0 | BY38: 0 | BZ38: 0 | CA38: 0 | CB38: 0 | CC38: 0 | CD38: 0 | CE38: 0 | CF38: 0 | CG38: 0 | CH38: 0 | CI38: 0 | CJ38: 0 | CK38: 0 | CL38: 0 | CM38: 41904.38 | CN38: 0 | CO38: 33873.06 | CP38: 1263947.88 | CQ38: 0 | CR38: 0 | CS38: 0 | CT38: 1297820.94 | CU38: 1339725.32 | CV38: 0 | CW38: 0 | CX38: 0 | CY38: 0 | CZ38: 0 | DA38: 0 | DB38: 0 | DC38: 0 | DD38: 1297820.94 | DE38: 0 | DF38: 0 | DG38: 1339725.32
C39: 33 | D39: 教育・研究 | E39: 15.96 | F39: 1.01 | G39: 0.01 | H39: 19.76 | I39: 293.88 | J39: 0.75 | K39: 35.39 | L39: 168.89 | M39: 0.59 | N39: 38.31 | O39: 150.87 | P39: 104.49 | Q39: 1.8 | R39: 135.18 | S39: 102.73 | T39: 144.7 | U39: 8.9 | V39: 277.6 | W39: 321.31 | X39: 10.68 | Y39: 457.41 | Z39: 9.67 | AA39: 291.71 | AB39: 351.53 | AC39: 15.97 | AD39: 25.74 | AE39: 785.95 | AF39: 197.39 | AG39: 3.41 | AH39: 2291.36 | AI39: 6798.58 | AJ39: 213.4 | AK39: 1.85 | AL39: 266.8 | AM39: 0 | AN39: 1267.45 | AO39: 29.25 | AP39: 470.08 | AQ39: 77.34 | AR39: 313.14 | AS39: 0 | AT39: 26.31 | AU39: 15727.15 | AV39: 0.41 | AW39: 0.12 | AX39: 0 | AY39: 0.25 | AZ39: 10.7 | BA39: 0.08 | BB39: 1.97 | BC39: 9.18 | BD39: 0.12 | BE39: 1.79 | BF39: 2.44 | BG39: 1.67 | BH39: 0.16 | BI39: 4.78 | BJ39: 6.95 | BK39: 6.93 | BL39: 2.35 | BM39: 16.05 | BN39: 18.52 | BO39: 8.76 | BP39: 10.68 | BQ39: 0.51 | BR39: 9.9 | BS39: 14.3 | BT39: 0.5 | BU39: 0.74 | BV39: 20.66 | BW39: 8.2 | BX39: 0.09 | BY39: 68.48 | BZ39: 213.43 | CA39: 5.28 | CB39: 0.05 | CC39: 6.4 | CD39: 0 | CE39: 40.2 | CF39: 1.21 | CG39: 12.09 | CH39: 2.2 | CI39: 9.03 | CJ39: 0 | CK39: 0.76 | CL39: 517.94 | CM39: 16245.09 | CN39: 0 | CO39: 314875.47 | CP39: 810556.74 | CQ39: 90321.18 | CR39: 326731.56 | CS39: 0 | CT39: 1542484.95 | CU39: 1558212.1 | CV39: 0 | CW39: 9544.22 | CX39: 17966.6 | CY39: 2942.1 | CZ39: 15765.72 | DA39: 0 | DB39: 46218.64 | DC39: 46736.58 | DD39: 1588703.59 | DE39: 28614.76 | DF39: -63530.15 | DG39: 1570033.29
C40: 34 | D40: 医療・福祉 | E40: 199.25 | F40: 0 | G40: 0 | H40: 0 | I40: 0 | J40: 0 | K40: 0.26 | L40: 7.51 | M40: 0 | N40: 0.32 | O40: 0 | P40: 4.2 | Q40: 0 | R40: 0 | S40: 0 | T40: 0 | U40: 0 | V40: 0 | W40: 0 | X40: 0 | Y40: 0 | Z40: 3.97 | AA40: 2.16 | AB40: 11.39 | AC40: 44.59 | AD40: 0 | AE40: 97.59 | AF40: 144.14 | AG40: 21.39 | AH40: 2871.1 | AI40: 1175.85 | AJ40: 41.12 | AK40: 29.39 | AL40: 48697.38 | AM40: 1.86 | AN40: 97.3 | AO40: 0.51 | AP40: 108.06 | AQ40: 41.73 | AR40: 21.64 | AS40: 0 | AT40: 409.95 | AU40: 54032.66 | AV40: 8.87 | AW40: 0 | AX40: 0 | AY40: 0 | AZ40: 0 | BA40: 0 | BB40: 0.07 | BC40: 0.84 | BD40: 0 | BE40: 0.03 | BF40: 0 | BG40: 0.09 | BH40: 0 | BI40: 0 | BJ40: 0 | BK40: 0 | BL40: 0 | BM40: 0 | BN40: 0 | BO40: 0 | BP40: 0 | BQ40: 0.2 | BR40: 0.14 | BS40: 1.24 | BT40: 2.42 | BU40: 0 | BV40: 4.46 | BW40: 10.39 | BX40: 0.97 | BY40: 112.52 | BZ40: 50.49 | CA40: 1.98 | CB40: 1.92 | CC40: 1910.03 | CD40: 0.11 | CE40: 5.5 | CF40: 0.04 | CG40: 4.92 | CH40: 1.66 | CI40: 1.16 | CJ40: 0 | CK40: 20.65 | CL40: 2140.7 | CM40: 56173.36 | CN40: 27118.77 | CO40: 609727.15 | CP40: 2193067.64 | CQ40: 0 | CR40: 0 | CS40: 0 | CT40: 2829913.56 | CU40: 2883946.22 | CV40: 1447.84 | CW40: 28210.51 | CX40: 89252.05 | CY40: 0 | CZ40: 0 | DA40: 0 | DB40: 118910.4 | DC40: 121051.1 | DD40: 2948823.96 | DE40: 9.5 | DF40: -111.76 | DG40: 3004895.06
C41: 35 | D41: 他に分類されない会員制団体 | E41: 50.03 | F41: 4.1 | G41: 318.13 | H41: 69.66 | I41: 1742.76 | J41: 31.86 | K41: 390.95 | L41: 1117.76 | M41: 46.12 | N41: 531.51 | O41: 299.3 | P41: 1204.03 | Q41: 42.2 | R41: 270.09 | S41: 246.13 | T41: 457.53 | U41: 23.88 | V41: 183.51 | W41: 191.07 | X41: 5.61 | Y41: 675.99 | Z41: 249.9 | AA41: 1934.75 | AB41: 953.24 | AC41: 1400.8 | AD41: 349.3 | AE41: 2138.49 | AF41: 2676.27 | AG41: 1050.99 | AH41: 2862.66 | AI41: 2170.28 | AJ41: 4.74 | AK41: 2264.12 | AL41: 2932.78 | AM41: 0 | AN41: 5632.31 | AO41: 194.87 | AP41: 1694.16 | AQ41: 4134.11 | AR41: 1002.25 | AS41: 0 | AT41: 818.76 | AU41: 42367 | AV41: 1.63 | AW41: 0.13 | AX41: 17.1 | AY41: 3.32 | AZ41: 46.17 | BA41: 3.29 | BB41: 16.18 | BC41: 65.76 | BD41: 3.55 | BE41: 10.41 | BF41: 7.82 | BG41: 23.85 | BH41: 4.36 | BI41: 12.96 | BJ41: 30.88 | BK41: 40.22 | BL41: 13.71 | BM41: 12.92 | BN41: 13.39 | BO41: 5.93 | BP41: 15.49 | BQ41: 10.58 | BR41: 89.23 | BS41: 49.11 | BT41: 55.23 | BU41: 12.55 | BV41: 72.22 | BW41: 140.32 | BX41: 34.76 | BY41: 89.6 | BZ41: 86.3 | CA41: 0.15 | CB41: 119.52 | CC41: 87.84 | CD41: 0 | CE41: 198.92 | CF41: 10.15 | CG41: 55.67 | CH41: 99.46 | CI41: 34.76 | CJ41: 0 | CK41: 30.02 | CL41: 1625.46 | CM41: 43992.46 | CN41: 0 | CO41: 113026.98 | CP41: 0 | CQ41: 0 | CR41: 0 | CS41: 0 | CT41: 113026.98 | CU41: 155393.98 | CV41: 0 | CW41: 4394.45 | CX41: 0 | CY41: 0 | CZ41: 0 | DA41: 0 | DB41: 4394.45 | DC41: 6019.91 | DD41: 117421.43 | DE41: 1360.13 | DF41: -4019.14 | DG41: 158754.88
C42: 36 | D42: 対事業所サービス | E42: 4280.24 | F42: 348.6 | G42: 353.55 | H42: 911.27 | I42: 47438.11 | J42: 1402.32 | K42: 5184.21 | L42: 18959.85 | M42: 1304.03 | N42: 16139.29 | O42: 12941.02 | P42: 15444.44 | Q42: 1585.68 | R42: 8763.4 | S42: 5428.61 | T42: 11199.66 | U42: 742.78 | V42: 11141.85 | W42: 10106.83 | X42: 292.93 | Y42: 69547.88 | Z42: 10638.87 | AA42: 156267.01 | AB42: 34259.56 | AC42: 20217.04 | AD42: 9836.04 | AE42: 285591.9 | AF42: 91773.78 | AG42: 76793.77 | AH42: 242091.2 | AI42: 220568.62 | AJ42: 115073.52 | AK42: 89099.21 | AL42: 124042.76 | AM42: 10105.48 | AN42: 309622.39 | AO42: 2950.93 | AP42: 30936.41 | AQ42: 18810.39 | AR42: 17403.63 | AS42: 0 | AT42: 6017.89 | AU42: 2115616.95 | AV42: 1121.43 | AW42: 97.22 | AX42: 98.48 | AY42: 220.52 | AZ42: 6754.7 | BA42: 629.8 | BB42: 1397.75 | BC42: 7107.17 | BD42: 431.6 | BE42: 2758.55 | BF42: 1723.05 | BG42: 1514.92 | BH42: 727.67 | BI42: 1779.49 | BJ42: 2193.17 | BK42: 2983.97 | BL42: 1241.76 | BM42: 3221.74 | BN42: 3310.03 | BO42: 1056.76 | BP42: 7781.49 | BQ42: 2040.31 | BR42: 29535.23 | BS42: 8249.21 | BT42: 3173.83 | BU42: 1579.03 | BV42: 42008.3 | BW42: 21558.75 | BX42: 11535.32 | BY42: 32607.68 | BZ42: 42947.43 | CA42: 18936.9 | CB42: 16104 | CC42: 16365.68 | CD42: 1794.81 | CE42: 53880.82 | CF42: 679.71 | CG42: 4544.17 | CH42: 2432.23 | CI42: 2655.64 | CJ42: 0 | CK42: 976.19 | CL42: 361756.51 | CM42: 2477373.46 | CN42: 2445.3 | CO42: 121342.35 | CP42: 0 | CQ42: 901.33 | CR42: 9296 | CS42: 0 | CT42: 133984.98 | CU42: 2249601.93 | CV42: 420.35 | CW42: 21255.65 | CX42: 0 | CY42: 944.87 | CZ42: 9744.95 | DA42: 0 | DB42: 32365.82 | DC42: 394122.33 | DD42: 166350.8 | DE42: 122919.89 | DF42: -118475.31 | DG42: 2648168.84
C43: 37 | D43: 宿泊業 | E43: 0 | F43: 0 | G43: 0 | H43: 0 | I43: 0 | J43: 0 | K43: 0 | L43: 0 | M43: 0 | N43: 0 | O43: 0 | P43: 0 | Q43: 0 | R43: 0 | S43: 0 | T43: 0 | U43: 0 | V43: 0 | W43: 0 | X43: 0 | Y43: 0 | Z43: 0 | AA43: 0 | AB43: 0 | AC43: 0 | AD43: 0 | AE43: 0 | AF43: 0 | AG43: 0 | AH43: 0 | AI43: 0 | AJ43: 0 | AK43: 0 | AL43: 0 | AM43: 0 | AN43: 0 | AO43: 0 | AP43: 0 | AQ43: 0 | AR43: 0 | AS43: 0 | AT43: 0 | AU43: 0 | AV43: 0 | AW43: 0 | AX43: 0 | AY43: 0 | AZ43: 0 | BA43: 0 | BB43: 0 | BC43: 0 | BD43: 0 | BE43: 0 | BF43: 0 | BG43: 0 | BH43: 0 | BI43: 0 | BJ43: 0 | BK43: 0 | BL43: 0 | BM43: 0 | BN43: 0 | BO43: 0 | BP43: 0 | BQ43: 0 | BR43: 0 | BS43: 0 | BT43: 0 | BU43: 0 | BV43: 0 | BW43: 0 | BX43: 0 | BY43: 0 | BZ43: 0 | CA43: 0 | CB43: 0 | CC43: 0 | CD43: 0 | CE43: 0 | CF43: 0 | CG43: 0 | CH43: 0 | CI43: 0 | CJ43: 0 | CK43: 0 | CL43: 0 | CM43: 0 | CN43: 10645.13 | CO43: 19552.51 | CP43: 0 | CQ43: 0 | CR43: 0 | CS43: 0 | CT43: 30197.64 | CU43: 30197.64 | CV43: 37631.62 | CW43: 62243.08 | CX43: 0 | CY43: 0 | CZ43: 0 | DA43: 0 | DB43: 99874.7 | DC43: 99874.7 | DD43: 130072.34 | DE43: 31244.25 | DF43: -18712.95 | DG43: 142603.64
C44: 38 | D44: 飲食サービス | E44: 0 | F44: 0 | G44: 0 | H44: 0 | I44: 0 | J44: 0 | K44: 0 | L44: 0 | M44: 0 | N44: 0 | O44: 0 | P44: 0 | Q44: 0 | R44: 0 | S44: 0 | T44: 0 | U44: 0 | V44: 0 | W44: 0 | X44: 0 | Y44: 0 | Z44: 0 | AA44: 0 | AB44: 0 | AC44: 0 | AD44: 0 | AE44: 0 | AF44: 0 | AG44: 0 | AH44: 0 | AI44: 0 | AJ44: 0 | AK44: 2999.59 | AL44: 6413.99 | AM44: 0 | AN44: 0 | AO44: 1828.75 | AP44: 7378.7 | AQ44: 0 | AR44: 0 | AS44: 0 | AT44: 0 | AU44: 18621.03 | AV44: 0 | AW44: 0 | AX44: 0 | AY44: 0 | AZ44: 0 | BA44: 0 | BB44: 0 | BC44: 0 | BD44: 0 | BE44: 0 | BF44: 0 | BG44: 0 | BH44: 0 | BI44: 0 | BJ44: 0 | BK44: 0 | BL44: 0 | BM44: 0 | BN44: 0 | BO44: 0 | BP44: 0 | BQ44: 0 | BR44: 0 | BS44: 0 | BT44: 0 | BU44: 0 | BV44: 0 | BW44: 0 | BX44: 0 | BY44: 0 | BZ44: 0 | CA44: 0 | CB44: 706.54 | CC44: 1491.26 | CD44: 0 | CE44: 0 | CF44: 796.34 | CG44: 2053.56 | CH44: 0 | CI44: 0 | CJ44: 0 | CK44: 0 | CL44: 5047.7 | CM44: 23668.73 | CN44: 244003.35 | CO44: 538895.12 | CP44: 0 | CQ44: 0 | CR44: 0 | CS44: 0 | CT44: 782898.47 | CU44: 801519.5 | CV44: 79296.33 | CW44: 207498.74 | CX44: 0 | CY44: 0 | CZ44: 0 | DA44: 0 | DB44: 286795.07 | DC44: 291842.77 | DD44: 1069693.54 | DE44: 20607.94 | DF44: -14000.66 | DG44: 1099969.55
C45: 39 | D45: 娯楽サービス | E45: 0 | F45: 0 | G45: 0 | H45: 0 | I45: 0 | J45: 0 | K45: 0 | L45: 0 | M45: 0 | N45: 0 | O45: 0 | P45: 0 | Q45: 0 | R45: 0 | S45: 0 | T45: 0 | U45: 0 | V45: 0 | W45: 0 | X45: 0 | Y45: 0 | Z45: 0.06 | AA45: 0 | AB45: 0 | AC45: 0 | AD45: 0 | AE45: 48.48 | AF45: 0 | AG45: 0 | AH45: 0 | AI45: 11468.44 | AJ45: 0 | AK45: 119.87 | AL45: 0 | AM45: 0 | AN45: 538.64 | AO45: 297.09 | AP45: 222.59 | AQ45: 4760.01 | AR45: 287.66 | AS45: 0 | AT45: 67.68 | AU45: 17810.52 | AV45: 0 | AW45: 0 | AX45: 0 | AY45: 0 | AZ45: 0 | BA45: 0 | BB45: 0 | BC45: 0 | BD45: 0 | BE45: 0 | BF45: 0 | BG45: 0 | BH45: 0 | BI45: 0 | BJ45: 0 | BK45: 0 | BL45: 0 | BM45: 0 | BN45: 0 | BO45: 0 | BP45: 0 | BQ45: 32.27 | BR45: 0 | BS45: 0 | BT45: 0 | BU45: 0 | BV45: 14.93 | BW45: 0 | BX45: 0 | BY45: 0 | BZ45: 4328.7 | CA45: 0 | CB45: 27.47 | CC45: 0 | CD45: 0 | CE45: 190.86 | CF45: 131.76 | CG45: 62.31 | CH45: 1812.81 | CI45: 125.78 | CJ45: 0 | CK45: 21.14 | CL45: 6748.03 | CM45: 24558.55 | CN45: 23223.86 | CO45: 282137.21 | CP45: 0 | CQ45: 0 | CR45: 0 | CS45: 0 | CT45: 305361.07 | CU45: 323171.59 | CV45: 7686.71 | CW45: 81342.85 | CX45: 0 | CY45: 0 | CZ45: 0 | DA45: 0 | DB45: 89029.56 | DC45: 95777.59 | DD45: 394390.63 | DE45: 4647.77 | DF45: -6628.68 | DG45: 416968.27
C46: 40 | D46: その他の対個人サービス | E46: 39.93 | F46: 0.73 | G46: 27.82 | H46: 5.67 | I46: 223.61 | J46: 7.52 | K46: 18.74 | L46: 52.34 | M46: 4.93 | N46: 47.18 | O46: 23 | P46: 106.26 | Q46: 10.54 | R46: 31.59 | S46: 16.48 | T46: 44.63 | U46: 2.57 | V46: 46.88 | W46: 34.31 | X46: 0.83 | Y46: 278.46 | Z46: 32.54 | AA46: 473.27 | AB46: 51.03 | AC46: 45.03 | AD46: 8.83 | AE46: 3204.55 | AF46: 175.08 | AG46: 1407.11 | AH46: 1381.09 | AI46: 2458.34 | AJ46: 708.23 | AK46: 1389.54 | AL46: 31435.78 | AM46: 361.44 | AN46: 2980.61 | AO46: 1727.97 | AP46: 3405.05 | AQ46: 1369.19 | AR46: 8135.89 | AS46: 0 | AT46: 201.33 | AU46: 61975.92 | AV46: 4.67 | AW46: 0.34 | AX46: 6.15 | AY46: 0.61 | AZ46: 24.97 | BA46: 2.32 | BB46: 4.47 | BC46: 11.3 | BD46: 1.13 | BE46: 4.82 | BF46: 1.77 | BG46: 6.33 | BH46: 3.21 | BI46: 4.31 | BJ46: 4.94 | BK46: 8.88 | BL46: 3.01 | BM46: 9.02 | BN46: 8.05 | BO46: 2.81 | BP46: 20.76 | BQ46: 4.64 | BR46: 61 | BS46: 7.77 | BT46: 4.87 | BU46: 0.94 | BV46: 305.39 | BW46: 27.69 | BX46: 162.65 | BY46: 144.37 | BZ46: 332.87 | CA46: 75.24 | CB46: 231.44 | CC46: 2636.19 | CD46: 44.8 | CE46: 343.31 | CF46: 268.74 | CG46: 347.33 | CH46: 117.77 | CI46: 742.15 | CJ46: 0 | CK46: 22.05 | CL46: 6015.08 | CM46: 67991 | CN46: 3241.37 | CO46: 363539.47 | CP46: 0 | CQ46: 0 | CR46: 0 | CS46: 0 | CT46: 366780.84 | CU46: 428756.76 | CV46: 376.21 | CW46: 42335.78 | CX46: 0 | CY46: 0 | CZ46: 0 | DA46: 0 | DB46: 42711.99 | DC46: 48727.07 | DD46: 409492.83 | DE46: 2072.07 | DF46: -1107.06 | DG46: 478448.84
C47: 41 | D47: 事務用品 | E47: 172.79 | F47: 16.11 | G47: 35.93 | H47: 36.25 | I47: 874.37 | J47: 49.8 | K47: 196.1 | L47: 318.52 | M47: 8.08 | N47: 105.43 | O47: 349.82 | P47: 243.55 | Q47: 33.83 | R47: 138.28 | S47: 140.38 | T47: 365.02 | U47: 35.67 | V47: 307.87 | W47: 235.23 | X47: 11.57 | Y47: 606.22 | Z47: 251.25 | AA47: 1642.53 | AB47: 28.25 | AC47: 157.64 | AD47: 592.05 | AE47: 7966.42 | AF47: 3264.63 | AG47: 1029.38 | AH47: 4794.83 | AI47: 3457.76 | AJ47: 3870.17 | AK47: 5174.53 | AL47: 6925.72 | AM47: 739.8 | AN47: 4096.43 | AO47: 293.9 | AP47: 961.45 | AQ47: 900.36 | AR47: 1549.38 | AS47: 0 | AT47: 34.87 | AU47: 52012.17 | AV47: 0 | AW47: 0 | AX47: 0 | AY47: 0 | AZ47: 0 | BA47: 0 | BB47: 0 | BC47: 0 | BD47: 0 | BE47: 0 | BF47: 0 | BG47: 0 | BH47: 0 | BI47: 0 | BJ47: 0 | BK47: 0 | BL47: 0 | BM47: 0 | BN47: 0 | BO47: 0 | BP47: 0 | BQ47: 0 | BR47: 0 | BS47: 0 | BT47: 0 | BU47: 0 | BV47: 0 | BW47: 0 | BX47: 0 | BY47: 0 | BZ47: 0 | CA47: 0 | CB47: 0 | CC47: 0 | CD47: 0 | CE47: 0 | CF47: 0 | CG47: 0 | CH47: 0 | CI47: 0 | CJ47: 0 | CK47: 0 | CL47: 0 | CM47: 52012.17 | CN47: 0 | CO47: 0 | CP47: 0 | CQ47: 0 | CR47: 0 | CS47: 0 | CT47: 0 | CU47: 52012.17 | CV47: 0 | CW47: 0 | CX47: 0 | CY47: 0 | CZ47: 0 | DA47: 0 | DB47: 0 | DC47: 0 | DD47: 0 | DE47: 0 | DF47: 0 | DG47: 52012.17
C48: 42 | D48: 分類不明 | E48: 960.97 | F48: 24.11 | G48: 221.51 | H48: 365.09 | I48: 10765.31 | J48: 148.01 | K48: 592.32 | L48: 849.61 | M48: 81.22 | N48: 1456.2 | O48: 2049.01 | P48: 5317.86 | Q48: 405.31 | R48: 1226.87 | S48: 1013.82 | T48: 2138.04 | U48: 60.84 | V48: 268.61 | W48: 402.27 | X48: 25.97 | Y48: 1996.41 | Z48: 542.54 | AA48: 25997.3 | AB48: 1827.41 | AC48: 1463.67 | AD48: 3721.93 | AE48: 26034.14 | AF48: 4236.09 | AG48: 5198.31 | AH48: 18077.25 | AI48: 5142.04 | AJ48: 1365.61 | AK48: 16522.72 | AL48: 11317.58 | AM48: 715.43 | AN48: 9535.54 | AO48: 235.9 | AP48: 1689.76 | AQ48: 500.67 | AR48: 3693 | AS48: 25.95 | AT48: 0 | AU48: 168212.2 | AV48: 42.32 | AW48: 3.27 | AX48: 16.41 | AY48: 12.57 | AZ48: 274.34 | BA48: 11.81 | BB48: 44.15 | BC48: 48.37 | BD48: 7.3 | BE48: 36.63 | BF48: 58.79 | BG48: 112.68 | BH48: 53.97 | BI48: 53.79 | BJ48: 93.9 | BK48: 118.2 | BL48: 21.59 | BM48: 11.63 | BN48: 47.04 | BO48: 9.15 | BP48: 111.14 | BQ48: 23.98 | BR48: 1032.53 | BS48: 85.46 | BT48: 49.44 | BU48: 125.4 | BV48: 782.79 | BW48: 202.24 | BX48: 169.17 | BY48: 547.88 | BZ48: 159.5 | CA48: 44.96 | CB48: 510.78 | CC48: 317.04 | CD48: 24.66 | CE48: 274.26 | CF48: 11.19 | CG48: 53.9 | CH48: 13.2 | CI48: 104.73 | CJ48: 0.88 | CK48: 0 | CL48: 5723.04 | CM48: 173935.24 | CN48: 0 | CO48: 345.22 | CP48: 0 | CQ48: 0 | CR48: 0 | CS48: 0 | CT48: 345.22 | CU48: 168557.42 | CV48: 0 | CW48: 12.17 | CX48: 0 | CY48: 0 | CZ48: 0 | DA48: 0 | DB48: 12.17 | DC48: 5735.21 | DD48: 357.39 | DE48: 208.26 | DF48: -1586.09 | DG48: 172914.8
C49: j | D49: 域内内生部門計 | E49: 68216.77 | F49: 4196.31 | G49: 8020.03 | H49: 11220.56 | I49: 474261.71 | J49: 15526.87 | K49: 67898.61 | L49: 174834.16 | M49: 87771.76 | N49: 156320.54 | O49: 120144.83 | P49: 902924.29 | Q49: 49560.08 | R49: 121785.77 | S49: 37824.74 | T49: 97812.11 | U49: 8525.27 | V49: 117089.3 | W49: 100783.2 | X49: 3697.95 | Y49: 1008966.54 | Z49: 93170.72 | AA49: 647154.82 | AB49: 371322.07 | AC49: 66945.16 | AD49: 49036.15 | AE49: 979893.75 | AF49: 247550.67 | AG49: 402883.89 | AH49: 805913.95 | AI49: 682576.65 | AJ49: 333074.39 | AK49: 311127.1 | AL49: 704938.34 | AM49: 42714.02 | AN49: 742408.57 | AO49: 51946.21 | AP49: 392748.84 | AQ49: 101496.52 | AR49: 116813.47 | AS49: 25110.05 | AT49: 89064.11 | AU49: 10895270.85 | AV49: 85468.19 | AW49: 3584.56 | AX49: 10877.41 | AY49: 3462.65 | AZ49: 376029.01 | BA49: 17861.48 | BB49: 87444.26 | BC49: 175361.54 | BD49: 19830.73 | BE49: 113819.84 | BF49: 35329.98 | BG49: 461151.4 | BH49: 46129.39 | BI49: 123875.34 | BJ49: 91964.87 | BK49: 151802.96 | BL49: 50274.29 | BM49: 108095.02 | BN49: 135847.03 | BO49: 44343.98 | BP49: 805506.85 | BQ49: 66732.17 | BR49: 438844.56 | BS49: 45583.52 | BT49: 13057.45 | BU49: 9835.44 | BV49: 178114.42 | BW49: 63449.01 | BX49: 24123.47 | BY49: 195035.96 | BZ49: 147281.09 | CA49: 72365.83 | CB49: 89393 | CC49: 235989.57 | CD49: 14870.24 | CE49: 233112.96 | CF49: 27613.23 | CG49: 285223.85 | CH49: 20419.48 | CI49: 28469.31 | CJ49: 20251.25 | CK49: 12558.7 | CL49: 5170385.29 | CM49: 16065656.14 | CN49: 387257.4 | CO49: 7802655.44 | CP49: 4287883.81 | CQ49: 834354.73 | CR49: 2274251.59 | CS49: 86.6 | CT49: 15586489.57 | CU49: 26481760.42 | CV49: 203137.14 | CW49: 2960837.61 | CX49: 109952.75 | CY49: 51479.12 | CZ49: 699150.18 | DA49: 2386.01 | DB49: 4026942.81 | DC49: 9197328.1 | DD49: 19613432.38 | DE49: 3406602.64 | DF49: -2787491.41 | DG49: 36298199.75
B50: 県外 | C50: 01 | D50: 農業 | E50: 11970.37 | F50: 42.3 | G50: 0 | H50: 0 | I50: 114573.71 | J50: 130.41 | K50: 3.53 | L50: 303.27 | M50: 0 | N50: 10894 | O50: 15.26 | P50: 0 | Q50: 0.34 | R50: 0 | S50: 0 | T50: 0 | U50: 0 | V50: 0 | W50: 0 | X50: 0 | Y50: 0 | Z50: 334.5 | AA50: 882.64 | AB50: 0 | AC50: 0 | AD50: 0 | AE50: 200.03 | AF50: 0 | AG50: 2.39 | AH50: 37.81 | AI50: 0 | AJ50: 26.94 | AK50: 1699.23 | AL50: 3403.86 | AM50: 134.55 | AN50: 16.39 | AO50: 809.74 | AP50: 15668.35 | AQ50: 878.31 | AR50: 949.8 | AS50: 0 | AT50: 0 | AU50: 162977.73 | AV50: 1358145.04 | AW50: 1736.79 | AX50: 0 | AY50: 0 | AZ50: 6096964.28 | BA50: 28750.65 | BB50: 3286.26 | BC50: 33727.91 | BD50: 0 | BE50: 131966.76 | BF50: 880.04 | BG50: 0 | BH50: 114.11 | BI50: 0 | BJ50: 0 | BK50: 0 | BL50: 0 | BM50: 0 | BN50: 0 | BO50: 0 | BP50: 0 | BQ50: 18580.46 | BR50: 58617.78 | BS50: 0 | BT50: 0 | BU50: 0 | BV50: 10813.58 | BW50: 0 | BX50: 174.21 | BY50: 1957.82 | BZ50: 0 | CA50: 1254.8 | CB50: 84039.41 | CC50: 145439.53 | CD50: 8839.5 | CE50: 823.27 | CF50: 63027.32 | CG50: 765253.69 | CH50: 38257.85 | CI50: 41625.86 | CJ50: 0 | CK50: 0 | CL50: 8894276.92 | CM50: 9057254.65 | CN50: 828.7 | CO50: 55774.49 | CP50: 0 | CQ50: 0 | CR50: 899.54 | CS50: -972.36 | CT50: 56530.37 | CU50: 219508.1 | CV50: 48138.69 | CW50: 3168908.99 | CX50: 0 | CY50: 0 | CZ50: 189568.13 | DA50: -26107.92 | DB50: 3380507.89 | DC50: 12274784.81 | DD50: 3437038.26 | DE50: 37940.05 | DF50: -2291462.87 | DG50: 10240770.09
C51: 02 | D51: 林業 | E51: 25.06 | F51: 882.6 | G51: 3.93 | H51: 0.79 | I51: 234.08 | J51: 0.07 | K51: 2931.14 | L51: 33.98 | M51: 0 | N51: 0 | O51: 0.02 | P51: 0.04 | Q51: 0 | R51: 0 | S51: 0 | T51: 0 | U51: 0 | V51: 0 | W51: 0 | X51: 0 | Y51: 0.03 | Z51: 25.61 | AA51: 33.06 | AB51: 0 | AC51: 0 | AD51: 0 | AE51: 0 | AF51: 0 | AG51: 0 | AH51: 0 | AI51: 0 | AJ51: 3.49 | AK51: 48.73 | AL51: 92.73 | AM51: 0 | AN51: 0 | AO51: 71.21 | AP51: 1069.82 | AQ51: 0 | AR51: 22.34 | AS51: 0 | AT51: 0 | AU51: 5478.73 | AV51: 1550.27 | AW51: 98488.38 | AX51: 239.95 | AY51: 60.6 | AZ51: 13196.4 | BA51: 30.41 | BB51: 348364.52 | BC51: 5662.16 | BD51: 0 | BE51: 0 | BF51: 0.95 | BG51: 1.89 | BH51: 0 | BI51: 0 | BJ51: 0 | BK51: 0 | BL51: 0 | BM51: 0 | BN51: 0 | BO51: 0 | BP51: 13.74 | BQ51: 2750.37 | BR51: 2308.78 | BS51: 0 | BT51: 0 | BU51: 0 | BV51: 0 | BW51: 0 | BX51: 0 | BY51: 0 | BZ51: 0 | CA51: 148.15 | CB51: 1867.52 | CC51: 3877.9 | CD51: 0 | CE51: 0 | CF51: 5046.47 | CG51: 48850.08 | CH51: 0 | CI51: 857.73 | CJ51: 0 | CK51: 0 | CL51: 533316.27 | CM51: 538795 | CN51: 55.92 | CO51: 3480.27 | CP51: 0 | CQ51: 0 | CR51: 0 | CS51: -302.33 | CT51: 3233.86 | CU51: 8712.59 | CV51: 2957.62 | CW51: 165073.51 | CX51: 0 | CY51: 0 | CZ51: 0 | DA51: 209349.86 | DB51: 377380.99 | DC51: 910697.26 | DD51: 380614.85 | DE51: 9692.54 | DF51: -145001.4 | DG51: 784100.99
C52: 03 | D52: 漁業 | E52: 0 | F52: 0 | G52: 827.16 | H52: 0 | I52: 16187.2 | J52: 0.01 | K52: 0 | L52: 10.27 | M52: 0 | N52: 0 | O52: 0 | P52: 0 | Q52: 0 | R52: 0 | S52: 0 | T52: 0 | U52: 0 | V52: 0 | W52: 0 | X52: 0 | Y52: 0 | Z52: 32.06 | AA52: 0 | AB52: 0 | AC52: 0 | AD52: 0 | AE52: 0 | AF52: 0 | AG52: 0 | AH52: 4.67 | AI52: 0 | AJ52: 6.03 | AK52: 57.85 | AL52: 943.46 | AM52: 0 | AN52: 0 | AO52: 292.1 | AP52: 4153.47 | AQ52: 5.27 | AR52: 86.56 | AS52: 0 | AT52: 0 | AU52: 22606.11 | AV52: 0 | AW52: 0 | AX52: 61986.08 | AY52: 0 | AZ52: 1034829.27 | BA52: 2.96 | BB52: 0 | BC52: 994.94 | BD52: 0 | BE52: 0 | BF52: 0 | BG52: 0 | BH52: 0 | BI52: 0 | BJ52: 0 | BK52: 0 | BL52: 0 | BM52: 0 | BN52: 0 | BO52: 0 | BP52: 0 | BQ52: 47313.85 | BR52: 0 | BS52: 0 | BT52: 0 | BU52: 0 | BV52: 0 | BW52: 0 | BX52: 0 | BY52: 201.61 | BZ52: 0 | CA52: 233.9 | CB52: 2030.65 | CC52: 34272.31 | CD52: 0 | CE52: 0 | CF52: 18947.95 | CG52: 173320.05 | CH52: 268.82 | CI52: 3041.4 | CJ52: 0 | CK52: 0 | CL52: 1377443.79 | CM52: 1400049.9 | CN52: 286.22 | CO52: 6845.96 | CP52: 0 | CQ52: 0 | CR52: 0 | CS52: 5.77 | CT52: 7137.95 | CU52: 29744.06 | CV52: 13855.7 | CW52: 314111.33 | CX52: 0 | CY52: 0 | CZ52: 0 | DA52: 6977.27 | DB52: 334944.3 | DC52: 1712388.09 | DD52: 342082.25 | DE52: 59873.04 | DF52: -235091.75 | DG52: 1566913.44
C53: 04 | D53: 鉱業 | E53: 0.04 | F53: 0.2 | G53: 0 | H53: 3.18 | I53: 11.93 | J53: 0.25 | K53: 7.76 | L53: 216.29 | M53: 2383.02 | N53: 4.34 | O53: 983.01 | P53: 2421.56 | Q53: 242.03 | R53: 2.5 | S53: 0.17 | T53: 0.51 | U53: 0.15 | V53: 1.41 | W53: 0.83 | X53: 0.01 | Y53: 7.04 | Z53: 2.74 | AA53: 362.51 | AB53: 6666.34 | AC53: 0 | AD53: 0.01 | AE53: 0.32 | AF53: 0.03 | AG53: 0.09 | AH53: 0.48 | AI53: 0.02 | AJ53: 0.58 | AK53: 1.16 | AL53: 0.9 | AM53: 0.32 | AN53: 0.82 | AO53: 0.36 | AP53: 0.03 | AQ53: 0.44 | AR53: 1.56 | AS53: 0 | AT53: 1.16 | AU53: 13326.1 | AV53: 94.6 | AW53: 307.37 | AX53: 0 | AY53: 1397.55 | AZ53: 10639.05 | BA53: 1319.07 | BB53: 53060.07 | BC53: 136144.69 | BD53: 9756620.22 | BE53: 1501.9 | BF53: 374952.34 | BG53: 1291990.5 | BH53: 1255619.07 | BI53: 2926.42 | BJ53: 626.95 | BK53: 925.08 | BL53: 369.86 | BM53: 2216.09 | BN53: 720.83 | BO53: 162.72 | BP53: 5714.12 | BQ53: 4413.63 | BR53: 368472.96 | BS53: 7398883.98 | BT53: 0 | BU53: 10.6 | BV53: 253.53 | BW53: 40.95 | BX53: 74.98 | BY53: 429.29 | BZ53: 16.51 | CA53: 423.07 | CB53: 1693.61 | CC53: 580.57 | CD53: 271.5 | CE53: 629.28 | CF53: 194.56 | CG53: -739.15 | CH53: 418.43 | CI53: 1204.81 | CJ53: 0 | CK53: 996.86 | CL53: 20675578.47 | CM53: 20688904.57 | CN53: 0 | CO53: 0.07 | CP53: 0 | CQ53: 0 | CR53: 0 | CS53: -45.68 | CT53: -45.61 | CU53: 13280.49 | CV53: -5180.34 | CW53: -5909.57 | CX53: 0 | CY53: 0 | CZ53: -6298.63 | DA53: -390.73 | DB53: -17779.27 | DC53: 20657799.2 | DD53: -17824.88 | DE53: 44570.3 | DF53: -19894533.62 | DG53: 821116.37
C54: 05 | D54: 飲食料品 | E54: 10337.81 | F54: 631.85 | G54: 2208.83 | H54: 0 | I54: 132136.15 | J54: 158.1 | K54: 125.01 | L54: 1893.59 | M54: 0 | N54: 2.99 | O54: 75.11 | P54: 0.5 | Q54: 0 | R54: 0 | S54: 0 | T54: 0 | U54: 0 | V54: 0 | W54: 0 | X54: 0 | Y54: 0 | Z54: 314.52 | AA54: 18.89 | AB54: 0 | AC54: 0 | AD54: 0 | AE54: 312.24 | AF54: 0 | AG54: 0 | AH54: 198.17 | AI54: 0.21 | AJ54: 286.34 | AK54: 5543.55 | AL54: 15139.99 | AM54: 108.82 | AN54: 8.64 | AO54: 5426.31 | AP54: 154180.64 | AQ54: 265.44 | AR54: 1448.69 | AS54: 0 | AT54: 297.78 | AU54: 331120.17 | AV54: 1255772.11 | AW54: 21071.14 | AX54: 146863.28 | AY54: 0 | AZ54: 6571394.02 | BA54: 7688.96 | BB54: 19122.52 | BC54: 190664.81 | BD54: 68.19 | BE54: 215.12 | BF54: 2802.33 | BG54: 19.61 | BH54: 0 | BI54: 0 | BJ54: 0 | BK54: 0 | BL54: 0 | BM54: 0 | BN54: 0 | BO54: 0 | BP54: 0 | BQ54: 29707.54 | BR54: 1442.11 | BS54: 0 | BT54: 0 | BU54: 0 | BV54: 12554.31 | BW54: 0 | BX54: 0 | BY54: 8456.98 | BZ54: 14.26 | CA54: 12021.47 | CB54: 228966.69 | CC54: 536903.07 | CD54: 5893.18 | CE54: 373.11 | CF54: 348154.59 | CG54: 6341715.78 | CH54: 10953.03 | CI54: 50342.97 | CJ54: 0 | CK54: 13454.8 | CL54: 15816635.98 | CM54: 16147756.15 | CN54: 17149.2 | CO54: 518799.97 | CP54: 0 | CQ54: 0 | CR54: 0 | CS54: -315.5 | CT54: 535633.67 | CU54: 866753.84 | CV54: 821147.58 | CW54: 26196492.77 | CX54: 0 | CY54: 0 | CZ54: 0 | DA54: -16787.34 | DB54: 27000853.01 | DC54: 42817488.99 | DD54: 27536486.68 | DE54: 672377.26 | DF54: -7603531.24 | DG54: 36753088.85
C55: 06 | D55: 繊維製品 | E55: 574.38 | F55: 39.46 | G55: 302.04 | H55: 47.97 | I55: 680.01 | J55: 6093.67 | K55: 700.24 | L55: 281.64 | M55: 11.43 | N55: 2952.4 | O55: 328.16 | P55: 328.16 | Q55: 39.15 | R55: 215.94 | S55: 81.97 | T55: 177.93 | U55: 18.49 | V55: 578.58 | W55: 369.55 | X55: 11.13 | Y55: 4037.48 | Z55: 352.94 | AA55: 3048.34 | AB55: 50.8 | AC55: 81.66 | AD55: 180.46 | AE55: 8365.22 | AF55: 691.7 | AG55: 44.48 | AH55: 2193.38 | AI55: 742.11 | AJ55: 2219.57 | AK55: 331 | AL55: 4686.55 | AM55: 2033.6 | AN55: 2681.75 | AO55: 677.5 | AP55: 387.38 | AQ55: 1382 | AR55: 1497.59 | AS55: 527.57 | AT55: 44.93 | AU55: 50090.31 | AV55: 40783.47 | AW55: 1578.2 | AX55: 31508.95 | AY55: 3204.73 | AZ55: 36551.25 | BA55: 830921.45 | BB55: 76362.89 | BC55: 26507.94 | BD55: 421.44 | BE55: 70274.32 | BF55: 19205.91 | BG55: 8429.37 | BH55: 7662.96 | BI55: 14042.08 | BJ55: 11071.81 | BK55: 21688.45 | BL55: 7681.61 | BM55: 47677.51 | BN55: 38930.27 | BO55: 9116.37 | BP55: 85248.73 | BQ55: 42854.47 | BR55: 184444.2 | BS55: 3627.7 | BT55: 4119.51 | BU55: 8978.3 | BV55: 383081.21 | BW55: 51842.37 | BX55: 2116.53 | BY55: 85516.53 | BZ55: 51192.88 | CA55: 126345.89 | CB55: 21282.65 | CC55: 188424.33 | CD55: 107538.08 | CE55: 142305.29 | CF55: 49051.14 | CG55: 17785.37 | CH55: 54979.29 | CI55: 65935.9 | CJ55: 27423.63 | CK55: 2291 | CL55: 3010005.98 | CM55: 3060096.29 | CN55: 1970.19 | CO55: 74612.92 | CP55: 0 | CQ55: 22.03 | CR55: 6782.94 | CS55: 1954.5 | CT55: 85342.58 | CU55: 135432.89 | CV55: 106453.08 | CW55: 4235212.25 | CX55: 0 | CY55: 787.69 | CZ55: 304502.6 | DA55: 146374.45 | DB55: 4793330.07 | DC55: 7803336.05 | DD55: 4878672.65 | DE55: 643838.7 | DF55: -5044455.32 | DG55: 3538152.32
C56: 07 | D56: パルプ・紙・木製品 | E56: 4474.32 | F56: 229.27 | G56: 76.17 | H56: 27.89 | I56: 13386.74 | J56: 153.73 | K56: 35181.75 | L56: 2933.19 | M56: 8.72 | N56: 1488.65 | O56: 3674.95 | P56: 357.03 | Q56: 137.41 | R56: 687.29 | S56: 99.24 | T56: 176.11 | U56: 146.81 | V56: 784.46 | W56: 1281.87 | X56: 20.87 | Y56: 1288.29 | Z56: 17018.34 | AA56: 54557.33 | AB56: 1100.85 | AC56: 296.53 | AD56: 373.5 | AE56: 19868.6 | AF56: 2355.45 | AG56: 745.62 | AH56: 5202.35 | AI56: 13981.34 | AJ56: 1017.24 | AK56: 5600.26 | AL56: 9336.61 | AM56: 1562.8 | AN56: 6136.42 | AO56: 385.02 | AP56: 4259.19 | AQ56: 1896.37 | AR56: 1245.59 | AS56: 13470.39 | AT56: 123.55 | AU56: 227148.11 | AV56: 256934.96 | AW56: 7756.06 | AX56: 5082.33 | AY56: 2048.88 | AZ56: 616075.99 | BA56: 21219.55 | BB56: 3324467.04 | BC56: 374392.23 | BD56: 247.09 | BE56: 88564.7 | BF56: 115785.89 | BG56: 8380.35 | BH56: 20011.32 | BI56: 39694.88 | BJ56: 16454.02 | BK56: 18605.24 | BL56: 34664.43 | BM56: 79216.61 | BN56: 112058.73 | BO56: 31492.82 | BP56: 73873.44 | BQ56: 815691.03 | BR56: 2748804.27 | BS56: 60195.95 | BT56: 12349.26 | BU56: 15944.5 | BV56: 725287.77 | BW56: 149690.1 | BX56: 33177.96 | BY56: 237772.13 | BZ56: 668188.95 | CA56: 47629.65 | CB56: 277484.46 | CC56: 349777.17 | CD56: 77260.21 | CE56: 244178.97 | CF56: 24039.81 | CG56: 168071.14 | CH56: 56408.42 | CI56: 52536.85 | CJ56: 603851.45 | CK56: 5432.96 | CL56: 12620799.57 | CM56: 12847947.68 | CN56: 2495.41 | CO56: 10050.42 | CP56: 57.72 | CQ56: 385.85 | CR56: 8963.49 | CS56: -1212.48 | CT56: 20740.41 | CU56: 247888.52 | CV56: 68473.24 | CW56: 328209.28 | CX56: 1959.98 | CY56: 13411.3 | CZ56: 426142.23 | DA56: -62138.29 | DB56: 776057.74 | DC56: 13396857.31 | DD56: 796798.15 | DE56: 579482.46 | DF56: -2485682.49 | DG56: 11738545.8
C57: 08 | D57: 化学製品 | E57: 11119.88 | F57: 7.56 | G57: 292.08 | H57: 357.62 | I57: 9249.69 | J57: 3136.61 | K57: 3697.71 | L57: 134402.22 | M57: 443.53 | N57: 67263.45 | O57: 3808.24 | P57: 5249.86 | Q57: 486.1 | R57: 2026.55 | S57: 411.38 | T57: 951.38 | U57: 247.87 | V57: 2284.33 | W57: 1794.98 | X57: 33.31 | Y57: 14920.64 | Z57: 5759.82 | AA57: 6449.23 | AB57: 333.84 | AC57: 936.72 | AD57: 1666.63 | AE57: 21.63 | AF57: 12.78 | AG57: 53.45 | AH57: 611.61 | AI57: 1261.5 | AJ57: 835.07 | AK57: 4854.98 | AL57: 246956.32 | AM57: 226.36 | AN57: 7028.63 | AO57: 267.24 | AP57: 1808.93 | AQ57: 738.55 | AR57: 5341.91 | AS57: 314.96 | AT57: 805.2 | AU57: 548470.35 | AV57: 648572.3 | AW57: 574.62 | AX57: 16219.03 | AY57: 11811.86 | AZ57: 376150.23 | BA57: 383862.98 | BB57: 408114.14 | BC57: 9333956.59 | BD57: 30371.84 | BE57: 2584529.79 | BF57: 199029.71 | BG57: 92361.38 | BH57: 73010.04 | BI57: 98362.05 | BJ57: 44085.44 | BK57: 64258.76 | BL57: 112218.78 | BM57: 227522.77 | BN57: 208732.56 | BO57: 54545.22 | BP57: 508900.88 | BQ57: 319834.78 | BR57: 315799.87 | BS57: 17797.4 | BT57: 38035.62 | BU57: 66102.44 | BV57: 806.61 | BW57: 779.53 | BX57: 2700.67 | BY57: 22849.23 | BZ57: 61606.96 | CA57: 34409.48 | CB57: 334225.69 | CC57: 8325953.62 | CD57: 10031.02 | CE57: 295326.39 | CF57: 15421.27 | CG57: 66585.2 | CH57: 35747 | CI57: 204539.85 | CJ57: 13049.32 | CK57: 32723.35 | CL57: 25691516.27 | CM57: 26239986.62 | CN57: 3845.27 | CO57: 65869.14 | CP57: 0 | CQ57: 0 | CR57: 0 | CS57: 432.23 | CT57: 70146.64 | CU57: 618616.99 | CV57: 165602.62 | CW57: 2414073.06 | CX57: 0 | CY57: 0 | CZ57: 0 | DA57: -110184.35 | DB57: 2469491.33 | DC57: 28161007.6 | DD57: 2539637.97 | DE57: 6189775.1 | DF57: -7503221.05 | DG57: 27466178.64
C58: 09 | D58: 石油・石炭製品 | E58: 1833.96 | F58: 166.97 | G58: 1016.63 | H58: 463.04 | I58: 3370.37 | J58: 136.03 | K58: 333.11 | L58: 4074.13 | M58: 8208.1 | N58: 1290.24 | O58: 4366.46 | P58: 45292.19 | Q58: 193.35 | R58: 785.97 | S58: 78.11 | T58: 370.63 | U58: 33.71 | V58: 350.23 | W58: 222.56 | X58: 4.63 | Y58: 2526.56 | Z58: 485.88 | AA58: 15196.02 | AB58: 26405.8 | AC58: 1483.82 | AD58: 1531.47 | AE58: 4361.92 | AF58: 295.09 | AG58: 950.24 | AH58: 180261.58 | AI58: 936.03 | AJ58: 12310.19 | AK58: 3070.8 | AL58: 4975.38 | AM58: 373.5 | AN58: 4355.5 | AO58: 238.14 | AP58: 3462.15 | AQ58: 2772.42 | AR58: 1943.83 | AS58: 0 | AT58: 2431.18 | AU58: 342957.92 | AV58: 68334.29 | AW58: 7634.7 | AX58: 78439.47 | AY58: 18240.43 | AZ58: 149855.73 | BA58: 20925.69 | BB58: 45328.75 | BC58: 2159405.9 | BD58: 1024182.02 | BE58: 25139.18 | BF58: 128084.91 | BG58: 572285.97 | BH58: 23425.49 | BI58: 33489.77 | BJ58: 13243.59 | BK58: 17478.11 | BL58: 6198.98 | BM58: 17799.61 | BN58: 16498.87 | BO58: 2405.43 | BP58: 103760.73 | BQ58: 18200.66 | BR58: 719551.03 | BS58: 1185942.35 | BT58: 49946.59 | BU58: 54109.73 | BV58: 143671.47 | BW58: 15166.31 | BX58: 30924.34 | BY58: 5186264.61 | BZ58: 37721.1 | CA58: 408842.82 | CB58: 147151.46 | CC58: 144502.21 | CD58: 14916.06 | CE58: 147732.92 | CF58: 12138.83 | CG58: 113297.71 | CH58: 69985.61 | CI58: 63446.48 | CJ58: 0 | CK58: 87270.73 | CL58: 13182940.64 | CM58: 13525898.56 | CN58: 402.06 | CO58: 132734.64 | CP58: 0 | CQ58: 0 | CR58: 0 | CS58: -1330.01 | CT58: 131806.69 | CU58: 474764.61 | CV58: 15294.12 | CW58: 4890349.3 | CX58: 0 | CY58: 0 | CZ58: 0 | DA58: -27052.46 | DB58: 4878590.96 | DC58: 18061531.6 | DD58: 5010397.65 | DE58: 1442069.32 | DF58: -3264954.52 | DG58: 16713411.01
C59: 10 | D59: プラスチック・ゴム製品 | E59: 1563.14 | F59: 278.28 | G59: 250.26 | H59: 62.09 | I59: 13688.07 | J59: 264.37 | K59: 2071.74 | L59: 4447.46 | M59: 6.53 | N59: 39044.7 | O59: 1045.15 | P59: 628.38 | Q59: 164.19 | R59: 835.92 | S59: 1103.73 | T59: 3591.21 | U59: 771 | V59: 3182.97 | W59: 4261.61 | X59: 143.06 | Y59: 64045.3 | Z59: 7508.28 | AA59: 13169.13 | AB59: 0 | AC59: 3323.89 | AD59: 1309.34 | AE59: 9906.79 | AF59: 1345.4 | AG59: 852.94 | AH59: 3213.97 | AI59: 2300.52 | AJ59: 1459.49 | AK59: 1867.4 | AL59: 3502.28 | AM59: 622.61 | AN59: 15065.29 | AO59: 213.06 | AP59: 770.55 | AQ59: 1622.64 | AR59: 696.85 | AS59: 1295.19 | AT59: 351.53 | AU59: 211846.31 | AV59: 75750.37 | AW59: 10711.48 | AX59: 24371.93 | AY59: 3788.21 | AZ59: 671683.19 | BA59: 35815.99 | BB59: 243371.22 | BC59: 487401.65 | BD59: 2211.06 | BE59: 2846350.03 | BF59: 43848.74 | BG59: 17428.42 | BH59: 46116.11 | BI59: 53834 | BJ59: 131131.54 | BK59: 327449.35 | BL59: 264849.27 | BM59: 254012.58 | BN59: 607158.46 | BO59: 217388.7 | BP59: 1870324.17 | BQ59: 535277.86 | BR59: 781054.43 | BS59: 0 | BT59: 162482.3 | BU59: 62812.24 | BV59: 457796.63 | BW59: 94799.47 | BX59: 44446.26 | BY59: 146147.23 | BZ59: 191447.54 | CA59: 71368.52 | CB59: 158699 | CC59: 131805.57 | CD59: 32760.46 | CE59: 632637.64 | CF59: 14866.41 | CG59: 33687.63 | CH59: 63620.72 | CI59: 29423.65 | CJ59: 65484.72 | CK59: 17434.06 | CL59: 11963048.81 | CM59: 12174895.12 | CN59: 457.42 | CO59: 17176.55 | CP59: 95.17 | CQ59: 0 | CR59: 0 | CS59: -96.2 | CT59: 17632.94 | CU59: 229479.25 | CV59: 24039.91 | CW59: 847977.51 | CX59: 3645.14 | CY59: 0 | CZ59: -661.24 | DA59: -39429.2 | DB59: 835572.12 | DC59: 12798620.93 | DD59: 853205.06 | DE59: 2359684.45 | DF59: -1872069.88 | DG59: 13515714.75
C60: 11 | D60: 窯業・土石製品 | E60: 262.82 | F60: 12.13 | G60: 0.59 | H60: 1.74 | I60: 2021.32 | J60: 9.91 | K60: 547.65 | L60: 1680.36 | M60: 75.32 | N60: 430.77 | O60: 9019.14 | P60: 2948.74 | Q60: 479.28 | R60: 512.46 | S60: 509.2 | T60: 479.02 | U60: 148.66 | V60: 3786.1 | W60: 1002.88 | X60: 10.09 | Y60: 13776.84 | Z60: 390.61 | AA60: 43161.2 | AB60: 12.68 | AC60: 325.57 | AD60: 38.1 | AE60: 326.23 | AF60: 3.66 | AG60: 68.75 | AH60: 33.06 | AI60: 6.22 | AJ60: 98.94 | AK60: 1308.9 | AL60: 1054.52 | AM60: 30.9 | AN60: 904.82 | AO60: 109.36 | AP60: 866.73 | AQ60: 238.59 | AR60: 117.98 | AS60: 112.01 | AT60: 345.16 | AU60: 87269.01 | AV60: 25198.59 | AW60: 597.59 | AX60: 73.38 | AY60: 411.36 | AZ60: 99673.61 | BA60: 2176.3 | BB60: 35148.88 | BC60: 173587.1 | BD60: 4864.4 | BE60: 39925.04 | BF60: 479297.94 | BG60: 123158.88 | BH60: 75179.41 | BI60: 39093.39 | BJ60: 63191.8 | BK60: 69462.36 | BL60: 122423.94 | BM60: 445562.6 | BN60: 136977.63 | BO60: 14501.86 | BP60: 271739.59 | BQ60: 42963.82 | BR60: 3067732.39 | BS60: 1003.85 | BT60: 18933.46 | BU60: 2219.69 | BV60: 17944.26 | BW60: 328.46 | BX60: 5380.78 | BY60: 1476.18 | BZ60: 541.97 | CA60: 6637.34 | CB60: 74141.29 | CC60: 51411.45 | CD60: 1907.93 | CE60: 43451.23 | CF60: 8873.87 | CG60: 43163.44 | CH60: 10368.55 | CI60: 6519.85 | CJ60: 6828.22 | CK60: 20639.74 | CL60: 5654713.42 | CM60: 5741982.43 | CN60: 179.47 | CO60: 2299.07 | CP60: 0 | CQ60: 0 | CR60: 0 | CS60: -432.17 | CT60: 2046.37 | CU60: 89315.38 | CV60: 11018.2 | CW60: 126318.44 | CX60: 0 | CY60: 0 | CZ60: 0 | DA60: -56696.06 | DB60: 80640.58 | DC60: 5735354 | DD60: 82686.95 | DE60: 901040.74 | DF60: -713917.63 | DG60: 6011792.49
C61: 12 | D61: 鉄鋼 | E61: 4.29 | F61: 0.02 | G61: 3.65 | H61: 12.6 | I61: 0 | J61: 2.1 | K61: 590.29 | L61: 30.16 | M61: 0 | N61: 254.75 | O61: 877.29 | P61: 360063 | Q61: 22.1 | R61: 28203.51 | S61: 4295.11 | T61: 10152.05 | U61: 175.51 | V61: 394.91 | W61: 5376.57 | X61: 32.42 | Y61: 49660.02 | Z61: 154.39 | AA61: 15370.25 | AB61: 0 | AC61: 1.48 | AD61: 0 | AE61: 0 | AF61: 0 | AG61: 0 | AH61: 140.54 | AI61: 0 | AJ61: 20.2 | AK61: 0 | AL61: 2.64 | AM61: 0.21 | AN61: 125.38 | AO61: 0.97 | AP61: 9.39 | AQ61: 0.31 | AR61: 9.29 | AS61: 0.42 | AT61: 291.8 | AU61: 476277.62 | AV61: 340.54 | AW61: 7.68 | AX61: 342.32 | AY61: 2163.96 | AZ61: 0 | BA61: 528.66 | BB61: 110004.51 | BC61: 823.69 | BD61: -5.41 | BE61: 26535.54 | BF61: 45908.51 | BG61: 12823368.37 | BH61: 10009.45 | BI61: 2488085.71 | BJ61: 1142163.44 | BK61: 1455545.22 | BL61: 148694.82 | BM61: 72815.06 | BN61: 676026.19 | BO61: 47096.86 | BP61: 2697831.74 | BQ61: 30989.96 | BR61: 1331960.99 | BS61: 0 | BT61: 108.23 | BU61: 0 | BV61: 0 | BW61: 0 | BX61: 0 | BY61: 12763.16 | BZ61: 0 | CA61: 1270.52 | CB61: 0 | CC61: 168.91 | CD61: 18.77 | CE61: 7547.6 | CF61: 101.88 | CG61: 627.55 | CH61: 28.2 | CI61: 560.03 | CJ61: 31.75 | CK61: 21522.95 | CL61: 23155987.36 | CM61: 23632264.98 | CN61: 0 | CO61: 0.49 | CP61: 0 | CQ61: 0 | CR61: 0 | CS61: -1753.62 | CT61: -1753.13 | CU61: 474524.49 | CV61: 0 | CW61: -33402.25 | CX61: 0 | CY61: -27140.41 | CZ61: -163027.09 | DA61: -226356.31 | DB61: -449926.06 | DC61: 22706061.3 | DD61: -451679.19 | DE61: 3298765.57 | DF61: -998798.45 | DG61: 25480552.91
C62: 13 | D62: 非鉄金属 | E62: 0 | F62: 0 | G62: 0 | H62: 7.85 | I62: 992.25 | J62: 0.09 | K62: 303.86 | L62: 3607.25 | M62: 0.12 | N62: 687.49 | O62: 1332.53 | P62: 10082.67 | Q62: 30160.69 | R62: 13133.69 | S62: 2779.1 | T62: 3536.9 | U62: 856.73 | V62: 8220.04 | W62: 9539.95 | X62: 111.04 | Y62: 23027.84 | Z62: 1300 | AA62: 8645.19 | AB62: 83.67 | AC62: 20.74 | AD62: 0.39 | AE62: 27.69 | AF62: 0 | AG62: 0 | AH62: 15.6 | AI62: 64.61 | AJ62: 176.86 | AK62: 44.17 | AL62: 2103.11 | AM62: 17.18 | AN62: 584.75 | AO62: 44.76 | AP62: 192.44 | AQ62: 0 | AR62: 118.8 | AS62: 25.93 | AT62: 342.24 | AU62: 122188.22 | AV62: 0 | AW62: 0 | AX62: 0 | AY62: 564.31 | AZ62: 53199.43 | BA62: 28.63 | BB62: 29480.56 | BC62: 129931.22 | BD62: 193.46 | BE62: 31534.87 | BF62: 58224.25 | BG62: 210618.81 | BH62: 3478120.35 | BI62: 738402.45 | BJ62: 383089.34 | BK62: 314767.89 | BL62: 250065.92 | BM62: 603062.47 | BN62: 1012847.54 | BO62: 220079.67 | BP62: 1267490.79 | BQ62: 120393.27 | BR62: 527328.86 | BS62: 6412.09 | BT62: 1115.18 | BU62: 17.14 | BV62: 1202.45 | BW62: 0 | BX62: 0 | BY62: 691.79 | BZ62: 3345.05 | CA62: 7699.17 | CB62: 3893.94 | CC62: 79151.64 | CD62: 932.17 | CE62: 24544.24 | CF62: 3175.73 | CG62: 8763.46 | CH62: 0 | CI62: 5719.42 | CJ62: 1320.97 | CK62: 17101.4 | CL62: 9594509.93 | CM62: 9716698.15 | CN62: 23.77 | CO62: 3245.97 | CP62: 0 | CQ62: 0 | CR62: 0 | CS62: -698.23 | CT62: 2571.51 | CU62: 124759.73 | CV62: 1258.49 | CW62: 161901.67 | CX62: 0 | CY62: 0 | CZ62: 135741.9 | DA62: -120799.29 | DB62: 178102.77 | DC62: 9772612.7 | DD62: 180674.28 | DE62: 2367685.73 | DF62: -3575285.86 | DG62: 8689772.3
C63: 14 | D63: 金属製品 | E63: 173.51 | F63: 3.85 | G63: 28.49 | H63: 191.29 | I63: 8561.37 | J63: 56.76 | K63: 1758.01 | L63: 2516.34 | M63: 80.69 | N63: 2114.04 | O63: 1202.18 | P63: 495.11 | Q63: 99.7 | R63: 10722.82 | S63: 1529.28 | T63: 5255.59 | U63: 376.76 | V63: 2487.4 | W63: 3609.19 | X63: 106.38 | Y63: 9385.36 | Z63: 1169.13 | AA63: 86146.49 | AB63: 155.9 | AC63: 63.34 | AD63: 13.65 | AE63: 5722.94 | AF63: 50.77 | AG63: 375.46 | AH63: 1385.04 | AI63: 344.34 | AJ63: 3451.57 | AK63: 134.32 | AL63: 475.62 | AM63: 179.17 | AN63: 1573.68 | AO63: 60.6 | AP63: 1420.2 | AQ63: 37.11 | AR63: 1010.26 | AS63: 9.5 | AT63: 487.56 | AU63: 155020.77 | AV63: 13234.13 | AW63: 504.05 | AX63: 2324.64 | AY63: 16646.89 | AZ63: 440064.57 | BA63: 8367.54 | BB63: 140096.49 | BC63: 236108.78 | BD63: 7760.86 | BE63: 90182.36 | BF63: 62051 | BG63: 21914.76 | BH63: 14464.86 | BI63: 790553.09 | BJ63: 362831.34 | BK63: 521553.41 | BL63: 263103.27 | BM63: 267941.38 | BN63: 423464.01 | BO63: 143694.38 | BP63: 521887.31 | BQ63: 107799.79 | BR63: 5567557.02 | BS63: 11342.44 | BT63: 3441.9 | BU63: 705.91 | BV63: 260956.45 | BW63: 3895.06 | BX63: 24197.38 | BY63: 66395.04 | BZ63: 17670.06 | CA63: 166030.77 | CB63: 7425.57 | CC63: 21448.8 | CD63: 10244.05 | CE63: 71704.74 | CF63: 4569.23 | CG63: 68418.03 | CH63: 1402.08 | CI63: 51526.36 | CJ63: 514.42 | CK63: 25888.76 | CL63: 10841882.98 | CM63: 10996903.75 | CN63: 509.71 | CO63: 4744.25 | CP63: 14.6 | CQ63: 267.7 | CR63: 6808.31 | CS63: -211.09 | CT63: 12133.48 | CU63: 167154.25 | CV63: 28680.69 | CW63: 265501.87 | CX63: 598.71 | CY63: 17619.25 | CZ63: 425320.85 | DA63: 10448.11 | DB63: 748169.48 | DC63: 11590052.46 | DD63: 760302.96 | DE63: 842277.38 | DF63: -1202314.1 | DG63: 11397169.99
C64: 15 | D64: はん用機械 | E64: 0 | F64: 0.16 | G64: 0 | H64: 36.96 | I64: 0 | J64: 0 | K64: 651.55 | L64: 15.13 | M64: 0 | N64: 94.66 | O64: 357.88 | P64: 103.75 | Q64: 0.29 | R64: 240.66 | S64: 16741.83 | T64: 11149.01 | U64: 199.32 | V64: 445.52 | W64: 2454.74 | X64: 22.25 | Y64: 6890.01 | Z64: 18.3 | AA64: 10051.32 | AB64: 0 | AC64: 1391.33 | AD64: 0 | AE64: 12.59 | AF64: 0.02 | AG64: 0 | AH64: 148.26 | AI64: 5.67 | AJ64: 420.46 | AK64: 0 | AL64: 0.28 | AM64: 0 | AN64: 16552.31 | AO64: 0 | AP64: 0 | AQ64: 0 | AR64: 13.86 | AS64: 0 | AT64: 0 | AU64: 68018.12 | AV64: 0 | AW64: 23.5 | AX64: 0 | AY64: 1799.85 | AZ64: 0 | BA64: 0 | BB64: 12333.22 | BC64: 563.43 | BD64: 0 | BE64: 5120.04 | BF64: 12626.16 | BG64: 3093.31 | BH64: 132 | BI64: 11703.47 | BJ64: 1594093.6 | BK64: 635769.4 | BL64: 101461.5 | BM64: 28893.5 | BN64: 206437.13 | BO64: 11722.27 | BP64: 416394.27 | BQ64: 5011.34 | BR64: 373741.91 | BS64: 0 | BT64: 44485.14 | BU64: 0 | BV64: 384.92 | BW64: 0.96 | BX64: 0 | BY64: 4509.14 | BZ64: 275.25 | CA64: 12536.19 | CB64: 0 | CC64: 9.52 | CD64: 0 | CE64: 467577.59 | CF64: 0 | CG64: 0 | CH64: 0 | CI64: 363.55 | CJ64: 0 | CK64: 0 | CL64: 3951062.16 | CM64: 4019080.28 | CN64: 0 | CO64: 352.56 | CP64: 0 | CQ64: 3335.21 | CR64: 100454.41 | CS64: 348.27 | CT64: 104490.45 | CU64: 172508.57 | CV64: 0 | CW64: 12677.42 | CX64: 0 | CY64: 150878.95 | CZ64: 4097248.22 | DA64: 86156.18 | DB64: 4346960.77 | DC64: 8298022.93 | DD64: 4451451.22 | DE64: 3359629.65 | DF64: -1500950.21 | DG64: 10329210.94
C65: 16 | D65: 生産用機械 | E65: 0 | F65: 0.77 | G65: 0 | H65: 31.43 | I65: 0 | J65: 0 | K65: 18.8 | L65: 0 | M65: 1.11 | N65: 555.18 | O65: 381.59 | P65: 108.08 | Q65: 12.82 | R65: 96.23 | S65: 617.24 | T65: 32545.45 | U65: 18.77 | V65: 575.94 | W65: 699.25 | X65: 4.36 | Y65: 1051.95 | Z65: 5.92 | AA65: 74.72 | AB65: 2.46 | AC65: 29.46 | AD65: 0 | AE65: 8.94 | AF65: 0 | AG65: 0 | AH65: 79.68 | AI65: 3.97 | AJ65: 17.47 | AK65: 0 | AL65: 0 | AM65: 0 | AN65: 21469.32 | AO65: 0 | AP65: 0 | AQ65: 0.99 | AR65: 10.95 | AS65: 0 | AT65: 0 | AU65: 58422.85 | AV65: 0 | AW65: 118.59 | AX65: 0 | AY65: 1684.4 | AZ65: 0 | BA65: 0 | BB65: 1113.95 | BC65: 0 | BD65: 230.94 | BE65: 33891.29 | BF65: 7752.42 | BG65: 3584.1 | BH65: 1084.32 | BI65: 5519.42 | BJ65: 48748.84 | BK65: 2354085.47 | BL65: 12767.38 | BM65: 39063.48 | BN65: 35928.08 | BO65: 4837.76 | BP65: 47142.61 | BQ65: 1181.62 | BR65: 4090.49 | BS65: 126.93 | BT65: 1062.24 | BU65: 0 | BV65: 299.1 | BW65: 0 | BX65: 0 | BY65: 2280.91 | BZ65: 136.54 | CA65: 607.61 | CB65: 0 | CC65: 0 | CD65: 0 | CE65: 682270.47 | CF65: 0 | CG65: 0 | CH65: 49.59 | CI65: 383.52 | CJ65: 0 | CK65: 0 | CL65: 3290042.07 | CM65: 3348464.92 | CN65: 0 | CO65: 144.93 | CP65: 0 | CQ65: 2373.47 | CR65: 154266.39 | CS65: 376.63 | CT65: 157161.42 | CU65: 215584.27 | CV65: 0 | CW65: 7448.69 | CX65: 0 | CY65: 94281.38 | CZ65: 8190166.14 | DA65: 157914.61 | DB65: 8449810.82 | DC65: 11739852.89 | DD65: 8606972.24 | DE65: 6381727.52 | DF65: -1972019.68 | DG65: 16365145
C66: 17 | D66: 業務用機械 | E66: 129.85 | F66: 0.3 | G66: 0.38 | H66: 0 | I66: 0.83 | J66: 0 | K66: 0 | L66: 0.02 | M66: 0 | N66: 0 | O66: 0 | P66: 0 | Q66: 0 | R66: 4.78 | S66: 363.64 | T66: 1369.13 | U66: 1421.93 | V66: 0 | W66: 379.64 | X66: 3.35 | Y66: 571.65 | Z66: 35.53 | AA66: 313.25 | AB66: 0 | AC66: 13.57 | AD66: 4.1 | AE66: 3637.16 | AF66: 8.16 | AG66: 0 | AH66: 86.32 | AI66: 202.09 | AJ66: 4287.72 | AK66: 0 | AL66: 27172.81 | AM66: 0 | AN66: 9231.87 | AO66: 3.94 | AP66: 0 | AQ66: 1599.07 | AR66: 107.73 | AS66: 1040.37 | AT66: 0 | AU66: 51989.19 | AV66: 3902.06 | AW66: 31.55 | AX66: 14.49 | AY66: 0 | AZ66: 7.95 | BA66: 0 | BB66: 0 | BC66: 20.92 | BD66: 0 | BE66: 0 | BF66: 0 | BG66: 0 | BH66: 0 | BI66: 209.59 | BJ66: 27020.73 | BK66: 91258.59 | BL66: 584869.17 | BM66: 1606.08 | BN66: 14409.79 | BO66: 6828.17 | BP66: 20464.78 | BQ66: 1676 | BR66: 11540.81 | BS66: 0 | BT66: 426.2 | BU66: 130.61 | BV66: 99294.04 | BW66: 401.94 | BX66: 0 | BY66: 1374 | BZ66: 9547.01 | CA66: 121858.21 | CB66: 0 | CC66: 668622.05 | CD66: 0 | CE66: 255392.93 | CF66: 183.68 | CG66: 0 | CH66: 30881.06 | CI66: 3781.67 | CJ66: 34791.71 | CK66: 0 | CL66: 1990545.79 | CM66: 2042534.98 | CN66: 64.82 | CO66: 2672.15 | CP66: 7.59 | CQ66: 5644.12 | CR66: 126130.75 | CS66: -10.1 | CT66: 134509.33 | CU66: 186498.52 | CV66: 2253.41 | CW66: 97576.41 | CX66: 192.15 | CY66: 436821.87 | CZ66: 4137441.65 | DA66: 73513.73 | DB66: 4747799.22 | DC66: 6738345.01 | DD66: 4882308.55 | DE66: 2025280.67 | DF66: -2072646.33 | DG66: 6877477.87
C67: 18 | D67: 電子部品 | E67: 0 | F67: 0 | G67: 0.05 | H67: 0.45 | I67: 1.01 | J67: 0.01 | K67: 0.9 | L67: 0.72 | M67: 0 | N67: 0.04 | O67: 0.03 | P67: 0.59 | Q67: 2.04 | R67: 126.52 | S67: 550.58 | T67: 1960.62 | U67: 876.08 | V67: 23920.44 | W67: 11395.42 | X67: 758.32 | Y67: 4172.93 | Z67: 166.52 | AA67: 170.53 | AB67: 1 | AC67: 1.02 | AD67: 0 | AE67: 25.67 | AF67: 11.07 | AG67: 0 | AH67: 5.27 | AI67: 530.79 | AJ67: 1039.18 | AK67: 390.5 | AL67: 3.07 | AM67: 0 | AN67: 9045.36 | AO67: 0.03 | AP67: 0 | AQ67: 0.01 | AR67: 7.46 | AS67: 529.85 | AT67: 0 | AU67: 55694.08 | AV67: 0 | AW67: 0 | AX67: 11.65 | AY67: 19.14 | AZ67: 64.56 | BA67: 2.93 | BB67: 118.21 | BC67: 142.52 | BD67: 9.87 | BE67: 6.76 | BF67: 1.88 | BG67: 27.54 | BH67: 1173.89 | BI67: 30274.55 | BJ67: 75345.41 | BK67: 149574.01 | BL67: 917509.22 | BM67: 3625288.36 | BN67: 2263677.9 | BO67: 1679765.43 | BP67: 570226.93 | BQ67: 68455.46 | BR67: 18088.35 | BS67: 126.75 | BT67: 90.18 | BU67: 0 | BV67: 2219.23 | BW67: 1523.24 | BX67: 0 | BY67: 281.57 | BZ67: 66499.27 | CA67: 83265.09 | CB67: 62688.5 | CC67: 271.48 | CD67: 0 | CE67: 694258.7 | CF67: 3.85 | CG67: 0 | CH67: 1.94 | CI67: 635.04 | CJ67: 50108.86 | CK67: 0 | CL67: 10361758.27 | CM67: 10417452.35 | CN67: 5.23 | CO67: 1570.16 | CP67: 0 | CQ67: 0 | CR67: 0 | CS67: 41.41 | CT67: 1616.8 | CU67: 57310.88 | CV67: 514.53 | CW67: 149107.6 | CX67: 0 | CY67: 0 | CZ67: 0 | DA67: 97996.78 | DB67: 247618.91 | DC67: 10609377.18 | DD67: 249235.71 | DE67: 6655164.32 | DF67: -4058699.07 | DG67: 13263153.31
C68: 19 | D68: 電気機械 | E68: 5.05 | F68: 0 | G68: 22.52 | H68: 13.1 | I68: 1 | J68: 0 | K68: 44.15 | L68: 0.38 | M68: 0 | N68: 4.06 | O68: 8.4 | P68: 0 | Q68: 0.78 | R68: 180.31 | S68: 1457.57 | T68: 5674.2 | U68: 228.6 | V68: 6771.01 | W68: 12367.24 | X68: 128.67 | Y68: 66403.81 | Z68: 74.03 | AA68: 8902.26 | AB68: 1.18 | AC68: 18.74 | AD68: 0 | AE68: 496.95 | AF68: 1.26 | AG68: 22.61 | AH68: 307.95 | AI68: 186.65 | AJ68: 1687.49 | AK68: 546.31 | AL68: 132.38 | AM68: 0 | AN68: 10705.28 | AO68: 7.35 | AP68: 26.77 | AQ68: 164.44 | AR68: 21.68 | AS68: 0 | AT68: 114.08 | AU68: 116728.26 | AV68: 425.19 | AW68: 0 | AX68: 2369.38 | AY68: 266.84 | AZ68: 13.15 | BA68: 0 | BB68: 1624.22 | BC68: 79.58 | BD68: 0 | BE68: 293.17 | BF68: 248.12 | BG68: 0 | BH68: 189.83 | BI68: 9105.42 | BJ68: 239171.12 | BK68: 366876.61 | BL68: 131020.94 | BM68: 260783.68 | BN68: 1810848.73 | BO68: 101149.52 | BP68: 1619746.24 | BQ68: 12674.43 | BR68: 465499.98 | BS68: 74.25 | BT68: 796.02 | BU68: 0 | BV68: 19700.35 | BW68: 85.99 | BX68: 941.93 | BY68: 10547.37 | BZ68: 11526.21 | CA68: 69612.78 | CB68: 19133.66 | CC68: 4618.24 | CD68: 0 | CE68: 401468.42 | CF68: 474.76 | CG68: 1114.12 | CH68: 6672.2 | CI68: 899.95 | CJ68: 0 | CK68: 5188.33 | CL68: 5575240.73 | CM68: 5691968.99 | CN68: 1314.94 | CO68: 63105.74 | CP68: 0 | CQ68: 4169.08 | CR68: 98510.97 | CS68: 542.71 | CT68: 167643.44 | CU68: 284371.7 | CV68: 63370.45 | CW68: 2999350.88 | CX68: 0 | CY68: 290284.35 | CZ68: 5012902.24 | DA68: 46035.29 | DB68: 8411943.21 | DC68: 13987183.94 | DD68: 8579586.65 | DE68: 6119481.5 | DF68: -4601920.26 | DG68: 15789116.88
C69: 20 | D69: 情報通信機器 | E69: 0.98 | F69: 0.37 | G69: 0.63 | H69: 0.2 | I69: 15.28 | J69: 0.18 | K69: 0.96 | L69: 8.38 | M69: 0.32 | N69: 9.36 | O69: 2.36 | P69: 0.76 | Q69: 0.11 | R69: 10.5 | S69: 145.37 | T69: 23.81 | U69: 0.45 | V69: 10.69 | W69: 7.18 | X69: 144.78 | Y69: 23039.96 | Z69: 4.34 | AA69: 1796.27 | AB69: 5.26 | AC69: 0.91 | AD69: 1.94 | AE69: 648.58 | AF69: 69.06 | AG69: 111.04 | AH69: 130.2 | AI69: 167.03 | AJ69: 1495.15 | AK69: 69.58 | AL69: 39.77 | AM69: 6.01 | AN69: 2089.24 | AO69: 0.87 | AP69: 101.46 | AQ69: 77.8 | AR69: 5.67 | AS69: 0 | AT69: 0 | AU69: 30242.81 | AV69: 46.12 | AW69: 69.26 | AX69: 74.77 | AY69: 10.62 | AZ69: 688.77 | BA69: 26.65 | BB69: 76.15 | BC69: 902.67 | BD69: 49.36 | BE69: 109.26 | BF69: 77.51 | BG69: 21.55 | BH69: 26.77 | BI69: 600.85 | BJ69: 7613.23 | BK69: 3979.81 | BL69: 229.02 | BM69: 784.38 | BN69: 726.04 | BO69: 141421.77 | BP69: 302369.69 | BQ69: 381.59 | BR69: 99319.48 | BS69: 355.86 | BT69: 50.26 | BU69: 98.28 | BV69: 28430.34 | BW69: 5095.75 | BX69: 5181.41 | BY69: 5581.02 | BZ69: 11774.01 | CA69: 64042.8 | CB69: 5166.72 | CC69: 1712.94 | CD69: 324.47 | CE69: 98647.59 | CF69: 62.32 | CG69: 4496.89 | CH69: 2727.57 | CI69: 323.11 | CJ69: 0 | CK69: 0 | CL69: 793676.66 | CM69: 823919.47 | CN69: 676.39 | CO69: 72042.5 | CP69: 0 | CQ69: 8990.87 | CR69: 100143.71 | CS69: 354.6 | CT69: 182208.07 | CU69: 212450.88 | CV69: 36008.6 | CW69: 3312740.06 | CX69: 0 | CY69: 985303.05 | CZ69: 4693099.02 | DA69: 9099.3 | DB69: 9036250.03 | DC69: 9829926.69 | DD69: 9218458.1 | DE69: 1632378.01 | DF69: -6227440.26 | DG69: 5447315.32
C70: 21 | D70: 輸送機械 | E70: 0 | F70: 0 | G70: 957.59 | H70: 0.6 | I70: 0 | J70: 0 | K70: 0 | L70: 0 | M70: 0 | N70: 0 | O70: 0 | P70: 0 | Q70: 0 | R70: 0 | S70: 0 | T70: 166.64 | U70: 0 | V70: 0 | W70: 0 | X70: 0 | Y70: 1269099.97 | Z70: 0 | AA70: 0 | AB70: 0 | AC70: 0 | AD70: 0 | AE70: 0 | AF70: 0 | AG70: 0 | AH70: 33126.29 | AI70: 0 | AJ70: 6474.56 | AK70: 70.94 | AL70: 0 | AM70: 0 | AN70: 57838.15 | AO70: 0 | AP70: 0 | AQ70: 3.52 | AR70: 45.96 | AS70: 0 | AT70: 0 | AU70: 1367784.22 | AV70: 0 | AW70: 0 | AX70: 69148.97 | AY70: 29.45 | AZ70: 0 | BA70: 0 | BB70: 0 | BC70: 0 | BD70: 0 | BE70: 0 | BF70: 0 | BG70: 0 | BH70: 0 | BI70: 0 | BJ70: 0 | BK70: 8070.11 | BL70: 0 | BM70: 0 | BN70: 0 | BO70: 0 | BP70: 22541951.27 | BQ70: 0 | BR70: 0 | BS70: 0 | BT70: 0 | BU70: 0 | BV70: 0 | BW70: 0 | BX70: 0 | BY70: 751980.81 | BZ70: 0 | CA70: 202376.35 | CB70: 2771.39 | CC70: 0 | CD70: 0 | CE70: 1665399.42 | CF70: 0 | CG70: 0 | CH70: 144.61 | CI70: 1274.36 | CJ70: 0 | CK70: 0 | CL70: 25243146.74 | CM70: 26610930.96 | CN70: 0 | CO70: 143635.67 | CP70: 0 | CQ70: 11973.24 | CR70: 166502.32 | CS70: 3273.25 | CT70: 325384.48 | CU70: 1693168.7 | CV70: 0 | CW70: 5565419.32 | CX70: 0 | CY70: 821362.97 | CZ70: 6477884.32 | DA70: 106769.49 | DB70: 12971436.1 | DC70: 38214582.84 | DD70: 13296820.58 | DE70: 16701255.86 | DF70: -4377870.05 | DG70: 52231137.35
C71: 22 | D71: その他の製造工業製品 | E71: 145.08 | F71: 148 | G71: 113.6 | H71: 72.5 | I71: 7691.63 | J71: 496.35 | K71: 1325.06 | L71: 1193.7 | M71: 1252.55 | N71: 555.85 | O71: 2053.35 | P71: 8066.6 | Q71: 2115.2 | R71: 426.01 | S71: 106.6 | T71: 478.71 | U71: 89.25 | V71: 928.23 | W71: 513.07 | X71: 34.73 | Y71: 3650.91 | Z71: 7204.28 | AA71: 3776.61 | AB71: 3930.47 | AC71: 375.82 | AD71: 441.14 | AE71: 14266.86 | AF71: 8857.95 | AG71: 133.86 | AH71: 3551.45 | AI71: 22897.07 | AJ71: 7752.99 | AK71: 14150.22 | AL71: 7416.18 | AM71: 4045.61 | AN71: 16275.02 | AO71: 254.71 | AP71: 1846.17 | AQ71: 3785.12 | AR71: 3291.16 | AS71: 4725.35 | AT71: 174.83 | AU71: 160609.85 | AV71: 14105.65 | AW71: 4765.84 | AX71: 10659 | AY71: 3434.53 | AZ71: 306656.66 | BA71: 56591.65 | BB71: 167041.43 | BC71: 98342.69 | BD71: 19307.88 | BE71: 27696.82 | BF71: 57209.44 | BG71: 200831.57 | BH71: 277941.57 | BI71: 32928.5 | BJ71: 13778.91 | BK71: 49638.06 | BL71: 47066.46 | BM71: 70864.14 | BN71: 62942.1 | BO71: 40776.17 | BP71: 85790.77 | BQ71: 495887.26 | BR71: 201613.49 | BS71: 213073.99 | BT71: 15691.09 | BU71: 18044.98 | BV71: 553284.21 | BW71: 542249.04 | BX71: 5449.08 | BY71: 120792.45 | BZ71: 1120692.96 | CA71: 334072.1 | CB71: 728326.76 | CC71: 265881.55 | CD71: 200044.04 | CE71: 706209.55 | CF71: 15322.56 | CG71: 69464.16 | CH71: 114386.17 | CI71: 129073.67 | CJ71: 204089.59 | CK71: 7406.49 | CL71: 7709425.03 | CM71: 7870034.88 | CN71: 4656.78 | CO71: 66202.5 | CP71: 0.28 | CQ71: 1656.27 | CR71: 21504.61 | CS71: 725.91 | CT71: 94746.35 | CU71: 255356.2 | CV71: 209064.25 | CW71: 2921702.38 | CX71: 9.39 | CY71: 107049.92 | CZ71: 1018018.75 | DA71: 39723.73 | DB71: 4295568.42 | DC71: 12004993.45 | DD71: 4390314.77 | DE71: 764312.47 | DF71: -3376796.22 | DG71: 9647865.9
C72: 23 | D72: 建設 | E72: 0 | F72: 0 | G72: 0 | H72: 0 | I72: 0 | J72: 0 | K72: 0 | L72: 0 | M72: 0 | N72: 0 | O72: 0 | P72: 0 | Q72: 0 | R72: 0 | S72: 0 | T72: 0 | U72: 0 | V72: 0 | W72: 0 | X72: 0 | Y72: 0 | Z72: 0 | AA72: 0 | AB72: 0 | AC72: 0 | AD72: 0 | AE72: 0 | AF72: 0 | AG72: 0 | AH72: 0 | AI72: 0 | AJ72: 0 | AK72: 0 | AL72: 0 | AM72: 0 | AN72: 0 | AO72: 0 | AP72: 0 | AQ72: 0 | AR72: 0 | AS72: 0 | AT72: 0 | AU72: 0 | AV72: 27134.15 | AW72: 1000.05 | AX72: 1172.54 | AY72: 2533.09 | AZ72: 17280.02 | BA72: 7978.5 | BB72: 41135.63 | BC72: 84692.98 | BD72: 5620.11 | BE72: 40219.61 | BF72: 31937.7 | BG72: 100099.43 | BH72: 26038.24 | BI72: 41736.2 | BJ72: 17138.34 | BK72: 26332.43 | BL72: 8337.87 | BM72: 42118.38 | BN72: 26699.95 | BO72: 8530.65 | BP72: 32398.05 | BQ72: 13413.43 | BR72: 36813 | BS72: 347442.98 | BT72: 128292.2 | BU72: 13425.06 | BV72: 265616.3 | BW72: 84561.42 | BX72: 700484.84 | BY72: 344430.18 | BZ72: 164512.37 | CA72: 313945.88 | CB72: 221129.03 | CC72: 144998.89 | CD72: 7078.17 | CE72: 85890.51 | CF72: 8655.98 | CG72: 33114.06 | CH72: 38980.87 | CI72: 31760.85 | CJ72: 0 | CK72: 0 | CL72: 3574679.94 | CM72: 3574679.94 | CN72: 0 | CO72: 0 | CP72: 0 | CQ72: 0 | CR72: 0 | CS72: 0 | CT72: 0 | CU72: 0 | CV72: 0 | CW72: 0 | CX72: 0 | CY72: 19851469.88 | CZ72: 35422126.3 | DA72: 0 | DB72: 55273596.18 | DC72: 58848276.12 | DD72: 55273596.18 | DE72: 0 | DF72: 0 | DG72: 58848276.12
C73: 24 | D73: 電力・ガス・熱供給 | E73: 554.72 | F73: 56.66 | G73: 41.34 | H73: 212.12 | I73: 3494.17 | J73: 270.37 | K73: 872.47 | L73: 4407.36 | M73: 259.27 | N73: 3445.46 | O73: 4814.97 | P73: 14679.46 | Q73: 858.22 | R73: 1573.79 | S73: 291.69 | T73: 696.84 | U73: 56.2 | V73: 1554.6 | W73: 546.96 | X73: 13.08 | Y73: 5924.63 | Z73: 1203.07 | AA73: 1242.49 | AB73: 11551.88 | AC73: 1440.65 | AD73: 2732.55 | AE73: 16493.47 | AF73: 920.56 | AG73: 2590.15 | AH73: 5400.97 | AI73: 2184.39 | AJ73: 3410.77 | AK73: 7769.64 | AL73: 7463.05 | AM73: 132.38 | AN73: 2933.57 | AO73: 1508.2 | AP73: 8087.98 | AQ73: 3071.65 | AR73: 3052.2 | AS73: 0 | AT73: 156.9 | AU73: 127970.9 | AV73: 99802.51 | AW73: 5716.26 | AX73: 10869.11 | AY73: 31024.68 | AZ73: 492134.58 | BA73: 108754.64 | BB73: 504913.93 | BC73: 788970.31 | BD73: 127633.75 | BE73: 437449.04 | BF73: 320261.62 | BG73: 1103294.92 | BH73: 309185.76 | BI73: 265388.1 | BJ73: 140122.5 | BK73: 176020.64 | BL73: 66997.84 | BM73: 374697.04 | BN73: 144659.24 | BO73: 30251.43 | BP73: 648219.87 | BQ73: 171284.29 | BR73: 191411.13 | BS73: 2065965.06 | BT73: 184911.23 | BU73: 348109.75 | BV73: 2071202.64 | BW73: 172769.92 | BX73: 311765.01 | BY73: 669704.54 | BZ73: 275387.96 | CA73: 460143.73 | CB73: 805863.85 | CC73: 811215.46 | CD73: 19799.23 | CE73: 387398.3 | CF73: 279943.17 | CG73: 956901.63 | CH73: 299921.68 | CI73: 352255.26 | CJ73: 0 | CK73: 20512.73 | CL73: 17042834.34 | CM73: 17170805.24 | CN73: 47.08 | CO73: 53529.5 | CP73: 0 | CQ73: 0 | CR73: 0 | CS73: 0 | CT73: 53576.58 | CU73: 181547.48 | CV73: 6522.26 | CW73: 6631679.28 | CX73: 0 | CY73: 0 | CZ73: 0 | DA73: 0 | DB73: 6638201.54 | DC73: 23681035.88 | DD73: 6691778.12 | DE73: 58439.04 | DF73: -1724.69 | DG73: 23919297.71
C74: 25 | D74: 水道 | E74: 7.73 | F74: 0.36 | G74: 0.41 | H74: 3.64 | I74: 147.9 | J74: 2.79 | K74: 9.33 | L74: 85.61 | M74: 13.27 | N74: 18.65 | O74: 18.79 | P74: 96.15 | Q74: 5.44 | R74: 12.16 | S74: 4.56 | T74: 8.87 | U74: 0.86 | V74: 15.28 | W74: 8.8 | X74: 0.22 | Y74: 70.34 | Z74: 13.46 | AA74: 77.44 | AB74: 28.9 | AC74: 797.95 | AD74: 94.96 | AE74: 468.06 | AF74: 64.68 | AG74: 72.42 | AH74: 446.23 | AI74: 227.68 | AJ74: 314.02 | AK74: 868.48 | AL74: 838.71 | AM74: 18.27 | AN74: 111.31 | AO74: 87.22 | AP74: 586.54 | AQ74: 134.49 | AR74: 261.13 | AS74: 0 | AT74: 13.58 | AU74: 6056.69 | AV74: 6607.87 | AW74: 159.53 | AX74: 280.46 | AY74: 2105.3 | AZ74: 67648.67 | BA74: 5733.89 | BB74: 23340.47 | BC74: 66086.09 | BD74: 7830.75 | BE74: 12710.25 | BF74: 7452.84 | BG74: 24422.97 | BH74: 6770.09 | BI74: 7609.29 | BJ74: 6358.18 | BK74: 9261.53 | BL74: 4396.61 | BM74: 22906.18 | BN74: 9149.87 | BO74: 1374.81 | BP74: 19614.19 | BQ74: 7736.68 | BR74: 43465.31 | BS74: 18331.11 | BT74: 393413.48 | BU74: 42590.36 | BV74: 206322.24 | BW74: 42873.42 | BX74: 30942.7 | BY74: 189885.49 | BZ74: 84603.9 | CA74: 152929.49 | CB74: 371115.19 | CC74: 306694.24 | CD74: 9644.03 | CE74: 52522.29 | CF74: 56989.87 | CG74: 243545.7 | CH74: 42145.68 | CI74: 110121.93 | CJ74: 0 | CK74: 6251.13 | CL74: 2723944.08 | CM74: 2730000.77 | CN74: 5.31 | CO74: 4145.97 | CP74: 69.33 | CQ74: 0 | CR74: 0 | CS74: 0 | CT74: 4220.61 | CU74: 10277.3 | CV74: 2589.59 | CW74: 1827531.27 | CX74: -213235.05 | CY74: 0 | CZ74: 0 | DA74: 0 | DB74: 1616885.81 | DC74: 4340829.89 | DD74: 1621106.42 | DE74: 20047.11 | DF74: -1485.97 | DG74: 4369668.33
C75: 26 | D75: 廃棄物処理 | E75: 0.37 | F75: 0.02 | G75: 0 | H75: 0.24 | I75: 4.39 | J75: 0.04 | K75: 0.34 | L75: 5.07 | M75: 0.09 | N75: 0.36 | O75: 2.93 | P75: 0.94 | Q75: 0.04 | R75: 0.13 | S75: 0.15 | T75: 0.05 | U75: 0.02 | V75: 0.76 | W75: 0.36 | X75: 0.01 | Y75: 2.44 | Z75: 0.5 | AA75: 15.66 | AB75: 26.79 | AC75: 1.36 | AD75: 0 | AE75: 22.78 | AF75: 12.78 | AG75: 0.17 | AH75: 45.38 | AI75: 34.82 | AJ75: 155.23 | AK75: 42.56 | AL75: 48.29 | AM75: 0.02 | AN75: 4.02 | AO75: 27.7 | AP75: 78.79 | AQ75: 21.89 | AR75: 31.32 | AS75: 0 | AT75: 11 | AU75: 599.81 | AV75: 4726.55 | AW75: 127.53 | AX75: 64.54 | AY75: 1888.79 | AZ75: 29162.79 | BA75: 813.3 | BB75: 8912.84 | BC75: 62438.14 | BD75: 181.79 | BE75: 947.64 | BF75: 14348.33 | BG75: 3479.92 | BH75: 1492.26 | BI75: 949.78 | BJ75: 2845.38 | BK75: 397.82 | BL75: 3412.81 | BM75: 9889.98 | BN75: 3671.35 | BO75: 989.16 | BP75: 19402.04 | BQ75: 3228.83 | BR75: 111683.76 | BS75: 244062.74 | BT75: 8637.33 | BU75: 0 | BV75: 121070.55 | BW75: 108139.24 | BX75: 983.78 | BY75: 261441.56 | BZ75: 169200.98 | CA75: 1046854.47 | CB75: 196773.4 | CC75: 234280.94 | CD75: 150.54 | CE75: 20995.6 | CF75: 231480.79 | CG75: 417388.02 | CH75: 104480.46 | CI75: 159087.31 | CJ75: 0 | CK75: 64757.42 | CL75: 3674840.46 | CM75: 3675440.27 | CN75: 0 | CO75: 78.71 | CP75: 70.36 | CQ75: 0 | CR75: 0 | CS75: 0 | CT75: 149.07 | CU75: 748.88 | CV75: 0 | CW75: 274707.92 | CX75: 766085.25 | CY75: 0 | CZ75: 0 | DA75: 0 | DB75: 1040793.17 | DC75: 4715633.63 | DD75: 1040942.24 | DE75: 8173.31 | DF75: -296.42 | DG75: 4724259.4
C76: 27 | D76: 商業 | E76: 6889.66 | F76: 338.45 | G76: 829.21 | H76: 208.88 | I76: 35194.97 | J76: 1335.45 | K76: 6725.41 | L76: 8371.22 | M76: 1065.36 | N76: 10999.19 | O76: 3645.47 | P76: 15231.4 | Q76: 1783.43 | R76: 5947.43 | S76: 2008.5 | T76: 5063 | U76: 486.79 | V76: 4361.11 | W76: 5058.42 | X76: 130.48 | Y76: 33112 | Z76: 6785.77 | AA76: 39974.61 | AB76: 4812.92 | AC76: 1170.11 | AD76: 1041.35 | AE76: 16357.45 | AF76: 1853.46 | AG76: 1386.69 | AH76: 23588.53 | AI76: 6935.44 | AJ76: 5448.53 | AK76: 9301.11 | AL76: 57682.67 | AM76: 2153.64 | AN76: 21400.94 | AO76: 2651.74 | AP76: 52405.1 | AQ76: 3515.37 | AR76: 6006.33 | AS76: 4579.22 | AT76: 663.47 | AU76: 418500.28 | AV76: 691617.2 | AW76: 18582.25 | AX76: 91913.16 | AY76: 16509.02 | AZ76: 2588489.85 | BA76: 253424.95 | BB76: 890778.28 | BC76: 1026722.61 | BD76: 170733.74 | BE76: 743483.88 | BF76: 213169.48 | BG76: 562347.3 | BH76: 322903.51 | BI76: 492094.88 | BJ76: 435875.94 | BK76: 636892.42 | BL76: 318611.61 | BM76: 533767.73 | BN76: 775491.67 | BO76: 225282.32 | BP76: 2001652.19 | BQ76: 661012.88 | BR76: 3191359.62 | BS76: 414805.57 | BT76: 76035.65 | BU76: 67735.45 | BV76: 964878.65 | BW76: 178922.19 | BX76: 94467.7 | BY76: 1394193.77 | BZ76: 571419.61 | CA76: 368130.77 | CB76: 781254.34 | CC76: 3161962.1 | CD76: 159567.42 | CE76: 1295203.92 | CF76: 251764.34 | CG76: 3178628.37 | CH76: 183785.49 | CI76: 361928.24 | CJ76: 312145.84 | CK76: 44362.18 | CL76: 30723908.09 | CM76: 31142408.37 | CN76: 22109.22 | CO76: 617298.11 | CP76: 182.3 | CQ76: 4092.16 | CR76: 85640.45 | CS76: 2399.72 | CT76: 731721.96 | CU76: 1150222.24 | CV76: 1566560.4 | CW76: 45404225.58 | CX76: 9564.95 | CY76: 473832.12 | CZ76: 6512708.89 | DA76: 171065.65 | DB76: 54137957.59 | DC76: 84861865.68 | DD76: 54869679.55 | DE76: 5490383.36 | DF76: -183565.74 | DG76: 91318905.54
C77: 28 | D77: 金融・保険 | E77: 162.89 | F77: 15.66 | G77: 34.33 | H77: 115.98 | I77: 1116.72 | J77: 94.85 | K77: 290.24 | L77: 418 | M77: 75.1 | N77: 270.33 | O77: 357.49 | P77: 841.31 | Q77: 100.34 | R77: 454.34 | S77: 95.53 | T77: 262.05 | U77: 42.54 | V77: 156.78 | W77: 187.96 | X77: 11.46 | Y77: 1373.75 | Z77: 414.81 | AA77: 2676.87 | AB77: 1252.28 | AC77: 459.5 | AD77: 594.67 | AE77: 7686.03 | AF77: 4599.66 | AG77: 21991.26 | AH77: 6005.2 | AI77: 1170.7 | AJ77: 3490.17 | AK77: 1731.95 | AL77: 2704.6 | AM77: 401.35 | AN77: 2939.54 | AO77: 296.46 | AP77: 713.74 | AQ77: 457.35 | AR77: 211.18 | AS77: 0 | AT77: 55.4 | AU77: 66330.37 | AV77: 56968.87 | AW77: 6562.29 | AX77: 15616.62 | AY77: 33261.29 | AZ77: 210065.83 | BA77: 64294.99 | BB77: 111288.55 | BC77: 178324.65 | BD77: 56154.89 | BE77: 53547.74 | BF77: 64836.69 | BG77: 108588 | BH77: 70050.53 | BI77: 129580.01 | BJ77: 69161.85 | BK77: 114032.8 | BL77: 74475.68 | BM77: 82909.19 | BN77: 95510.05 | BO77: 34129.52 | BP77: 228897.27 | BQ77: 141151.45 | BR77: 738494.17 | BS77: 392862.95 | BT77: 103417.07 | BU77: 127195.62 | BV77: 1566265.07 | BW77: 1595381.11 | BX77: 5944206.22 | BY77: 1201346.68 | BZ77: 269004 | CA77: 805837.26 | CB77: 306625.64 | CC77: 563957.88 | CD77: 110711.59 | CE77: 628835.91 | CF77: 98107.22 | CG77: 149969.34 | CH77: 81202.23 | CI77: 47182.3 | CJ77: 0 | CK77: 12910.75 | CL77: 16742921.77 | CM77: 16809252.14 | CN77: 1.1 | CO77: 58000.25 | CP77: 0 | CQ77: 0 | CR77: 0 | CS77: 0 | CT77: 58001.35 | CU77: 124331.72 | CV77: 272.27 | CW77: 17262508.71 | CX77: 0 | CY77: 0 | CZ77: 0 | DA77: 0 | DB77: 17262780.98 | DC77: 34005702.75 | DD77: 17320782.33 | DE77: 1676290.26 | DF77: -1355581.13 | DG77: 34450743.6
C78: 29 | D78: 不動産 | E78: 8.72 | F78: 0.31 | G78: 0.25 | H78: 1.18 | I78: 31.76 | J78: 1.8 | K78: 6.32 | L78: 11.81 | M78: 0.89 | N78: 12.63 | O78: 8.25 | P78: 19.95 | Q78: 1.14 | R78: 13.85 | S78: 4.05 | T78: 10.34 | U78: 0.42 | V78: 3.77 | W78: 6.54 | X78: 0.19 | Y78: 27.09 | Z78: 9 | AA78: 85.34 | AB78: 35.64 | AC78: 2.06 | AD78: 3.33 | AE78: 1075.48 | AF78: 132.44 | AG78: 898.68 | AH78: 478.8 | AI78: 315.11 | AJ78: 24.61 | AK78: 75.71 | AL78: 467.42 | AM78: 26.04 | AN78: 225.39 | AO78: 13.51 | AP78: 109.61 | AQ78: 31.28 | AR78: 120.65 | AS78: 0 | AT78: 52.08 | AU78: 4353.44 | AV78: 20624.6 | AW78: 757.48 | AX78: 1087.53 | AY78: 6887.89 | AZ78: 84492.16 | BA78: 13178.84 | BB78: 27587.72 | BC78: 66059.73 | BD78: 6017.05 | BE78: 42765.68 | BF78: 19452.66 | BG78: 31105.41 | BH78: 8527.08 | BI78: 46383.5 | BJ78: 27506.6 | BK78: 41282.06 | BL78: 13133.85 | BM78: 21408.93 | BN78: 40558.83 | BO78: 13387.82 | BP78: 40029.89 | BQ78: 28814.5 | BR78: 267147 | BS78: 135144.89 | BT78: 6065.43 | BU78: 8643.05 | BV78: 2542843.96 | BW78: 527108.95 | BX78: 2313687.81 | BY78: 1010199.16 | BZ78: 1122383.83 | CA78: 60935.08 | CB78: 332969.83 | CC78: 1039388.03 | CD78: 78576.37 | CE78: 554412.85 | CF78: 52437.2 | CG78: 264091.45 | CH78: 69889.06 | CI78: 293896.97 | CJ78: 0 | CK78: 142311.49 | CL78: 11423182.22 | CM78: 11427535.66 | CN78: 0 | CO78: 19898.96 | CP78: 8.68 | CQ78: 0 | CR78: 991.71 | CS78: 0 | CT78: 20899.35 | CU78: 25252.79 | CV78: 0 | CW78: 63793577.28 | CX78: 21089.47 | CY78: 0 | CZ78: 2748484.36 | DA78: 0 | DB78: 66563151.11 | DC78: 77986333.33 | DD78: 66584050.46 | DE78: 45015.69 | DF78: -1731.04 | DG78: 78054870.77
C79: 30 | D79: 運輸・郵便 | E79: 1443.75 | F79: 103.32 | G79: 149.8 | H79: 731.6 | I79: 4888.09 | J79: 122.76 | K79: 891.28 | L79: 1446.69 | M79: 491.78 | N79: 894.57 | O79: 1867.35 | P79: 3650.15 | Q79: 292.34 | R79: 1048.79 | S79: 282.96 | T79: 663.15 | U79: 64.91 | V79: 501.6 | W79: 548.59 | X79: 17.65 | Y79: 5948.84 | Z79: 3422.23 | AA79: 8737.8 | AB79: 2755.33 | AC79: 354.79 | AD79: 1176.79 | AE79: 23064.58 | AF79: 3388.57 | AG79: 887.45 | AH79: 26782.95 | AI79: 4615.39 | AJ79: 5337.03 | AK79: 4488.63 | AL79: 4771.94 | AM79: 583.26 | AN79: 4713.02 | AO79: 1502.33 | AP79: 2970.53 | AQ79: 1714.28 | AR79: 1979.11 | AS79: 271.36 | AT79: 1661.27 | AU79: 131228.61 | AV79: 591063.4 | AW79: 44963.73 | AX79: 66166.82 | AY79: 167037.92 | AZ79: 1196298.32 | BA79: 91099.6 | BB79: 459490.91 | BC79: 684690.58 | BD79: 323378.29 | BE79: 257002.87 | BF79: 353037.9 | BG79: 517580.68 | BH79: 265420.59 | BI79: 323405.88 | BJ79: 214281.53 | BK79: 304313.36 | BL79: 161494.14 | BM79: 251900.87 | BN79: 326381.78 | BO79: 114865.91 | BP79: 807428.46 | BQ79: 863901.23 | BR79: 2554094.5 | BS79: 914044.68 | BT79: 85298.35 | BU79: 288424.62 | BV79: 4850765.61 | BW79: 1215819.24 | BX79: 202137.23 | BY79: 6307669.11 | BZ79: 1304218.74 | CA79: 1307958.45 | CB79: 1094412.31 | CC79: 982243.29 | CD79: 161837.12 | CE79: 1125773.37 | CF79: 525709.61 | CG79: 683663.57 | CH79: 327058.83 | CI79: 426978.17 | CJ79: 70795.93 | CK79: 422592.61 | CL79: 33236700.11 | CM79: 33367928.72 | CN79: 1463.25 | CO79: 43831.47 | CP79: 117.78 | CQ79: 108.66 | CR79: 2583.32 | CS79: 180.38 | CT79: 48284.86 | CU79: 179513.47 | CV79: 397153.4 | CW79: 14456487.26 | CX79: 50739.21 | CY79: 57778 | CZ79: 737499.9 | DA79: 48082.82 | DB79: 15747740.59 | DC79: 48984440.7 | DD79: 15796025.45 | DE79: 7075891.03 | DF79: -3507270.02 | DG79: 52732575.18
C80: 31 | D80: 情報通信 | E80: 138.85 | F80: 2.66 | G80: 21.87 | H80: 28.42 | I80: 903.38 | J80: 37.21 | K80: 194.03 | L80: 873.89 | M80: 15.81 | N80: 472.44 | O80: 244.31 | P80: 618.27 | Q80: 57.55 | R80: 305 | S80: 126.61 | T80: 447.29 | U80: 31.67 | V80: 325.27 | W80: 482.39 | X80: 29.34 | Y80: 1171.7 | Z80: 263.97 | AA80: 2178.16 | AB80: 1003.54 | AC80: 921.55 | AD80: 242.4 | AE80: 19800.35 | AF80: 7173.19 | AG80: 1523.73 | AH80: 3703.35 | AI80: 45481.14 | AJ80: 6012.05 | AK80: 4538.46 | AL80: 5075.26 | AM80: 1406.91 | AN80: 25653.97 | AO80: 460.91 | AP80: 2468.26 | AQ80: 2094.12 | AR80: 1159.06 | AS80: 0 | AT80: 1778.19 | AU80: 139466.53 | AV80: 38061.47 | AW80: 1187.42 | AX80: 8053.44 | AY80: 6592.81 | AZ80: 169007.85 | BA80: 19744.51 | BB80: 73070.69 | BC80: 340207.76 | BD80: 11920.58 | BE80: 84354.83 | BF80: 38317.14 | BG80: 66631.02 | BH80: 30746.57 | BI80: 70560.2 | BJ80: 70113.78 | BK80: 171963.23 | BL80: 53435.02 | BM80: 122049.33 | BN80: 197916.67 | BO80: 104425.5 | BP80: 149203.4 | BQ80: 66155.37 | BR80: 518012.08 | BS80: 266044.86 | BT80: 171580.93 | BU80: 45571.85 | BV80: 3405433.06 | BW80: 1985660.89 | BX80: 264426.66 | BY80: 537138.66 | BZ80: 8088493.13 | CA80: 1158593.33 | CB80: 1228978.44 | CC80: 811432.23 | CD80: 297169.71 | CE80: 5498351.53 | CF80: 125163.12 | CG80: 433540.01 | CH80: 298003.86 | CI80: 204105.5 | CJ80: 0 | CK80: 340065.54 | CL80: 27571483.98 | CM80: 27710950.51 | CN80: 856.89 | CO80: 70420.56 | CP80: 211.05 | CQ80: 2782.61 | CR80: 21999.2 | CS80: -136.13 | CT80: 96134.18 | CU80: 235600.71 | CV80: 173658.19 | CW80: 12695437.77 | CX80: 34564.29 | CY80: 1030426.04 | CZ80: 8126901.8 | DA80: -25903.41 | DB80: 22035084.68 | DC80: 49606568.66 | DD80: 22131218.86 | DE80: 736688.49 | DF80: -2249706.12 | DG80: 48329151.74
C81: 32 | D81: 公務 | E81: 0 | F81: 0 | G81: 0 | H81: 0 | I81: 0 | J81: 0 | K81: 0 | L81: 0 | M81: 0 | N81: 0 | O81: 0 | P81: 0 | Q81: 0 | R81: 0 | S81: 0 | T81: 0 | U81: 0 | V81: 0 | W81: 0 | X81: 0 | Y81: 0 | Z81: 0 | AA81: 0 | AB81: 0 | AC81: 0 | AD81: 0 | AE81: 0 | AF81: 0 | AG81: 0 | AH81: 0 | AI81: 0 | AJ81: 0 | AK81: 0 | AL81: 0 | AM81: 0 | AN81: 0 | AO81: 0 | AP81: 0 | AQ81: 0 | AR81: 0 | AS81: 0 | AT81: 0 | AU81: 0 | AV81: 0 | AW81: 0 | AX81: 0 | AY81: 0 | AZ81: 0 | BA81: 0 | BB81: 0 | BC81: 0 | BD81: 0 | BE81: 0 | BF81: 0 | BG81: 0 | BH81: 0 | BI81: 0 | BJ81: 0 | BK81: 0 | BL81: 0 | BM81: 0 | BN81: 0 | BO81: 0 | BP81: 0 | BQ81: 0 | BR81: 0 | BS81: 0 | BT81: 0 | BU81: 0 | BV81: 0 | BW81: 0 | BX81: 0 | BY81: 0 | BZ81: 0 | CA81: 0 | CB81: 0 | CC81: 0 | CD81: 0 | CE81: 0 | CF81: 0 | CG81: 0 | CH81: 0 | CI81: 0 | CJ81: 0 | CK81: 1115384.62 | CL81: 1115384.62 | CM81: 1115384.62 | CN81: 0 | CO81: 0 | CP81: 0 | CQ81: 0 | CR81: 0 | CS81: 0 | CT81: 0 | CU81: 0 | CV81: 0 | CW81: 1133869.94 | CX81: 36150055.12 | CY81: 0 | CZ81: 0 | DA81: 0 | DB81: 37283925.06 | DC81: 38399309.68 | DD81: 37283925.06 | DE81: 0 | DF81: 0 | DG81: 38399309.68
C82: 33 | D82: 教育・研究 | E82: 0.23 | F82: 0.01 | G82: 0 | H82: 0.29 | I82: 4.28 | J82: 0.01 | K82: 0.51 | L82: 2.46 | M82: 0.01 | N82: 0.56 | O82: 2.2 | P82: 1.52 | Q82: 0.03 | R82: 1.97 | S82: 1.49 | T82: 2.11 | U82: 0.13 | V82: 4.04 | W82: 4.68 | X82: 0.15 | Y82: 6.66 | Z82: 0.14 | AA82: 4.24 | AB82: 5.12 | AC82: 0.23 | AD82: 0.37 | AE82: 11.44 | AF82: 2.87 | AG82: 0.05 | AH82: 33.35 | AI82: 98.95 | AJ82: 3.11 | AK82: 0.03 | AL82: 3.88 | AM82: 0 | AN82: 18.45 | AO82: 0.42 | AP82: 6.84 | AQ82: 1.13 | AR82: 4.56 | AS82: 0 | AT82: 0.38 | AU82: 228.9 | AV82: 380.4 | AW82: 109.86 | AX82: 1.99 | AY82: 234.7 | AZ82: 9929.14 | BA82: 77.16 | BB82: 1832.13 | BC82: 8523.47 | BD82: 114.28 | BE82: 1663.34 | BF82: 2264.49 | BG82: 1546.32 | BH82: 146.01 | BI82: 4431.07 | BJ82: 6450.83 | BK82: 6430.26 | BL82: 2177.62 | BM82: 14891.31 | BN82: 17186.49 | BO82: 8127.41 | BP82: 9915.25 | BQ82: 470.68 | BR82: 9184.15 | BS82: 13273.05 | BT82: 463.3 | BU82: 683.15 | BV82: 19172.95 | BW82: 7605.54 | BX82: 87.45 | BY82: 63552.81 | BZ82: 198072.04 | CA82: 4899.21 | CB82: 46.07 | CC82: 5942.92 | CD82: 0 | CE82: 37303.9 | CF82: 1120.12 | CG82: 11215.99 | CH82: 2045.33 | CI82: 8382.27 | CJ82: 0 | CK82: 709.55 | CL82: 480664.01 | CM82: 480892.91 | CN82: 0 | CO82: 4582.74 | CP82: 11796.96 | CQ82: 1314.55 | CR82: 4755.3 | CS82: 0 | CT82: 22449.55 | CU82: 22678.45 | CV82: 0 | CW82: 8857376.57 | CX82: 16673647.7 | CY82: 2730374.17 | CZ82: 14631146.42 | DA82: 0 | DB82: 42892544.86 | DC82: 43373208.87 | DD82: 42914994.41 | DE82: 698807.24 | DF82: -1984213.85 | DG82: 42110480.71
C83: 34 | D83: 医療・福祉 | E83: 2.24 | F83: 0 | G83: 0 | H83: 0 | I83: 0 | J83: 0 | K83: 0 | L83: 0.09 | M83: 0 | N83: 0 | O83: 0 | P83: 0.05 | Q83: 0 | R83: 0 | S83: 0 | T83: 0 | U83: 0 | V83: 0 | W83: 0 | X83: 0 | Y83: 0 | Z83: 0.05 | AA83: 0.02 | AB83: 0.13 | AC83: 0.5 | AD83: 0 | AE83: 1.1 | AF83: 1.62 | AG83: 0.24 | AH83: 32.31 | AI83: 13.23 | AJ83: 0.46 | AK83: 0.33 | AL83: 547.95 | AM83: 0.02 | AN83: 1.1 | AO83: 0.01 | AP83: 1.22 | AQ83: 0.47 | AR83: 0.24 | AS83: 0 | AT83: 4.61 | AU83: 607.99 | AV83: 4730.64 | AW83: 0 | AX83: 0 | AY83: 0 | AZ83: 0 | BA83: 0 | BB83: 36.67 | BC83: 448.56 | BD83: 0 | BE83: 13.65 | BF83: 0 | BG83: 46.66 | BH83: 0 | BI83: 0 | BJ83: 0 | BK83: 0 | BL83: 0 | BM83: 0 | BN83: 0 | BO83: 0 | BP83: 0 | BQ83: 108.78 | BR83: 74.68 | BS83: 659.24 | BT83: 1288.49 | BU83: 0 | BV83: 2375.85 | BW83: 5538.85 | BX83: 517.4 | BY83: 60005.07 | BZ83: 26922.43 | CA83: 1053.44 | CB83: 1026.36 | CC83: 1018559.64 | CD83: 57.01 | CE83: 2934.1 | CF83: 19.44 | CG83: 2625.8 | CH83: 886.14 | CI83: 619.96 | CJ83: 0 | CK83: 11013.79 | CL83: 1141562.65 | CM83: 1142170.64 | CN83: 305.14 | CO83: 6860.73 | CP83: 24676.68 | CQ83: 0 | CR83: 0 | CS83: 0 | CT83: 31842.55 | CU83: 32450.54 | CV83: 772086.25 | CW83: 15043766.61 | CX83: 47595269.63 | CY83: 0 | CZ83: 0 | DA83: 0 | DB83: 63411122.49 | DC83: 64552685.14 | DD83: 63442965.04 | DE83: 231.5 | DF83: -3457.24 | DG83: 64581909.94
C84: 35 | D84: 他に分類されない会員制団体 | E84: 0 | F84: 0 | G84: 0 | H84: 0 | I84: 0 | J84: 0 | K84: 0 | L84: 0 | M84: 0 | N84: 0 | O84: 0 | P84: 0 | Q84: 0 | R84: 0 | S84: 0 | T84: 0 | U84: 0 | V84: 0 | W84: 0 | X84: 0 | Y84: 0 | Z84: 0 | AA84: 0 | AB84: 0 | AC84: 0 | AD84: 0 | AE84: 0 | AF84: 0 | AG84: 0 | AH84: 0 | AI84: 0 | AJ84: 0 | AK84: 0 | AL84: 0 | AM84: 0 | AN84: 0 | AO84: 0 | AP84: 0 | AQ84: 0 | AR84: 0 | AS84: 0 | AT84: 0 | AU84: 0 | AV84: 1182.34 | AW84: 94.77 | AX84: 12394.77 | AY84: 2406.02 | AZ84: 33473.07 | BA84: 2383.85 | BB84: 11729.87 | BC84: 47673.48 | BD84: 2576.33 | BE84: 7548.08 | BF84: 5665.88 | BG84: 17291.12 | BH84: 3163.44 | BI84: 9392.95 | BJ84: 22389.99 | BK84: 29154.25 | BL84: 9940.41 | BM84: 9368.57 | BN84: 9708.54 | BO84: 4300.46 | BP84: 11227.52 | BQ84: 7672.52 | BR84: 64688.02 | BS84: 35599.65 | BT84: 40036.97 | BU84: 9096.15 | BV84: 52354.29 | BW84: 101724.41 | BX84: 25199.25 | BY84: 64955.74 | BZ84: 62565.42 | CA84: 107.11 | CB84: 86648.36 | CC84: 63677.38 | CD84: 0 | CE84: 144205.77 | CF84: 7354.98 | CG84: 40359.17 | CH84: 72106.43 | CI84: 25198.99 | CJ84: 0 | CK84: 21763.22 | CL84: 1178379.54 | CM84: 1178379.54 | CN84: 0 | CO84: 0.02 | CP84: 0 | CQ84: 0 | CR84: 0 | CS84: 0 | CT84: 0.02 | CU84: 0.02 | CV84: 0 | CW84: 3185767.55 | CX84: 0 | CY84: 0 | CZ84: 0 | DA84: 0 | DB84: 3185767.55 | DC84: 4364147.09 | DD84: 3185767.57 | DE84: 33215.87 | DF84: -124324.86 | DG84: 4273038.12
C85: 36 | D85: 対事業所サービス | E85: 545.38 | F85: 44.42 | G85: 45.05 | H85: 116.11 | I85: 6044.45 | J85: 178.68 | K85: 660.56 | L85: 2415.82 | M85: 166.16 | N85: 2056.43 | O85: 1648.91 | P85: 1967.9 | Q85: 202.04 | R85: 1116.61 | S85: 691.7 | T85: 1427.03 | U85: 94.64 | V85: 1419.67 | W85: 1287.79 | X85: 37.32 | Y85: 8861.63 | Z85: 1355.58 | AA85: 19911.18 | AB85: 4365.27 | AC85: 2576.01 | AD85: 1253.28 | AE85: 36389.47 | AF85: 11693.61 | AG85: 9784.89 | AH85: 30846.71 | AI85: 28104.35 | AJ85: 14662.4 | AK85: 11352.82 | AL85: 15805.24 | AM85: 1287.62 | AN85: 39451.38 | AO85: 376 | AP85: 3941.85 | AQ85: 2396.78 | AR85: 2217.53 | AS85: 0 | AT85: 766.79 | AU85: 269567.06 | AV85: 206337.95 | AW85: 17887.76 | AX85: 18119.92 | AY85: 40575.1 | AZ85: 1242835.74 | BA85: 115880.2 | BB85: 257180.48 | BC85: 1307688.16 | BD85: 79412.21 | BE85: 507560.73 | BF85: 317034.02 | BG85: 278738.74 | BH85: 133888.61 | BI85: 327417.5 | BJ85: 403533.52 | BK85: 549037.34 | BL85: 228478.82 | BM85: 592786.74 | BN85: 609031.35 | BO85: 194439.99 | BP85: 1431760 | BQ85: 375408.24 | BR85: 5434351.58 | BS85: 1517818.96 | BT85: 583971.12 | BU85: 290533.65 | BV85: 7729340.33 | BW85: 3966714.86 | BX85: 2122448.02 | BY85: 5999668.41 | BZ85: 7902137.6 | CA85: 3484306.18 | CB85: 2963063.97 | CC85: 3011212.32 | CD85: 330237.09 | CE85: 9913831.41 | CF85: 125063.36 | CG85: 836106.57 | CH85: 447519.6 | CI85: 488625.2 | CJ85: 0 | CK85: 179614.13 | CL85: 66561597.48 | CM85: 66831164.54 | CN85: 311.58 | CO85: 15461.16 | CP85: 0 | CQ85: 114.85 | CR85: 1184.47 | CS85: 0 | CT85: 17072.06 | CU85: 286639.12 | CV85: 77341.77 | CW85: 3910945.84 | CX85: 0 | CY85: 173850.95 | CZ85: 1793027.58 | DA85: 0 | DB85: 5955166.14 | DC85: 72516763.62 | DD85: 5972238.2 | DE85: 3001853.11 | DF85: -3664819.69 | DG85: 72140436.16
C86: 37 | D86: 宿泊業 | E86: 0 | F86: 0 | G86: 0 | H86: 0 | I86: 0 | J86: 0 | K86: 0 | L86: 0 | M86: 0 | N86: 0 | O86: 0 | P86: 0 | Q86: 0 | R86: 0 | S86: 0 | T86: 0 | U86: 0 | V86: 0 | W86: 0 | X86: 0 | Y86: 0 | Z86: 0 | AA86: 0 | AB86: 0 | AC86: 0 | AD86: 0 | AE86: 0 | AF86: 0 | AG86: 0 | AH86: 0 | AI86: 0 | AJ86: 0 | AK86: 0 | AL86: 0 | AM86: 0 | AN86: 0 | AO86: 0 | AP86: 0 | AQ86: 0 | AR86: 0 | AS86: 0 | AT86: 0 | AU86: 0 | AV86: 0 | AW86: 0 | AX86: 0 | AY86: 0 | AZ86: 0 | BA86: 0 | BB86: 0 | BC86: 0 | BD86: 0 | BE86: 0 | BF86: 0 | BG86: 0 | BH86: 0 | BI86: 0 | BJ86: 0 | BK86: 0 | BL86: 0 | BM86: 0 | BN86: 0 | BO86: 0 | BP86: 0 | BQ86: 0 | BR86: 0 | BS86: 0 | BT86: 0 | BU86: 0 | BV86: 0 | BW86: 0 | BX86: 0 | BY86: 0 | BZ86: 0 | CA86: 0 | CB86: 0 | CC86: 0 | CD86: 0 | CE86: 0 | CF86: 0 | CG86: 0 | CH86: 0 | CI86: 0 | CJ86: 0 | CK86: 0 | CL86: 0 | CM86: 0 | CN86: 52152.53 | CO86: 95791.5 | CP86: 0 | CQ86: 0 | CR86: 0 | CS86: 0 | CT86: 147944.03 | CU86: 147944.03 | CV86: 1733674.72 | CW86: 2867515.91 | CX86: 0 | CY86: 0 | CZ86: 0 | DA86: 0 | DB86: 4601190.63 | DC86: 4601190.63 | DD86: 4749134.66 | DE86: 763022.75 | DF86: -578851.05 | DG86: 4933306.36
C87: 38 | D87: 飲食サービス | E87: 0 | F87: 0 | G87: 0 | H87: 0 | I87: 0 | J87: 0 | K87: 0 | L87: 0 | M87: 0 | N87: 0 | O87: 0 | P87: 0 | Q87: 0 | R87: 0 | S87: 0 | T87: 0 | U87: 0 | V87: 0 | W87: 0 | X87: 0 | Y87: 0 | Z87: 0 | AA87: 0 | AB87: 0 | AC87: 0 | AD87: 0 | AE87: 0 | AF87: 0 | AG87: 0 | AH87: 0 | AI87: 0 | AJ87: 0 | AK87: 154.45 | AL87: 330.26 | AM87: 0 | AN87: 0 | AO87: 94.16 | AP87: 379.94 | AQ87: 0 | AR87: 0 | AS87: 0 | AT87: 0 | AU87: 958.81 | AV87: 0 | AW87: 0 | AX87: 0 | AY87: 0 | AZ87: 0 | BA87: 0 | BB87: 0 | BC87: 0 | BD87: 0 | BE87: 0 | BF87: 0 | BG87: 0 | BH87: 0 | BI87: 0 | BJ87: 0 | BK87: 0 | BL87: 0 | BM87: 0 | BN87: 0 | BO87: 0 | BP87: 0 | BQ87: 0 | BR87: 0 | BS87: 0 | BT87: 0 | BU87: 0 | BV87: 0 | BW87: 0 | BX87: 0 | BY87: 0 | BZ87: 0 | CA87: 0 | CB87: 63775.42 | CC87: 134606.49 | CD87: 0 | CE87: 0 | CF87: 71880.75 | CG87: 185361.8 | CH87: 0 | CI87: 0 | CJ87: 0 | CK87: 0 | CL87: 455624.46 | CM87: 456583.27 | CN87: 12563.89 | CO87: 27748.07 | CP87: 0 | CQ87: 0 | CR87: 0 | CS87: 0 | CT87: 40311.96 | CU87: 41270.77 | CV87: 7157585.43 | CW87: 18729617.07 | CX87: 0 | CY87: 0 | CZ87: 0 | DA87: 0 | DB87: 25887202.5 | DC87: 26342826.96 | DD87: 25927514.46 | DE87: 503271.06 | DF87: -433085.34 | DG87: 26454283.45
C88: 39 | D88: 娯楽サービス | E88: 0 | F88: 0 | G88: 0 | H88: 0 | I88: 0 | J88: 0 | K88: 0 | L88: 0 | M88: 0 | N88: 0 | O88: 0 | P88: 0 | Q88: 0 | R88: 0 | S88: 0 | T88: 0 | U88: 0 | V88: 0 | W88: 0 | X88: 0 | Y88: 0 | Z88: 0.01 | AA88: 0 | AB88: 0 | AC88: 0 | AD88: 0 | AE88: 7.12 | AF88: 0 | AG88: 0 | AH88: 0 | AI88: 1685.79 | AJ88: 0 | AK88: 17.62 | AL88: 0 | AM88: 0 | AN88: 79.18 | AO88: 43.67 | AP88: 32.72 | AQ88: 699.69 | AR88: 42.28 | AS88: 0 | AT88: 9.95 | AU88: 2618.03 | AV88: 0 | AW88: 0 | AX88: 0 | AY88: 0 | AZ88: 0 | BA88: 0 | BB88: 0 | BC88: 0 | BD88: 0 | BE88: 0 | BF88: 0 | BG88: 0 | BH88: 0 | BI88: 0 | BJ88: 0 | BK88: 0 | BL88: 0 | BM88: 0 | BN88: 0 | BO88: 0 | BP88: 0 | BQ88: 3121.66 | BR88: 0 | BS88: 0 | BT88: 0 | BU88: 0 | BV88: 1444.47 | BW88: 0 | BX88: 0 | BY88: 0 | BZ88: 418790.07 | CA88: 0 | CB88: 2658.04 | CC88: 0 | CD88: 0 | CE88: 18465.32 | CF88: 12747.48 | CG88: 6028.38 | CH88: 175384.49 | CI88: 12169.28 | CJ88: 0 | CK88: 2045.23 | CL88: 652854.42 | CM88: 655472.45 | CN88: 3413.75 | CO88: 41472.31 | CP88: 0 | CQ88: 0 | CR88: 0 | CS88: 0 | CT88: 44886.06 | CU88: 47504.09 | CV88: 743668.68 | CW88: 7869709.63 | CX88: 0 | CY88: 0 | CZ88: 0 | DA88: 0 | DB88: 8613378.31 | DC88: 9266232.73 | DD88: 8658264.37 | DE88: 113504.23 | DF88: -205046.32 | DG88: 9222194.73
C89: 40 | D89: その他の対個人サービス | E89: 0.78 | F89: 0.01 | G89: 0.54 | H89: 0.11 | I89: 4.34 | J89: 0.15 | K89: 0.36 | L89: 1.02 | M89: 0.1 | N89: 0.92 | O89: 0.45 | P89: 2.06 | Q89: 0.21 | R89: 0.61 | S89: 0.32 | T89: 0.87 | U89: 0.05 | V89: 0.91 | W89: 0.67 | X89: 0.02 | Y89: 5.41 | Z89: 0.63 | AA89: 9.19 | AB89: 0.99 | AC89: 0.87 | AD89: 0.17 | AE89: 62.25 | AF89: 3.4 | AG89: 27.33 | AH89: 26.83 | AI89: 47.75 | AJ89: 13.76 | AK89: 26.99 | AL89: 610.64 | AM89: 7.02 | AN89: 57.9 | AO89: 33.57 | AP89: 66.14 | AQ89: 26.6 | AR89: 158.04 | AS89: 0 | AT89: 3.91 | AU89: 1203.89 | AV89: 1151.62 | AW89: 82.92 | AX89: 1516.49 | AY89: 149.61 | AZ89: 6161.08 | BA89: 572.01 | BB89: 1103.43 | BC89: 2789.34 | BD89: 279.84 | BE89: 1189.08 | BF89: 436.78 | BG89: 1561.35 | BH89: 791.04 | BI89: 1064.49 | BJ89: 1219.26 | BK89: 2190.62 | BL89: 743.37 | BM89: 2225.19 | BN89: 1985.97 | BO89: 694.34 | BP89: 5121.37 | BQ89: 1144.19 | BR89: 15051.54 | BS89: 1918.21 | BT89: 1202.23 | BU89: 232.06 | BV89: 75353.81 | BW89: 6832.83 | BX89: 40132.91 | BY89: 35622.71 | BZ89: 82133.04 | CA89: 18564.77 | CB89: 57107.03 | CC89: 650466.39 | CD89: 11053.74 | CE89: 84711.18 | CF89: 66309.72 | CG89: 85702.48 | CH89: 29058.44 | CI89: 183122.92 | CJ89: 0 | CK89: 5440.71 | CL89: 1484190.11 | CM89: 1485394 | CN89: 62.96 | CO89: 7061.75 | CP89: 0 | CQ89: 0 | CR89: 0 | CS89: 0 | CT89: 7124.71 | CU89: 8328.6 | CV89: 92827.46 | CW89: 10446128 | CX89: 0 | CY89: 0 | CZ89: 0 | DA89: 0 | DB89: 10538955.46 | DC89: 12023145.57 | DD89: 10546080.17 | DE89: 44591.93 | DF89: -17751.94 | DG89: 12058314.16
C90: 41 | D90: 事務用品 | E90: 0 | F90: 0 | G90: 0 | H90: 0 | I90: 0 | J90: 0 | K90: 0 | L90: 0 | M90: 0 | N90: 0 | O90: 0 | P90: 0 | Q90: 0 | R90: 0 | S90: 0 | T90: 0 | U90: 0 | V90: 0 | W90: 0 | X90: 0 | Y90: 0 | Z90: 0 | AA90: 0 | AB90: 0 | AC90: 0 | AD90: 0 | AE90: 0 | AF90: 0 | AG90: 0 | AH90: 0 | AI90: 0 | AJ90: 0 | AK90: 0 | AL90: 0 | AM90: 0 | AN90: 0 | AO90: 0 | AP90: 0 | AQ90: 0 | AR90: 0 | AS90: 0 | AT90: 0 | AU90: 0 | AV90: 6248.21 | AW90: 1435.89 | AX90: 1752.07 | AY90: 647.75 | AZ90: 23399.63 | BA90: 4038.2 | BB90: 8988.9 | BC90: 13557.48 | BD90: 388.92 | BE90: 2297.57 | BF90: 6937.18 | BG90: 4004.45 | BH90: 3072.17 | BI90: 4678.72 | BJ90: 8618.62 | BK90: 15713.98 | BL90: 5423.33 | BM90: 10681.13 | BN90: 13705.77 | BO90: 4730.43 | BP90: 17892.78 | BQ90: 11053.75 | BR90: 51997.47 | BS90: 1078.75 | BT90: 4011.36 | BU90: 15344.95 | BV90: 188003.58 | BW90: 125132.37 | BX90: 25196.62 | BY90: 95185.17 | BZ90: 87357.24 | CA90: 109845.83 | CB90: 159625.47 | CC90: 150654.28 | CD90: 21554.2 | CE90: 110591.57 | CF90: 10983.1 | CG90: 22922.55 | CH90: 22278.64 | CI90: 39436.62 | CJ90: 0 | CK90: 924.13 | CL90: 1411390.83 | CM90: 1411390.83 | CN90: 0 | CO90: 0 | CP90: 0 | CQ90: 0 | CR90: 0 | CS90: 0 | CT90: 0 | CU90: 0 | CV90: 0 | CW90: 0 | CX90: 0 | CY90: 0 | CZ90: 0 | DA90: 0 | DB90: 0 | DC90: 1411390.83 | DD90: 0 | DE90: 0 | DF90: 0 | DG90: 1411390.83
C91: 42 | D91: 分類不明 | E91: 0 | F91: 0 | G91: 0 | H91: 0 | I91: 0 | J91: 0 | K91: 0 | L91: 0 | M91: 0 | N91: 0 | O91: 0 | P91: 0 | Q91: 0 | R91: 0 | S91: 0 | T91: 0 | U91: 0 | V91: 0 | W91: 0 | X91: 0 | Y91: 0 | Z91: 0 | AA91: 0 | AB91: 0 | AC91: 0 | AD91: 0 | AE91: 0 | AF91: 0 | AG91: 0 | AH91: 0 | AI91: 0 | AJ91: 0 | AK91: 0 | AL91: 0 | AM91: 0 | AN91: 0 | AO91: 0 | AP91: 0 | AQ91: 0 | AR91: 0 | AS91: 0 | AT91: 0 | AU91: 0 | AV91: 33674.71 | AW91: 2604.62 | AX91: 13061.08 | AY91: 10006.34 | AZ91: 218314.35 | BA91: 9398.18 | BB91: 35136.53 | BC91: 38490.02 | BD91: 5811.48 | BE91: 29151.17 | BF91: 46782.2 | BG91: 89668.46 | BH91: 42951.72 | BI91: 42807.34 | BJ91: 74724.28 | BK91: 94066.76 | BL91: 17177.57 | BM91: 9254.76 | BN91: 37430.69 | BO91: 7278.88 | BP91: 88445.45 | BQ91: 19079.48 | BR91: 821682.17 | BS91: 68006.13 | BT91: 39341.89 | BU91: 99792.67 | BV91: 622943.07 | BW91: 160940.67 | BX91: 134625.52 | BY91: 436001.87 | BZ91: 126928.46 | CA91: 35782.43 | CB91: 406474.5 | CC91: 252295.38 | CD91: 19624.91 | CE91: 218251.2 | CF91: 8904.91 | CG91: 42895.34 | CH91: 10507.13 | CI91: 83345.27 | CJ91: 703.17 | CK91: 0 | CL91: 4554362.76 | CM91: 4554362.76 | CN91: 0 | CO91: 0 | CP91: 0 | CQ91: 0 | CR91: 0 | CS91: 0 | CT91: 0 | CU91: 0 | CV91: 0 | CW91: 9685.61 | CX91: 0 | CY91: 0 | CZ91: 0 | DA91: 0 | DB91: 9685.61 | DC91: 4564048.37 | DD91: 9685.61 | DE91: 5086.74 | DF91: -49061.91 | DG91: 4520073.2
C92: k | D92: 域内内生部門計 | E92: 52375.86 | F92: 3005.97 | G92: 7227.4 | H92: 2749.87 | I92: 374637.09 | J92: 12682.76 | K92: 59944.07 | L92: 175687.52 | M92: 14559.28 | N92: 145818.51 | O92: 42142.23 | P92: 473256.18 | Q92: 37456.36 | R92: 68686.34 | S92: 34377.68 | T92: 86640.5 | U92: 6388.32 | V92: 63066.05 | W92: 63409.69 | X92: 1809.32 | Y92: 1614061.08 | Z92: 55826.96 | AA92: 347038.24 | AB92: 64589.04 | AC92: 16090.18 | AD92: 12700.6 | AE92: 189649.94 | AF92: 43549.24 | AG92: 42523.99 | AH92: 328124.29 | AI92: 134544.91 | AJ92: 83959.67 | AK92: 80158.68 | AL92: 423788.37 | AM92: 15358.17 | AN92: 279278.39 | AO92: 15959.17 | AP92: 262072.93 | AQ92: 29633.5 | AR92: 33239.15 | AS92: 26902.12 | AT92: 10988.53 | AU92: 5835958.15 | AV92: 5553502.18 | AW92: 257249.16 | AX92: 691800.16 | AY92: 389443.92 | AZ92: 22866401.19 | BA92: 2095632.89 | BB92: 7475042.06 | BC92: 18106724.78 | BD92: 11644587.23 | BE92: 8225742.11 | BF92: 3049922.96 | BG92: 18287923.13 | BH92: 6509429.17 | BI92: 6156325.55 | BJ92: 5674001.71 | BK92: 8648075.43 | BL92: 3973431.12 | BM92: 8145965.63 | BN92: 9937473.08 | BO92: 3479793.75 | BP92: 38522079.53 | BQ92: 5096797.15 | BR92: 30898479.38 | BS92: 15336022.37 | BT92: 2181100.21 | BU92: 1586552.81 | BV92: 27403366.89 | BW92: 11151625.08 | BX92: 12366074.65 | BY92: 25339269.8 | BZ92: 23206327.35 | CA92: 11102574.11 | CB92: 11240536.22 | CC92: 24298420.72 | CD92: 1698042.57 | CE92: 26762158.08 | CF92: 2518291.39 | CG92: 15517935.38 | CH92: 2702555.5 | CI92: 3542233.07 | CJ92: 1391139.58 | CK92: 2648010.66 | CL92: 447678059.7 | CM92: 453514017.9 | CN92: 128214.2 | CO92: 2311542.23 | CP92: 37308.5 | CQ92: 47230.67 | CR92: 908121.89 | CS92: 3119.48 | CT92: 3435536.97 | CU92: 9271495.12 | CV92: 14336891.26 | CW92: 292541378.7 | CX92: 101094185.9 | CY92: 27208391.48 | CZ92: 104909944.3 | DA92: 497661.91 | DB92: 540588453.6 | DC92: 988266513.4 | DD92: 544023990.6 | DE92: 83362815.36 | DF92: -99380635.59 | DG92: 981520188.2
C93: l | D93: 内生部門総計(j+k) | E93: 120592.63 | F93: 7202.28 | G93: 15247.43 | H93: 13970.43 | I93: 848898.8 | J93: 28209.63 | K93: 127842.68 | L93: 350521.68 | M93: 102331.04 | N93: 302139.05 | O93: 162287.06 | P93: 1376180.47 | Q93: 87016.44 | R93: 190472.11 | S93: 72202.42 | T93: 184452.61 | U93: 14913.59 | V93: 180155.35 | W93: 164192.89 | X93: 5507.27 | Y93: 2623027.62 | Z93: 148997.68 | AA93: 994193.06 | AB93: 435911.11 | AC93: 83035.34 | AD93: 61736.75 | AE93: 1169543.69 | AF93: 291099.91 | AG93: 445407.88 | AH93: 1134038.24 | AI93: 817121.56 | AJ93: 417034.06 | AK93: 391285.78 | AL93: 1128726.71 | AM93: 58072.19 | AN93: 1021686.96 | AO93: 67905.38 | AP93: 654821.77 | AQ93: 131130.02 | AR93: 150052.62 | AS93: 52012.17 | AT93: 100052.64 | AU93: 16731229 | AV93: 5638970.37 | AW93: 260833.72 | AX93: 702677.57 | AY93: 392906.57 | AZ93: 23242430.2 | BA93: 2113494.37 | BB93: 7562486.32 | BC93: 18282086.32 | BD93: 11664417.96 | BE93: 8339561.95 | BF93: 3085252.94 | BG93: 18749074.53 | BH93: 6555558.56 | BI93: 6280200.89 | BJ93: 5765966.58 | BK93: 8799878.39 | BL93: 4023705.41 | BM93: 8254060.65 | BN93: 10073320.11 | BO93: 3524137.73 | BP93: 39327586.38 | BQ93: 5163529.32 | BR93: 31337323.94 | BS93: 15381605.89 | BT93: 2194157.66 | BU93: 1596388.25 | BV93: 27581481.31 | BW93: 11215074.09 | BX93: 12390198.12 | BY93: 25534305.76 | BZ93: 23353608.44 | CA93: 11174939.94 | CB93: 11329929.22 | CC93: 24534410.29 | CD93: 1712912.81 | CE93: 26995271.04 | CF93: 2545904.62 | CG93: 15803159.23 | CH93: 2722974.98 | CI93: 3570702.38 | CJ93: 1411390.83 | CK93: 2660569.36 | CL93: 452848445 | CM93: 469579674 | CN93: 515471.6 | CO93: 10114197.67 | CP93: 4325192.31 | CQ93: 881585.4 | CR93: 3182373.48 | CS93: 3206.08 | CT93: 19022026.54 | CU93: 35753255.54 | CV93: 14540028.4 | CW93: 295502216.3 | CX93: 101204138.7 | CY93: 27259870.6 | CZ93: 105609094.5 | DA93: 500047.92 | DB93: 544615396.5 | DC93: 997463841.5 | DD93: 563637423 | DE93: 86769418 | DF93: -102168127 | DG93: 1017818388
A94: 粗付加価値 | C94: 71 | D94: 家計外消費支出（行） | E94: 977.75 | F94: 87.6 | G94: 814 | H94: 1491.62 | I94: 10806.85 | J94: 535.53 | K94: 3710.57 | L94: 8909.41 | M94: 775.69 | N94: 6908.78 | O94: 5189.09 | P94: 13024.57 | Q94: 783.3 | R94: 5328.31 | S94: 1753 | T94: 4325.83 | U94: 490.4 | V94: 4320.26 | W94: 4363.07 | X94: 161.48 | Y94: 25704.56 | Z94: 5290.59 | AA94: 38771.89 | AB94: 6200.34 | AC94: 2177.73 | AD94: 4501.44 | AE94: 96151.09 | AF94: 27209.1 | AG94: 12865.78 | AH94: 40536.1 | AI94: 26103.15 | AJ94: 16265.26 | AK94: 13887.08 | AL94: 31664.04 | AM94: 5284.96 | AN94: 40754.68 | AO94: 2978.34 | AP94: 17320.03 | AQ94: 10087.1 | AR94: 16252.31 | AS94: 0 | AT94: 708.92 | AU94: 515471.6 | AV94: 28242.25 | AW94: 6711.4 | AX94: 44788 | AY94: 35698.38 | AZ94: 331767.15 | BA94: 44001.47 | BB94: 199478.43 | BC94: 359467.59 | BD94: 55746.31 | BE94: 239283.22 | BF94: 100285.91 | BG94: 218155.43 | BH94: 94592.7 | BI94: 177528.69 | BJ94: 167870 | BK94: 261584.17 | BL94: 128912.6 | BM94: 207294.74 | BN94: 248704.93 | BO94: 101761.52 | BP94: 432643.44 | BQ94: 182421.41 | BR94: 1206228.11 | BS94: 238335.66 | BT94: 62135.27 | BU94: 115942.56 | BV94: 2188090.91 | BW94: 1046033.9 | BX94: 300435.22 | BY94: 859478.9 | BZ94: 904315.85 | CA94: 418008.74 | CB94: 413640.92 | CC94: 715738.96 | CD94: 159615.04 | CE94: 1105793.32 | CF94: 111663.66 | CG94: 404778.97 | CH94: 215495.9 | CI94: 388505.69 | CJ94: 0 | CK94: 18851.08 | CL94: 14540028.4 | CM94: 15055500
C95: 89 | D95: 賃金・俸給 | E95: 28578.33 | F95: 2176.48 | G95: 3261.17 | H95: 3581.6 | I95: 164921.91 | J95: 11411.34 | K95: 41375.21 | L95: 45904.54 | M95: 4105.18 | N95: 71705.15 | O95: 48486.46 | P95: 74512.18 | Q95: 10427.72 | R95: 78888.45 | S95: 28554.97 | T95: 64855.21 | U95: 5568.39 | V95: 38615.72 | W95: 55551.43 | X95: 1369.87 | Y95: 171019.04 | Z95: 58153.97 | AA95: 644108.39 | AB95: 64659.34 | AC95: 28954.34 | AD95: 72022 | AE95: 1448402.84 | AF95: 294310.97 | AG95: 209743.88 | AH95: 518761.71 | AI95: 224502.9 | AJ95: 380175.57 | AK95: 662226.48 | AL95: 1302302.45 | AM95: 78107.96 | AN95: 752603 | AO95: 38075.58 | AP95: 274326.03 | AQ95: 52118.16 | AR95: 102278.04 | AS95: 0 | AT95: 1804.17 | AU95: 8162508.13 | AV95: 862647.67 | AW95: 180376.52 | AX95: 248745.83 | AY95: 141268.4 | AZ95: 4073299.09 | BA95: 757372.66 | BB95: 1622273.79 | BC95: 2001823.46 | BD95: 149569.82 | BE95: 2596161.85 | BF95: 1136577.54 | BG95: 1288958.82 | BH95: 709494.28 | BI95: 2773986.55 | BJ95: 1968602.03 | BK95: 3276059.79 | BL95: 1163441.61 | BM95: 2274472.28 | BN95: 2475873.57 | BO95: 870465.13 | BP95: 5753230.96 | BQ95: 2083970.03 | BR95: 17568006.61 | BS95: 1466276.66 | BT95: 493815.66 | BU95: 1993721 | BV95: 30487947.16 | BW95: 8238813.03 | BX95: 3997290.12 | BY95: 12553994.29 | BZ95: 8741247.1 | CA95: 10297335.43 | CB95: 17135470.52 | CC95: 27895544.55 | CD95: 1910262.04 | CE95: 21760843 | CF95: 1038979.42 | CG95: 6776691.97 | CH95: 1899252.84 | CI95: 3027273.96 | CJ95: 0 | CK95: 47975.83 | CL95: 215739412.9 | CM95: 223901921
C96: 90 | D96: 社会保険料（雇用主負担） | E96: 1870.77 | F96: 118.68 | G96: 270.91 | H96: 459.79 | I96: 22837.69 | J96: 1479.43 | K96: 5306.7 | L96: 6498.71 | M96: 606.72 | N96: 10342.52 | O96: 6750.05 | P96: 10795.74 | Q96: 1483.58 | R96: 10300.96 | S96: 3811.56 | T96: 8871.84 | U96: 731.21 | V96: 5662.39 | W96: 7834.66 | X96: 183.94 | Y96: 25133.76 | Z96: 7404.85 | AA96: 83915.16 | AB96: 10078.37 | AC96: 4535.16 | AD96: 8010.14 | AE96: 184713.08 | AF96: 42446.12 | AG96: 17383.46 | AH96: 75500.28 | AI96: 28779.56 | AJ96: 74548.16 | AK96: 109118.94 | AL96: 177067.96 | AM96: 6760.17 | AN96: 89995.14 | AO96: 3759.4 | AP96: 27189.49 | AQ96: 6166.45 | AR96: 10272.06 | AS96: 0 | AT96: 237.68 | AU96: 1099233.24 | AV96: 77893.23 | AW96: 12877.32 | AX96: 22809.09 | AY96: 19677.21 | AZ96: 545166.31 | BA96: 101098.57 | BB96: 216856.3 | BC96: 264220.29 | BD96: 19742.28 | BE96: 345318.48 | BF96: 151152.95 | BG96: 170384.26 | BH96: 94047.42 | BI96: 370325.04 | BJ96: 262225.44 | BK96: 434054.16 | BL96: 154750.79 | BM96: 301847.61 | BN96: 328740.34 | BO96: 115788.06 | BP96: 762276.24 | BQ96: 274156.15 | BR96: 2154659.84 | BS96: 209609.63 | BT96: 73379.84 | BU96: 238536.86 | BV96: 3480031.92 | BW96: 1173562.88 | BX96: 318635.54 | BY96: 1683691.72 | BZ96: 1058863.44 | CA96: 2085374.84 | CB96: 2678539.06 | CC96: 3784152.04 | CD96: 132765.83 | CE96: 2450191.86 | CF96: 125983.6 | CG96: 599807.51 | CH96: 217493.55 | CI96: 299281.94 | CJ96: 0 | CK96: 6320.32 | CL96: 27816289.76 | CM96: 28915523
C97: 91 | D97: その他の給与及び手当 | E97: 837.89 | F97: 73.44 | G97: 175.61 | H97: 188.91 | I97: 12319.13 | J97: 892.62 | K97: 2600.35 | L97: 3886.14 | M97: 368.52 | N97: 6271.23 | O97: 4148.41 | P97: 6626.71 | Q97: 887.16 | R97: 6231.21 | S97: 2119.97 | T97: 4932.54 | U97: 360.91 | V97: 3143.58 | W97: 4401.68 | X97: 101.18 | Y97: 13947.46 | Z97: 3703.93 | AA97: 36918.49 | AB97: 10056.39 | AC97: 4525.27 | AD97: 2012.07 | AE97: 81260.43 | AF97: 36647.02 | AG97: 8879.81 | AH97: 27579.63 | AI97: 15336.17 | AJ97: 52268.27 | AK97: 61615.65 | AL97: 48470.3 | AM97: 1698.08 | AN97: 30982.25 | AO97: 710.49 | AP97: 5138.54 | AQ97: 1317.2 | AR97: 4055.51 | AS97: 0 | AT97: 112.17 | AU97: 507802.32 | AV97: 34993.11 | AW97: 5758.56 | AX97: 10466.39 | AY97: 8857.09 | AZ97: 202615.87 | BA97: 37822.38 | BB97: 94205.65 | BC97: 175010.86 | BD97: 21090.48 | BE97: 120735.77 | BF97: 68820.59 | BG97: 89228.29 | BH97: 72228.84 | BI97: 128687.79 | BJ97: 131052.03 | BK97: 197865.46 | BL97: 69407.09 | BM97: 132879.42 | BN97: 236730.32 | BO97: 56414.82 | BP97: 389806.54 | BQ97: 117676.07 | BR97: 773933.51 | BS97: 177893.61 | BT97: 47247.73 | BU97: 39918.93 | BV97: 1535994.57 | BW97: 1276241.98 | BX97: 119872.19 | BY97: 725202.37 | BZ97: 431514.83 | CA97: 1433994.73 | CB97: 1546760.35 | CC97: 972826.7 | CD97: 71689.92 | CE97: 659469.75 | CF97: 37327.51 | CG97: 71217.46 | CH97: 64598.8 | CI97: 82930.49 | CJ97: 0 | CK97: 2982.83 | CL97: 12473971.68 | CM97: 12981774
C98: 92 | D98: 営業余剰 | E98: 68917.74 | F98: 4050.73 | G98: 4833.61 | H98: 2655.59 | I98: 152159.96 | J98: -1281.86 | K98: 16169.92 | L98: 30969.33 | M98: 473.61 | N98: 10374.71 | O98: 30753.46 | P98: 239692.95 | Q98: 9583.42 | R98: 11721.57 | S98: 8546.4 | T98: 29180.88 | U98: 644.8 | V98: -16010.77 | W98: -1836.99 | X98: -53.06 | Y98: 82263.45 | Z98: 18321.68 | AA98: 56100.06 | AB98: 35232.92 | AC98: 20617.08 | AD98: 10665.37 | AE98: 662887.08 | AF98: 233578.05 | AG98: 987710.34 | AH98: 133059.55 | AI98: 277266.84 | AJ98: 0 | AK98: 18834.55 | AL98: 105959.85 | AM98: -1186.81 | AN98: 242960.18 | AO98: 7618.96 | AP98: 29466.75 | AQ98: 109365.26 | AR98: 82810.29 | AS98: 0 | AT98: 59390.51 | AU98: 3774467.96 | AV98: 2241242.26 | AW98: 254566.27 | AX98: 237153.39 | AY98: 74503.41 | AZ98: 3462667.04 | BA98: -115320.14 | BB98: 958420.08 | BC98: 1760922.67 | BD98: 691259.39 | BE98: 34855.29 | BF98: 606440.54 | BG98: 3180352.05 | BH98: 617306.58 | BI98: 366408.43 | BJ98: 919592.6 | BK98: 1563187.12 | BL98: 228174.2 | BM98: -638131.23 | BN98: -275119.01 | BO98: -327312.94 | BP98: 707809.55 | BQ98: 554809.32 | BR98: 1650589.94 | BS98: 668758.08 | BT98: 578025.92 | BU98: 270452.63 | BV98: 14148287.92 | BW98: 8752206.95 | BX98: 30785804.66 | BY98: 3074428.45 | BZ98: 6948943.16 | CA98: 0 | CB98: 766262.45 | CC98: 2334103.15 | CD98: -29621.19 | CE98: 6660529.82 | CF98: 272430.04 | CG98: 673087.25 | CH98: 1997559.74 | CI98: 1969789.71 | CJ98: 0 | CK98: 1505430.49 | CL98: 100130856 | CM98: 103905324
C99: 93 | D99: 資本減耗引当 | E99: 38129.33 | F99: 2008.74 | G99: 4372.12 | H99: 3045.22 | I99: 66847.9 | J99: 4340.18 | K99: 11963.97 | L99: 83158.05 | M99: 11474.09 | N99: 60242.28 | O99: 31094.92 | P99: 117088.2 | Q99: 5732.82 | R99: 26207.52 | S99: 11130.11 | T99: 40155.45 | U99: 2735.73 | V99: 54037.44 | W99: 37775.13 | X99: 1793.48 | Y99: 254746.12 | Z99: 29051 | AA99: 71390.31 | AB99: 130416.98 | AC99: 32113.46 | AD99: 15175.87 | AE99: 346968.92 | AF99: 66087.91 | AG99: 846404.4 | AH99: 260323 | AI99: 199843.53 | AJ99: 396137.52 | AK99: 293616.24 | AL99: 201500.47 | AM99: 8652.23 | AN99: 336013.01 | AO99: 17709.61 | AP99: 52923.34 | AQ99: 61653.42 | AR99: 74176.94 | AS99: 0 | AT99: 8341.06 | AU99: 4316578.02 | AV99: 1659038.67 | AW99: 72964.26 | AX99: 220663.88 | AY99: 90234.78 | AZ99: 1918489.1 | BA99: 437511.82 | BB99: 793833.03 | BC99: 4058892.95 | BD99: 452641.91 | BE99: 1351574.72 | BF99: 676567.08 | BG99: 1372347.8 | BH99: 482012.18 | BI99: 971495.48 | BJ99: 1030534.89 | BK99: 1703433.55 | BL99: 1017644.27 | BM99: 2597761.56 | BN99: 2619106.87 | BO99: 1032949.52 | BP99: 4890860.88 | BQ99: 995333 | BR99: 2265597.69 | BS99: 4977843.02 | BT99: 943579.54 | BU99: 379289.13 | BV99: 8139232.08 | BW99: 2534295.09 | BX99: 26314562.6 | BY99: 6082794 | BZ99: 5325289.47 | CA99: 12919082.48 | CB99: 7784233.76 | CC99: 4133796.53 | CD99: 264445.77 | CE99: 9053736.99 | CF99: 663967.39 | CG99: 1268174.66 | CH99: 1266332.58 | CI99: 1770593.06 | CJ99: 0 | CK99: 221802.94 | CL99: 126754541 | CM99: 131071119
C100: 94 | D100: 間接税（関税・輸入品商品税を除く。） | E100: 11167.98 | F100: 664.77 | G100: 1714.25 | H100: 1405.79 | I100: 312483.88 | J100: 2261.28 | K100: 6115.62 | L100: 10907 | M100: 1071.16 | N100: 14290.74 | O100: 10117.74 | P100: 24253.28 | Q100: 948.71 | R100: 10631.4 | S100: 1229.35 | T100: 3005.37 | U100: 377.24 | V100: 3008.55 | W100: 1312.43 | X100: 80.56 | Y100: -49259.18 | Z100: 10525.71 | AA100: 72260.56 | AB100: 22066.74 | AC100: 7418.29 | AD100: 3597.72 | AE100: 171993.81 | AF100: 19358.53 | AG100: 136702.03 | AH100: 93681.32 | AI100: 56424.1 | AJ100: 3296.48 | AK100: 20299.85 | AL100: 46491.87 | AM100: 5055.23 | AN100: 133285.02 | AO100: 3847.36 | AP100: 38787.81 | AQ100: 45132.86 | AR100: 38556.3 | AS100: 0 | AT100: 3127.8 | AU100: 1299697.31 | AV100: 397135.02 | AW100: 21802.23 | AX100: 81031.75 | AY100: 58231.21 | AZ100: 3106445.12 | BA100: 162213.72 | BB100: 291079.38 | BC100: 563826 | BD100: 3721679.84 | BE100: 488284.26 | BF100: 186731.26 | BG100: 412122.72 | BH100: 64560.29 | BI100: 328620.6 | BJ100: 83418.65 | BK100: 129169.63 | BL100: 91479.76 | BM100: 133046.45 | BN100: 81827.57 | BO100: 73144.44 | BP100: -32753.82 | BQ100: 276075.29 | BR100: 2174568.44 | BS100: 806677.26 | BT100: 195396.71 | BU100: 90030.28 | BV100: 3802882.19 | BW100: 727378.47 | BX100: 3850026.97 | BY100: 2361135.68 | BZ100: 1566052.9 | CA100: 70573.52 | CB100: 597633.15 | CC100: 939536.13 | CD100: 147565.77 | CE100: 3458147.98 | CF100: 137105.64 | CG100: 857467.19 | CH100: 838537.14 | CI100: 949364.7 | CJ100: 0 | CK100: 79013.2 | CL100: 34368264.69 | CM100: 35667962
C101: 95 | D101: （控除）経常補助金 | E101: -21952.51 | F101: -329.71 | G101: -24.54 | H101: -0.32 | I101: -3715.97 | J101: -0.47 | K101: -1.82 | L101: -1.5 | M101: -5.02 | N101: -2.21 | O101: -1.68 | P101: -5.01 | Q101: -0.45 | R101: -2.52 | S101: -0.72 | T101: -1.73 | U101: -0.14 | V101: -1.83 | W101: -1.18 | X101: -0.04 | Y101: -7.18 | Z101: -2.31 | AA101: -9365.04 | AB101: -210.9 | AC101: -7455 | AD101: -0.76 | AE101: -1945.48 | AF101: -13257.21 | AG101: -1025.35 | AH101: -6637.01 | AI101: -18.55 | AJ101: 0 | AK101: -851.28 | AL101: -37288.59 | AM101: -3689.13 | AN101: -111.4 | AO101: -1.48 | AP101: -4.21 | AQ101: -2.2 | AR101: -5.23 | AS101: 0 | AT101: -860.15 | AU101: -108787.83 | AV101: -699392.49 | AW101: -31789.29 | AX101: -1422.46 | AY101: -260.68 | AZ101: -129791.03 | BA101: -42.53 | BB101: -87.18 | BC101: -71.5 | BD101: -62736.98 | BE101: -60.79 | BF101: -36.32 | BG101: -70.99 | BH101: -28.55 | BI101: -83.48 | BJ101: -51.28 | BK101: -87.27 | BL101: -37.86 | BM101: -78.17 | BN101: -67.82 | BO101: -32.96 | BP101: -322.82 | BQ101: -104.69 | BR101: -282631.96 | BS101: -7702.1 | BT101: -218070 | BU101: -20.24 | BV101: -45042.52 | BW101: -512862.79 | BX101: -21954.65 | BY101: -142455.99 | BZ101: -683.45 | CA101: 0 | CB101: -141988.72 | CC101: -728198.41 | CD101: -96597.87 | CE101: -3547.6 | CF101: -55.52 | CG101: -100.79 | CH101: -50.8 | CI101: -127.77 | CJ101: 0 | CK101: -22872.85 | CL101: -3151621.17 | CM101: -3260409
C102: m | D102: 粗付加価値部門計 | E102: 128527.28 | F102: 8850.73 | G102: 15417.13 | H102: 12828.2 | I102: 738661.35 | J102: 19638.05 | K102: 87240.52 | L102: 190231.68 | M102: 18869.95 | N102: 180133.2 | O102: 136538.45 | P102: 485988.62 | Q102: 29846.26 | R102: 149306.9 | S102: 57144.64 | T102: 155325.39 | U102: 10908.54 | V102: 92775.34 | W102: 109400.23 | X102: 3637.41 | Y102: 523548.03 | Z102: 132449.42 | AA102: 994099.82 | AB102: 278500.18 | AC102: 92886.33 | AD102: 115983.85 | AE102: 2990431.77 | AF102: 706380.49 | AG102: 2218664.35 | AH102: 1142804.58 | AI102: 828237.7 | AJ102: 922691.26 | AK102: 1178747.51 | AL102: 1876168.35 | AM102: 100682.69 | AN102: 1626481.88 | AO102: 74698.26 | AP102: 445147.78 | AQ102: 285838.25 | AR102: 328396.22 | AS102: 0 | AT102: 72862.16 | AU102: 19566970.75 | AV102: 4601799.72 | AW102: 523267.27 | AX102: 864235.87 | AY102: 428209.8 | AZ102: 13510658.65 | BA102: 1424657.95 | BB102: 4176059.48 | BC102: 9184092.32 | BD102: 5048993.05 | BE102: 5176152.8 | BF102: 2926539.55 | BG102: 6731478.38 | BH102: 2134213.74 | BI102: 5116969.1 | BJ102: 4563244.36 | BK102: 7565266.61 | BL102: 2853772.46 | BM102: 5009092.66 | BN102: 5715796.77 | BO102: 1923177.59 | BP102: 12903550.97 | BQ102: 4484336.58 | BR102: 27510952.18 | BS102: 8537691.82 | BT102: 2175510.67 | BU102: 3127871.15 | BV102: 63737424.23 | BW102: 23235669.51 | BX102: 65664672.65 | BY102: 27198269.42 | BZ102: 24975543.3 | CA102: 27224369.74 | CB102: 30780551.49 | CC102: 40047499.65 | CD102: 2560125.31 | CE102: 45145165.12 | CF102: 2387401.74 | CG102: 10651124.22 | CH102: 6499219.75 | CI102: 8487611.78 | CJ102: 0 | CK102: 1859503.84 | CL102: 528671743.2 | CM102: 548238714
C103: n | D103: 域内生産額 | E103: 249119.91 | F103: 16053.01 | G103: 30664.56 | H103: 26798.63 | I103: 1587560.15 | J103: 47847.68 | K103: 215083.2 | L103: 540753.36 | M103: 121200.99 | N103: 482272.25 | O103: 298825.51 | P103: 1862169.09 | Q103: 116862.7 | R103: 339779.01 | S103: 129347.06 | T103: 339778 | U103: 25822.13 | V103: 272930.69 | W103: 273593.12 | X103: 9144.68 | Y103: 3146575.65 | Z103: 281447.1 | AA103: 1988292.88 | AB103: 714411.29 | AC103: 175921.67 | AD103: 177720.6 | AE103: 4159975.46 | AF103: 997480.4 | AG103: 2664072.23 | AH103: 2276842.82 | AI103: 1645359.26 | AJ103: 1339725.32 | AK103: 1570033.29 | AL103: 3004895.06 | AM103: 158754.88 | AN103: 2648168.84 | AO103: 142603.64 | AP103: 1099969.55 | AQ103: 416968.27 | AR103: 478448.84 | AS103: 52012.17 | AT103: 172914.8 | AU103: 36298199.75 | AV103: 10240770.09 | AW103: 784100.99 | AX103: 1566913.44 | AY103: 821116.37 | AZ103: 36753088.85 | BA103: 3538152.32 | BB103: 11738545.8 | BC103: 27466178.64 | BD103: 16713411.01 | BE103: 13515714.75 | BF103: 6011792.49 | BG103: 25480552.91 | BH103: 8689772.3 | BI103: 11397169.99 | BJ103: 10329210.94 | BK103: 16365145 | BL103: 6877477.87 | BM103: 13263153.31 | BN103: 15789116.88 | BO103: 5447315.32 | BP103: 52231137.35 | BQ103: 9647865.9 | BR103: 58848276.12 | BS103: 23919297.71 | BT103: 4369668.33 | BU103: 4724259.4 | BV103: 91318905.54 | BW103: 34450743.6 | BX103: 78054870.77 | BY103: 52732575.18 | BZ103: 48329151.74 | CA103: 38399309.68 | CB103: 42110480.71 | CC103: 64581909.94 | CD103: 4273038.12 | CE103: 72140436.16 | CF103: 4933306.36 | CG103: 26454283.45 | CH103: 9222194.73 | CI103: 12058314.16 | CJ103: 1411390.83 | CK103: 4520073.2 | CL103: 981520188.2 | CM103: 1017818388

Sheet 投入係数
A1: 投入係数Ａ
D2: 福岡県 | AT2: 県外
D3: 01 | E3: 02 | F3: 03 | G3: 04 | H3: 05 | I3: 06 | J3: 07 | K3: 08 | L3: 09 | M3: 10 | N3: 11 | O3: 12 | P3: 13 | Q3: 14 | R3: 15 | S3: 16 | T3: 17 | U3: 18 | V3: 19 | W3: 20 | X3: 21 | Y3: 22 | Z3: 23 | AA3: 24 | AB3: 25 | AC3: 26 | AD3: 27 | AE3: 28 | AF3: 29 | AG3: 30 | AH3: 31 | AI3: 32 | AJ3: 33 | AK3: 34 | AL3: 35 | AM3: 36 | AN3: 37 | AO3: 38 | AP3: 39 | AQ3: 40 | AR3: 41 | AS3: 42 | AT3: 01 | AU3: 02 | AV3: 03 | AW3: 04 | AX3: 05 | AY3: 06 | AZ3: 07 | BA3: 08 | BB3: 09 | BC3: 10 | BD3: 11 | BE3: 12 | BF3: 13 | BG3: 14 | BH3: 15 | BI3: 16 | BJ3: 17 | BK3: 18 | BL3: 19 | BM3: 20 | BN3: 21 | BO3: 22 | BP3: 23 | BQ3: 24 | BR3: 25 | BS3: 26 | BT3: 27 | BU3: 28 | BV3: 29 | BW3: 30 | BX3: 31 | BY3: 32 | BZ3: 33 | CA3: 34 | CB3: 35 | CC3: 36 | CD3: 37 | CE3: 38 | CF3: 39 | CG3: 40 | CH3: 41 | CI3: 42
D4: 農業 | E4: 林業 | F4: 漁業 | G4: 鉱業 | H4: 飲食料品 | I4: 繊維製品 | J4: パルプ・紙・木製品 | K4: 化学製品 | L4: 石油・石炭製品 | M4: プラスチック・ゴム製品 | N4: 窯業・土石製品 | O4: 鉄鋼 | P4: 非鉄金属 | Q4: 金属製品 | R4: はん用機械 | S4: 生産用機械 | T4: 業務用機械 | U4: 電子部品 | V4: 電気機械 | W4: 情報通信機器 | X4: 輸送機械 | Y4: その他の製造工業製品 | Z4: 建設 | AA4: 電力・ガス・熱供給 | AB4: 水道 | AC4: 廃棄物処理 | AD4: 商業 | AE4: 金融・保険 | AF4: 不動産 | AG4: 運輸・郵便 | AH4: 情報通信 | AI4: 公務 | AJ4: 教育・研究 | AK4: 医療・福祉 | AL4: 他に分類されない会員制団体 | AM4: 対事業所サービス | AN4: 宿泊業 | AO4: 飲食サービス | AP4: 娯楽サービス | AQ4: その他の対個人サービス | AR4: 事務用品 | AS4: 分類不明 | AT4: 農業 | AU4: 林業 | AV4: 漁業 | AW4: 鉱業 | AX4: 飲食料品 | AY4: 繊維製品 | AZ4: パルプ・紙・木製品 | BA4: 化学製品 | BB4: 石油・石炭製品 | BC4: プラスチック・ゴム製品 | BD4: 窯業・土石製品 | BE4: 鉄鋼 | BF4: 非鉄金属 | BG4: 金属製品 | BH4: はん用機械 | BI4: 生産用機械 | BJ4: 業務用機械 | BK4: 電子部品 | BL4: 電気機械 | BM4: 情報通信機器 | BN4: 輸送機械 | BO4: その他の製造工業製品 | BP4: 建設 | BQ4: 電力・ガス・熱供給 | BR4: 水道 | BS4: 廃棄物処理 | BT4: 商業 | BU4: 金融・保険 | BV4: 不動産 | BW4: 運輸・郵便 | BX4: 情報通信 | BY4: 公務 | BZ4: 教育・研究 | CA4: 医療・福祉 | CB4: 他に分類されない会員制団体 | CC4: 対事業所サービス | CD4: 宿泊業 | CE4: 飲食サービス | CF4: 娯楽サービス | CG4: その他の対個人サービス | CH4: 事務用品 | CI4: 分類不明
A5: 福岡県 | B5: 01 | C5: 農業 | D5: 0.05194145261 | E5: 0.002848686944 | F5: 0 | G5: 0 | H5: 0.07801343464 | I5: 0.0029372375 | J5: 1.776056893e-05 | K5: 0.0006062468109 | L5: 0 | M5: 0.02441799212 | N5: 5.518270512e-05 | O5: 0 | P5: 3.080538102e-06 | Q5: 0 | R5: 0 | S5: 0 | T5: 0 | U5: 0 | V5: 0 | W5: 0 | X5: 0 | Y5: 0.001284717448 | Z5: 0.0004798588828 | AA5: 0 | AB5: 0 | AC5: 0 | AD5: 5.197626815e-05 | AE5: 0 | AF5: 9.684422107e-07 | AG5: 1.795468692e-05 | AH5: 0 | AI5: 2.174326301e-05 | AJ5: 0.001169930607 | AK5: 0.001224495341 | AL5: 0.0009161293184 | AM5: 6.691416247e-06 | AN5: 0.006138062114 | AO5: 0.01539774442 | AP5: 0.002277007792 | AQ5: 0.002145892965 | AR5: 0 | AS5: 0 | AT5: 0.001387975697 | AU5: 2.318578886e-05 | AV5: 0 | AW5: 0 | AX5: 0.001736153123 | AY5: 8.518570506e-05 | AZ5: 2.929664422e-06 | BA5: 1.285180602e-05 | BB5: 0 | BC5: 0.0001021862347 | BD5: 1.531989006e-06 | BE5: 0 | BF5: 1.369425986e-07 | BG5: 0 | BH5: 0 | BI5: 0 | BJ5: 0 | BK5: 0 | BL5: 0 | BM5: 0 | BN5: 0 | BO5: 2.015575279e-05 | BP5: 1.042477436e-05 | BQ5: 0 | BR5: 0 | BS5: 0 | BT5: 1.239283359e-06 | BU5: 0 | BV5: 2.331693054e-08 | BW5: 3.885643728e-07 | BX5: 0 | BY5: 3.419332303e-07 | BZ5: 2.088624934e-05 | CA5: 2.356898397e-05 | CB5: 2.164970155e-05 | CC5: 1.194891584e-07 | CD5: 0.0001337095148 | CE5: 0.0003027453008 | CF5: 4.34169969e-05 | CG5: 3.612776995e-05 | CH5: 0 | CI5: 0
B6: 02 | C6: 林業 | D6: 9.079964745e-05 | E6: 0.04963804296 | F6: 0.0001157688224 | G6: 2.649389167e-05 | H6: 0.0001331162161 | I6: 1.462975843e-06 | J6: 0.01230388984 | K6: 5.673566226e-05 | L6: 0 | M6: 0 | N6: 3.346434513e-08 | O6: 2.148032647e-08 | P6: 0 | Q6: 0 | R6: 0 | S6: 0 | T6: 0 | U6: 0 | V6: 0 | W6: 0 | X6: 9.534174079e-09 | Y6: 8.218240657e-05 | Z6: 1.500784935e-05 | AA6: 0 | AB6: 0 | AC6: 0 | AD6: 0 | AE6: 0 | AF6: 0 | AG6: 0 | AH6: 0 | AI6: 2.358692452e-06 | AJ6: 2.801851418e-05 | AK6: 2.786120591e-05 | AL6: 0 | AM6: 0 | AN6: 0.0004509001313 | AO6: 0.0008780879434 | AP6: 0 | AQ6: 4.217796829e-05 | AR6: 0 | AS6: 0 | AT6: 2.250807293e-06 | AU6: 0.001867335992 | AV6: 2.278364528e-06 | AW6: 1.096068758e-06 | AX6: 5.338054736e-06 | AY6: 1.271850275e-07 | AZ6: 0.0004411943428 | BA6: 3.064860282e-06 | BB6: 0 | BC6: 0 | BD6: 3.326794801e-09 | BE6: 1.177368486e-09 | BF6: 0 | BG6: 0 | BH6: 0 | BI6: 0 | BJ6: 0 | BK6: 0 | BL6: 0 | BM6: 0 | BN6: 3.829133543e-09 | BO6: 4.238242988e-06 | BP6: 5.831946535e-07 | BQ6: 0 | BR6: 0 | BS6: 0 | BT6: 0 | BU6: 0 | BV6: 0 | BW6: 0 | BX6: 0 | BY6: 5.729269662e-08 | BZ6: 6.592183117e-07 | CA6: 8.926648353e-07 | CB6: 0 | CC6: 0 | CD6: 1.52068399e-05 | CE6: 2.745226501e-05 | CF6: 0 | CG6: 1.057361737e-06 | CH6: 0 | CI6: 0
B7: 03 | C7: 漁業 | D7: 0 | E7: 0 | F7: 0.01984375448 | G7: 0 | H7: 0.00750080556 | I7: 0 | J7: 0 | K7: 1.396200294e-05 | L7: 0 | M7: 0 | N7: 0 | O7: 0 | P7: 0 | Q7: 0 | R7: 0 | S7: 0 | T7: 0 | U7: 0 | V7: 0 | W7: 0 | X7: 0 | Y7: 8.378128607e-05 | Z7: 0 | AA7: 0 | AB7: 0 | AC7: 0 | AD7: 0 | AE7: 0 | AF7: 0 | AG7: 1.510864066e-06 | AH7: 0 | AI7: 3.306647963e-06 | AJ7: 2.710770547e-05 | AK7: 0.0002309731242 | AL7: 0 | AM7: 0 | AN7: 0.001506904031 | AO7: 0.002777776894 | AP7: 9.281281763e-06 | AQ7: 0.00013309678 | AR7: 0 | AS7: 0 | AT7: 0 | AU7: 0 | AV7: 0.000446904074 | AW7: 0 | AX7: 0.0003180834691 | AY7: 8.479001831e-09 | AZ7: 0 | BA7: 4.092305722e-07 | BB7: 0 | BC7: 0 | BD7: 0 | BE7: 0 | BF7: 0 | BG7: 0 | BH7: 0 | BI7: 0 | BJ7: 0 | BK7: 0 | BL7: 0 | BM7: 0 | BN7: 0 | BO7: 5.540188945e-05 | BP7: 0 | BQ7: 0 | BR7: 0 | BS7: 0 | BT7: 0 | BU7: 0 | BV7: 0 | BW7: 4.323703123e-08 | BX7: 0 | BY7: 6.875123595e-08 | BZ7: 5.447574954e-07 | CA7: 5.995177293e-06 | CB7: 0 | CC7: 0 | CD7: 4.339077778e-05 | CE7: 7.401485675e-05 | CF7: 3.296395369e-07 | CG7: 2.849486217e-06 | CH7: 0 | CI7: 0
B8: 04 | C8: 鉱業 | D8: 5.218370543e-06 | E8: 0.0003874662758 | F8: 0 | G8: 0.003706532759 | H8: 0.000234869841 | I8: 0.0001628083117 | J8: 0.001127610153 | K8: 0.01171944637 | L8: 0.6143393713 | M8: 0.0002814800147 | N8: 0.1024070535 | O8: 0.03922253913 | P8: 0.06471346289 | Q8: 0.0002299141433 | R8: 4.221201471e-05 | S8: 4.647151964e-05 | T8: 0.0001835634783 | U8: 0.0001612497297 | V8: 9.451992068e-05 | W8: 1.749651163e-05 | X8: 6.991727658e-05 | Y8: 0.0003043911271 | Z8: 0.005696871982 | AA8: 0.2915551069 | AB8: 0 | AC8: 2.138187695e-06 | AD8: 2.399052614e-06 | AE8: 9.925007048e-07 | AF8: 1.08105177e-06 | AG8: 6.561717774e-06 | AH8: 2.795742007e-07 | AI8: 1.348783943e-05 | AJ8: 2.298677374e-05 | AK8: 9.364719712e-06 | AL8: 6.299018966e-05 | AM8: 9.621743e-06 | AN8: 3.358960543e-05 | AO8: -2.626436341e-05 | AP8: 3.32159567e-05 | AQ8: 0.0001020380779 | AR8: 0 | AS8: 0.000209987809 | AT8: 5.858934384e-09 | AU8: 2.678226436e-07 | AV8: 0 | AW8: 1.144782925e-06 | AX8: 1.945414719e-07 | AY8: 2.51543721e-07 | AZ8: 3.036151207e-06 | BA8: 3.483921125e-06 | BB8: 0.0003928114971 | BC8: 7.472782747e-08 | BD8: 4.288404838e-05 | BE8: 3.520096299e-05 | BF8: 9.704627128e-05 | BG8: 1.719725161e-07 | BH8: 4.066138279e-08 | BI8: 3.788539607e-08 | BJ8: 3.6350535e-08 | BK8: 1.123413087e-07 | BL8: 3.040068698e-08 | BM8: 2.019343356e-08 | BN8: 7.351936402e-08 | BO8: 3.06803601e-07 | BP8: 4.205390817e-06 | BQ8: 0.000207757772 | BR8: 0 | BS8: 2.116733895e-09 | BT8: 1.861607944e-09 | BU8: 8.708084896e-10 | BV8: 6.405750148e-10 | BW8: 5.499446955e-09 | BX8: 2.069144531e-10 | BY8: 7.291797752e-09 | BZ8: 2.707164537e-08 | CA8: 6.038842771e-09 | CB8: 4.212459495e-08 | CC8: 5.821977553e-09 | CD8: 5.878410519e-08 | CE8: 3.780106167e-10 | CF8: 3.036153629e-08 | CG8: 6.717356915e-08 | CH8: 0 | CI8: 1.48227688e-07
B9: 05 | C9: 飲食料品 | D9: 0.03080271665 | E9: 0.02921632765 | F9: 0.05346791214 | G9: 0 | H9: 0.06175807575 | I9: 0.002451738517 | J9: 0.000431414448 | K9: 0.002599281121 | L9: 8.250757688e-08 | M9: 4.60320908e-06 | N9: 0.0001865637241 | O9: 1.986930199e-07 | P9: 0 | Q9: 0 | R9: 0 | S9: 0 | T9: 0 | U9: 0 | V9: 0 | W9: 0 | X9: 0 | Y9: 0.0008294986873 | Z9: 7.051275062e-06 | AA9: 0 | AB9: 0 | AC9: 0 | AD9: 5.571667483e-05 | AE9: 0 | AF9: 0 | AG9: 6.4607007e-05 | AH9: 9.116550023e-08 | AI9: 0.0001586519243 | AJ9: 0.002620880733 | AK9: 0.00373994425 | AL9: 0.000508834752 | AM9: 2.424316721e-06 | AN9: 0.02824514157 | AO9: 0.1040442165 | AP9: 0.0004725299601 | AQ9: 0.002247533927 | AR9: 0 | AS9: 0.001278259582 | AT9: 0.003229885029 | AU9: 0.0007078169867 | AV9: 0.00246875156 | AW9: 0 | AX9: 0.004711037233 | AY9: 5.72700047e-05 | AZ9: 4.2908211e-05 | BA9: 0.0001828441468 | BB9: 1.076979438e-07 | BC9: 4.195116651e-07 | BD9: 1.227753621e-05 | BE9: 2.040772042e-08 | BF9: 0 | BG9: 0 | BH9: 0 | BI9: 0 | BJ9: 0 | BK9: 0 | BL9: 0 | BM9: 0 | BN9: 0 | BO9: 8.110394652e-05 | BP9: 6.453884889e-07 | BQ9: 0 | BR9: 0 | BS9: 0 | BT9: 3.621046464e-06 | BU9: 0 | BV9: 0 | BW9: 4.22414417e-06 | BX9: 7.862749217e-09 | BY9: 8.245981572e-06 | BZ9: 0.0001432158906 | CA9: 0.0002189746326 | CB9: 3.632544238e-05 | CC9: 1.362619984e-07 | CD9: 0.001858842596 | CE9: 0.006314217897 | CF9: 3.128322579e-05 | CG9: 0.0001099664499 | CH9: 0 | CI9: 7.840359753e-05
B10: 06 | C10: 繊維製品 | D10: 0.002127609953 | E10: 0.002268110467 | F10: 0.00908899394 | G10: 0.001651950118 | H10: 0.0003952669132 | I10: 0.1175214765 | J10: 0.003004232781 | K10: 0.0004806072772 | L10: 8.704549361e-05 | M10: 0.005649153564 | N10: 0.001013367299 | O10: 0.0001626168116 | P10: 0.0003090806562 | Q10: 0.0005864399923 | R10: 0.0005848606068 | S10: 0.0004832272837 | T10: 0.000660673616 | U10: 0.001956174295 | V10: 0.001246412921 | W10: 0.00112305734 | X10: 0.001184055435 | Y10: 0.001157197925 | Z10: 0.001414756361 | AA10: 6.562046353e-05 | AB10: 0.0004283724683 | AC10: 0.0009370326231 | AD10: 0.001855604696 | AE10: 0.0006398922726 | AF10: 1.540498772e-05 | AG10: 0.0008889546447 | AH10: 0.0004162008971 | AI10: 0.001528798455 | AJ10: 0.0001945436456 | AK10: 0.00143920833 | AL10: 0.01182048703 | AM10: 0.0009344834675 | AN10: 0.00438410969 | AO10: 0.0003249817234 | AP10: 0.003058482124 | AQ10: 0.002888396594 | AR10: 0.009360117065 | AS10: 0.000239829095 | AT10: 1.495200055e-05 | AU10: 7.562801317e-06 | AV10: 7.549874612e-05 | AW10: 1.465078573e-05 | AX10: 3.73383583e-06 | AY10: 0.0008817455321 | AZ10: 2.442466085e-05 | BA10: 3.623729435e-06 | BB10: 9.45348618e-08 | BC10: 1.952172008e-05 | BD10: 1.199475865e-05 | BE10: 1.242123753e-06 | BF10: 3.310788707e-06 | BG10: 4.62570972e-06 | BH10: 4.024508769e-06 | BI10: 4.975819035e-06 | BJ10: 4.193397717e-06 | BK10: 1.349679038e-05 | BL10: 9.257642534e-06 | BM10: 6.283829371e-06 | BN10: 6.127953865e-06 | BO10: 1.667726331e-05 | BP10: 1.176771939e-05 | BQ10: 5.694147113e-07 | BR10: 3.540314466e-06 | BS10: 7.13550996e-06 | BT10: 1.575029827e-05 | BU10: 5.65009575e-06 | BV10: 1.018514274e-07 | BW10: 6.08883596e-06 | BX10: 3.977102703e-06 | BY10: 1.23536075e-05 | BZ10: 1.897627352e-06 | CA10: 1.095430595e-05 | CB10: 9.449014698e-05 | CC10: 7.40624854e-06 | CD10: 3.733196087e-05 | CE10: 2.524354898e-06 | CF10: 2.238295829e-05 | CG10: 2.053023306e-05 | CH10: 7.294931908e-05 | CI10: 1.902624055e-06
B11: 07 | C11: パルプ・紙・木製品 | D11: 0.01199402328 | E11: 0.00927801079 | F11: 0.001658592199 | G11: 0.0006948116378 | H11: 0.005631074829 | I11: 0.002145558573 | J11: 0.1033768793 | K11: 0.003622335329 | L11: 4.810191732e-05 | M11: 0.00206132532 | N11: 0.008212585331 | O11: 0.0001280334859 | P11: 0.0007852805044 | Q11: 0.001350789738 | R11: 0.0005124198416 | S11: 0.0003461377723 | T11: 0.003796743336 | U11: 0.001919388399 | V11: 0.003128879849 | W11: 0.001524383576 | X11: 0.0002734178662 | Y11: 0.03772062317 | Z11: 0.01832397549 | AA11: 0.001029029091 | AB11: 0.001125671442 | AC11: 0.001403438881 | AD11: 0.002732244483 | AE11: 0.001576953292 | AF11: 0.0001869018394 | AG11: 0.001525854121 | AH11: 0.00476772471 | AI11: 0.0005070516992 | AJ11: 0.002382025925 | AK11: 0.002074944341 | AL11: 0.006573908153 | AM11: 0.001547450426 | AN11: 0.00180303953 | AO11: 0.002585798852 | AP11: 0.003037161557 | AQ11: 0.001738534887 | AR11: 0.1729506767 | AS11: 0.0004771135843 | AT11: 0.0002400962016 | AU11: 0.0001004079844 | AV11: 3.104191895e-05 | AW11: 2.388212039e-05 | AX11: 0.0001604110072 | AY11: 5.739153706e-05 | AZ11: 0.00275729043 | BA11: 0.0001304437012 | BB11: 1.412039708e-07 | BC11: 6.270700556e-05 | BD11: 0.0001843094222 | BE11: 3.147498419e-06 | BF11: 2.203740137e-05 | BG11: 3.332932652e-05 | BH11: 1.524414604e-05 | BI11: 1.087921922e-05 | BJ11: 4.823279788e-05 | BK11: 5.715609119e-05 | BL11: 6.791766811e-05 | BM11: 5.532450066e-05 | BN11: 1.353483833e-05 | BO11: 0.0008292269071 | BP11: 0.0004469964413 | BQ11: 2.408306494e-05 | BR11: 2.704553094e-05 | BS11: 3.229712577e-05 | BT11: 8.123794253e-05 | BU11: 4.158023457e-05 | BV11: 4.067651344e-06 | BW11: 4.314960899e-05 | BX11: 0.0001406209245 | BY11: 1.187000505e-05 | BZ11: 6.3058411e-05 | CA11: 5.182921972e-05 | CB11: 0.0001730267737 | CC11: 3.239098797e-05 | CD11: 4.663201172e-05 | CE11: 6.079809355e-05 | CF11: 5.853378895e-05 | CG11: 4.169405386e-05 | CH11: 0.004094273448 | CI11: 1.150202612e-05
B12: 08 | C12: 化学製品 | D12: 0.02419469403 | E12: 0.0002554038152 | F12: 0.005162637259 | G12: 0.007233205578 | H12: 0.003158091364 | I12: 0.03553254829 | J12: 0.00931867296 | K12: 0.1328722581 | L12: -0.001576554779 | M12: 0.07559881374 | N12: 0.006907710122 | O12: 0.001089047182 | P12: 0.002254697179 | Q12: 0.003232865974 | R12: 0.001723889202 | S12: 0.001517696849 | T12: 0.005203288807 | U12: 0.004536646282 | V12: 0.003556193226 | W12: 0.001974918751 | X12: 0.002570260785 | Y12: 0.01109277729 | Z12: 0.001758151445 | AA12: 0.0002521936628 | AB12: 0.00288611403 | AC12: 0.005083147367 | AD12: 2.817324312e-06 | AE12: 6.937479674e-06 | AF12: 1.087432978e-05 | AG12: 0.0001456051323 | AH12: 0.0004155809717 | AI12: 0.0003378603011 | AJ12: 0.001676130065 | AK12: 0.04454704651 | AL12: 0.0007728266369 | AM12: 0.001438643164 | AN12: 0.001015752473 | AO12: 0.0008913974028 | AP12: 0.000960073053 | AQ12: 0.00605184872 | AR12: 0.003282308737 | AS12: 0.002524017609 | AT12: 0.0006309525498 | AU12: 7.294978674e-06 | AV12: 0.0001031199273 | AW12: 0.0001433170794 | AX12: 0.0001019620423 | AY12: 0.001080863585 | AZ12: 0.0003463682869 | BA12: 0.00339173757 | BB12: 2.044525799e-05 | BC12: 0.001905082378 | BD12: 0.0003298267536 | BE12: 4.202302846e-05 | BF12: 8.370414953e-05 | BG12: 8.59809936e-05 | BH12: 4.252018887e-05 | BI12: 3.91185046e-05 | BJ12: 0.0001625581385 | BK12: 0.0001709027972 | BL12: 0.0001317052762 | BM12: 9.975739756e-05 | BN12: 9.706776948e-05 | BO12: 0.000330266821 | BP12: 5.346256862e-05 | BQ12: 7.424549088e-06 | BR12: 8.671825214e-05 | BS12: 0.0001393975106 | BT12: 8.804310512e-08 | BU12: 2.255393988e-07 | BV12: 3.44757473e-07 | BW12: 4.316876224e-06 | BX12: 1.269958147e-05 | BY12: 8.92750424e-06 | BZ12: 7.907176418e-05 | CA12: 0.001284382269 | CB12: 2.338617096e-05 | CC12: 4.078447756e-05 | CD12: 3.114341352e-05 | CE12: 2.507571227e-05 | CF12: 3.861662114e-05 | CG12: 0.0001689904553 | CH12: 9.210772611e-05 | CI12: 7.212493815e-05
B13: 09 | C13: 石油・石炭製品 | D13: 0.002600635172 | E13: 0.003674077323 | F13: 0.01171189151 | G13: 0.006103670225 | H13: 0.0007499747332 | I13: 0.001004228418 | J13: 0.0005470906142 | K13: 0.002661564599 | L13: 0.02392406201 | M13: 0.0009451093236 | N13: 0.0051619087 | O13: -0.005266213499 | P13: 0.0005844465343 | Q13: 0.0008171782006 | R13: 0.0002133021037 | S13: 0.0003853398395 | T13: 0.0004612322841 | U13: 0.0004533018987 | V13: 0.0002873610272 | W13: 0.0001793392442 | X13: 0.0002836575691 | Y13: 0.000609848174 | Z13: 0.00269990908 | AA13: 0.01305721246 | AB13: 0.002979621555 | AC13: 0.003044216596 | AD13: 0.0003658867738 | AE13: 0.0001045133318 | AF13: 0.0001260025897 | AG13: 0.02796851387 | AH13: 0.0002009652287 | AI13: 0.003246001203 | AJ13: 0.0006909407634 | AK13: 0.0005849189289 | AL13: 0.0008311555525 | AM13: 0.0005810203552 | AN13: 0.0005899568903 | AO13: 0.001111903507 | AP13: 0.0023488358 | AQ13: 0.001435242272 | AR13: 0 | AS13: 0.004966896992 | AT13: 2.303342404e-05 | AU13: 3.360536504e-05 | AV13: 0.0001727983136 | AW13: 7.667609891e-05 | AX13: 1.407419121e-05 | AY13: 2.041461008e-05 | AZ13: 1.332958977e-05 | BA13: 0.0003005048539 | BB13: 0.0002115223516 | BC13: 6.420674127e-06 | BD13: 7.354212587e-05 | BE13: 0.0001367089644 | BF13: 9.305192036e-06 | BG13: 1.014286881e-05 | BH13: 4.425313828e-06 | BI13: 3.686493459e-06 | BJ13: 3.111605796e-06 | BK13: 4.632382554e-06 | BL13: 3.606914841e-06 | BM13: 1.523686351e-06 | BN13: 6.857212348e-06 | BO13: 6.511284532e-06 | BP13: 4.220582426e-05 | BQ13: 0.0001711434027 | BR13: 3.945608384e-05 | BS13: 3.953635569e-05 | BT13: 5.448269414e-06 | BU13: 1.519560814e-06 | BV13: 1.367499542e-06 | BW13: 0.0003394846533 | BX13: 2.694233094e-06 | BY13: 3.675170236e-05 | BZ13: 1.20620803e-05 | CA13: 7.72337022e-06 | CB13: 1.204997441e-05 | CC13: 7.068712461e-06 | CD13: 8.493289681e-06 | CE13: 1.47832392e-05 | CF13: 2.619549978e-05 | CG13: 1.816174277e-05 | CH13: 0 | CI13: 6.66449384e-05
B14: 10 | C14: プラスチック・ゴム製品 | D14: 0.005477522852 | E14: 0.01558586209 | F14: 0.007337460573 | G14: 0.002083315453 | H14: 0.007751807073 | I14: 0.004967638974 | J14: 0.008660044113 | K14: 0.007283616324 | L14: 4.85144552e-05 | M14: 0.07167026508 | N14: 0.00314447719 | O14: 0.000303382761 | P14: 0.001263191763 | Q14: 0.002211878833 | R14: 0.007671840396 | S14: 0.009502469259 | T14: 0.02684441601 | U14: 0.01046016481 | V14: 0.01392366884 | W14: 0.01406500829 | X14: 0.01801124025 | Y14: 0.0239847204 | Z14: 0.005946674214 | AA14: 0 | AB14: 0.01692128093 | AC14: 0.006623767869 | AD14: 0.002017687383 | AE14: 0.001212655407 | AF14: 0.0002878488021 | AG14: 0.001269108247 | AH14: 0.00125706285 | AI14: 0.0009794321122 | AJ14: 0.001069353122 | AK14: 0.001047883516 | AL14: 0.003525938856 | AM14: 0.005114216962 | AN14: 0.001317778424 | AO14: 0.0006012530074 | AP14: 0.003498707468 | AQ14: 0.001309481699 | AR14: 0.02238802957 | AS14: 0.001827778767 | AT14: 0.0001439276526 | AU14: 0.0002627722738 | AV14: 0.0002991932981 | AW14: 8.874503379e-05 | AX14: 0.0003515426976 | AY14: 0.0001947202771 | AZ14: 0.0003988066392 | BA14: 0.0003445055144 | BB14: 2.544663084e-06 | BC14: 0.004083371913 | BD14: 0.0001403009171 | BE14: 1.315709283e-05 | BF14: 0.0001020832272 | BG14: 9.085852022e-05 | BH14: 0.0002442006475 | BI14: 0.0003848856823 | BJ14: 0.0007407584723 | BK14: 0.0003690336593 | BL14: 0.0007405423678 | BM14: 0.0007676478695 | BN14: 0.0007024507193 | BO14: 0.001067223582 | BP14: 0.0002555675543 | BQ14: 0 | BR14: 0.0007165280666 | BS14: 0.0002557522561 | BT14: 9.915854714e-05 | BU14: 5.29315135e-05 | BV14: 1.095319218e-05 | BW14: 5.331125951e-05 | BX14: 7.619873032e-05 | BY14: 3.575116353e-05 | BZ14: 7.2492167e-05 | CA14: 3.925820717e-05 | CB14: 0.0001474758667 | CC14: 0.0001686954037 | CD14: 5.850234689e-05 | CE14: 2.504169131e-05 | CF14: 0.0001327005161 | CG14: 4.693690946e-05 | CH14: 0.0008924813547 | CI14: 7.419348872e-05
B15: 11 | C15: 窯業・土石製品 | D15: 0.001387805575 | E15: 0.0009935831349 | F15: 2.543652999e-05 | G15: 8.507897605e-05 | H15: 0.001674897168 | I15: 0.0002725315 | J15: 0.003349494521 | K15: 0.004087778576 | L15: 0.0008175675793 | M15: 0.001174979485 | N15: 0.03970360496 | O15: 0.00208304929 | P15: 0.005395134632 | Q15: 0.001983995421 | R15: 0.005178702941 | S15: 0.001854593293 | T15: 0.007573348907 | U15: 0.01824829593 | V15: 0.00482201453 | W15: 0.001451116934 | X15: 0.005759623164 | Y15: 0.00182567168 | Z15: 0.02855588861 | AA15: 2.33478953e-05 | AB15: 0.002434435735 | AC15: 0.0002820719714 | AD15: 0.0001031592624 | AE15: 4.822149889e-06 | AF15: 3.39480285e-05 | AG15: 1.909661906e-05 | AH15: 4.977636313e-06 | AI15: 9.714677931e-05 | AJ15: 0.001096683752 | AK15: 0.0004616467372 | AL15: 0.000256055121 | AM15: 0.0004494652992 | AN15: 0.0009323745172 | AO15: 0.0009126979924 | AP15: 0.0007526951631 | AQ15: 0.0003243815995 | AR15: 0.002832798555 | AS15: 0.002625917504 | AT15: 7.54689338e-05 | AU15: 2.337709075e-05 | AV15: 1.43594403e-06 | AW15: 1.53693197e-05 | AX15: 8.317858704e-05 | AY15: 1.886577907e-05 | AZ15: 9.183846265e-05 | BA15: 0.0001938405801 | BB15: 8.926364577e-06 | BC15: 9.060046195e-05 | BD15: 0.002445272358 | BE15: 0.0001482459982 | BF15: 0.000265348725 | BG15: 0.0001052041867 | BH15: 0.0001876377597 | BI15: 0.0001301833867 | BJ15: 0.0005459617713 | BK15: 0.001030356785 | BL15: 0.0002660832795 | BM15: 8.165123072e-05 | BN15: 0.0001595691846 | BO15: 0.0001365835734 | BP15: 0.001598856351 | BQ15: 1.287245151e-06 | BR15: 0.0001328933814 | BS15: 1.441072436e-05 | BT15: 6.026900966e-06 | BU15: 2.92301383e-07 | BV15: 2.114281894e-06 | BW15: 8.586722694e-07 | BX15: 3.43891821e-07 | BY15: 5.301397387e-06 | BZ15: 5.400033345e-05 | CA15: 2.441597038e-05 | CB15: 1.369517387e-05 | CC15: 1.847355063e-05 | CD15: 5.773207241e-05 | CE15: 5.408916113e-05 | CF15: 3.448311485e-05 | CG15: 1.658357855e-05 | CH15: 0.0001483855468 | CI15: 0.0001400508293
B16: 12 | C16: 鉄鋼 | D16: 3.211304949e-05 | E16: 3.114680674e-06 | F16: 0.000221754364 | G16: 0.000874298425 | H16: 0 | I16: 8.150865413e-05 | J16: 0.00511002254 | K16: 0.0001037441543 | L16: -4.867947036e-06 | M16: 0.0009834693993 | N16: 0.005459139014 | O16: 0.3555570295 | P16: 0.0003521226191 | Q16: 0.1533628872 | R16: 0.06119543807 | S16: 0.0548351865 | T16: 0.01254660247 | U16: 0.0026928082 | V16: 0.03642361328 | W16: 0.006552443607 | X16: 0.02920785648 | Y16: 0.001017278203 | Z16: 0.01430757525 | AA16: 0 | AB16: 1.557511363e-05 | AC16: 0 | AD16: 0 | AE16: 0 | AF16: 0 | AG16: 0.0001149310781 | AH16: 0 | AI16: 2.807291871e-05 | AJ16: 0 | AK16: 1.63400049e-06 | AL16: 2.519607586e-06 | AM16: 8.815903143e-05 | AN16: 1.269252314e-05 | AO16: 1.589134899e-05 | AP16: 1.367010492e-06 | AQ16: 3.61794168e-05 | AR16: 1.518875294e-05 | AS16: 0.003142125486 | AT16: 1.090738285e-06 | AU16: 3.188364805e-07 | AV16: 7.166956204e-06 | AW16: 8.647982502e-05 | AX16: 0 | AY16: 4.900863058e-06 | AZ16: 0.0003073736783 | BA16: 9.848475958e-07 | BB16: 0 | BC16: 6.439984981e-05 | BD16: 0.0002506523641 | BE16: 0.01662951826 | BF16: 3.778004632e-05 | BG16: 0.007199356513 | BH16: 0.003640936391 | BI16: 0.002938742064 | BJ16: 0.0007167874755 | BK16: 0.0001801291099 | BL16: 0.001413251303 | BM16: 0.0002872607712 | BN16: 0.001704740017 | BO16: 0.0001059654032 | BP16: 0.0007458011159 | BQ16: 0 | BR16: 8.124186396e-07 | BS16: 0 | BT16: 0 | BU16: 0 | BV16: 0 | BW16: 7.938546498e-06 | BX16: 0 | BY16: 1.085175758e-06 | BZ16: 0 | CA16: 8.578253578e-08 | CB16: 1.45095827e-07 | CC16: 3.431639912e-06 | CD16: 6.770307287e-07 | CE16: 7.779458491e-07 | CF16: 9.975933354e-08 | CG16: 1.523430204e-06 | CH16: 7.368618089e-07 | CI16: 0.0001561766743
